Workbook

Sheet Slutsummering
A1: Sammanställning USM-kval Region 3, U-15 2014
A2: Tjejer
A3: Rang | B3: Född | C3: Namn | D3: Klubb | E3: Bästa åk
A4: 1 | B4: ='D U-15'!B5 -> 2000 | C4: ='D U-15'!C5 -> Alice Larsson | D4: ='D U-15'!D5 -> Sälens IF | E4: ='D U-15'!E5 -> 740
A5: 2 | B5: ='D U-15'!B6 -> 2000 | C5: ='D U-15'!C6 -> Elin Petterson | D5: ='D U-15'!D6 -> Örebro SLF | E5: ='D U-15'!E6 -> 575
A6: 3 | B6: ='D U-15'!B7 -> 2000 | C6: ='D U-15'!C7 -> Wilma Antfolk | D6: ='D U-15'!D7 -> IFK Borlänge | E6: ='D U-15'!E7 -> 510
A7: 4 | B7: ='D U-15'!B8 -> 2000 | C7: ='D U-15'!C8 -> Ebba Kling Andersson | D7: ='D U-15'!D8 -> IFK Borlänge | E7: ='D U-15'!E8 -> 460
A8: 5 | B8: ='D U-15'!B9 -> 2000 | C8: ='D U-15'!C9 -> Sofia Hedgren | D8: ='D U-15'!D9 -> Malungs SLK | E8: ='D U-15'!E9 -> 395
A9: 6 | B9: ='D U-15'!B10 -> 2000 | C9: ='D U-15'!C10 -> Emmy Westerlund | D9: ='D U-15'!D10 -> Malungs SLK | E9: ='D U-15'!E10 -> 356
A10: 7 | B10: ='D U-15'!B11 -> 2000 | C10: ='D U-15'!C11 -> Anna Jakobsson | D10: ='D U-15'!D11 -> Idre SK | E10: ='D U-15'!E11 -> 323
A11: 8 | B11: ='D U-15'!B12 -> 2000 | C11: ='D U-15'!C12 -> Hanna Flodberg | D11: ='D U-15'!D12 -> IFK Falun | E11: ='D U-15'!E12 -> 306
A12: 9 | B12: ='D U-15'!B13 -> 2000 | C12: ='D U-15'!C13 -> Linn Askman | D12: ='D U-15'!D13 -> Valfjällets SLK | E12: ='D U-15'!E13 -> 289
A13: 10 | B13: ='D U-15'!B14 -> 2000 | C13: ='D U-15'!C14 -> Olivia Ederström | D13: ='D U-15'!D14 -> Kungsbergets AK | E13: ='D U-15'!E14 -> 276
A14: 11 | B14: ='D U-15'!B15 -> 2000 | C14: ='D U-15'!C15 -> Emelie Ederborn | D14: ='D U-15'!D15 -> Idre SK | E14: ='D U-15'!E15 -> 273
A15: 12 | B15: ='D U-15'!B16 -> 2000 | C15: ='D U-15'!C16 -> Lisa Tegnhed | D15: ='D U-15'!D16 -> Karlstads SLK | E15: ='D U-15'!E16 -> 255
A16: 13 | B16: ='D U-15'!B17 -> 2000 | C16: ='D U-15'!C17 -> Ahnoo Sandberg | D16: ='D U-15'!D17 -> IFK Falun | E16: ='D U-15'!E17 -> 220
A17: 14 | B17: ='D U-15'!B18 -> 2000 | C17: ='D U-15'!C18 -> Alma Faghén | D17: ='D U-15'!D18 -> Norrbärke SK Alpin | E17: ='D U-15'!E18 -> 189
A18: 15 | B18: ='D U-15'!B19 -> 2000 | C18: ='D U-15'!C19 -> Lovisa Eklund | D18: ='D U-15'!D19 -> Leksands SLK | E18: ='D U-15'!E19 -> 170
A19: 16 | B19: ='D U-15'!B20 -> 2000 | C19: ='D U-15'!C20 -> Linda Persson | D19: ='D U-15'!D20 -> Idre SK | E19: ='D U-15'!E20 -> 170
A20: 17 | B20: ='D U-15'!B21 -> 2000 | C20: ='D U-15'!C21 -> Jennifer Thornell | D20: ='D U-15'!D21 -> Avesta AK | E20: ='D U-15'!E21 -> 158
A21: 18 | B21: ='D U-15'!B22 -> 2000 | C21: ='D U-15'!C22 -> Tilde Grönstedt | D21: ='D U-15'!D22 -> Karlstads SLK | E21: ='D U-15'!E22 -> 156
A22: 19 | B22: ='D U-15'!B23 -> 2000 | C22: ='D U-15'!C23 -> Felicia Lind | D22: ='D U-15'!D23 -> IFK Borlänge | E22: ='D U-15'!E23 -> 148
A23: 20 | B23: ='D U-15'!B24 -> 2000 | C23: ='D U-15'!C24 -> Ida Söderlind | D23: ='D U-15'!D24 -> Örebro SLF | E23: ='D U-15'!E24 -> 139
A24: 21 | B24: ='D U-15'!B25 -> 2000 | C24: ='D U-15'!C25 -> Ellen Kindberg | D24: ='D U-15'!D25 -> Kils SLK | E24: ='D U-15'!E25 -> 130
A25: 22 | B25: ='D U-15'!B26 -> 2000 | C25: ='D U-15'!C26 -> Tilda Vestlund | D25: ='D U-15'!D26 -> Avesta AK | E25: ='D U-15'!E26 -> 130
A26: 23 | B26: ='D U-15'!B27 -> 2000 | C26: ='D U-15'!C27 -> Ida Håkansson | D26: ='D U-15'!D27 -> Valfjällets SLK | E26: ='D U-15'!E27 -> 78
A27: 24 | B27: ='D U-15'!B28 -> 2000 | C27: ='D U-15'!C28 -> Emma Skogsmark | D27: ='D U-15'!D28 -> Avesta AK | E27: ='D U-15'!E28 -> 61
A28: 25 | B28: ='D U-15'!B29 -> 2000 | C28: ='D U-15'!C29 -> Emilia Pantzare | D28: ='D U-15'!D29 -> Idre SK | E28: ='D U-15'!E29 -> 0
A29: 26 | B29: ='D U-15'!B30 -> 0 | C29: ='D U-15'!C30 -> 0 | D29: ='D U-15'!D30 -> 0 | E29: ='D U-15'!E30 -> 0
A30: 27 | B30: ='D U-15'!B31 -> 0 | C30: ='D U-15'!C31 -> 0 | D30: ='D U-15'!D31 -> 0 | E30: ='D U-15'!E31 -> 0
A31: 28 | B31: ='D U-15'!B32 -> 0 | C31: ='D U-15'!C32 -> 0 | D31: ='D U-15'!D32 -> 0 | E31: ='D U-15'!E32 -> 0
A32: 29 | B32: ='D U-15'!B33 -> 0 | C32: ='D U-15'!C33 -> 0 | D32: ='D U-15'!D33 -> 0 | E32: ='D U-15'!E33 -> 0
A33: 30 | B33: ='D U-15'!B34 -> 0 | C33: ='D U-15'!C34 -> 0 | D33: ='D U-15'!D34 -> 0 | E33: ='D U-15'!E34 -> 0
A34: 31 | B34: ='D U-15'!B35 -> 0 | C34: ='D U-15'!C35 -> 0 | D34: ='D U-15'!D35 -> 0 | E34: ='D U-15'!E35 -> 0
A35: 32 | B35: ='D U-15'!B36 -> 0 | C35: ='D U-15'!C36 -> 0 | D35: ='D U-15'!D36 -> 0 | E35: ='D U-15'!E36 -> 0
A36: 33 | B36: ='D U-15'!B37 -> 0 | C36: ='D U-15'!C37 -> 0 | D36: ='D U-15'!D37 -> 0 | E36: ='D U-15'!E37 -> 0
A37: 34 | B37: ='D U-15'!B38 -> 0 | C37: ='D U-15'!C38 -> 0 | D37: ='D U-15'!D38 -> 0 | E37: ='D U-15'!E38 -> 0
A38: 35 | B38: ='D U-15'!B39 -> 0 | C38: ='D U-15'!C39 -> 0 | D38: ='D U-15'!D39 -> 0 | E38: ='D U-15'!E39 -> 0
A39: 36 | B39: ='D U-15'!B40 -> 0 | C39: ='D U-15'!C40 -> 0 | D39: ='D U-15'!D40 -> 0 | E39: ='D U-15'!E40 -> 0
A40: 37 | B40: ='D U-15'!B41 -> 0 | C40: ='D U-15'!C41 -> 0 | D40: ='D U-15'!D41 -> 0 | E40: ='D U-15'!E41 -> 0
A41: 38 | B41: ='D U-15'!B42 -> 0 | C41: ='D U-15'!C42 -> 0 | D41: ='D U-15'!D42 -> 0 | E41: ='D U-15'!E42 -> 0
A42: 39 | B42: ='D U-15'!B43 -> 0 | C42: ='D U-15'!C43 -> 0 | D42: ='D U-15'!D43 -> 0 | E42: ='D U-15'!E43 -> 0
A43: 40 | B43: ='D U-15'!B44 -> 0 | C43: ='D U-15'!C44 -> 0 | D43: ='D U-15'!D44 -> 0 | E43: ='D U-15'!E44 -> 0
A44: 41 | B44: ='D U-15'!B45 -> 0 | C44: ='D U-15'!C45 -> 0 | D44: ='D U-15'!D45 -> 0 | E44: ='D U-15'!E45 -> 0
A45: 42 | B45: ='D U-15'!B46 -> 0 | C45: ='D U-15'!C46 -> 0 | D45: ='D U-15'!D46 -> 0 | E45: ='D U-15'!E46 -> 0
A46: 43 | B46: ='D U-15'!B47 -> 0 | C46: ='D U-15'!C47 -> 0 | D46: ='D U-15'!D47 -> 0 | E46: ='D U-15'!E47 -> 0
A47: 44 | B47: ='D U-15'!B48 -> 0 | C47: ='D U-15'!C48 -> 0 | D47: ='D U-15'!D48 -> 0 | E47: ='D U-15'!E48 -> 0
A48: 45 | B48: ='D U-15'!B49 -> 0 | C48: ='D U-15'!C49 -> 0 | D48: ='D U-15'!D49 -> 0 | E48: ='D U-15'!E49 -> 0
A50: Sammanställning USM-kval Region 3, U-15 2014
A51: Killar
A52: Rang | B52: Född | C52: Namn | D52: Klubb | E52: Bästa åk
A53: 1 | B53: ='H U-15'!B5 -> 2000 | C53: ='H U-15'!C5 -> Mikael Semdahl | D53: ='H U-15'!D5 -> IFK Borlänge | E53: ='H U-15'!E5 -> 660
A54: 2 | B54: ='H U-15'!B6 -> 2000 | C54: ='H U-15'!C6 -> Rickard Forsman | D54: ='H U-15'!D6 -> Malungs SLK | E54: ='H U-15'!E6 -> 628
A55: 3 | B55: ='H U-15'!B7 -> 2000 | C55: ='H U-15'!C7 -> Edvin Sundberg | D55: ='H U-15'!D7 -> Örebro SLF | E55: ='H U-15'!E7 -> 580
A56: 4 | B56: ='H U-15'!B8 -> 2000 | C56: ='H U-15'!C8 -> Erik Hultman | D56: ='H U-15'!D8 -> Karlskoga SLK | E56: ='H U-15'!E8 -> 425
A57: 5 | B57: ='H U-15'!B9 -> 2000 | C57: ='H U-15'!C9 -> Carl Setterström | D57: ='H U-15'!D9 -> Karlstads SLK | E57: ='H U-15'!E9 -> 405
A58: 6 | B58: ='H U-15'!B10 -> 2000 | C58: ='H U-15'!C10 -> Gusten Berglund | D58: ='H U-15'!D10 -> Karlstads SLK | E58: ='H U-15'!E10 -> 393
A59: 7 | B59: ='H U-15'!B11 -> 2000 | C59: ='H U-15'!C11 -> Filip Lindström | D59: ='H U-15'!D11 -> Kumla SF | E59: ='H U-15'!E11 -> 360
A60: 8 | B60: ='H U-15'!B12 -> 2000 | C60: ='H U-15'!C12 -> Adam Ståhlbom | D60: ='H U-15'!D12 -> Kumla SF | E60: ='H U-15'!E12 -> 341
A61: 9 | B61: ='H U-15'!B13 -> 2000 | C61: ='H U-15'!C13 -> Carl Kieksi | D61: ='H U-15'!D13 -> IFK Borlänge | E61: ='H U-15'!E13 -> 310
A62: 10 | B62: ='H U-15'!B14 -> 2000 | C62: ='H U-15'!C15 -> Martin Jansson | D62: ='H U-15'!D15 -> IFK Falun | E62: ='H U-15'!E14 -> 308
A63: 11 | B63: ='H U-15'!B15 -> 2000 | C63: ='H U-15'!C16 -> Mathias Gatu | D63: ='H U-15'!D16 -> Rättviks SLK | E63: ='H U-15'!E15 -> 292
A64: 12 | B64: ='H U-15'!B16 -> 2000 | C64: ='H U-15'!C17 -> Oliver Suther | D64: ='H U-15'!D17 -> Rättviks SLK | E64: ='H U-15'!E16 -> 122
A65: 13 | B65: ='H U-15'!B17 -> 2000 | C65: ='H U-15'!#REF! ->  | D65: ='H U-15'!#REF! ->  | E65: ='H U-15'!E17 -> 81
A66: 14 | B66: ='H U-15'!B18 -> 2000 | C66: ='H U-15'!C18 -> Alexander Mueller | D66: ='H U-15'!D18 -> Kungsbergets AK | E66: ='H U-15'!E18 -> 42
A67: 15 | B67: ='H U-15'!B19 -> 0 | C67: ='H U-15'!C19 -> 0 | D67: ='H U-15'!D19 -> 0 | E67: ='H U-15'!E19 -> 0
A68: 16 | B68: ='H U-15'!B20 -> 0 | C68: ='H U-15'!C20 -> 0 | D68: ='H U-15'!D20 -> 0 | E68: ='H U-15'!E20 -> 0
A69: 17 | B69: ='H U-15'!B21 -> 0 | C69: ='H U-15'!C21 -> 0 | D69: ='H U-15'!D21 -> 0 | E69: ='H U-15'!E21 -> 0
A70: 18 | B70: ='H U-15'!B22 -> 0 | C70: ='H U-15'!C22 -> 0 | D70: ='H U-15'!D22 -> 0 | E70: ='H U-15'!E22 -> 0
A71: 19 | B71: ='H U-15'!B23 -> 0 | C71: ='H U-15'!C23 -> 0 | D71: ='H U-15'!D23 -> 0 | E71: ='H U-15'!E23 -> 0
A72: 20 | B72: ='H U-15'!B24 -> 0 | C72: ='H U-15'!C24 -> 0 | D72: ='H U-15'!D24 -> 0 | E72: ='H U-15'!E24 -> 0
A73: 21 | B73: ='H U-15'!B25 -> 0 | C73: ='H U-15'!C25 -> 0 | D73: ='H U-15'!D25 -> 0 | E73: ='H U-15'!E25 -> 0
A74: 22 | B74: ='H U-15'!B26 -> 0 | C74: ='H U-15'!C26 -> 0 | D74: ='H U-15'!D26 -> 0 | E74: ='H U-15'!E26 -> 0
A75: 23 | B75: ='H U-15'!B27 -> 0 | C75: ='H U-15'!C27 -> 0 | D75: ='H U-15'!D27 -> 0 | E75: ='H U-15'!E27 -> 0
A76: 24 | B76: ='H U-15'!B28 -> 0 | C76: ='H U-15'!C28 -> 0 | D76: ='H U-15'!D28 -> 0 | E76: ='H U-15'!E28 -> 0
A77: 25 | B77: ='H U-15'!B29 -> 0 | C77: ='H U-15'!C29 -> 0 | D77: ='H U-15'!D29 -> 0 | E77: ='H U-15'!E29 -> 0
A78: 26 | B78: ='H U-15'!B30 -> 0 | C78: ='H U-15'!C30 -> 0 | D78: ='H U-15'!D30 -> 0 | E78: ='H U-15'!E30 -> 0
A79: 27 | B79: ='H U-15'!B31 -> 0 | C79: ='H U-15'!C31 -> 0 | D79: ='H U-15'!D31 -> 0 | E79: ='H U-15'!E31 -> 0
A80: 28 | B80: ='H U-15'!B32 -> 0 | C80: ='H U-15'!C32 -> 0 | D80: ='H U-15'!D32 -> 0 | E80: ='H U-15'!E32 -> 0
A81: 29 | B81: ='H U-15'!B33 -> 0 | C81: ='H U-15'!C33 -> 0 | D81: ='H U-15'!D33 -> 0 | E81: ='H U-15'!E33 -> 0
A82: 30 | B82: ='H U-15'!B34 -> 0 | C82: ='H U-15'!C34 -> 0 | D82: ='H U-15'!D34 -> 0 | E82: ='H U-15'!E34 -> 0
A83: 31 | B83: ='H U-15'!B35 -> 0 | C83: ='H U-15'!C35 -> 0 | D83: ='H U-15'!D35 -> 0 | E83: ='H U-15'!E35 -> 0
A84: 32 | B84: ='H U-15'!B36 -> 0 | C84: ='H U-15'!C36 -> 0 | D84: ='H U-15'!D36 -> 0 | E84: ='H U-15'!E36 -> 0
A85: 33 | B85: ='H U-15'!B37 -> 0 | C85: ='H U-15'!C37 -> 0 | D85: ='H U-15'!D37 -> 0 | E85: ='H U-15'!E37 -> 0
A86: 34 | B86: ='H U-15'!B38 -> 0 | C86: ='H U-15'!C38 -> 0 | D86: ='H U-15'!D38 -> 0 | E86: ='H U-15'!E38 -> 0
A87: 35 | B87: ='H U-15'!B39 -> 0 | C87: ='H U-15'!C39 -> 0 | D87: ='H U-15'!D39 -> 0 | E87: ='H U-15'!E39 -> 0
A88: 36 | B88: ='H U-15'!B40 -> 0 | C88: ='H U-15'!C40 -> 0 | D88: ='H U-15'!D40 -> 0 | E88: ='H U-15'!E40 -> 0
A89: 37 | B89: ='H U-15'!B41 -> 0 | C89: ='H U-15'!C41 -> 0 | D89: ='H U-15'!D41 -> 0 | E89: ='H U-15'!E41 -> 0
A90: 38 | B90: ='H U-15'!B42 -> 0 | C90: ='H U-15'!C42 -> 0 | D90: ='H U-15'!D42 -> 0 | E90: ='H U-15'!E42 -> 0
A91: 39 | B91: ='H U-15'!B43 -> 0 | C91: ='H U-15'!C43 -> 0 | D91: ='H U-15'!D43 -> 0 | E91: ='H U-15'!E43 -> 0
A92: 40 | B92: ='H U-15'!B44 -> 0 | C92: ='H U-15'!C44 -> 0 | D92: ='H U-15'!D44 -> 0 | E92: ='H U-15'!E44 -> 0
A93: 41 | B93: ='H U-15'!B45 -> 0 | C93: ='H U-15'!C45 -> 0 | D93: ='H U-15'!D45 -> 0 | E93: ='H U-15'!E45 -> 0
A94: 42 | B94: ='H U-15'!B46 -> 0 | C94: ='H U-15'!C46 -> 0 | D94: ='H U-15'!D46 -> 0 | E94: ='H U-15'!E46 -> 0
A95: 43 | B95: ='H U-15'!B47 -> 0 | C95: ='H U-15'!C47 -> 0 | D95: ='H U-15'!D47 -> 0 | E95: ='H U-15'!E47 -> 0
A96: 44 | B96: ='H U-15'!B48 -> 0 | C96: ='H U-15'!C48 -> 0 | D96: ='H U-15'!D48 -> 0 | E96: ='H U-15'!E48 -> 0

Sheet D U-15
A1: USM-kval region 3 2015
A2: Damer U-15 | BD2: 1:a | BE2: 2:a | BF2: 3:e | BG2: 4:e | BH2: 5:e | BI2: 6:e | BJ2: 7:e | BK2: 8:e | BL2: 9:e | BM2: 10:e
E3: Topp 10 | F3: Topp 10 | G3: Totalt | H3: Falun SL 1 | L3: Falun SL 2 | P3: Idre SL 3 | T3: Idre SL 4 | X3: Borlänge GS 1 | AB3: Borlänge GS 2 | AF3: Valfjället GS | AJ3: Valfjället GS | AN3: Duved DH | AR3: Duved SG | BD3: De 10 bästa åken.
A4: Rang | B4: Född | C4: Namn | D4: Klubb | E4: Bästa åk | F4: Bästa åk | G4: Poäng | H4: 10/1 Åk1 | J4: 10/1 Åk2 | L4: 11/1 Åk 1 | N4: 11/1 Åk 2 | P4: 17/1 Åk 1 | R4: 17/1 Åk 2 | T4: 18/1 Åk 1 | V4: 18/1 Åk2 | X4: 31/1 Åk 1 | Z4: 31/1 Åk 2 | AB4: 31/1 Åk 3 | AD4: 31/1 Åk 4 | AF4: 15/2 Åk 1 | AH4: 15/2 Åk 2 | AJ4: 16/2 Åk 1 | AL4: 16/2 Åk 2 | AN4: 1/2 Åk 1 | AP4: 1/2 Åk 2 | AR4: 2/2 Åk 1 | AT4: 2/2 Åk 2
A5: 1 | B5: 2000 | C5: Alice Larsson | D5: Sälens IF | E5: =SUM(BD5:BM5) -> 740 | F5: =SUM(BD5:BK5) -> 740 | G5: =I5+K5+M5+O5+Q5+S5+U5+W5+Y5+AA5+AC5+AE5+AG5+AI5+AK5+AM5+AO5+AQ5+AS5+AU5+AW5+AY5+BA5+BC5 -> 740 | H5: 1 | I5: =LOOKUP(H5,Poängberäkning!$B$6:$B$97,Poängberäkning!$C$6:$C$97) -> 100 | J5: 1 | K5: =LOOKUP(J5,Poängberäkning!$B$6:$B$97,Poängberäkning!$C$6:$C$97) -> 100 | L5: 1 | M5: =LOOKUP(L5,Poängberäkning!$B$6:$B$97,Poängberäkning!$C$6:$C$97) -> 100 | N5: 2 | O5: =LOOKUP(N5,Poängberäkning!$B$6:$B$97,Poängberäkning!$C$6:$C$97) -> 80 | P5: 1 | Q5: =LOOKUP(P5,Poängberäkning!$B$6:$B$97,Poängberäkning!$C$6:$C$97) -> 100 | R5: 4 | S5: =LOOKUP(R5,Poängberäkning!$B$6:$B$97,Poängberäkning!$C$6:$C$97) -> 60 | T5: 1 | U5: =LOOKUP(T5,Poängberäkning!$B$6:$B$97,Poängberäkning!$C$6:$C$97) -> 100 | V5: 1 | W5: =LOOKUP(V5,Poängberäkning!$B$6:$B$97,Poängberäkning!$C$6:$C$97) -> 100 | Y5: =LOOKUP(X5,Poängberäkning!$B$6:$B$97,Poängberäkning!$C$6:$C$97) -> 0 | AA5: =LOOKUP(Z5,Poängberäkning!$B$6:$B$97,Poängberäkning!$C$6:$C$97) -> 0 | AC5: =LOOKUP(AB5,Poängberäkning!$B$6:$B$97,Poängberäkning!$C$6:$C$97) -> 0 | AE5: =LOOKUP(AD5,Poängberäkning!$B$6:$B$97,Poängberäkning!$C$6:$C$97) -> 0 | AG5: =LOOKUP(AF5,Poängberäkning!$B$6:$B$97,Poängberäkning!$C$6:$C$97) -> 0 | AI5: =LOOKUP(AH5,Poängberäkning!$B$6:$B$97,Poängberäkning!$C$6:$C$97) -> 0 | AK5: =LOOKUP(AJ5,Poängberäkning!$B$6:$B$97,Poängberäkning!$C$6:$C$97) -> 0 | AM5: =LOOKUP(AL5,Poängberäkning!$B$6:$B$97,Poängberäkning!$C$6:$C$97) -> 0 | AO5: =LOOKUP(AN5,Poängberäkning!$B$6:$B$97,Poängberäkning!$C$6:$C$97) -> 0 | AQ5: =LOOKUP(AP5,Poängberäkning!$B$6:$B$97,Poängberäkning!$C$6:$C$97) -> 0 | AS5: =LOOKUP(AR5,Poängberäkning!$B$6:$B$97,Poängberäkning!$C$6:$C$97) -> 0 | AU5: =LOOKUP(AT5,Poängberäkning!$B$6:$B$97,Poängberäkning!$C$6:$C$97) -> 0 | BD5: =LARGE(($I5,$K5,$M5,$O5,$Q5,$S5,$U5,$W5,$Y5,$AA5,$AC5,$AE5,$AG5,$AI5,$AK5,$AM5,$AO5,$AQ5,$AS5,$AU5,$AW5,$AY5,$BA5,$BC5),1) -> 100 | BE5: =LARGE(($I5,$K5,$M5,$O5,$Q5,$S5,$U5,$W5,$Y5,$AA5,$AC5,$AE5,$AG5,$AI5,$AK5,$AM5,$AO5,$AQ5,$AS5,$AU5,$AW5,$AY5,$BA5,$BC5),2) -> 100 | BF5: =LARGE(($I5,$K5,$M5,$O5,$Q5,$S5,$U5,$W5,$Y5,$AA5,$AC5,$AE5,$AG5,$AI5,$AK5,$AM5,$AO5,$AQ5,$AS5,$AU5,$AW5,$AY5,$BA5,$BC5),3) -> 100 | BG5: =LARGE(($I5,$K5,$M5,$O5,$Q5,$S5,$U5,$W5,$Y5,$AA5,$AC5,$AE5,$AG5,$AI5,$AK5,$AM5,$AO5,$AQ5,$AS5,$AU5,$AW5,$AY5,$BA5,$BC5),4) -> 100 | BH5: =LARGE(($I5,$K5,$M5,$O5,$Q5,$S5,$U5,$W5,$Y5,$AA5,$AC5,$AE5,$AG5,$AI5,$AK5,$AM5,$AO5,$AQ5,$AS5,$AU5,$AW5,$AY5,$BA5,$BC5),5) -> 100 | BI5: =LARGE(($I5,$K5,$M5,$O5,$Q5,$S5,$U5,$W5,$Y5,$AA5,$AC5,$AE5,$AG5,$AI5,$AK5,$AM5,$AO5,$AQ5,$AS5,$AU5,$AW5,$AY5,$BA5,$BC5),6) -> 100 | BJ5: =LARGE(($I5,$K5,$M5,$O5,$Q5,$S5,$U5,$W5,$Y5,$AA5,$AC5,$AE5,$AG5,$AI5,$AK5,$AM5,$AO5,$AQ5,$AS5,$AU5,$AW5,$AY5,$BA5,$BC5),7) -> 80 | BK5: =LARGE(($I5,$K5,$M5,$O5,$Q5,$S5,$U5,$W5,$Y5,$AA5,$AC5,$AE5,$AG5,$AI5,$AK5,$AM5,$AO5,$AQ5,$AS5,$AU5,$AW5,$AY5,$BA5,$BC5),8) -> 60 | BL5: =LARGE(($I5,$K5,$M5,$O5,$Q5,$S5,$U5,$W5,$Y5,$AA5,$AC5,$AE5,$AG5,$AI5,$AK5,$AM5,$AO5,$AQ5,$AS5,$AU5,$AW5,$AY5,$BA5,$BC5),9) -> 0 | BM5: =LARGE(($I5,$K5,$M5,$O5,$Q5,$S5,$U5,$W5,$Y5,$AA5,$AC5,$AE5,$AG5,$AI5,$AK5,$AM5,$AO5,$AQ5,$AS5,$AU5,$AW5,$AY5,$BA5,$BC5),10) -> 0
A6: =A5+1 -> 2 | B6: 2000 | C6: Elin Petterson | D6: Örebro SLF | E6: 575 | F6: 575 | G6: 575 | H6: 3 | I6: =LOOKUP(H6,Poängberäkning!$B$6:$B$97,Poängberäkning!$C$6:$C$97) -> 70 | J6: 3 | K6: =LOOKUP(J6,Poängberäkning!$B$6:$B$97,Poängberäkning!$C$6:$C$97) -> 70 | L6: 2 | M6: =LOOKUP(L6,Poängberäkning!$B$6:$B$97,Poängberäkning!$C$6:$C$97) -> 80 | N6: 5 | O6: =LOOKUP(N6,Poängberäkning!$B$6:$B$97,Poängberäkning!$C$6:$C$97) -> 55 | P6: 3 | Q6: =LOOKUP(P6,Poängberäkning!$B$6:$B$97,Poängberäkning!$C$6:$C$97) -> 70 | R6: 2 | S6: =LOOKUP(R6,Poängberäkning!$B$6:$B$97,Poängberäkning!$C$6:$C$97) -> 80 | T6: 3 | U6: =LOOKUP(T6,Poängberäkning!$B$6:$B$97,Poängberäkning!$C$6:$C$97) -> 70 | V6: 2 | W6: =LOOKUP(V6,Poängberäkning!$B$6:$B$97,Poängberäkning!$C$6:$C$97) -> 80 | Y6: =LOOKUP(X6,Poängberäkning!$B$6:$B$97,Poängberäkning!$C$6:$C$97) -> 0 | AA6: =LOOKUP(Z6,Poängberäkning!$B$6:$B$97,Poängberäkning!$C$6:$C$97) -> 0 | AC6: =LOOKUP(AB6,Poängberäkning!$B$6:$B$97,Poängberäkning!$C$6:$C$97) -> 0 | AE6: =LOOKUP(AD6,Poängberäkning!$B$6:$B$97,Poängberäkning!$C$6:$C$97) -> 0 | AG6: =LOOKUP(AF6,Poängberäkning!$B$6:$B$97,Poängberäkning!$C$6:$C$97) -> 0 | AI6: =LOOKUP(AH6,Poängberäkning!$B$6:$B$97,Poängberäkning!$C$6:$C$97) -> 0 | AK6: =LOOKUP(AJ6,Poängberäkning!$B$6:$B$97,Poängberäkning!$C$6:$C$97) -> 0 | AM6: =LOOKUP(AL6,Poängberäkning!$B$6:$B$97,Poängberäkning!$C$6:$C$97) -> 0 | AO6: =LOOKUP(AN6,Poängberäkning!$B$6:$B$97,Poängberäkning!$C$6:$C$97) -> 0 | AQ6: =LOOKUP(AP6,Poängberäkning!$B$6:$B$97,Poängberäkning!$C$6:$C$97) -> 0 | AS6: =LOOKUP(AR6,Poängberäkning!$B$6:$B$97,Poängberäkning!$C$6:$C$97) -> 0 | AU6: =LOOKUP(AT6,Poängberäkning!$B$6:$B$97,Poängberäkning!$C$6:$C$97) -> 0 | BD6: =LARGE(($I6,$K6,$M6,$O6,$Q6,$S6,$U6,$W6,$Y6,$AA6,$AC6,$AE6,$AG6,$AI6,$AK6,$AM6,$AO6,$AQ6,$AS6,$AU6,$AW6,$AY6,$BA6,$BC6),1) -> 80 | BE6: =LARGE(($I6,$K6,$M6,$O6,$Q6,$S6,$U6,$W6,$Y6,$AA6,$AC6,$AE6,$AG6,$AI6,$AK6,$AM6,$AO6,$AQ6,$AS6,$AU6,$AW6,$AY6,$BA6,$BC6),2) -> 80 | BF6: =LARGE(($I6,$K6,$M6,$O6,$Q6,$S6,$U6,$W6,$Y6,$AA6,$AC6,$AE6,$AG6,$AI6,$AK6,$AM6,$AO6,$AQ6,$AS6,$AU6,$AW6,$AY6,$BA6,$BC6),3) -> 80 | BG6: =LARGE(($I6,$K6,$M6,$O6,$Q6,$S6,$U6,$W6,$Y6,$AA6,$AC6,$AE6,$AG6,$AI6,$AK6,$AM6,$AO6,$AQ6,$AS6,$AU6,$AW6,$AY6,$BA6,$BC6),4) -> 70 | BH6: =LARGE(($I6,$K6,$M6,$O6,$Q6,$S6,$U6,$W6,$Y6,$AA6,$AC6,$AE6,$AG6,$AI6,$AK6,$AM6,$AO6,$AQ6,$AS6,$AU6,$AW6,$AY6,$BA6,$BC6),5) -> 70 | BI6: =LARGE(($I6,$K6,$M6,$O6,$Q6,$S6,$U6,$W6,$Y6,$AA6,$AC6,$AE6,$AG6,$AI6,$AK6,$AM6,$AO6,$AQ6,$AS6,$AU6,$AW6,$AY6,$BA6,$BC6),6) -> 70 | BJ6: =LARGE(($I6,$K6,$M6,$O6,$Q6,$S6,$U6,$W6,$Y6,$AA6,$AC6,$AE6,$AG6,$AI6,$AK6,$AM6,$AO6,$AQ6,$AS6,$AU6,$AW6,$AY6,$BA6,$BC6),7) -> 70 | BK6: =LARGE(($I6,$K6,$M6,$O6,$Q6,$S6,$U6,$W6,$Y6,$AA6,$AC6,$AE6,$AG6,$AI6,$AK6,$AM6,$AO6,$AQ6,$AS6,$AU6,$AW6,$AY6,$BA6,$BC6),8) -> 55 | BL6: =LARGE(($I6,$K6,$M6,$O6,$Q6,$S6,$U6,$W6,$Y6,$AA6,$AC6,$AE6,$AG6,$AI6,$AK6,$AM6,$AO6,$AQ6,$AS6,$AU6,$AW6,$AY6,$BA6,$BC6),9) -> 0 | BM6: =LARGE(($I6,$K6,$M6,$O6,$Q6,$S6,$U6,$W6,$Y6,$AA6,$AC6,$AE6,$AG6,$AI6,$AK6,$AM6,$AO6,$AQ6,$AS6,$AU6,$AW6,$AY6,$BA6,$BC6),10) -> 0
A7: =A6+1 -> 3 | B7: 2000 | C7: Wilma Antfolk | D7: IFK Borlänge | E7: 510 | F7: 510 | G7: 510 | H7: 2 | I7: =LOOKUP(H7,Poängberäkning!$B$6:$B$97,Poängberäkning!$C$6:$C$97) -> 80 | J7: 2 | K7: =LOOKUP(J7,Poängberäkning!$B$6:$B$97,Poängberäkning!$C$6:$C$97) -> 80 | L7: 3 | M7: =LOOKUP(L7,Poängberäkning!$B$6:$B$97,Poängberäkning!$C$6:$C$97) -> 70 | N7: 1 | O7: =LOOKUP(N7,Poängberäkning!$B$6:$B$97,Poängberäkning!$C$6:$C$97) -> 100 | P7: 2 | Q7: =LOOKUP(P7,Poängberäkning!$B$6:$B$97,Poängberäkning!$C$6:$C$97) -> 80 | R7: 1 | S7: =LOOKUP(R7,Poängberäkning!$B$6:$B$97,Poängberäkning!$C$6:$C$97) -> 100 | T7: 99 | U7: =LOOKUP(T7,Poängberäkning!$B$6:$B$97,Poängberäkning!$C$6:$C$97) -> 0 | V7: 99 | W7: =LOOKUP(V7,Poängberäkning!$B$6:$B$97,Poängberäkning!$C$6:$C$97) -> 0 | Y7: =LOOKUP(X7,Poängberäkning!$B$6:$B$97,Poängberäkning!$C$6:$C$97) -> 0 | AA7: =LOOKUP(Z7,Poängberäkning!$B$6:$B$97,Poängberäkning!$C$6:$C$97) -> 0 | AC7: =LOOKUP(AB7,Poängberäkning!$B$6:$B$97,Poängberäkning!$C$6:$C$97) -> 0 | AE7: =LOOKUP(AD7,Poängberäkning!$B$6:$B$97,Poängberäkning!$C$6:$C$97) -> 0 | AG7: =LOOKUP(AF7,Poängberäkning!$B$6:$B$97,Poängberäkning!$C$6:$C$97) -> 0 | AI7: =LOOKUP(AH7,Poängberäkning!$B$6:$B$97,Poängberäkning!$C$6:$C$97) -> 0 | AK7: =LOOKUP(AJ7,Poängberäkning!$B$6:$B$97,Poängberäkning!$C$6:$C$97) -> 0 | AM7: =LOOKUP(AL7,Poängberäkning!$B$6:$B$97,Poängberäkning!$C$6:$C$97) -> 0 | AO7: =LOOKUP(AN7,Poängberäkning!$B$6:$B$97,Poängberäkning!$C$6:$C$97) -> 0 | AQ7: =LOOKUP(AP7,Poängberäkning!$B$6:$B$97,Poängberäkning!$C$6:$C$97) -> 0 | AS7: =LOOKUP(AR7,Poängberäkning!$B$6:$B$97,Poängberäkning!$C$6:$C$97) -> 0 | AU7: =LOOKUP(AT7,Poängberäkning!$B$6:$B$97,Poängberäkning!$C$6:$C$97) -> 0 | BD7: =LARGE(($I7,$K7,$M7,$O7,$Q7,$S7,$U7,$W7,$Y7,$AA7,$AC7,$AE7,$AG7,$AI7,$AK7,$AM7,$AO7,$AQ7,$AS7,$AU7,$AW7,$AY7,$BA7,$BC7),1) -> 100 | BE7: =LARGE(($I7,$K7,$M7,$O7,$Q7,$S7,$U7,$W7,$Y7,$AA7,$AC7,$AE7,$AG7,$AI7,$AK7,$AM7,$AO7,$AQ7,$AS7,$AU7,$AW7,$AY7,$BA7,$BC7),2) -> 100 | BF7: =LARGE(($I7,$K7,$M7,$O7,$Q7,$S7,$U7,$W7,$Y7,$AA7,$AC7,$AE7,$AG7,$AI7,$AK7,$AM7,$AO7,$AQ7,$AS7,$AU7,$AW7,$AY7,$BA7,$BC7),3) -> 80 | BG7: =LARGE(($I7,$K7,$M7,$O7,$Q7,$S7,$U7,$W7,$Y7,$AA7,$AC7,$AE7,$AG7,$AI7,$AK7,$AM7,$AO7,$AQ7,$AS7,$AU7,$AW7,$AY7,$BA7,$BC7),4) -> 80 | BH7: =LARGE(($I7,$K7,$M7,$O7,$Q7,$S7,$U7,$W7,$Y7,$AA7,$AC7,$AE7,$AG7,$AI7,$AK7,$AM7,$AO7,$AQ7,$AS7,$AU7,$AW7,$AY7,$BA7,$BC7),5) -> 80 | BI7: =LARGE(($I7,$K7,$M7,$O7,$Q7,$S7,$U7,$W7,$Y7,$AA7,$AC7,$AE7,$AG7,$AI7,$AK7,$AM7,$AO7,$AQ7,$AS7,$AU7,$AW7,$AY7,$BA7,$BC7),6) -> 70 | BJ7: =LARGE(($I7,$K7,$M7,$O7,$Q7,$S7,$U7,$W7,$Y7,$AA7,$AC7,$AE7,$AG7,$AI7,$AK7,$AM7,$AO7,$AQ7,$AS7,$AU7,$AW7,$AY7,$BA7,$BC7),7) -> 0 | BK7: =LARGE(($I7,$K7,$M7,$O7,$Q7,$S7,$U7,$W7,$Y7,$AA7,$AC7,$AE7,$AG7,$AI7,$AK7,$AM7,$AO7,$AQ7,$AS7,$AU7,$AW7,$AY7,$BA7,$BC7),8) -> 0 | BL7: =LARGE(($I7,$K7,$M7,$O7,$Q7,$S7,$U7,$W7,$Y7,$AA7,$AC7,$AE7,$AG7,$AI7,$AK7,$AM7,$AO7,$AQ7,$AS7,$AU7,$AW7,$AY7,$BA7,$BC7),9) -> 0 | BM7: =LARGE(($I7,$K7,$M7,$O7,$Q7,$S7,$U7,$W7,$Y7,$AA7,$AC7,$AE7,$AG7,$AI7,$AK7,$AM7,$AO7,$AQ7,$AS7,$AU7,$AW7,$AY7,$BA7,$BC7),10) -> 0
A8: 4 | B8: 2000 | C8: Ebba Kling Andersson | D8: IFK Borlänge | E8: 460 | F8: 460 | G8: 460 | H8: 99 | I8: =LOOKUP(H8,Poängberäkning!$B$6:$B$97,Poängberäkning!$C$6:$C$97) -> 0 | J8: 4 | K8: =LOOKUP(J8,Poängberäkning!$B$6:$B$97,Poängberäkning!$C$6:$C$97) -> 60 | L8: 6 | M8: =LOOKUP(L8,Poängberäkning!$B$6:$B$97,Poängberäkning!$C$6:$C$97) -> 50 | N8: 3 | O8: =LOOKUP(N8,Poängberäkning!$B$6:$B$97,Poängberäkning!$C$6:$C$97) -> 70 | P8: 4 | Q8: =LOOKUP(P8,Poängberäkning!$B$6:$B$97,Poängberäkning!$C$6:$C$97) -> 60 | R8: 3 | S8: =LOOKUP(R8,Poängberäkning!$B$6:$B$97,Poängberäkning!$C$6:$C$97) -> 70 | T8: 2 | U8: =LOOKUP(T8,Poängberäkning!$B$6:$B$97,Poängberäkning!$C$6:$C$97) -> 80 | V8: 3 | W8: =LOOKUP(V8,Poängberäkning!$B$6:$B$97,Poängberäkning!$C$6:$C$97) -> 70 | Y8: =LOOKUP(X8,Poängberäkning!$B$6:$B$97,Poängberäkning!$C$6:$C$97) -> 0 | AA8: =LOOKUP(Z8,Poängberäkning!$B$6:$B$97,Poängberäkning!$C$6:$C$97) -> 0 | AC8: =LOOKUP(AB8,Poängberäkning!$B$6:$B$97,Poängberäkning!$C$6:$C$97) -> 0 | AE8: =LOOKUP(AD8,Poängberäkning!$B$6:$B$97,Poängberäkning!$C$6:$C$97) -> 0 | AG8: =LOOKUP(AF8,Poängberäkning!$B$6:$B$97,Poängberäkning!$C$6:$C$97) -> 0 | AI8: =LOOKUP(AH8,Poängberäkning!$B$6:$B$97,Poängberäkning!$C$6:$C$97) -> 0 | AK8: =LOOKUP(AJ8,Poängberäkning!$B$6:$B$97,Poängberäkning!$C$6:$C$97) -> 0 | AM8: =LOOKUP(AL8,Poängberäkning!$B$6:$B$97,Poängberäkning!$C$6:$C$97) -> 0 | AO8: =LOOKUP(AN8,Poängberäkning!$B$6:$B$97,Poängberäkning!$C$6:$C$97) -> 0 | AQ8: =LOOKUP(AP8,Poängberäkning!$B$6:$B$97,Poängberäkning!$C$6:$C$97) -> 0 | AS8: =LOOKUP(AR8,Poängberäkning!$B$6:$B$97,Poängberäkning!$C$6:$C$97) -> 0 | AU8: =LOOKUP(AT8,Poängberäkning!$B$6:$B$97,Poängberäkning!$C$6:$C$97) -> 0 | BD8: =LARGE(($I8,$K8,$M8,$O8,$Q8,$S8,$U8,$W8,$Y8,$AA8,$AC8,$AE8,$AG8,$AI8,$AK8,$AM8,$AO8,$AQ8,$AS8,$AU8,$AW8,$AY8,$BA8,$BC8),1) -> 80 | BE8: =LARGE(($I8,$K8,$M8,$O8,$Q8,$S8,$U8,$W8,$Y8,$AA8,$AC8,$AE8,$AG8,$AI8,$AK8,$AM8,$AO8,$AQ8,$AS8,$AU8,$AW8,$AY8,$BA8,$BC8),2) -> 70 | BF8: =LARGE(($I8,$K8,$M8,$O8,$Q8,$S8,$U8,$W8,$Y8,$AA8,$AC8,$AE8,$AG8,$AI8,$AK8,$AM8,$AO8,$AQ8,$AS8,$AU8,$AW8,$AY8,$BA8,$BC8),3) -> 70 | BG8: =LARGE(($I8,$K8,$M8,$O8,$Q8,$S8,$U8,$W8,$Y8,$AA8,$AC8,$AE8,$AG8,$AI8,$AK8,$AM8,$AO8,$AQ8,$AS8,$AU8,$AW8,$AY8,$BA8,$BC8),4) -> 70 | BH8: =LARGE(($I8,$K8,$M8,$O8,$Q8,$S8,$U8,$W8,$Y8,$AA8,$AC8,$AE8,$AG8,$AI8,$AK8,$AM8,$AO8,$AQ8,$AS8,$AU8,$AW8,$AY8,$BA8,$BC8),5) -> 60 | BI8: =LARGE(($I8,$K8,$M8,$O8,$Q8,$S8,$U8,$W8,$Y8,$AA8,$AC8,$AE8,$AG8,$AI8,$AK8,$AM8,$AO8,$AQ8,$AS8,$AU8,$AW8,$AY8,$BA8,$BC8),6) -> 60 | BJ8: =LARGE(($I8,$K8,$M8,$O8,$Q8,$S8,$U8,$W8,$Y8,$AA8,$AC8,$AE8,$AG8,$AI8,$AK8,$AM8,$AO8,$AQ8,$AS8,$AU8,$AW8,$AY8,$BA8,$BC8),7) -> 50 | BK8: =LARGE(($I8,$K8,$M8,$O8,$Q8,$S8,$U8,$W8,$Y8,$AA8,$AC8,$AE8,$AG8,$AI8,$AK8,$AM8,$AO8,$AQ8,$AS8,$AU8,$AW8,$AY8,$BA8,$BC8),8) -> 0 | BL8: =LARGE(($I8,$K8,$M8,$O8,$Q8,$S8,$U8,$W8,$Y8,$AA8,$AC8,$AE8,$AG8,$AI8,$AK8,$AM8,$AO8,$AQ8,$AS8,$AU8,$AW8,$AY8,$BA8,$BC8),9) -> 0 | BM8: =LARGE(($I8,$K8,$M8,$O8,$Q8,$S8,$U8,$W8,$Y8,$AA8,$AC8,$AE8,$AG8,$AI8,$AK8,$AM8,$AO8,$AQ8,$AS8,$AU8,$AW8,$AY8,$BA8,$BC8),10) -> 0
A9: 5 | B9: 2000 | C9: Sofia Hedgren | D9: Malungs SLK | E9: 395 | F9: 395 | G9: 395 | H9: 5 | I9: =LOOKUP(H9,Poängberäkning!$B$6:$B$97,Poängberäkning!$C$6:$C$97) -> 55 | J9: 16 | K9: =LOOKUP(J9,Poängberäkning!$B$6:$B$97,Poängberäkning!$C$6:$C$97) -> 35 | L9: 7 | M9: =LOOKUP(L9,Poängberäkning!$B$6:$B$97,Poängberäkning!$C$6:$C$97) -> 48 | N9: 6 | O9: =LOOKUP(N9,Poängberäkning!$B$6:$B$97,Poängberäkning!$C$6:$C$97) -> 50 | P9: 9 | Q9: =LOOKUP(P9,Poängberäkning!$B$6:$B$97,Poängberäkning!$C$6:$C$97) -> 44 | R9: 7 | S9: =LOOKUP(R9,Poängberäkning!$B$6:$B$97,Poängberäkning!$C$6:$C$97) -> 48 | T9: 4 | U9: =LOOKUP(T9,Poängberäkning!$B$6:$B$97,Poängberäkning!$C$6:$C$97) -> 60 | V9: 5 | W9: =LOOKUP(V9,Poängberäkning!$B$6:$B$97,Poängberäkning!$C$6:$C$97) -> 55 | Y9: =LOOKUP(X9,Poängberäkning!$B$6:$B$97,Poängberäkning!$C$6:$C$97) -> 0 | AA9: =LOOKUP(Z9,Poängberäkning!$B$6:$B$97,Poängberäkning!$C$6:$C$97) -> 0 | AC9: =LOOKUP(AB9,Poängberäkning!$B$6:$B$97,Poängberäkning!$C$6:$C$97) -> 0 | AE9: =LOOKUP(AD9,Poängberäkning!$B$6:$B$97,Poängberäkning!$C$6:$C$97) -> 0 | AG9: =LOOKUP(AF9,Poängberäkning!$B$6:$B$97,Poängberäkning!$C$6:$C$97) -> 0 | AI9: =LOOKUP(AH9,Poängberäkning!$B$6:$B$97,Poängberäkning!$C$6:$C$97) -> 0 | AK9: =LOOKUP(AJ9,Poängberäkning!$B$6:$B$97,Poängberäkning!$C$6:$C$97) -> 0 | AM9: =LOOKUP(AL9,Poängberäkning!$B$6:$B$97,Poängberäkning!$C$6:$C$97) -> 0 | AO9: =LOOKUP(AN9,Poängberäkning!$B$6:$B$97,Poängberäkning!$C$6:$C$97) -> 0 | AQ9: =LOOKUP(AP9,Poängberäkning!$B$6:$B$97,Poängberäkning!$C$6:$C$97) -> 0 | AS9: =LOOKUP(AR9,Poängberäkning!$B$6:$B$97,Poängberäkning!$C$6:$C$97) -> 0 | AU9: =LOOKUP(AT9,Poängberäkning!$B$6:$B$97,Poängberäkning!$C$6:$C$97) -> 0 | BD9: =LARGE(($I9,$K9,$M9,$O9,$Q9,$S9,$U9,$W9,$Y9,$AA9,$AC9,$AE9,$AG9,$AI9,$AK9,$AM9,$AO9,$AQ9,$AS9,$AU9,$AW9,$AY9,$BA9,$BC9),1) -> 60 | BE9: =LARGE(($I9,$K9,$M9,$O9,$Q9,$S9,$U9,$W9,$Y9,$AA9,$AC9,$AE9,$AG9,$AI9,$AK9,$AM9,$AO9,$AQ9,$AS9,$AU9,$AW9,$AY9,$BA9,$BC9),2) -> 55 | BF9: =LARGE(($I9,$K9,$M9,$O9,$Q9,$S9,$U9,$W9,$Y9,$AA9,$AC9,$AE9,$AG9,$AI9,$AK9,$AM9,$AO9,$AQ9,$AS9,$AU9,$AW9,$AY9,$BA9,$BC9),3) -> 55 | BG9: =LARGE(($I9,$K9,$M9,$O9,$Q9,$S9,$U9,$W9,$Y9,$AA9,$AC9,$AE9,$AG9,$AI9,$AK9,$AM9,$AO9,$AQ9,$AS9,$AU9,$AW9,$AY9,$BA9,$BC9),4) -> 50 | BH9: =LARGE(($I9,$K9,$M9,$O9,$Q9,$S9,$U9,$W9,$Y9,$AA9,$AC9,$AE9,$AG9,$AI9,$AK9,$AM9,$AO9,$AQ9,$AS9,$AU9,$AW9,$AY9,$BA9,$BC9),5) -> 48 | BI9: =LARGE(($I9,$K9,$M9,$O9,$Q9,$S9,$U9,$W9,$Y9,$AA9,$AC9,$AE9,$AG9,$AI9,$AK9,$AM9,$AO9,$AQ9,$AS9,$AU9,$AW9,$AY9,$BA9,$BC9),6) -> 48 | BJ9: =LARGE(($I9,$K9,$M9,$O9,$Q9,$S9,$U9,$W9,$Y9,$AA9,$AC9,$AE9,$AG9,$AI9,$AK9,$AM9,$AO9,$AQ9,$AS9,$AU9,$AW9,$AY9,$BA9,$BC9),7) -> 44 | BK9: =LARGE(($I9,$K9,$M9,$O9,$Q9,$S9,$U9,$W9,$Y9,$AA9,$AC9,$AE9,$AG9,$AI9,$AK9,$AM9,$AO9,$AQ9,$AS9,$AU9,$AW9,$AY9,$BA9,$BC9),8) -> 35 | BL9: =LARGE(($I9,$K9,$M9,$O9,$Q9,$S9,$U9,$W9,$Y9,$AA9,$AC9,$AE9,$AG9,$AI9,$AK9,$AM9,$AO9,$AQ9,$AS9,$AU9,$AW9,$AY9,$BA9,$BC9),9) -> 0 | BM9: =LARGE(($I9,$K9,$M9,$O9,$Q9,$S9,$U9,$W9,$Y9,$AA9,$AC9,$AE9,$AG9,$AI9,$AK9,$AM9,$AO9,$AQ9,$AS9,$AU9,$AW9,$AY9,$BA9,$BC9),10) -> 0
A10: 6 | B10: 2000 | C10: Emmy Westerlund | D10: Malungs SLK | E10: 356 | F10: 356 | G10: 356 | H10: 8 | I10: =LOOKUP(H10,Poängberäkning!$B$6:$B$97,Poängberäkning!$C$6:$C$97) -> 46 | J10: 13 | K10: =LOOKUP(J10,Poängberäkning!$B$6:$B$97,Poängberäkning!$C$6:$C$97) -> 38 | L10: 9 | M10: =LOOKUP(L10,Poängberäkning!$B$6:$B$97,Poängberäkning!$C$6:$C$97) -> 44 | N10: 10 | O10: =LOOKUP(N10,Poängberäkning!$B$6:$B$97,Poängberäkning!$C$6:$C$97) -> 42 | P10: 8 | Q10: =LOOKUP(P10,Poängberäkning!$B$6:$B$97,Poängberäkning!$C$6:$C$97) -> 46 | R10: 8 | S10: =LOOKUP(R10,Poängberäkning!$B$6:$B$97,Poängberäkning!$C$6:$C$97) -> 46 | T10: 7 | U10: =LOOKUP(T10,Poängberäkning!$B$6:$B$97,Poängberäkning!$C$6:$C$97) -> 48 | V10: 8 | W10: =LOOKUP(V10,Poängberäkning!$B$6:$B$97,Poängberäkning!$C$6:$C$97) -> 46 | Y10: =LOOKUP(X10,Poängberäkning!$B$6:$B$97,Poängberäkning!$C$6:$C$97) -> 0 | AA10: =LOOKUP(Z10,Poängberäkning!$B$6:$B$97,Poängberäkning!$C$6:$C$97) -> 0 | AC10: =LOOKUP(AB10,Poängberäkning!$B$6:$B$97,Poängberäkning!$C$6:$C$97) -> 0 | AE10: =LOOKUP(AD10,Poängberäkning!$B$6:$B$97,Poängberäkning!$C$6:$C$97) -> 0 | AG10: =LOOKUP(AF10,Poängberäkning!$B$6:$B$97,Poängberäkning!$C$6:$C$97) -> 0 | AI10: =LOOKUP(AH10,Poängberäkning!$B$6:$B$97,Poängberäkning!$C$6:$C$97) -> 0 | AK10: =LOOKUP(AJ10,Poängberäkning!$B$6:$B$97,Poängberäkning!$C$6:$C$97) -> 0 | AM10: =LOOKUP(AL10,Poängberäkning!$B$6:$B$97,Poängberäkning!$C$6:$C$97) -> 0 | AO10: =LOOKUP(AN10,Poängberäkning!$B$6:$B$97,Poängberäkning!$C$6:$C$97) -> 0 | AQ10: =LOOKUP(AP10,Poängberäkning!$B$6:$B$97,Poängberäkning!$C$6:$C$97) -> 0 | AS10: =LOOKUP(AR10,Poängberäkning!$B$6:$B$97,Poängberäkning!$C$6:$C$97) -> 0 | AU10: =LOOKUP(AT10,Poängberäkning!$B$6:$B$97,Poängberäkning!$C$6:$C$97) -> 0 | BD10: =LARGE(($I10,$K10,$M10,$O10,$Q10,$S10,$U10,$W10,$Y10,$AA10,$AC10,$AE10,$AG10,$AI10,$AK10,$AM10,$AO10,$AQ10,$AS10,$AU10,$AW10,$AY10,$BA10,$BC10),1) -> 48 | BE10: =LARGE(($I10,$K10,$M10,$O10,$Q10,$S10,$U10,$W10,$Y10,$AA10,$AC10,$AE10,$AG10,$AI10,$AK10,$AM10,$AO10,$AQ10,$AS10,$AU10,$AW10,$AY10,$BA10,$BC10),2) -> 46 | BF10: =LARGE(($I10,$K10,$M10,$O10,$Q10,$S10,$U10,$W10,$Y10,$AA10,$AC10,$AE10,$AG10,$AI10,$AK10,$AM10,$AO10,$AQ10,$AS10,$AU10,$AW10,$AY10,$BA10,$BC10),3) -> 46 | BG10: =LARGE(($I10,$K10,$M10,$O10,$Q10,$S10,$U10,$W10,$Y10,$AA10,$AC10,$AE10,$AG10,$AI10,$AK10,$AM10,$AO10,$AQ10,$AS10,$AU10,$AW10,$AY10,$BA10,$BC10),4) -> 46 | BH10: =LARGE(($I10,$K10,$M10,$O10,$Q10,$S10,$U10,$W10,$Y10,$AA10,$AC10,$AE10,$AG10,$AI10,$AK10,$AM10,$AO10,$AQ10,$AS10,$AU10,$AW10,$AY10,$BA10,$BC10),5) -> 46 | BI10: =LARGE(($I10,$K10,$M10,$O10,$Q10,$S10,$U10,$W10,$Y10,$AA10,$AC10,$AE10,$AG10,$AI10,$AK10,$AM10,$AO10,$AQ10,$AS10,$AU10,$AW10,$AY10,$BA10,$BC10),6) -> 44 | BJ10: =LARGE(($I10,$K10,$M10,$O10,$Q10,$S10,$U10,$W10,$Y10,$AA10,$AC10,$AE10,$AG10,$AI10,$AK10,$AM10,$AO10,$AQ10,$AS10,$AU10,$AW10,$AY10,$BA10,$BC10),7) -> 42 | BK10: =LARGE(($I10,$K10,$M10,$O10,$Q10,$S10,$U10,$W10,$Y10,$AA10,$AC10,$AE10,$AG10,$AI10,$AK10,$AM10,$AO10,$AQ10,$AS10,$AU10,$AW10,$AY10,$BA10,$BC10),8) -> 38 | BL10: =LARGE(($I10,$K10,$M10,$O10,$Q10,$S10,$U10,$W10,$Y10,$AA10,$AC10,$AE10,$AG10,$AI10,$AK10,$AM10,$AO10,$AQ10,$AS10,$AU10,$AW10,$AY10,$BA10,$BC10),9) -> 0 | BM10: =LARGE(($I10,$K10,$M10,$O10,$Q10,$S10,$U10,$W10,$Y10,$AA10,$AC10,$AE10,$AG10,$AI10,$AK10,$AM10,$AO10,$AQ10,$AS10,$AU10,$AW10,$AY10,$BA10,$BC10),10) -> 0
A11: 7 | B11: 2000 | C11: Anna Jakobsson | D11: Idre SK | E11: 323 | F11: 323 | G11: 323 | H11: 6 | I11: =LOOKUP(H11,Poängberäkning!$B$6:$B$97,Poängberäkning!$C$6:$C$97) -> 50 | J11: 7 | K11: =LOOKUP(J11,Poängberäkning!$B$6:$B$97,Poängberäkning!$C$6:$C$97) -> 48 | L11: 99 | M11: =LOOKUP(L11,Poängberäkning!$B$6:$B$97,Poängberäkning!$C$6:$C$97) -> 0 | N11: 99 | O11: =LOOKUP(N11,Poängberäkning!$B$6:$B$97,Poängberäkning!$C$6:$C$97) -> 0 | P11: 5 | Q11: =LOOKUP(P11,Poängberäkning!$B$6:$B$97,Poängberäkning!$C$6:$C$97) -> 55 | R11: 5 | S11: =LOOKUP(R11,Poängberäkning!$B$6:$B$97,Poängberäkning!$C$6:$C$97) -> 55 | T11: 5 | U11: =LOOKUP(T11,Poängberäkning!$B$6:$B$97,Poängberäkning!$C$6:$C$97) -> 55 | V11: 4 | W11: =LOOKUP(V11,Poängberäkning!$B$6:$B$97,Poängberäkning!$C$6:$C$97) -> 60 | Y11: =LOOKUP(X11,Poängberäkning!$B$6:$B$97,Poängberäkning!$C$6:$C$97) -> 0 | AA11: =LOOKUP(Z11,Poängberäkning!$B$6:$B$97,Poängberäkning!$C$6:$C$97) -> 0 | AC11: =LOOKUP(AB11,Poängberäkning!$B$6:$B$97,Poängberäkning!$C$6:$C$97) -> 0 | AE11: =LOOKUP(AD11,Poängberäkning!$B$6:$B$97,Poängberäkning!$C$6:$C$97) -> 0 | AG11: =LOOKUP(AF11,Poängberäkning!$B$6:$B$97,Poängberäkning!$C$6:$C$97) -> 0 | AI11: =LOOKUP(AH11,Poängberäkning!$B$6:$B$97,Poängberäkning!$C$6:$C$97) -> 0 | AK11: =LOOKUP(AJ11,Poängberäkning!$B$6:$B$97,Poängberäkning!$C$6:$C$97) -> 0 | AM11: =LOOKUP(AL11,Poängberäkning!$B$6:$B$97,Poängberäkning!$C$6:$C$97) -> 0 | AO11: =LOOKUP(AN11,Poängberäkning!$B$6:$B$97,Poängberäkning!$C$6:$C$97) -> 0 | AQ11: =LOOKUP(AP11,Poängberäkning!$B$6:$B$97,Poängberäkning!$C$6:$C$97) -> 0 | AS11: =LOOKUP(AR11,Poängberäkning!$B$6:$B$97,Poängberäkning!$C$6:$C$97) -> 0 | AU11: =LOOKUP(AT11,Poängberäkning!$B$6:$B$97,Poängberäkning!$C$6:$C$97) -> 0 | BD11: =LARGE(($I11,$K11,$M11,$O11,$Q11,$S11,$U11,$W11,$Y11,$AA11,$AC11,$AE11,$AG11,$AI11,$AK11,$AM11,$AO11,$AQ11,$AS11,$AU11,$AW11,$AY11,$BA11,$BC11),1) -> 60 | BE11: =LARGE(($I11,$K11,$M11,$O11,$Q11,$S11,$U11,$W11,$Y11,$AA11,$AC11,$AE11,$AG11,$AI11,$AK11,$AM11,$AO11,$AQ11,$AS11,$AU11,$AW11,$AY11,$BA11,$BC11),2) -> 55 | BF11: =LARGE(($I11,$K11,$M11,$O11,$Q11,$S11,$U11,$W11,$Y11,$AA11,$AC11,$AE11,$AG11,$AI11,$AK11,$AM11,$AO11,$AQ11,$AS11,$AU11,$AW11,$AY11,$BA11,$BC11),3) -> 55 | BG11: =LARGE(($I11,$K11,$M11,$O11,$Q11,$S11,$U11,$W11,$Y11,$AA11,$AC11,$AE11,$AG11,$AI11,$AK11,$AM11,$AO11,$AQ11,$AS11,$AU11,$AW11,$AY11,$BA11,$BC11),4) -> 55 | BH11: =LARGE(($I11,$K11,$M11,$O11,$Q11,$S11,$U11,$W11,$Y11,$AA11,$AC11,$AE11,$AG11,$AI11,$AK11,$AM11,$AO11,$AQ11,$AS11,$AU11,$AW11,$AY11,$BA11,$BC11),5) -> 50 | BI11: =LARGE(($I11,$K11,$M11,$O11,$Q11,$S11,$U11,$W11,$Y11,$AA11,$AC11,$AE11,$AG11,$AI11,$AK11,$AM11,$AO11,$AQ11,$AS11,$AU11,$AW11,$AY11,$BA11,$BC11),6) -> 48 | BJ11: =LARGE(($I11,$K11,$M11,$O11,$Q11,$S11,$U11,$W11,$Y11,$AA11,$AC11,$AE11,$AG11,$AI11,$AK11,$AM11,$AO11,$AQ11,$AS11,$AU11,$AW11,$AY11,$BA11,$BC11),7) -> 0 | BK11: =LARGE(($I11,$K11,$M11,$O11,$Q11,$S11,$U11,$W11,$Y11,$AA11,$AC11,$AE11,$AG11,$AI11,$AK11,$AM11,$AO11,$AQ11,$AS11,$AU11,$AW11,$AY11,$BA11,$BC11),8) -> 0 | BL11: =LARGE(($I11,$K11,$M11,$O11,$Q11,$S11,$U11,$W11,$Y11,$AA11,$AC11,$AE11,$AG11,$AI11,$AK11,$AM11,$AO11,$AQ11,$AS11,$AU11,$AW11,$AY11,$BA11,$BC11),9) -> 0 | BM11: =LARGE(($I11,$K11,$M11,$O11,$Q11,$S11,$U11,$W11,$Y11,$AA11,$AC11,$AE11,$AG11,$AI11,$AK11,$AM11,$AO11,$AQ11,$AS11,$AU11,$AW11,$AY11,$BA11,$BC11),10) -> 0
A12: 8 | B12: 2000 | C12: Hanna Flodberg | D12: IFK Falun | E12: 306 | F12: 306 | G12: 306 | H12: 7 | I12: =LOOKUP(H12,Poängberäkning!$B$6:$B$97,Poängberäkning!$C$6:$C$97) -> 48 | J12: 12 | K12: =LOOKUP(J12,Poängberäkning!$B$6:$B$97,Poängberäkning!$C$6:$C$97) -> 39 | L12: 14 | M12: =LOOKUP(L12,Poängberäkning!$B$6:$B$97,Poängberäkning!$C$6:$C$97) -> 37 | N12: 13 | O12: =LOOKUP(N12,Poängberäkning!$B$6:$B$97,Poängberäkning!$C$6:$C$97) -> 38 | P12: 99 | Q12: =LOOKUP(P12,Poängberäkning!$B$6:$B$97,Poängberäkning!$C$6:$C$97) -> 0 | R12: 6 | S12: =LOOKUP(R12,Poängberäkning!$B$6:$B$97,Poängberäkning!$C$6:$C$97) -> 50 | T12: 6 | U12: =LOOKUP(T12,Poängberäkning!$B$6:$B$97,Poängberäkning!$C$6:$C$97) -> 50 | V12: 9 | W12: =LOOKUP(V12,Poängberäkning!$B$6:$B$97,Poängberäkning!$C$6:$C$97) -> 44 | Y12: =LOOKUP(X12,Poängberäkning!$B$6:$B$97,Poängberäkning!$C$6:$C$97) -> 0 | AA12: =LOOKUP(Z12,Poängberäkning!$B$6:$B$97,Poängberäkning!$C$6:$C$97) -> 0 | AC12: =LOOKUP(AB12,Poängberäkning!$B$6:$B$97,Poängberäkning!$C$6:$C$97) -> 0 | AE12: =LOOKUP(AD12,Poängberäkning!$B$6:$B$97,Poängberäkning!$C$6:$C$97) -> 0 | AG12: =LOOKUP(AF12,Poängberäkning!$B$6:$B$97,Poängberäkning!$C$6:$C$97) -> 0 | AI12: =LOOKUP(AH12,Poängberäkning!$B$6:$B$97,Poängberäkning!$C$6:$C$97) -> 0 | AK12: =LOOKUP(AJ12,Poängberäkning!$B$6:$B$97,Poängberäkning!$C$6:$C$97) -> 0 | AM12: =LOOKUP(AL12,Poängberäkning!$B$6:$B$97,Poängberäkning!$C$6:$C$97) -> 0 | AO12: =LOOKUP(AN12,Poängberäkning!$B$6:$B$97,Poängberäkning!$C$6:$C$97) -> 0 | AQ12: =LOOKUP(AP12,Poängberäkning!$B$6:$B$97,Poängberäkning!$C$6:$C$97) -> 0 | AS12: =LOOKUP(AR12,Poängberäkning!$B$6:$B$97,Poängberäkning!$C$6:$C$97) -> 0 | AU12: =LOOKUP(AT12,Poängberäkning!$B$6:$B$97,Poängberäkning!$C$6:$C$97) -> 0 | BD12: =LARGE(($I12,$K12,$M12,$O12,$Q12,$S12,$U12,$W12,$Y12,$AA12,$AC12,$AE12,$AG12,$AI12,$AK12,$AM12,$AO12,$AQ12,$AS12,$AU12,$AW12,$AY12,$BA12,$BC12),1) -> 50 | BE12: =LARGE(($I12,$K12,$M12,$O12,$Q12,$S12,$U12,$W12,$Y12,$AA12,$AC12,$AE12,$AG12,$AI12,$AK12,$AM12,$AO12,$AQ12,$AS12,$AU12,$AW12,$AY12,$BA12,$BC12),2) -> 50 | BF12: =LARGE(($I12,$K12,$M12,$O12,$Q12,$S12,$U12,$W12,$Y12,$AA12,$AC12,$AE12,$AG12,$AI12,$AK12,$AM12,$AO12,$AQ12,$AS12,$AU12,$AW12,$AY12,$BA12,$BC12),3) -> 48 | BG12: =LARGE(($I12,$K12,$M12,$O12,$Q12,$S12,$U12,$W12,$Y12,$AA12,$AC12,$AE12,$AG12,$AI12,$AK12,$AM12,$AO12,$AQ12,$AS12,$AU12,$AW12,$AY12,$BA12,$BC12),4) -> 44 | BH12: =LARGE(($I12,$K12,$M12,$O12,$Q12,$S12,$U12,$W12,$Y12,$AA12,$AC12,$AE12,$AG12,$AI12,$AK12,$AM12,$AO12,$AQ12,$AS12,$AU12,$AW12,$AY12,$BA12,$BC12),5) -> 39 | BI12: =LARGE(($I12,$K12,$M12,$O12,$Q12,$S12,$U12,$W12,$Y12,$AA12,$AC12,$AE12,$AG12,$AI12,$AK12,$AM12,$AO12,$AQ12,$AS12,$AU12,$AW12,$AY12,$BA12,$BC12),6) -> 38 | BJ12: =LARGE(($I12,$K12,$M12,$O12,$Q12,$S12,$U12,$W12,$Y12,$AA12,$AC12,$AE12,$AG12,$AI12,$AK12,$AM12,$AO12,$AQ12,$AS12,$AU12,$AW12,$AY12,$BA12,$BC12),7) -> 37 | BK12: =LARGE(($I12,$K12,$M12,$O12,$Q12,$S12,$U12,$W12,$Y12,$AA12,$AC12,$AE12,$AG12,$AI12,$AK12,$AM12,$AO12,$AQ12,$AS12,$AU12,$AW12,$AY12,$BA12,$BC12),8) -> 0 | BL12: =LARGE(($I12,$K12,$M12,$O12,$Q12,$S12,$U12,$W12,$Y12,$AA12,$AC12,$AE12,$AG12,$AI12,$AK12,$AM12,$AO12,$AQ12,$AS12,$AU12,$AW12,$AY12,$BA12,$BC12),9) -> 0 | BM12: =LARGE(($I12,$K12,$M12,$O12,$Q12,$S12,$U12,$W12,$Y12,$AA12,$AC12,$AE12,$AG12,$AI12,$AK12,$AM12,$AO12,$AQ12,$AS12,$AU12,$AW12,$AY12,$BA12,$BC12),10) -> 0
A13: 9 | B13: 2000 | C13: Linn Askman | D13: Valfjällets SLK | E13: 289 | F13: 289 | G13: 289 | H13: 99 | I13: =LOOKUP(H13,Poängberäkning!$B$6:$B$97,Poängberäkning!$C$6:$C$97) -> 0 | J13: 5 | K13: =LOOKUP(J13,Poängberäkning!$B$6:$B$97,Poängberäkning!$C$6:$C$97) -> 55 | L13: 8 | M13: =LOOKUP(L13,Poängberäkning!$B$6:$B$97,Poängberäkning!$C$6:$C$97) -> 46 | N13: 7 | O13: =LOOKUP(N13,Poängberäkning!$B$6:$B$97,Poängberäkning!$C$6:$C$97) -> 48 | P13: 7 | Q13: =LOOKUP(P13,Poängberäkning!$B$6:$B$97,Poängberäkning!$C$6:$C$97) -> 48 | R13: 9 | S13: =LOOKUP(R13,Poängberäkning!$B$6:$B$97,Poängberäkning!$C$6:$C$97) -> 44 | T13: 99 | U13: =LOOKUP(T13,Poängberäkning!$B$6:$B$97,Poängberäkning!$C$6:$C$97) -> 0 | V13: 7 | W13: =LOOKUP(V13,Poängberäkning!$B$6:$B$97,Poängberäkning!$C$6:$C$97) -> 48 | Y13: =LOOKUP(X13,Poängberäkning!$B$6:$B$97,Poängberäkning!$C$6:$C$97) -> 0 | AA13: =LOOKUP(Z13,Poängberäkning!$B$6:$B$97,Poängberäkning!$C$6:$C$97) -> 0 | AC13: =LOOKUP(AB13,Poängberäkning!$B$6:$B$97,Poängberäkning!$C$6:$C$97) -> 0 | AE13: =LOOKUP(AD13,Poängberäkning!$B$6:$B$97,Poängberäkning!$C$6:$C$97) -> 0 | AG13: =LOOKUP(AF13,Poängberäkning!$B$6:$B$97,Poängberäkning!$C$6:$C$97) -> 0 | AI13: =LOOKUP(AH13,Poängberäkning!$B$6:$B$97,Poängberäkning!$C$6:$C$97) -> 0 | AK13: =LOOKUP(AJ13,Poängberäkning!$B$6:$B$97,Poängberäkning!$C$6:$C$97) -> 0 | AM13: =LOOKUP(AL13,Poängberäkning!$B$6:$B$97,Poängberäkning!$C$6:$C$97) -> 0 | AO13: =LOOKUP(AN13,Poängberäkning!$B$6:$B$97,Poängberäkning!$C$6:$C$97) -> 0 | AQ13: =LOOKUP(AP13,Poängberäkning!$B$6:$B$97,Poängberäkning!$C$6:$C$97) -> 0 | AS13: =LOOKUP(AR13,Poängberäkning!$B$6:$B$97,Poängberäkning!$C$6:$C$97) -> 0 | AU13: =LOOKUP(AT13,Poängberäkning!$B$6:$B$97,Poängberäkning!$C$6:$C$97) -> 0 | BD13: =LARGE(($I13,$K13,$M13,$O13,$Q13,$S13,$U13,$W13,$Y13,$AA13,$AC13,$AE13,$AG13,$AI13,$AK13,$AM13,$AO13,$AQ13,$AS13,$AU13,$AW13,$AY13,$BA13,$BC13),1) -> 55 | BE13: =LARGE(($I13,$K13,$M13,$O13,$Q13,$S13,$U13,$W13,$Y13,$AA13,$AC13,$AE13,$AG13,$AI13,$AK13,$AM13,$AO13,$AQ13,$AS13,$AU13,$AW13,$AY13,$BA13,$BC13),2) -> 48 | BF13: =LARGE(($I13,$K13,$M13,$O13,$Q13,$S13,$U13,$W13,$Y13,$AA13,$AC13,$AE13,$AG13,$AI13,$AK13,$AM13,$AO13,$AQ13,$AS13,$AU13,$AW13,$AY13,$BA13,$BC13),3) -> 48 | BG13: =LARGE(($I13,$K13,$M13,$O13,$Q13,$S13,$U13,$W13,$Y13,$AA13,$AC13,$AE13,$AG13,$AI13,$AK13,$AM13,$AO13,$AQ13,$AS13,$AU13,$AW13,$AY13,$BA13,$BC13),4) -> 48 | BH13: =LARGE(($I13,$K13,$M13,$O13,$Q13,$S13,$U13,$W13,$Y13,$AA13,$AC13,$AE13,$AG13,$AI13,$AK13,$AM13,$AO13,$AQ13,$AS13,$AU13,$AW13,$AY13,$BA13,$BC13),5) -> 46 | BI13: =LARGE(($I13,$K13,$M13,$O13,$Q13,$S13,$U13,$W13,$Y13,$AA13,$AC13,$AE13,$AG13,$AI13,$AK13,$AM13,$AO13,$AQ13,$AS13,$AU13,$AW13,$AY13,$BA13,$BC13),6) -> 44 | BJ13: =LARGE(($I13,$K13,$M13,$O13,$Q13,$S13,$U13,$W13,$Y13,$AA13,$AC13,$AE13,$AG13,$AI13,$AK13,$AM13,$AO13,$AQ13,$AS13,$AU13,$AW13,$AY13,$BA13,$BC13),7) -> 0 | BK13: =LARGE(($I13,$K13,$M13,$O13,$Q13,$S13,$U13,$W13,$Y13,$AA13,$AC13,$AE13,$AG13,$AI13,$AK13,$AM13,$AO13,$AQ13,$AS13,$AU13,$AW13,$AY13,$BA13,$BC13),8) -> 0 | BL13: =LARGE(($I13,$K13,$M13,$O13,$Q13,$S13,$U13,$W13,$Y13,$AA13,$AC13,$AE13,$AG13,$AI13,$AK13,$AM13,$AO13,$AQ13,$AS13,$AU13,$AW13,$AY13,$BA13,$BC13),9) -> 0 | BM13: =LARGE(($I13,$K13,$M13,$O13,$Q13,$S13,$U13,$W13,$Y13,$AA13,$AC13,$AE13,$AG13,$AI13,$AK13,$AM13,$AO13,$AQ13,$AS13,$AU13,$AW13,$AY13,$BA13,$BC13),10) -> 0
A14: 10 | B14: 2000 | C14: Olivia Ederström | D14: Kungsbergets AK | E14: 276 | F14: 276 | G14: 276 | H14: 15 | I14: =LOOKUP(H14,Poängberäkning!$B$6:$B$97,Poängberäkning!$C$6:$C$97) -> 36 | J14: 9 | K14: =LOOKUP(J14,Poängberäkning!$B$6:$B$97,Poängberäkning!$C$6:$C$97) -> 44 | L14: 11 | M14: =LOOKUP(L14,Poängberäkning!$B$6:$B$97,Poängberäkning!$C$6:$C$97) -> 40 | N14: 99 | O14: =LOOKUP(N14,Poängberäkning!$B$6:$B$97,Poängberäkning!$C$6:$C$97) -> 0 | P14: 11 | Q14: =LOOKUP(P14,Poängberäkning!$B$6:$B$97,Poängberäkning!$C$6:$C$97) -> 40 | R14: 13 | S14: =LOOKUP(R14,Poängberäkning!$B$6:$B$97,Poängberäkning!$C$6:$C$97) -> 38 | T14: 12 | U14: =LOOKUP(T14,Poängberäkning!$B$6:$B$97,Poängberäkning!$C$6:$C$97) -> 39 | V14: 12 | W14: =LOOKUP(V14,Poängberäkning!$B$6:$B$97,Poängberäkning!$C$6:$C$97) -> 39 | Y14: =LOOKUP(X14,Poängberäkning!$B$6:$B$97,Poängberäkning!$C$6:$C$97) -> 0 | AA14: =LOOKUP(Z14,Poängberäkning!$B$6:$B$97,Poängberäkning!$C$6:$C$97) -> 0 | AC14: =LOOKUP(AB14,Poängberäkning!$B$6:$B$97,Poängberäkning!$C$6:$C$97) -> 0 | AE14: =LOOKUP(AD14,Poängberäkning!$B$6:$B$97,Poängberäkning!$C$6:$C$97) -> 0 | AG14: =LOOKUP(AF14,Poängberäkning!$B$6:$B$97,Poängberäkning!$C$6:$C$97) -> 0 | AI14: =LOOKUP(AH14,Poängberäkning!$B$6:$B$97,Poängberäkning!$C$6:$C$97) -> 0 | AK14: =LOOKUP(AJ14,Poängberäkning!$B$6:$B$97,Poängberäkning!$C$6:$C$97) -> 0 | AM14: =LOOKUP(AL14,Poängberäkning!$B$6:$B$97,Poängberäkning!$C$6:$C$97) -> 0 | AO14: =LOOKUP(AN14,Poängberäkning!$B$6:$B$97,Poängberäkning!$C$6:$C$97) -> 0 | AQ14: =LOOKUP(AP14,Poängberäkning!$B$6:$B$97,Poängberäkning!$C$6:$C$97) -> 0 | AS14: =LOOKUP(AR14,Poängberäkning!$B$6:$B$97,Poängberäkning!$C$6:$C$97) -> 0 | AU14: =LOOKUP(AT14,Poängberäkning!$B$6:$B$97,Poängberäkning!$C$6:$C$97) -> 0 | BD14: =LARGE(($I14,$K14,$M14,$O14,$Q14,$S14,$U14,$W14,$Y14,$AA14,$AC14,$AE14,$AG14,$AI14,$AK14,$AM14,$AO14,$AQ14,$AS14,$AU14,$AW14,$AY14,$BA14,$BC14),1) -> 44 | BE14: =LARGE(($I14,$K14,$M14,$O14,$Q14,$S14,$U14,$W14,$Y14,$AA14,$AC14,$AE14,$AG14,$AI14,$AK14,$AM14,$AO14,$AQ14,$AS14,$AU14,$AW14,$AY14,$BA14,$BC14),2) -> 40 | BF14: =LARGE(($I14,$K14,$M14,$O14,$Q14,$S14,$U14,$W14,$Y14,$AA14,$AC14,$AE14,$AG14,$AI14,$AK14,$AM14,$AO14,$AQ14,$AS14,$AU14,$AW14,$AY14,$BA14,$BC14),3) -> 40 | BG14: =LARGE(($I14,$K14,$M14,$O14,$Q14,$S14,$U14,$W14,$Y14,$AA14,$AC14,$AE14,$AG14,$AI14,$AK14,$AM14,$AO14,$AQ14,$AS14,$AU14,$AW14,$AY14,$BA14,$BC14),4) -> 39 | BH14: =LARGE(($I14,$K14,$M14,$O14,$Q14,$S14,$U14,$W14,$Y14,$AA14,$AC14,$AE14,$AG14,$AI14,$AK14,$AM14,$AO14,$AQ14,$AS14,$AU14,$AW14,$AY14,$BA14,$BC14),5) -> 39 | BI14: =LARGE(($I14,$K14,$M14,$O14,$Q14,$S14,$U14,$W14,$Y14,$AA14,$AC14,$AE14,$AG14,$AI14,$AK14,$AM14,$AO14,$AQ14,$AS14,$AU14,$AW14,$AY14,$BA14,$BC14),6) -> 38 | BJ14: =LARGE(($I14,$K14,$M14,$O14,$Q14,$S14,$U14,$W14,$Y14,$AA14,$AC14,$AE14,$AG14,$AI14,$AK14,$AM14,$AO14,$AQ14,$AS14,$AU14,$AW14,$AY14,$BA14,$BC14),7) -> 36 | BK14: =LARGE(($I14,$K14,$M14,$O14,$Q14,$S14,$U14,$W14,$Y14,$AA14,$AC14,$AE14,$AG14,$AI14,$AK14,$AM14,$AO14,$AQ14,$AS14,$AU14,$AW14,$AY14,$BA14,$BC14),8) -> 0 | BL14: =LARGE(($I14,$K14,$M14,$O14,$Q14,$S14,$U14,$W14,$Y14,$AA14,$AC14,$AE14,$AG14,$AI14,$AK14,$AM14,$AO14,$AQ14,$AS14,$AU14,$AW14,$AY14,$BA14,$BC14),9) -> 0 | BM14: =LARGE(($I14,$K14,$M14,$O14,$Q14,$S14,$U14,$W14,$Y14,$AA14,$AC14,$AE14,$AG14,$AI14,$AK14,$AM14,$AO14,$AQ14,$AS14,$AU14,$AW14,$AY14,$BA14,$BC14),10) -> 0
A15: 11 | B15: 2000 | C15: Emelie Ederborn | D15: Idre SK | E15: 273 | F15: 273 | G15: 273 | H15: 4 | I15: =LOOKUP(H15,Poängberäkning!$B$6:$B$97,Poängberäkning!$C$6:$C$97) -> 60 | J15: 15 | K15: =LOOKUP(J15,Poängberäkning!$B$6:$B$97,Poängberäkning!$C$6:$C$97) -> 36 | L15: 13 | M15: =LOOKUP(L15,Poängberäkning!$B$6:$B$97,Poängberäkning!$C$6:$C$97) -> 38 | N15: 12 | O15: =LOOKUP(N15,Poängberäkning!$B$6:$B$97,Poängberäkning!$C$6:$C$97) -> 39 | P15: 6 | Q15: =LOOKUP(P15,Poängberäkning!$B$6:$B$97,Poängberäkning!$C$6:$C$97) -> 50 | R15: 99 | S15: =LOOKUP(R15,Poängberäkning!$B$6:$B$97,Poängberäkning!$C$6:$C$97) -> 0 | T15: 99 | U15: =LOOKUP(T15,Poängberäkning!$B$6:$B$97,Poängberäkning!$C$6:$C$97) -> 0 | V15: 6 | W15: =LOOKUP(V15,Poängberäkning!$B$6:$B$97,Poängberäkning!$C$6:$C$97) -> 50 | Y15: =LOOKUP(X15,Poängberäkning!$B$6:$B$97,Poängberäkning!$C$6:$C$97) -> 0 | AA15: =LOOKUP(Z15,Poängberäkning!$B$6:$B$97,Poängberäkning!$C$6:$C$97) -> 0 | AC15: =LOOKUP(AB15,Poängberäkning!$B$6:$B$97,Poängberäkning!$C$6:$C$97) -> 0 | AE15: =LOOKUP(AD15,Poängberäkning!$B$6:$B$97,Poängberäkning!$C$6:$C$97) -> 0 | AG15: =LOOKUP(AF15,Poängberäkning!$B$6:$B$97,Poängberäkning!$C$6:$C$97) -> 0 | AI15: =LOOKUP(AH15,Poängberäkning!$B$6:$B$97,Poängberäkning!$C$6:$C$97) -> 0 | AK15: =LOOKUP(AJ15,Poängberäkning!$B$6:$B$97,Poängberäkning!$C$6:$C$97) -> 0 | AM15: =LOOKUP(AL15,Poängberäkning!$B$6:$B$97,Poängberäkning!$C$6:$C$97) -> 0 | AO15: =LOOKUP(AN15,Poängberäkning!$B$6:$B$97,Poängberäkning!$C$6:$C$97) -> 0 | AQ15: =LOOKUP(AP15,Poängberäkning!$B$6:$B$97,Poängberäkning!$C$6:$C$97) -> 0 | AS15: =LOOKUP(AR15,Poängberäkning!$B$6:$B$97,Poängberäkning!$C$6:$C$97) -> 0 | AU15: =LOOKUP(AT15,Poängberäkning!$B$6:$B$97,Poängberäkning!$C$6:$C$97) -> 0 | BD15: =LARGE(($I15,$K15,$M15,$O15,$Q15,$S15,$U15,$W15,$Y15,$AA15,$AC15,$AE15,$AG15,$AI15,$AK15,$AM15,$AO15,$AQ15,$AS15,$AU15,$AW15,$AY15,$BA15,$BC15),1) -> 60 | BE15: =LARGE(($I15,$K15,$M15,$O15,$Q15,$S15,$U15,$W15,$Y15,$AA15,$AC15,$AE15,$AG15,$AI15,$AK15,$AM15,$AO15,$AQ15,$AS15,$AU15,$AW15,$AY15,$BA15,$BC15),2) -> 50 | BF15: =LARGE(($I15,$K15,$M15,$O15,$Q15,$S15,$U15,$W15,$Y15,$AA15,$AC15,$AE15,$AG15,$AI15,$AK15,$AM15,$AO15,$AQ15,$AS15,$AU15,$AW15,$AY15,$BA15,$BC15),3) -> 50 | BG15: =LARGE(($I15,$K15,$M15,$O15,$Q15,$S15,$U15,$W15,$Y15,$AA15,$AC15,$AE15,$AG15,$AI15,$AK15,$AM15,$AO15,$AQ15,$AS15,$AU15,$AW15,$AY15,$BA15,$BC15),4) -> 39 | BH15: =LARGE(($I15,$K15,$M15,$O15,$Q15,$S15,$U15,$W15,$Y15,$AA15,$AC15,$AE15,$AG15,$AI15,$AK15,$AM15,$AO15,$AQ15,$AS15,$AU15,$AW15,$AY15,$BA15,$BC15),5) -> 38 | BI15: =LARGE(($I15,$K15,$M15,$O15,$Q15,$S15,$U15,$W15,$Y15,$AA15,$AC15,$AE15,$AG15,$AI15,$AK15,$AM15,$AO15,$AQ15,$AS15,$AU15,$AW15,$AY15,$BA15,$BC15),6) -> 36 | BJ15: =LARGE(($I15,$K15,$M15,$O15,$Q15,$S15,$U15,$W15,$Y15,$AA15,$AC15,$AE15,$AG15,$AI15,$AK15,$AM15,$AO15,$AQ15,$AS15,$AU15,$AW15,$AY15,$BA15,$BC15),7) -> 0 | BK15: =LARGE(($I15,$K15,$M15,$O15,$Q15,$S15,$U15,$W15,$Y15,$AA15,$AC15,$AE15,$AG15,$AI15,$AK15,$AM15,$AO15,$AQ15,$AS15,$AU15,$AW15,$AY15,$BA15,$BC15),8) -> 0 | BL15: =LARGE(($I15,$K15,$M15,$O15,$Q15,$S15,$U15,$W15,$Y15,$AA15,$AC15,$AE15,$AG15,$AI15,$AK15,$AM15,$AO15,$AQ15,$AS15,$AU15,$AW15,$AY15,$BA15,$BC15),9) -> 0 | BM15: =LARGE(($I15,$K15,$M15,$O15,$Q15,$S15,$U15,$W15,$Y15,$AA15,$AC15,$AE15,$AG15,$AI15,$AK15,$AM15,$AO15,$AQ15,$AS15,$AU15,$AW15,$AY15,$BA15,$BC15),10) -> 0
A16: 12 | B16: 2000 | C16: Lisa Tegnhed | D16: Karlstads SLK | E16: 255 | F16: 255 | G16: 255 | H16: 14 | I16: =LOOKUP(H16,Poängberäkning!$B$6:$B$97,Poängberäkning!$C$6:$C$97) -> 37 | J16: 21 | K16: =LOOKUP(J16,Poängberäkning!$B$6:$B$97,Poängberäkning!$C$6:$C$97) -> 30 | L16: 17 | M16: =LOOKUP(L16,Poängberäkning!$B$6:$B$97,Poängberäkning!$C$6:$C$97) -> 34 | N16: 17 | O16: =LOOKUP(N16,Poängberäkning!$B$6:$B$97,Poängberäkning!$C$6:$C$97) -> 34 | P16: 13 | Q16: =LOOKUP(P16,Poängberäkning!$B$6:$B$97,Poängberäkning!$C$6:$C$97) -> 38 | R16: 11 | S16: =LOOKUP(R16,Poängberäkning!$B$6:$B$97,Poängberäkning!$C$6:$C$97) -> 40 | T16: 99 | U16: =LOOKUP(T16,Poängberäkning!$B$6:$B$97,Poängberäkning!$C$6:$C$97) -> 0 | V16: 10 | W16: =LOOKUP(V16,Poängberäkning!$B$6:$B$97,Poängberäkning!$C$6:$C$97) -> 42 | Y16: =LOOKUP(X16,Poängberäkning!$B$6:$B$97,Poängberäkning!$C$6:$C$97) -> 0 | AA16: =LOOKUP(Z16,Poängberäkning!$B$6:$B$97,Poängberäkning!$C$6:$C$97) -> 0 | AC16: =LOOKUP(AB16,Poängberäkning!$B$6:$B$97,Poängberäkning!$C$6:$C$97) -> 0 | AE16: =LOOKUP(AD16,Poängberäkning!$B$6:$B$97,Poängberäkning!$C$6:$C$97) -> 0 | AG16: =LOOKUP(AF16,Poängberäkning!$B$6:$B$97,Poängberäkning!$C$6:$C$97) -> 0 | AI16: =LOOKUP(AH16,Poängberäkning!$B$6:$B$97,Poängberäkning!$C$6:$C$97) -> 0 | AK16: =LOOKUP(AJ16,Poängberäkning!$B$6:$B$97,Poängberäkning!$C$6:$C$97) -> 0 | AM16: =LOOKUP(AL16,Poängberäkning!$B$6:$B$97,Poängberäkning!$C$6:$C$97) -> 0 | AO16: =LOOKUP(AN16,Poängberäkning!$B$6:$B$97,Poängberäkning!$C$6:$C$97) -> 0 | AQ16: =LOOKUP(AP16,Poängberäkning!$B$6:$B$97,Poängberäkning!$C$6:$C$97) -> 0 | AS16: =LOOKUP(AR16,Poängberäkning!$B$6:$B$97,Poängberäkning!$C$6:$C$97) -> 0 | AU16: =LOOKUP(AT16,Poängberäkning!$B$6:$B$97,Poängberäkning!$C$6:$C$97) -> 0 | BD16: =LARGE(($I16,$K16,$M16,$O16,$Q16,$S16,$U16,$W16,$Y16,$AA16,$AC16,$AE16,$AG16,$AI16,$AK16,$AM16,$AO16,$AQ16,$AS16,$AU16,$AW16,$AY16,$BA16,$BC16),1) -> 42 | BE16: =LARGE(($I16,$K16,$M16,$O16,$Q16,$S16,$U16,$W16,$Y16,$AA16,$AC16,$AE16,$AG16,$AI16,$AK16,$AM16,$AO16,$AQ16,$AS16,$AU16,$AW16,$AY16,$BA16,$BC16),2) -> 40 | BF16: =LARGE(($I16,$K16,$M16,$O16,$Q16,$S16,$U16,$W16,$Y16,$AA16,$AC16,$AE16,$AG16,$AI16,$AK16,$AM16,$AO16,$AQ16,$AS16,$AU16,$AW16,$AY16,$BA16,$BC16),3) -> 38 | BG16: =LARGE(($I16,$K16,$M16,$O16,$Q16,$S16,$U16,$W16,$Y16,$AA16,$AC16,$AE16,$AG16,$AI16,$AK16,$AM16,$AO16,$AQ16,$AS16,$AU16,$AW16,$AY16,$BA16,$BC16),4) -> 37 | BH16: =LARGE(($I16,$K16,$M16,$O16,$Q16,$S16,$U16,$W16,$Y16,$AA16,$AC16,$AE16,$AG16,$AI16,$AK16,$AM16,$AO16,$AQ16,$AS16,$AU16,$AW16,$AY16,$BA16,$BC16),5) -> 34 | BI16: =LARGE(($I16,$K16,$M16,$O16,$Q16,$S16,$U16,$W16,$Y16,$AA16,$AC16,$AE16,$AG16,$AI16,$AK16,$AM16,$AO16,$AQ16,$AS16,$AU16,$AW16,$AY16,$BA16,$BC16),6) -> 34 | BJ16: =LARGE(($I16,$K16,$M16,$O16,$Q16,$S16,$U16,$W16,$Y16,$AA16,$AC16,$AE16,$AG16,$AI16,$AK16,$AM16,$AO16,$AQ16,$AS16,$AU16,$AW16,$AY16,$BA16,$BC16),7) -> 30 | BK16: =LARGE(($I16,$K16,$M16,$O16,$Q16,$S16,$U16,$W16,$Y16,$AA16,$AC16,$AE16,$AG16,$AI16,$AK16,$AM16,$AO16,$AQ16,$AS16,$AU16,$AW16,$AY16,$BA16,$BC16),8) -> 0 | BL16: =LARGE(($I16,$K16,$M16,$O16,$Q16,$S16,$U16,$W16,$Y16,$AA16,$AC16,$AE16,$AG16,$AI16,$AK16,$AM16,$AO16,$AQ16,$AS16,$AU16,$AW16,$AY16,$BA16,$BC16),9) -> 0 | BM16: =LARGE(($I16,$K16,$M16,$O16,$Q16,$S16,$U16,$W16,$Y16,$AA16,$AC16,$AE16,$AG16,$AI16,$AK16,$AM16,$AO16,$AQ16,$AS16,$AU16,$AW16,$AY16,$BA16,$BC16),10) -> 0
A17: 13 | B17: 2000 | C17: Ahnoo Sandberg | D17: IFK Falun | E17: 220 | F17: 220 | G17: 220 | H17: 99 | I17: =LOOKUP(H17,Poängberäkning!$B$6:$B$97,Poängberäkning!$C$6:$C$97) -> 0 | J17: 20 | K17: =LOOKUP(J17,Poängberäkning!$B$6:$B$97,Poängberäkning!$C$6:$C$97) -> 31 | L17: 16 | M17: =LOOKUP(L17,Poängberäkning!$B$6:$B$97,Poängberäkning!$C$6:$C$97) -> 35 | N17: 15 | O17: =LOOKUP(N17,Poängberäkning!$B$6:$B$97,Poängberäkning!$C$6:$C$97) -> 36 | P17: 14 | Q17: =LOOKUP(P17,Poängberäkning!$B$6:$B$97,Poängberäkning!$C$6:$C$97) -> 37 | R17: 99 | S17: =LOOKUP(R17,Poängberäkning!$B$6:$B$97,Poängberäkning!$C$6:$C$97) -> 0 | T17: 10 | U17: =LOOKUP(T17,Poängberäkning!$B$6:$B$97,Poängberäkning!$C$6:$C$97) -> 42 | V17: 12 | W17: =LOOKUP(V17,Poängberäkning!$B$6:$B$97,Poängberäkning!$C$6:$C$97) -> 39 | Y17: =LOOKUP(X17,Poängberäkning!$B$6:$B$97,Poängberäkning!$C$6:$C$97) -> 0 | AA17: =LOOKUP(Z17,Poängberäkning!$B$6:$B$97,Poängberäkning!$C$6:$C$97) -> 0 | AC17: =LOOKUP(AB17,Poängberäkning!$B$6:$B$97,Poängberäkning!$C$6:$C$97) -> 0 | AE17: =LOOKUP(AD17,Poängberäkning!$B$6:$B$97,Poängberäkning!$C$6:$C$97) -> 0 | AG17: =LOOKUP(AF17,Poängberäkning!$B$6:$B$97,Poängberäkning!$C$6:$C$97) -> 0 | AI17: =LOOKUP(AH17,Poängberäkning!$B$6:$B$97,Poängberäkning!$C$6:$C$97) -> 0 | AK17: =LOOKUP(AJ17,Poängberäkning!$B$6:$B$97,Poängberäkning!$C$6:$C$97) -> 0 | AM17: =LOOKUP(AL17,Poängberäkning!$B$6:$B$97,Poängberäkning!$C$6:$C$97) -> 0 | AO17: =LOOKUP(AN17,Poängberäkning!$B$6:$B$97,Poängberäkning!$C$6:$C$97) -> 0 | AQ17: =LOOKUP(AP17,Poängberäkning!$B$6:$B$97,Poängberäkning!$C$6:$C$97) -> 0 | AS17: =LOOKUP(AR17,Poängberäkning!$B$6:$B$97,Poängberäkning!$C$6:$C$97) -> 0 | AU17: =LOOKUP(AT17,Poängberäkning!$B$6:$B$97,Poängberäkning!$C$6:$C$97) -> 0 | BD17: =LARGE(($I17,$K17,$M17,$O17,$Q17,$S17,$U17,$W17,$Y17,$AA17,$AC17,$AE17,$AG17,$AI17,$AK17,$AM17,$AO17,$AQ17,$AS17,$AU17,$AW17,$AY17,$BA17,$BC17),1) -> 42 | BE17: =LARGE(($I17,$K17,$M17,$O17,$Q17,$S17,$U17,$W17,$Y17,$AA17,$AC17,$AE17,$AG17,$AI17,$AK17,$AM17,$AO17,$AQ17,$AS17,$AU17,$AW17,$AY17,$BA17,$BC17),2) -> 39 | BF17: =LARGE(($I17,$K17,$M17,$O17,$Q17,$S17,$U17,$W17,$Y17,$AA17,$AC17,$AE17,$AG17,$AI17,$AK17,$AM17,$AO17,$AQ17,$AS17,$AU17,$AW17,$AY17,$BA17,$BC17),3) -> 37 | BG17: =LARGE(($I17,$K17,$M17,$O17,$Q17,$S17,$U17,$W17,$Y17,$AA17,$AC17,$AE17,$AG17,$AI17,$AK17,$AM17,$AO17,$AQ17,$AS17,$AU17,$AW17,$AY17,$BA17,$BC17),4) -> 36 | BH17: =LARGE(($I17,$K17,$M17,$O17,$Q17,$S17,$U17,$W17,$Y17,$AA17,$AC17,$AE17,$AG17,$AI17,$AK17,$AM17,$AO17,$AQ17,$AS17,$AU17,$AW17,$AY17,$BA17,$BC17),5) -> 35 | BI17: =LARGE(($I17,$K17,$M17,$O17,$Q17,$S17,$U17,$W17,$Y17,$AA17,$AC17,$AE17,$AG17,$AI17,$AK17,$AM17,$AO17,$AQ17,$AS17,$AU17,$AW17,$AY17,$BA17,$BC17),6) -> 31 | BJ17: =LARGE(($I17,$K17,$M17,$O17,$Q17,$S17,$U17,$W17,$Y17,$AA17,$AC17,$AE17,$AG17,$AI17,$AK17,$AM17,$AO17,$AQ17,$AS17,$AU17,$AW17,$AY17,$BA17,$BC17),7) -> 0 | BK17: =LARGE(($I17,$K17,$M17,$O17,$Q17,$S17,$U17,$W17,$Y17,$AA17,$AC17,$AE17,$AG17,$AI17,$AK17,$AM17,$AO17,$AQ17,$AS17,$AU17,$AW17,$AY17,$BA17,$BC17),8) -> 0 | BL17: =LARGE(($I17,$K17,$M17,$O17,$Q17,$S17,$U17,$W17,$Y17,$AA17,$AC17,$AE17,$AG17,$AI17,$AK17,$AM17,$AO17,$AQ17,$AS17,$AU17,$AW17,$AY17,$BA17,$BC17),9) -> 0 | BM17: =LARGE(($I17,$K17,$M17,$O17,$Q17,$S17,$U17,$W17,$Y17,$AA17,$AC17,$AE17,$AG17,$AI17,$AK17,$AM17,$AO17,$AQ17,$AS17,$AU17,$AW17,$AY17,$BA17,$BC17),10) -> 0
A18: 14 | B18: 2000 | C18: Alma Faghén | D18: Norrbärke SK Alpin | E18: 189 | F18: 189 | G18: 189 | H18: 99 | I18: =LOOKUP(H18,Poängberäkning!$B$6:$B$97,Poängberäkning!$C$6:$C$97) -> 0 | J18: 8 | K18: =LOOKUP(J18,Poängberäkning!$B$6:$B$97,Poängberäkning!$C$6:$C$97) -> 46 | L18: 5 | M18: =LOOKUP(L18,Poängberäkning!$B$6:$B$97,Poängberäkning!$C$6:$C$97) -> 55 | N18: 8 | O18: =LOOKUP(N18,Poängberäkning!$B$6:$B$97,Poängberäkning!$C$6:$C$97) -> 46 | P18: 10 | Q18: =LOOKUP(P18,Poängberäkning!$B$6:$B$97,Poängberäkning!$C$6:$C$97) -> 42 | R18: 99 | S18: =LOOKUP(R18,Poängberäkning!$B$6:$B$97,Poängberäkning!$C$6:$C$97) -> 0 | T18: 99 | U18: =LOOKUP(T18,Poängberäkning!$B$6:$B$97,Poängberäkning!$C$6:$C$97) -> 0 | V18: 99 | W18: =LOOKUP(V18,Poängberäkning!$B$6:$B$97,Poängberäkning!$C$6:$C$97) -> 0 | Y18: =LOOKUP(X18,Poängberäkning!$B$6:$B$97,Poängberäkning!$C$6:$C$97) -> 0 | AA18: =LOOKUP(Z18,Poängberäkning!$B$6:$B$97,Poängberäkning!$C$6:$C$97) -> 0 | AC18: =LOOKUP(AB18,Poängberäkning!$B$6:$B$97,Poängberäkning!$C$6:$C$97) -> 0 | AE18: =LOOKUP(AD18,Poängberäkning!$B$6:$B$97,Poängberäkning!$C$6:$C$97) -> 0 | AG18: =LOOKUP(AF18,Poängberäkning!$B$6:$B$97,Poängberäkning!$C$6:$C$97) -> 0 | AI18: =LOOKUP(AH18,Poängberäkning!$B$6:$B$97,Poängberäkning!$C$6:$C$97) -> 0 | AK18: =LOOKUP(AJ18,Poängberäkning!$B$6:$B$97,Poängberäkning!$C$6:$C$97) -> 0 | AM18: =LOOKUP(AL18,Poängberäkning!$B$6:$B$97,Poängberäkning!$C$6:$C$97) -> 0 | AO18: =LOOKUP(AN18,Poängberäkning!$B$6:$B$97,Poängberäkning!$C$6:$C$97) -> 0 | AQ18: =LOOKUP(AP18,Poängberäkning!$B$6:$B$97,Poängberäkning!$C$6:$C$97) -> 0 | AS18: =LOOKUP(AR18,Poängberäkning!$B$6:$B$97,Poängberäkning!$C$6:$C$97) -> 0 | AU18: =LOOKUP(AT18,Poängberäkning!$B$6:$B$97,Poängberäkning!$C$6:$C$97) -> 0 | BD18: =LARGE(($I18,$K18,$M18,$O18,$Q18,$S18,$U18,$W18,$Y18,$AA18,$AC18,$AE18,$AG18,$AI18,$AK18,$AM18,$AO18,$AQ18,$AS18,$AU18,$AW18,$AY18,$BA18,$BC18),1) -> 55 | BE18: =LARGE(($I18,$K18,$M18,$O18,$Q18,$S18,$U18,$W18,$Y18,$AA18,$AC18,$AE18,$AG18,$AI18,$AK18,$AM18,$AO18,$AQ18,$AS18,$AU18,$AW18,$AY18,$BA18,$BC18),2) -> 46 | BF18: =LARGE(($I18,$K18,$M18,$O18,$Q18,$S18,$U18,$W18,$Y18,$AA18,$AC18,$AE18,$AG18,$AI18,$AK18,$AM18,$AO18,$AQ18,$AS18,$AU18,$AW18,$AY18,$BA18,$BC18),3) -> 46 | BG18: =LARGE(($I18,$K18,$M18,$O18,$Q18,$S18,$U18,$W18,$Y18,$AA18,$AC18,$AE18,$AG18,$AI18,$AK18,$AM18,$AO18,$AQ18,$AS18,$AU18,$AW18,$AY18,$BA18,$BC18),4) -> 42 | BH18: =LARGE(($I18,$K18,$M18,$O18,$Q18,$S18,$U18,$W18,$Y18,$AA18,$AC18,$AE18,$AG18,$AI18,$AK18,$AM18,$AO18,$AQ18,$AS18,$AU18,$AW18,$AY18,$BA18,$BC18),5) -> 0 | BI18: =LARGE(($I18,$K18,$M18,$O18,$Q18,$S18,$U18,$W18,$Y18,$AA18,$AC18,$AE18,$AG18,$AI18,$AK18,$AM18,$AO18,$AQ18,$AS18,$AU18,$AW18,$AY18,$BA18,$BC18),6) -> 0 | BJ18: =LARGE(($I18,$K18,$M18,$O18,$Q18,$S18,$U18,$W18,$Y18,$AA18,$AC18,$AE18,$AG18,$AI18,$AK18,$AM18,$AO18,$AQ18,$AS18,$AU18,$AW18,$AY18,$BA18,$BC18),7) -> 0 | BK18: =LARGE(($I18,$K18,$M18,$O18,$Q18,$S18,$U18,$W18,$Y18,$AA18,$AC18,$AE18,$AG18,$AI18,$AK18,$AM18,$AO18,$AQ18,$AS18,$AU18,$AW18,$AY18,$BA18,$BC18),8) -> 0 | BL18: =LARGE(($I18,$K18,$M18,$O18,$Q18,$S18,$U18,$W18,$Y18,$AA18,$AC18,$AE18,$AG18,$AI18,$AK18,$AM18,$AO18,$AQ18,$AS18,$AU18,$AW18,$AY18,$BA18,$BC18),9) -> 0 | BM18: =LARGE(($I18,$K18,$M18,$O18,$Q18,$S18,$U18,$W18,$Y18,$AA18,$AC18,$AE18,$AG18,$AI18,$AK18,$AM18,$AO18,$AQ18,$AS18,$AU18,$AW18,$AY18,$BA18,$BC18),10) -> 0
A19: 15 | B19: 2000 | C19: Lovisa Eklund | D19: Leksands SLK | E19: 170 | F19: 170 | G19: 170 | H19: 99 | I19: =LOOKUP(H19,Poängberäkning!$B$6:$B$97,Poängberäkning!$C$6:$C$97) -> 0 | J19: 6 | K19: =LOOKUP(J19,Poängberäkning!$B$6:$B$97,Poängberäkning!$C$6:$C$97) -> 50 | L19: 4 | M19: =LOOKUP(L19,Poängberäkning!$B$6:$B$97,Poängberäkning!$C$6:$C$97) -> 60 | N19: 4 | O19: =LOOKUP(N19,Poängberäkning!$B$6:$B$97,Poängberäkning!$C$6:$C$97) -> 60 | P19: 99 | Q19: =LOOKUP(P19,Poängberäkning!$B$6:$B$97,Poängberäkning!$C$6:$C$97) -> 0 | R19: 99 | S19: =LOOKUP(R19,Poängberäkning!$B$6:$B$97,Poängberäkning!$C$6:$C$97) -> 0 | T19: 99 | U19: =LOOKUP(T19,Poängberäkning!$B$6:$B$97,Poängberäkning!$C$6:$C$97) -> 0 | V19: 99 | W19: =LOOKUP(V19,Poängberäkning!$B$6:$B$97,Poängberäkning!$C$6:$C$97) -> 0 | Y19: =LOOKUP(X19,Poängberäkning!$B$6:$B$97,Poängberäkning!$C$6:$C$97) -> 0 | AA19: =LOOKUP(Z19,Poängberäkning!$B$6:$B$97,Poängberäkning!$C$6:$C$97) -> 0 | AC19: =LOOKUP(AB19,Poängberäkning!$B$6:$B$97,Poängberäkning!$C$6:$C$97) -> 0 | AE19: =LOOKUP(AD19,Poängberäkning!$B$6:$B$97,Poängberäkning!$C$6:$C$97) -> 0 | AG19: =LOOKUP(AF19,Poängberäkning!$B$6:$B$97,Poängberäkning!$C$6:$C$97) -> 0 | AI19: =LOOKUP(AH19,Poängberäkning!$B$6:$B$97,Poängberäkning!$C$6:$C$97) -> 0 | AK19: =LOOKUP(AJ19,Poängberäkning!$B$6:$B$97,Poängberäkning!$C$6:$C$97) -> 0 | AM19: =LOOKUP(AL19,Poängberäkning!$B$6:$B$97,Poängberäkning!$C$6:$C$97) -> 0 | AO19: =LOOKUP(AN19,Poängberäkning!$B$6:$B$97,Poängberäkning!$C$6:$C$97) -> 0 | AQ19: =LOOKUP(AP19,Poängberäkning!$B$6:$B$97,Poängberäkning!$C$6:$C$97) -> 0 | AS19: =LOOKUP(AR19,Poängberäkning!$B$6:$B$97,Poängberäkning!$C$6:$C$97) -> 0 | AU19: =LOOKUP(AT19,Poängberäkning!$B$6:$B$97,Poängberäkning!$C$6:$C$97) -> 0 | BD19: =LARGE(($I19,$K19,$M19,$O19,$Q19,$S19,$U19,$W19,$Y19,$AA19,$AC19,$AE19,$AG19,$AI19,$AK19,$AM19,$AO19,$AQ19,$AS19,$AU19,$AW19,$AY19,$BA19,$BC19),1) -> 60 | BE19: =LARGE(($I19,$K19,$M19,$O19,$Q19,$S19,$U19,$W19,$Y19,$AA19,$AC19,$AE19,$AG19,$AI19,$AK19,$AM19,$AO19,$AQ19,$AS19,$AU19,$AW19,$AY19,$BA19,$BC19),2) -> 60 | BF19: =LARGE(($I19,$K19,$M19,$O19,$Q19,$S19,$U19,$W19,$Y19,$AA19,$AC19,$AE19,$AG19,$AI19,$AK19,$AM19,$AO19,$AQ19,$AS19,$AU19,$AW19,$AY19,$BA19,$BC19),3) -> 50 | BG19: =LARGE(($I19,$K19,$M19,$O19,$Q19,$S19,$U19,$W19,$Y19,$AA19,$AC19,$AE19,$AG19,$AI19,$AK19,$AM19,$AO19,$AQ19,$AS19,$AU19,$AW19,$AY19,$BA19,$BC19),4) -> 0 | BH19: =LARGE(($I19,$K19,$M19,$O19,$Q19,$S19,$U19,$W19,$Y19,$AA19,$AC19,$AE19,$AG19,$AI19,$AK19,$AM19,$AO19,$AQ19,$AS19,$AU19,$AW19,$AY19,$BA19,$BC19),5) -> 0 | BI19: =LARGE(($I19,$K19,$M19,$O19,$Q19,$S19,$U19,$W19,$Y19,$AA19,$AC19,$AE19,$AG19,$AI19,$AK19,$AM19,$AO19,$AQ19,$AS19,$AU19,$AW19,$AY19,$BA19,$BC19),6) -> 0 | BJ19: =LARGE(($I19,$K19,$M19,$O19,$Q19,$S19,$U19,$W19,$Y19,$AA19,$AC19,$AE19,$AG19,$AI19,$AK19,$AM19,$AO19,$AQ19,$AS19,$AU19,$AW19,$AY19,$BA19,$BC19),7) -> 0 | BK19: =LARGE(($I19,$K19,$M19,$O19,$Q19,$S19,$U19,$W19,$Y19,$AA19,$AC19,$AE19,$AG19,$AI19,$AK19,$AM19,$AO19,$AQ19,$AS19,$AU19,$AW19,$AY19,$BA19,$BC19),8) -> 0 | BL19: =LARGE(($I19,$K19,$M19,$O19,$Q19,$S19,$U19,$W19,$Y19,$AA19,$AC19,$AE19,$AG19,$AI19,$AK19,$AM19,$AO19,$AQ19,$AS19,$AU19,$AW19,$AY19,$BA19,$BC19),9) -> 0 | BM19: =LARGE(($I19,$K19,$M19,$O19,$Q19,$S19,$U19,$W19,$Y19,$AA19,$AC19,$AE19,$AG19,$AI19,$AK19,$AM19,$AO19,$AQ19,$AS19,$AU19,$AW19,$AY19,$BA19,$BC19),10) -> 0
A20: 16 | B20: 2000 | C20: Linda Persson | D20: Idre SK | E20: 170 | F20: 170 | G20: 170 | H20: 99 | I20: =LOOKUP(H20,Poängberäkning!$B$6:$B$97,Poängberäkning!$C$6:$C$97) -> 0 | J20: 11 | K20: =LOOKUP(J20,Poängberäkning!$B$6:$B$97,Poängberäkning!$C$6:$C$97) -> 40 | L20: 10 | M20: =LOOKUP(L20,Poängberäkning!$B$6:$B$97,Poängberäkning!$C$6:$C$97) -> 42 | N20: 9 | O20: =LOOKUP(N20,Poängberäkning!$B$6:$B$97,Poängberäkning!$C$6:$C$97) -> 44 | P20: 99 | Q20: =LOOKUP(P20,Poängberäkning!$B$6:$B$97,Poängberäkning!$C$6:$C$97) -> 0 | R20: 99 | S20: =LOOKUP(R20,Poängberäkning!$B$6:$B$97,Poängberäkning!$C$6:$C$97) -> 0 | T20: 9 | U20: =LOOKUP(T20,Poängberäkning!$B$6:$B$97,Poängberäkning!$C$6:$C$97) -> 44 | W20: =LOOKUP(V20,Poängberäkning!$B$6:$B$97,Poängberäkning!$C$6:$C$97) -> 0 | Y20: =LOOKUP(X20,Poängberäkning!$B$6:$B$97,Poängberäkning!$C$6:$C$97) -> 0 | AA20: =LOOKUP(Z20,Poängberäkning!$B$6:$B$97,Poängberäkning!$C$6:$C$97) -> 0 | AC20: =LOOKUP(AB20,Poängberäkning!$B$6:$B$97,Poängberäkning!$C$6:$C$97) -> 0 | AE20: =LOOKUP(AD20,Poängberäkning!$B$6:$B$97,Poängberäkning!$C$6:$C$97) -> 0 | AG20: =LOOKUP(AF20,Poängberäkning!$B$6:$B$97,Poängberäkning!$C$6:$C$97) -> 0 | AI20: =LOOKUP(AH20,Poängberäkning!$B$6:$B$97,Poängberäkning!$C$6:$C$97) -> 0 | AK20: =LOOKUP(AJ20,Poängberäkning!$B$6:$B$97,Poängberäkning!$C$6:$C$97) -> 0 | AM20: =LOOKUP(AL20,Poängberäkning!$B$6:$B$97,Poängberäkning!$C$6:$C$97) -> 0 | AO20: =LOOKUP(AN20,Poängberäkning!$B$6:$B$97,Poängberäkning!$C$6:$C$97) -> 0 | AQ20: =LOOKUP(AP20,Poängberäkning!$B$6:$B$97,Poängberäkning!$C$6:$C$97) -> 0 | AS20: =LOOKUP(AR20,Poängberäkning!$B$6:$B$97,Poängberäkning!$C$6:$C$97) -> 0 | AU20: =LOOKUP(AT20,Poängberäkning!$B$6:$B$97,Poängberäkning!$C$6:$C$97) -> 0 | BD20: =LARGE(($I20,$K20,$M20,$O20,$Q20,$S20,$U20,$W20,$Y20,$AA20,$AC20,$AE20,$AG20,$AI20,$AK20,$AM20,$AO20,$AQ20,$AS20,$AU20,$AW20,$AY20,$BA20,$BC20),1) -> 44 | BE20: =LARGE(($I20,$K20,$M20,$O20,$Q20,$S20,$U20,$W20,$Y20,$AA20,$AC20,$AE20,$AG20,$AI20,$AK20,$AM20,$AO20,$AQ20,$AS20,$AU20,$AW20,$AY20,$BA20,$BC20),2) -> 44 | BF20: =LARGE(($I20,$K20,$M20,$O20,$Q20,$S20,$U20,$W20,$Y20,$AA20,$AC20,$AE20,$AG20,$AI20,$AK20,$AM20,$AO20,$AQ20,$AS20,$AU20,$AW20,$AY20,$BA20,$BC20),3) -> 42 | BG20: =LARGE(($I20,$K20,$M20,$O20,$Q20,$S20,$U20,$W20,$Y20,$AA20,$AC20,$AE20,$AG20,$AI20,$AK20,$AM20,$AO20,$AQ20,$AS20,$AU20,$AW20,$AY20,$BA20,$BC20),4) -> 40 | BH20: =LARGE(($I20,$K20,$M20,$O20,$Q20,$S20,$U20,$W20,$Y20,$AA20,$AC20,$AE20,$AG20,$AI20,$AK20,$AM20,$AO20,$AQ20,$AS20,$AU20,$AW20,$AY20,$BA20,$BC20),5) -> 0 | BI20: =LARGE(($I20,$K20,$M20,$O20,$Q20,$S20,$U20,$W20,$Y20,$AA20,$AC20,$AE20,$AG20,$AI20,$AK20,$AM20,$AO20,$AQ20,$AS20,$AU20,$AW20,$AY20,$BA20,$BC20),6) -> 0 | BJ20: =LARGE(($I20,$K20,$M20,$O20,$Q20,$S20,$U20,$W20,$Y20,$AA20,$AC20,$AE20,$AG20,$AI20,$AK20,$AM20,$AO20,$AQ20,$AS20,$AU20,$AW20,$AY20,$BA20,$BC20),7) -> 0 | BK20: =LARGE(($I20,$K20,$M20,$O20,$Q20,$S20,$U20,$W20,$Y20,$AA20,$AC20,$AE20,$AG20,$AI20,$AK20,$AM20,$AO20,$AQ20,$AS20,$AU20,$AW20,$AY20,$BA20,$BC20),8) -> 0 | BL20: =LARGE(($I20,$K20,$M20,$O20,$Q20,$S20,$U20,$W20,$Y20,$AA20,$AC20,$AE20,$AG20,$AI20,$AK20,$AM20,$AO20,$AQ20,$AS20,$AU20,$AW20,$AY20,$BA20,$BC20),9) -> 0 | BM20: =LARGE(($I20,$K20,$M20,$O20,$Q20,$S20,$U20,$W20,$Y20,$AA20,$AC20,$AE20,$AG20,$AI20,$AK20,$AM20,$AO20,$AQ20,$AS20,$AU20,$AW20,$AY20,$BA20,$BC20),10) -> 0
A21: 17 | B21: 2000 | C21: Jennifer Thornell | D21: Avesta AK | E21: 158 | F21: 158 | G21: 158 | I21: =LOOKUP(H21,Poängberäkning!$B$6:$B$97,Poängberäkning!$C$6:$C$97) -> 0 | K21: =LOOKUP(J21,Poängberäkning!$B$6:$B$97,Poängberäkning!$C$6:$C$97) -> 0 | M21: =LOOKUP(L21,Poängberäkning!$B$6:$B$97,Poängberäkning!$C$6:$C$97) -> 0 | O21: =LOOKUP(N21,Poängberäkning!$B$6:$B$97,Poängberäkning!$C$6:$C$97) -> 0 | P21: 12 | Q21: =LOOKUP(P21,Poängberäkning!$B$6:$B$97,Poängberäkning!$C$6:$C$97) -> 39 | R21: 12 | S21: =LOOKUP(R21,Poängberäkning!$B$6:$B$97,Poängberäkning!$C$6:$C$97) -> 39 | T21: 11 | U21: =LOOKUP(T21,Poängberäkning!$B$6:$B$97,Poängberäkning!$C$6:$C$97) -> 40 | V21: 11 | W21: =LOOKUP(V21,Poängberäkning!$B$6:$B$97,Poängberäkning!$C$6:$C$97) -> 40 | Y21: =LOOKUP(X21,Poängberäkning!$B$6:$B$97,Poängberäkning!$C$6:$C$97) -> 0 | AA21: =LOOKUP(Z21,Poängberäkning!$B$6:$B$97,Poängberäkning!$C$6:$C$97) -> 0 | AC21: =LOOKUP(AB21,Poängberäkning!$B$6:$B$97,Poängberäkning!$C$6:$C$97) -> 0 | AE21: =LOOKUP(AD21,Poängberäkning!$B$6:$B$97,Poängberäkning!$C$6:$C$97) -> 0 | AG21: =LOOKUP(AF21,Poängberäkning!$B$6:$B$97,Poängberäkning!$C$6:$C$97) -> 0 | AI21: =LOOKUP(AH21,Poängberäkning!$B$6:$B$97,Poängberäkning!$C$6:$C$97) -> 0 | AK21: =LOOKUP(AJ21,Poängberäkning!$B$6:$B$97,Poängberäkning!$C$6:$C$97) -> 0 | AM21: =LOOKUP(AL21,Poängberäkning!$B$6:$B$97,Poängberäkning!$C$6:$C$97) -> 0 | AO21: =LOOKUP(AN21,Poängberäkning!$B$6:$B$97,Poängberäkning!$C$6:$C$97) -> 0 | AQ21: =LOOKUP(AP21,Poängberäkning!$B$6:$B$97,Poängberäkning!$C$6:$C$97) -> 0 | AS21: =LOOKUP(AR21,Poängberäkning!$B$6:$B$97,Poängberäkning!$C$6:$C$97) -> 0 | AU21: =LOOKUP(AT21,Poängberäkning!$B$6:$B$97,Poängberäkning!$C$6:$C$97) -> 0 | BD21: =LARGE(($I21,$K21,$M21,$O21,$Q21,$S21,$U21,$W21,$Y21,$AA21,$AC21,$AE21,$AG21,$AI21,$AK21,$AM21,$AO21,$AQ21,$AS21,$AU21,$AW21,$AY21,$BA21,$BC21),1) -> 40 | BE21: =LARGE(($I21,$K21,$M21,$O21,$Q21,$S21,$U21,$W21,$Y21,$AA21,$AC21,$AE21,$AG21,$AI21,$AK21,$AM21,$AO21,$AQ21,$AS21,$AU21,$AW21,$AY21,$BA21,$BC21),2) -> 40 | BF21: =LARGE(($I21,$K21,$M21,$O21,$Q21,$S21,$U21,$W21,$Y21,$AA21,$AC21,$AE21,$AG21,$AI21,$AK21,$AM21,$AO21,$AQ21,$AS21,$AU21,$AW21,$AY21,$BA21,$BC21),3) -> 39 | BG21: =LARGE(($I21,$K21,$M21,$O21,$Q21,$S21,$U21,$W21,$Y21,$AA21,$AC21,$AE21,$AG21,$AI21,$AK21,$AM21,$AO21,$AQ21,$AS21,$AU21,$AW21,$AY21,$BA21,$BC21),4) -> 39 | BH21: =LARGE(($I21,$K21,$M21,$O21,$Q21,$S21,$U21,$W21,$Y21,$AA21,$AC21,$AE21,$AG21,$AI21,$AK21,$AM21,$AO21,$AQ21,$AS21,$AU21,$AW21,$AY21,$BA21,$BC21),5) -> 0 | BI21: =LARGE(($I21,$K21,$M21,$O21,$Q21,$S21,$U21,$W21,$Y21,$AA21,$AC21,$AE21,$AG21,$AI21,$AK21,$AM21,$AO21,$AQ21,$AS21,$AU21,$AW21,$AY21,$BA21,$BC21),6) -> 0 | BJ21: =LARGE(($I21,$K21,$M21,$O21,$Q21,$S21,$U21,$W21,$Y21,$AA21,$AC21,$AE21,$AG21,$AI21,$AK21,$AM21,$AO21,$AQ21,$AS21,$AU21,$AW21,$AY21,$BA21,$BC21),7) -> 0 | BK21: =LARGE(($I21,$K21,$M21,$O21,$Q21,$S21,$U21,$W21,$Y21,$AA21,$AC21,$AE21,$AG21,$AI21,$AK21,$AM21,$AO21,$AQ21,$AS21,$AU21,$AW21,$AY21,$BA21,$BC21),8) -> 0 | BL21: =LARGE(($I21,$K21,$M21,$O21,$Q21,$S21,$U21,$W21,$Y21,$AA21,$AC21,$AE21,$AG21,$AI21,$AK21,$AM21,$AO21,$AQ21,$AS21,$AU21,$AW21,$AY21,$BA21,$BC21),9) -> 0 | BM21: =LARGE(($I21,$K21,$M21,$O21,$Q21,$S21,$U21,$W21,$Y21,$AA21,$AC21,$AE21,$AG21,$AI21,$AK21,$AM21,$AO21,$AQ21,$AS21,$AU21,$AW21,$AY21,$BA21,$BC21),10) -> 0
A22: 18 | B22: 2000 | C22: Tilde Grönstedt | D22: Karlstads SLK | E22: 156 | F22: 156 | G22: 156 | H22: 11 | I22: =LOOKUP(H22,Poängberäkning!$B$6:$B$97,Poängberäkning!$C$6:$C$97) -> 40 | J22: 14 | K22: =LOOKUP(J22,Poängberäkning!$B$6:$B$97,Poängberäkning!$C$6:$C$97) -> 37 | L22: 12 | M22: =LOOKUP(L22,Poängberäkning!$B$6:$B$97,Poängberäkning!$C$6:$C$97) -> 39 | N22: 11 | O22: =LOOKUP(N22,Poängberäkning!$B$6:$B$97,Poängberäkning!$C$6:$C$97) -> 40 | Q22: =LOOKUP(P22,Poängberäkning!$B$6:$B$97,Poängberäkning!$C$6:$C$97) -> 0 | S22: =LOOKUP(R22,Poängberäkning!$B$6:$B$97,Poängberäkning!$C$6:$C$97) -> 0 | U22: =LOOKUP(T22,Poängberäkning!$B$6:$B$97,Poängberäkning!$C$6:$C$97) -> 0 | W22: =LOOKUP(V22,Poängberäkning!$B$6:$B$97,Poängberäkning!$C$6:$C$97) -> 0 | Y22: =LOOKUP(X22,Poängberäkning!$B$6:$B$97,Poängberäkning!$C$6:$C$97) -> 0 | AA22: =LOOKUP(Z22,Poängberäkning!$B$6:$B$97,Poängberäkning!$C$6:$C$97) -> 0 | AC22: =LOOKUP(AB22,Poängberäkning!$B$6:$B$97,Poängberäkning!$C$6:$C$97) -> 0 | AE22: =LOOKUP(AD22,Poängberäkning!$B$6:$B$97,Poängberäkning!$C$6:$C$97) -> 0 | AG22: =LOOKUP(AF22,Poängberäkning!$B$6:$B$97,Poängberäkning!$C$6:$C$97) -> 0 | AI22: =LOOKUP(AH22,Poängberäkning!$B$6:$B$97,Poängberäkning!$C$6:$C$97) -> 0 | AK22: =LOOKUP(AJ22,Poängberäkning!$B$6:$B$97,Poängberäkning!$C$6:$C$97) -> 0 | AM22: =LOOKUP(AL22,Poängberäkning!$B$6:$B$97,Poängberäkning!$C$6:$C$97) -> 0 | AO22: =LOOKUP(AN22,Poängberäkning!$B$6:$B$97,Poängberäkning!$C$6:$C$97) -> 0 | AQ22: =LOOKUP(AP22,Poängberäkning!$B$6:$B$97,Poängberäkning!$C$6:$C$97) -> 0 | AS22: =LOOKUP(AR22,Poängberäkning!$B$6:$B$97,Poängberäkning!$C$6:$C$97) -> 0 | AU22: =LOOKUP(AT22,Poängberäkning!$B$6:$B$97,Poängberäkning!$C$6:$C$97) -> 0 | BD22: =LARGE(($I22,$K22,$M22,$O22,$Q22,$S22,$U22,$W22,$Y22,$AA22,$AC22,$AE22,$AG22,$AI22,$AK22,$AM22,$AO22,$AQ22,$AS22,$AU22,$AW22,$AY22,$BA22,$BC22),1) -> 40 | BE22: =LARGE(($I22,$K22,$M22,$O22,$Q22,$S22,$U22,$W22,$Y22,$AA22,$AC22,$AE22,$AG22,$AI22,$AK22,$AM22,$AO22,$AQ22,$AS22,$AU22,$AW22,$AY22,$BA22,$BC22),2) -> 40 | BF22: =LARGE(($I22,$K22,$M22,$O22,$Q22,$S22,$U22,$W22,$Y22,$AA22,$AC22,$AE22,$AG22,$AI22,$AK22,$AM22,$AO22,$AQ22,$AS22,$AU22,$AW22,$AY22,$BA22,$BC22),3) -> 39 | BG22: =LARGE(($I22,$K22,$M22,$O22,$Q22,$S22,$U22,$W22,$Y22,$AA22,$AC22,$AE22,$AG22,$AI22,$AK22,$AM22,$AO22,$AQ22,$AS22,$AU22,$AW22,$AY22,$BA22,$BC22),4) -> 37 | BH22: =LARGE(($I22,$K22,$M22,$O22,$Q22,$S22,$U22,$W22,$Y22,$AA22,$AC22,$AE22,$AG22,$AI22,$AK22,$AM22,$AO22,$AQ22,$AS22,$AU22,$AW22,$AY22,$BA22,$BC22),5) -> 0 | BI22: =LARGE(($I22,$K22,$M22,$O22,$Q22,$S22,$U22,$W22,$Y22,$AA22,$AC22,$AE22,$AG22,$AI22,$AK22,$AM22,$AO22,$AQ22,$AS22,$AU22,$AW22,$AY22,$BA22,$BC22),6) -> 0 | BJ22: =LARGE(($I22,$K22,$M22,$O22,$Q22,$S22,$U22,$W22,$Y22,$AA22,$AC22,$AE22,$AG22,$AI22,$AK22,$AM22,$AO22,$AQ22,$AS22,$AU22,$AW22,$AY22,$BA22,$BC22),7) -> 0 | BK22: =LARGE(($I22,$K22,$M22,$O22,$Q22,$S22,$U22,$W22,$Y22,$AA22,$AC22,$AE22,$AG22,$AI22,$AK22,$AM22,$AO22,$AQ22,$AS22,$AU22,$AW22,$AY22,$BA22,$BC22),8) -> 0 | BL22: =LARGE(($I22,$K22,$M22,$O22,$Q22,$S22,$U22,$W22,$Y22,$AA22,$AC22,$AE22,$AG22,$AI22,$AK22,$AM22,$AO22,$AQ22,$AS22,$AU22,$AW22,$AY22,$BA22,$BC22),9) -> 0 | BM22: =LARGE(($I22,$K22,$M22,$O22,$Q22,$S22,$U22,$W22,$Y22,$AA22,$AC22,$AE22,$AG22,$AI22,$AK22,$AM22,$AO22,$AQ22,$AS22,$AU22,$AW22,$AY22,$BA22,$BC22),10) -> 0
A23: 19 | B23: 2000 | C23: Felicia Lind | D23: IFK Borlänge | E23: 148 | F23: 148 | G23: 148 | H23: 10 | I23: =LOOKUP(H23,Poängberäkning!$B$6:$B$97,Poängberäkning!$C$6:$C$97) -> 42 | J23: 18 | K23: =LOOKUP(J23,Poängberäkning!$B$6:$B$97,Poängberäkning!$C$6:$C$97) -> 33 | L23: 15 | M23: =LOOKUP(L23,Poängberäkning!$B$6:$B$97,Poängberäkning!$C$6:$C$97) -> 36 | N23: 14 | O23: =LOOKUP(N23,Poängberäkning!$B$6:$B$97,Poängberäkning!$C$6:$C$97) -> 37 | P23: 99 | Q23: =LOOKUP(P23,Poängberäkning!$B$6:$B$97,Poängberäkning!$C$6:$C$97) -> 0 | R23: 99 | S23: =LOOKUP(R23,Poängberäkning!$B$6:$B$97,Poängberäkning!$C$6:$C$97) -> 0 | T23: 99 | U23: =LOOKUP(T23,Poängberäkning!$B$6:$B$97,Poängberäkning!$C$6:$C$97) -> 0 | V23: 99 | W23: =LOOKUP(V23,Poängberäkning!$B$6:$B$97,Poängberäkning!$C$6:$C$97) -> 0 | Y23: =LOOKUP(X23,Poängberäkning!$B$6:$B$97,Poängberäkning!$C$6:$C$97) -> 0 | AA23: =LOOKUP(Z23,Poängberäkning!$B$6:$B$97,Poängberäkning!$C$6:$C$97) -> 0 | AC23: =LOOKUP(AB23,Poängberäkning!$B$6:$B$97,Poängberäkning!$C$6:$C$97) -> 0 | AE23: =LOOKUP(AD23,Poängberäkning!$B$6:$B$97,Poängberäkning!$C$6:$C$97) -> 0 | AG23: =LOOKUP(AF23,Poängberäkning!$B$6:$B$97,Poängberäkning!$C$6:$C$97) -> 0 | AI23: =LOOKUP(AH23,Poängberäkning!$B$6:$B$97,Poängberäkning!$C$6:$C$97) -> 0 | AK23: =LOOKUP(AJ23,Poängberäkning!$B$6:$B$97,Poängberäkning!$C$6:$C$97) -> 0 | AM23: =LOOKUP(AL23,Poängberäkning!$B$6:$B$97,Poängberäkning!$C$6:$C$97) -> 0 | AO23: =LOOKUP(AN23,Poängberäkning!$B$6:$B$97,Poängberäkning!$C$6:$C$97) -> 0 | AQ23: =LOOKUP(AP23,Poängberäkning!$B$6:$B$97,Poängberäkning!$C$6:$C$97) -> 0 | AS23: =LOOKUP(AR23,Poängberäkning!$B$6:$B$97,Poängberäkning!$C$6:$C$97) -> 0 | AU23: =LOOKUP(AT23,Poängberäkning!$B$6:$B$97,Poängberäkning!$C$6:$C$97) -> 0 | BD23: =LARGE(($I23,$K23,$M23,$O23,$Q23,$S23,$U23,$W23,$Y23,$AA23,$AC23,$AE23,$AG23,$AI23,$AK23,$AM23,$AO23,$AQ23,$AS23,$AU23,$AW23,$AY23,$BA23,$BC23),1) -> 42 | BE23: =LARGE(($I23,$K23,$M23,$O23,$Q23,$S23,$U23,$W23,$Y23,$AA23,$AC23,$AE23,$AG23,$AI23,$AK23,$AM23,$AO23,$AQ23,$AS23,$AU23,$AW23,$AY23,$BA23,$BC23),2) -> 37 | BF23: =LARGE(($I23,$K23,$M23,$O23,$Q23,$S23,$U23,$W23,$Y23,$AA23,$AC23,$AE23,$AG23,$AI23,$AK23,$AM23,$AO23,$AQ23,$AS23,$AU23,$AW23,$AY23,$BA23,$BC23),3) -> 36 | BG23: =LARGE(($I23,$K23,$M23,$O23,$Q23,$S23,$U23,$W23,$Y23,$AA23,$AC23,$AE23,$AG23,$AI23,$AK23,$AM23,$AO23,$AQ23,$AS23,$AU23,$AW23,$AY23,$BA23,$BC23),4) -> 33 | BH23: =LARGE(($I23,$K23,$M23,$O23,$Q23,$S23,$U23,$W23,$Y23,$AA23,$AC23,$AE23,$AG23,$AI23,$AK23,$AM23,$AO23,$AQ23,$AS23,$AU23,$AW23,$AY23,$BA23,$BC23),5) -> 0 | BI23: =LARGE(($I23,$K23,$M23,$O23,$Q23,$S23,$U23,$W23,$Y23,$AA23,$AC23,$AE23,$AG23,$AI23,$AK23,$AM23,$AO23,$AQ23,$AS23,$AU23,$AW23,$AY23,$BA23,$BC23),6) -> 0 | BJ23: =LARGE(($I23,$K23,$M23,$O23,$Q23,$S23,$U23,$W23,$Y23,$AA23,$AC23,$AE23,$AG23,$AI23,$AK23,$AM23,$AO23,$AQ23,$AS23,$AU23,$AW23,$AY23,$BA23,$BC23),7) -> 0 | BK23: =LARGE(($I23,$K23,$M23,$O23,$Q23,$S23,$U23,$W23,$Y23,$AA23,$AC23,$AE23,$AG23,$AI23,$AK23,$AM23,$AO23,$AQ23,$AS23,$AU23,$AW23,$AY23,$BA23,$BC23),8) -> 0 | BL23: =LARGE(($I23,$K23,$M23,$O23,$Q23,$S23,$U23,$W23,$Y23,$AA23,$AC23,$AE23,$AG23,$AI23,$AK23,$AM23,$AO23,$AQ23,$AS23,$AU23,$AW23,$AY23,$BA23,$BC23),9) -> 0 | BM23: =LARGE(($I23,$K23,$M23,$O23,$Q23,$S23,$U23,$W23,$Y23,$AA23,$AC23,$AE23,$AG23,$AI23,$AK23,$AM23,$AO23,$AQ23,$AS23,$AU23,$AW23,$AY23,$BA23,$BC23),10) -> 0
A24: 20 | B24: 2000 | C24: Ida Söderlind | D24: Örebro SLF | E24: 139 | F24: 139 | G24: 139 | H24: 12 | I24: =LOOKUP(H24,Poängberäkning!$B$6:$B$97,Poängberäkning!$C$6:$C$97) -> 39 | J24: 19 | K24: =LOOKUP(J24,Poängberäkning!$B$6:$B$97,Poängberäkning!$C$6:$C$97) -> 32 | L24: 18 | M24: =LOOKUP(L24,Poängberäkning!$B$6:$B$97,Poängberäkning!$C$6:$C$97) -> 33 | N24: 16 | O24: =LOOKUP(N24,Poängberäkning!$B$6:$B$97,Poängberäkning!$C$6:$C$97) -> 35 | Q24: =LOOKUP(P24,Poängberäkning!$B$6:$B$97,Poängberäkning!$C$6:$C$97) -> 0 | S24: =LOOKUP(R24,Poängberäkning!$B$6:$B$97,Poängberäkning!$C$6:$C$97) -> 0 | U24: =LOOKUP(T24,Poängberäkning!$B$6:$B$97,Poängberäkning!$C$6:$C$97) -> 0 | W24: =LOOKUP(V24,Poängberäkning!$B$6:$B$97,Poängberäkning!$C$6:$C$97) -> 0 | Y24: =LOOKUP(X24,Poängberäkning!$B$6:$B$97,Poängberäkning!$C$6:$C$97) -> 0 | AA24: =LOOKUP(Z24,Poängberäkning!$B$6:$B$97,Poängberäkning!$C$6:$C$97) -> 0 | AC24: =LOOKUP(AB24,Poängberäkning!$B$6:$B$97,Poängberäkning!$C$6:$C$97) -> 0 | AE24: =LOOKUP(AD24,Poängberäkning!$B$6:$B$97,Poängberäkning!$C$6:$C$97) -> 0 | AG24: =LOOKUP(AF24,Poängberäkning!$B$6:$B$97,Poängberäkning!$C$6:$C$97) -> 0 | AI24: =LOOKUP(AH24,Poängberäkning!$B$6:$B$97,Poängberäkning!$C$6:$C$97) -> 0 | AK24: =LOOKUP(AJ24,Poängberäkning!$B$6:$B$97,Poängberäkning!$C$6:$C$97) -> 0 | AM24: =LOOKUP(AL24,Poängberäkning!$B$6:$B$97,Poängberäkning!$C$6:$C$97) -> 0 | AO24: =LOOKUP(AN24,Poängberäkning!$B$6:$B$97,Poängberäkning!$C$6:$C$97) -> 0 | AQ24: =LOOKUP(AP24,Poängberäkning!$B$6:$B$97,Poängberäkning!$C$6:$C$97) -> 0 | AS24: =LOOKUP(AR24,Poängberäkning!$B$6:$B$97,Poängberäkning!$C$6:$C$97) -> 0 | AU24: =LOOKUP(AT24,Poängberäkning!$B$6:$B$97,Poängberäkning!$C$6:$C$97) -> 0 | BD24: =LARGE(($I24,$K24,$M24,$O24,$Q24,$S24,$U24,$W24,$Y24,$AA24,$AC24,$AE24,$AG24,$AI24,$AK24,$AM24,$AO24,$AQ24,$AS24,$AU24,$AW24,$AY24,$BA24,$BC24),1) -> 39 | BE24: =LARGE(($I24,$K24,$M24,$O24,$Q24,$S24,$U24,$W24,$Y24,$AA24,$AC24,$AE24,$AG24,$AI24,$AK24,$AM24,$AO24,$AQ24,$AS24,$AU24,$AW24,$AY24,$BA24,$BC24),2) -> 35 | BF24: =LARGE(($I24,$K24,$M24,$O24,$Q24,$S24,$U24,$W24,$Y24,$AA24,$AC24,$AE24,$AG24,$AI24,$AK24,$AM24,$AO24,$AQ24,$AS24,$AU24,$AW24,$AY24,$BA24,$BC24),3) -> 33 | BG24: =LARGE(($I24,$K24,$M24,$O24,$Q24,$S24,$U24,$W24,$Y24,$AA24,$AC24,$AE24,$AG24,$AI24,$AK24,$AM24,$AO24,$AQ24,$AS24,$AU24,$AW24,$AY24,$BA24,$BC24),4) -> 32 | BH24: =LARGE(($I24,$K24,$M24,$O24,$Q24,$S24,$U24,$W24,$Y24,$AA24,$AC24,$AE24,$AG24,$AI24,$AK24,$AM24,$AO24,$AQ24,$AS24,$AU24,$AW24,$AY24,$BA24,$BC24),5) -> 0 | BI24: =LARGE(($I24,$K24,$M24,$O24,$Q24,$S24,$U24,$W24,$Y24,$AA24,$AC24,$AE24,$AG24,$AI24,$AK24,$AM24,$AO24,$AQ24,$AS24,$AU24,$AW24,$AY24,$BA24,$BC24),6) -> 0 | BJ24: =LARGE(($I24,$K24,$M24,$O24,$Q24,$S24,$U24,$W24,$Y24,$AA24,$AC24,$AE24,$AG24,$AI24,$AK24,$AM24,$AO24,$AQ24,$AS24,$AU24,$AW24,$AY24,$BA24,$BC24),7) -> 0 | BK24: =LARGE(($I24,$K24,$M24,$O24,$Q24,$S24,$U24,$W24,$Y24,$AA24,$AC24,$AE24,$AG24,$AI24,$AK24,$AM24,$AO24,$AQ24,$AS24,$AU24,$AW24,$AY24,$BA24,$BC24),8) -> 0 | BL24: =LARGE(($I24,$K24,$M24,$O24,$Q24,$S24,$U24,$W24,$Y24,$AA24,$AC24,$AE24,$AG24,$AI24,$AK24,$AM24,$AO24,$AQ24,$AS24,$AU24,$AW24,$AY24,$BA24,$BC24),9) -> 0 | BM24: =LARGE(($I24,$K24,$M24,$O24,$Q24,$S24,$U24,$W24,$Y24,$AA24,$AC24,$AE24,$AG24,$AI24,$AK24,$AM24,$AO24,$AQ24,$AS24,$AU24,$AW24,$AY24,$BA24,$BC24),10) -> 0
A25: 21 | B25: 2000 | C25: Ellen Kindberg | D25: Kils SLK | E25: 130 | F25: 130 | G25: 130 | H25: 13 | I25: =LOOKUP(H25,Poängberäkning!$B$6:$B$97,Poängberäkning!$C$6:$C$97) -> 38 | J25: 23 | K25: =LOOKUP(J25,Poängberäkning!$B$6:$B$97,Poängberäkning!$C$6:$C$97) -> 28 | L25: 20 | M25: =LOOKUP(L25,Poängberäkning!$B$6:$B$97,Poängberäkning!$C$6:$C$97) -> 31 | N25: 18 | O25: =LOOKUP(N25,Poängberäkning!$B$6:$B$97,Poängberäkning!$C$6:$C$97) -> 33 | Q25: =LOOKUP(P25,Poängberäkning!$B$6:$B$97,Poängberäkning!$C$6:$C$97) -> 0 | S25: =LOOKUP(R25,Poängberäkning!$B$6:$B$97,Poängberäkning!$C$6:$C$97) -> 0 | U25: =LOOKUP(T25,Poängberäkning!$B$6:$B$97,Poängberäkning!$C$6:$C$97) -> 0 | W25: =LOOKUP(V25,Poängberäkning!$B$6:$B$97,Poängberäkning!$C$6:$C$97) -> 0 | Y25: =LOOKUP(X25,Poängberäkning!$B$6:$B$97,Poängberäkning!$C$6:$C$97) -> 0 | AA25: =LOOKUP(Z25,Poängberäkning!$B$6:$B$97,Poängberäkning!$C$6:$C$97) -> 0 | AC25: =LOOKUP(AB25,Poängberäkning!$B$6:$B$97,Poängberäkning!$C$6:$C$97) -> 0 | AE25: =LOOKUP(AD25,Poängberäkning!$B$6:$B$97,Poängberäkning!$C$6:$C$97) -> 0 | AG25: =LOOKUP(AF25,Poängberäkning!$B$6:$B$97,Poängberäkning!$C$6:$C$97) -> 0 | AI25: =LOOKUP(AH25,Poängberäkning!$B$6:$B$97,Poängberäkning!$C$6:$C$97) -> 0 | AK25: =LOOKUP(AJ25,Poängberäkning!$B$6:$B$97,Poängberäkning!$C$6:$C$97) -> 0 | AM25: =LOOKUP(AL25,Poängberäkning!$B$6:$B$97,Poängberäkning!$C$6:$C$97) -> 0 | AO25: =LOOKUP(AN25,Poängberäkning!$B$6:$B$97,Poängberäkning!$C$6:$C$97) -> 0 | AQ25: =LOOKUP(AP25,Poängberäkning!$B$6:$B$97,Poängberäkning!$C$6:$C$97) -> 0 | AS25: =LOOKUP(AR25,Poängberäkning!$B$6:$B$97,Poängberäkning!$C$6:$C$97) -> 0 | AU25: =LOOKUP(AT25,Poängberäkning!$B$6:$B$97,Poängberäkning!$C$6:$C$97) -> 0 | BD25: =LARGE(($I25,$K25,$M25,$O25,$Q25,$S25,$U25,$W25,$Y25,$AA25,$AC25,$AE25,$AG25,$AI25,$AK25,$AM25,$AO25,$AQ25,$AS25,$AU25,$AW25,$AY25,$BA25,$BC25),1) -> 38 | BE25: =LARGE(($I25,$K25,$M25,$O25,$Q25,$S25,$U25,$W25,$Y25,$AA25,$AC25,$AE25,$AG25,$AI25,$AK25,$AM25,$AO25,$AQ25,$AS25,$AU25,$AW25,$AY25,$BA25,$BC25),2) -> 33 | BF25: =LARGE(($I25,$K25,$M25,$O25,$Q25,$S25,$U25,$W25,$Y25,$AA25,$AC25,$AE25,$AG25,$AI25,$AK25,$AM25,$AO25,$AQ25,$AS25,$AU25,$AW25,$AY25,$BA25,$BC25),3) -> 31 | BG25: =LARGE(($I25,$K25,$M25,$O25,$Q25,$S25,$U25,$W25,$Y25,$AA25,$AC25,$AE25,$AG25,$AI25,$AK25,$AM25,$AO25,$AQ25,$AS25,$AU25,$AW25,$AY25,$BA25,$BC25),4) -> 28 | BH25: =LARGE(($I25,$K25,$M25,$O25,$Q25,$S25,$U25,$W25,$Y25,$AA25,$AC25,$AE25,$AG25,$AI25,$AK25,$AM25,$AO25,$AQ25,$AS25,$AU25,$AW25,$AY25,$BA25,$BC25),5) -> 0 | BI25: =LARGE(($I25,$K25,$M25,$O25,$Q25,$S25,$U25,$W25,$Y25,$AA25,$AC25,$AE25,$AG25,$AI25,$AK25,$AM25,$AO25,$AQ25,$AS25,$AU25,$AW25,$AY25,$BA25,$BC25),6) -> 0 | BJ25: =LARGE(($I25,$K25,$M25,$O25,$Q25,$S25,$U25,$W25,$Y25,$AA25,$AC25,$AE25,$AG25,$AI25,$AK25,$AM25,$AO25,$AQ25,$AS25,$AU25,$AW25,$AY25,$BA25,$BC25),7) -> 0 | BK25: =LARGE(($I25,$K25,$M25,$O25,$Q25,$S25,$U25,$W25,$Y25,$AA25,$AC25,$AE25,$AG25,$AI25,$AK25,$AM25,$AO25,$AQ25,$AS25,$AU25,$AW25,$AY25,$BA25,$BC25),8) -> 0 | BL25: =LARGE(($I25,$K25,$M25,$O25,$Q25,$S25,$U25,$W25,$Y25,$AA25,$AC25,$AE25,$AG25,$AI25,$AK25,$AM25,$AO25,$AQ25,$AS25,$AU25,$AW25,$AY25,$BA25,$BC25),9) -> 0 | BM25: =LARGE(($I25,$K25,$M25,$O25,$Q25,$S25,$U25,$W25,$Y25,$AA25,$AC25,$AE25,$AG25,$AI25,$AK25,$AM25,$AO25,$AQ25,$AS25,$AU25,$AW25,$AY25,$BA25,$BC25),10) -> 0
A26: 22 | B26: 2000 | C26: Tilda Vestlund | D26: Avesta AK | E26: 130 | F26: 130 | G26: 130 | H26: 99 | I26: =LOOKUP(H26,Poängberäkning!$B$6:$B$97,Poängberäkning!$C$6:$C$97) -> 0 | J26: 10 | K26: =LOOKUP(J26,Poängberäkning!$B$6:$B$97,Poängberäkning!$C$6:$C$97) -> 42 | M26: =LOOKUP(L26,Poängberäkning!$B$6:$B$97,Poängberäkning!$C$6:$C$97) -> 0 | O26: =LOOKUP(N26,Poängberäkning!$B$6:$B$97,Poängberäkning!$C$6:$C$97) -> 0 | P26: 99 | Q26: =LOOKUP(P26,Poängberäkning!$B$6:$B$97,Poängberäkning!$C$6:$C$97) -> 0 | R26: 10 | S26: =LOOKUP(R26,Poängberäkning!$B$6:$B$97,Poängberäkning!$C$6:$C$97) -> 42 | T26: 8 | U26: =LOOKUP(T26,Poängberäkning!$B$6:$B$97,Poängberäkning!$C$6:$C$97) -> 46 | V26: 99 | W26: =LOOKUP(V26,Poängberäkning!$B$6:$B$97,Poängberäkning!$C$6:$C$97) -> 0 | Y26: =LOOKUP(X26,Poängberäkning!$B$6:$B$97,Poängberäkning!$C$6:$C$97) -> 0 | AA26: =LOOKUP(Z26,Poängberäkning!$B$6:$B$97,Poängberäkning!$C$6:$C$97) -> 0 | AC26: =LOOKUP(AB26,Poängberäkning!$B$6:$B$97,Poängberäkning!$C$6:$C$97) -> 0 | AE26: =LOOKUP(AD26,Poängberäkning!$B$6:$B$97,Poängberäkning!$C$6:$C$97) -> 0 | AG26: =LOOKUP(AF26,Poängberäkning!$B$6:$B$97,Poängberäkning!$C$6:$C$97) -> 0 | AI26: =LOOKUP(AH26,Poängberäkning!$B$6:$B$97,Poängberäkning!$C$6:$C$97) -> 0 | AK26: =LOOKUP(AJ26,Poängberäkning!$B$6:$B$97,Poängberäkning!$C$6:$C$97) -> 0 | AM26: =LOOKUP(AL26,Poängberäkning!$B$6:$B$97,Poängberäkning!$C$6:$C$97) -> 0 | AO26: =LOOKUP(AN26,Poängberäkning!$B$6:$B$97,Poängberäkning!$C$6:$C$97) -> 0 | AQ26: =LOOKUP(AP26,Poängberäkning!$B$6:$B$97,Poängberäkning!$C$6:$C$97) -> 0 | AS26: =LOOKUP(AR26,Poängberäkning!$B$6:$B$97,Poängberäkning!$C$6:$C$97) -> 0 | AU26: =LOOKUP(AT26,Poängberäkning!$B$6:$B$97,Poängberäkning!$C$6:$C$97) -> 0 | BD26: =LARGE(($I26,$K26,$M26,$O26,$Q26,$S26,$U26,$W26,$Y26,$AA26,$AC26,$AE26,$AG26,$AI26,$AK26,$AM26,$AO26,$AQ26,$AS26,$AU26,$AW26,$AY26,$BA26,$BC26),1) -> 46 | BE26: =LARGE(($I26,$K26,$M26,$O26,$Q26,$S26,$U26,$W26,$Y26,$AA26,$AC26,$AE26,$AG26,$AI26,$AK26,$AM26,$AO26,$AQ26,$AS26,$AU26,$AW26,$AY26,$BA26,$BC26),2) -> 42 | BF26: =LARGE(($I26,$K26,$M26,$O26,$Q26,$S26,$U26,$W26,$Y26,$AA26,$AC26,$AE26,$AG26,$AI26,$AK26,$AM26,$AO26,$AQ26,$AS26,$AU26,$AW26,$AY26,$BA26,$BC26),3) -> 42 | BG26: =LARGE(($I26,$K26,$M26,$O26,$Q26,$S26,$U26,$W26,$Y26,$AA26,$AC26,$AE26,$AG26,$AI26,$AK26,$AM26,$AO26,$AQ26,$AS26,$AU26,$AW26,$AY26,$BA26,$BC26),4) -> 0 | BH26: =LARGE(($I26,$K26,$M26,$O26,$Q26,$S26,$U26,$W26,$Y26,$AA26,$AC26,$AE26,$AG26,$AI26,$AK26,$AM26,$AO26,$AQ26,$AS26,$AU26,$AW26,$AY26,$BA26,$BC26),5) -> 0 | BI26: =LARGE(($I26,$K26,$M26,$O26,$Q26,$S26,$U26,$W26,$Y26,$AA26,$AC26,$AE26,$AG26,$AI26,$AK26,$AM26,$AO26,$AQ26,$AS26,$AU26,$AW26,$AY26,$BA26,$BC26),6) -> 0 | BJ26: =LARGE(($I26,$K26,$M26,$O26,$Q26,$S26,$U26,$W26,$Y26,$AA26,$AC26,$AE26,$AG26,$AI26,$AK26,$AM26,$AO26,$AQ26,$AS26,$AU26,$AW26,$AY26,$BA26,$BC26),7) -> 0 | BK26: =LARGE(($I26,$K26,$M26,$O26,$Q26,$S26,$U26,$W26,$Y26,$AA26,$AC26,$AE26,$AG26,$AI26,$AK26,$AM26,$AO26,$AQ26,$AS26,$AU26,$AW26,$AY26,$BA26,$BC26),8) -> 0 | BL26: =LARGE(($I26,$K26,$M26,$O26,$Q26,$S26,$U26,$W26,$Y26,$AA26,$AC26,$AE26,$AG26,$AI26,$AK26,$AM26,$AO26,$AQ26,$AS26,$AU26,$AW26,$AY26,$BA26,$BC26),9) -> 0 | BM26: =LARGE(($I26,$K26,$M26,$O26,$Q26,$S26,$U26,$W26,$Y26,$AA26,$AC26,$AE26,$AG26,$AI26,$AK26,$AM26,$AO26,$AQ26,$AS26,$AU26,$AW26,$AY26,$BA26,$BC26),10) -> 0
A27: 23 | B27: 2000 | C27: Ida Håkansson | D27: Valfjällets SLK | E27: 78 | F27: 78 | G27: 78 | H27: 9 | I27: =LOOKUP(H27,Poängberäkning!$B$6:$B$97,Poängberäkning!$C$6:$C$97) -> 44 | J27: 17 | K27: =LOOKUP(J27,Poängberäkning!$B$6:$B$97,Poängberäkning!$C$6:$C$97) -> 34 | L27: 99 | M27: =LOOKUP(L27,Poängberäkning!$B$6:$B$97,Poängberäkning!$C$6:$C$97) -> 0 | N27: 99 | O27: =LOOKUP(N27,Poängberäkning!$B$6:$B$97,Poängberäkning!$C$6:$C$97) -> 0 | Q27: =LOOKUP(P27,Poängberäkning!$B$6:$B$97,Poängberäkning!$C$6:$C$97) -> 0 | S27: =LOOKUP(R27,Poängberäkning!$B$6:$B$97,Poängberäkning!$C$6:$C$97) -> 0 | U27: =LOOKUP(T27,Poängberäkning!$B$6:$B$97,Poängberäkning!$C$6:$C$97) -> 0 | W27: =LOOKUP(V27,Poängberäkning!$B$6:$B$97,Poängberäkning!$C$6:$C$97) -> 0 | Y27: =LOOKUP(X27,Poängberäkning!$B$6:$B$97,Poängberäkning!$C$6:$C$97) -> 0 | AA27: =LOOKUP(Z27,Poängberäkning!$B$6:$B$97,Poängberäkning!$C$6:$C$97) -> 0 | AC27: =LOOKUP(AB27,Poängberäkning!$B$6:$B$97,Poängberäkning!$C$6:$C$97) -> 0 | AE27: =LOOKUP(AD27,Poängberäkning!$B$6:$B$97,Poängberäkning!$C$6:$C$97) -> 0 | AG27: =LOOKUP(AF27,Poängberäkning!$B$6:$B$97,Poängberäkning!$C$6:$C$97) -> 0 | AI27: =LOOKUP(AH27,Poängberäkning!$B$6:$B$97,Poängberäkning!$C$6:$C$97) -> 0 | AK27: =LOOKUP(AJ27,Poängberäkning!$B$6:$B$97,Poängberäkning!$C$6:$C$97) -> 0 | AM27: =LOOKUP(AL27,Poängberäkning!$B$6:$B$97,Poängberäkning!$C$6:$C$97) -> 0 | AO27: =LOOKUP(AN27,Poängberäkning!$B$6:$B$97,Poängberäkning!$C$6:$C$97) -> 0 | AQ27: =LOOKUP(AP27,Poängberäkning!$B$6:$B$97,Poängberäkning!$C$6:$C$97) -> 0 | AS27: =LOOKUP(AR27,Poängberäkning!$B$6:$B$97,Poängberäkning!$C$6:$C$97) -> 0 | AU27: =LOOKUP(AT27,Poängberäkning!$B$6:$B$97,Poängberäkning!$C$6:$C$97) -> 0 | BD27: =LARGE(($I27,$K27,$M27,$O27,$Q27,$S27,$U27,$W27,$Y27,$AA27,$AC27,$AE27,$AG27,$AI27,$AK27,$AM27,$AO27,$AQ27,$AS27,$AU27,$AW27,$AY27,$BA27,$BC27),1) -> 44 | BE27: =LARGE(($I27,$K27,$M27,$O27,$Q27,$S27,$U27,$W27,$Y27,$AA27,$AC27,$AE27,$AG27,$AI27,$AK27,$AM27,$AO27,$AQ27,$AS27,$AU27,$AW27,$AY27,$BA27,$BC27),2) -> 34 | BF27: =LARGE(($I27,$K27,$M27,$O27,$Q27,$S27,$U27,$W27,$Y27,$AA27,$AC27,$AE27,$AG27,$AI27,$AK27,$AM27,$AO27,$AQ27,$AS27,$AU27,$AW27,$AY27,$BA27,$BC27),3) -> 0 | BG27: =LARGE(($I27,$K27,$M27,$O27,$Q27,$S27,$U27,$W27,$Y27,$AA27,$AC27,$AE27,$AG27,$AI27,$AK27,$AM27,$AO27,$AQ27,$AS27,$AU27,$AW27,$AY27,$BA27,$BC27),4) -> 0 | BH27: =LARGE(($I27,$K27,$M27,$O27,$Q27,$S27,$U27,$W27,$Y27,$AA27,$AC27,$AE27,$AG27,$AI27,$AK27,$AM27,$AO27,$AQ27,$AS27,$AU27,$AW27,$AY27,$BA27,$BC27),5) -> 0 | BI27: =LARGE(($I27,$K27,$M27,$O27,$Q27,$S27,$U27,$W27,$Y27,$AA27,$AC27,$AE27,$AG27,$AI27,$AK27,$AM27,$AO27,$AQ27,$AS27,$AU27,$AW27,$AY27,$BA27,$BC27),6) -> 0 | BJ27: =LARGE(($I27,$K27,$M27,$O27,$Q27,$S27,$U27,$W27,$Y27,$AA27,$AC27,$AE27,$AG27,$AI27,$AK27,$AM27,$AO27,$AQ27,$AS27,$AU27,$AW27,$AY27,$BA27,$BC27),7) -> 0 | BK27: =LARGE(($I27,$K27,$M27,$O27,$Q27,$S27,$U27,$W27,$Y27,$AA27,$AC27,$AE27,$AG27,$AI27,$AK27,$AM27,$AO27,$AQ27,$AS27,$AU27,$AW27,$AY27,$BA27,$BC27),8) -> 0 | BL27: =LARGE(($I27,$K27,$M27,$O27,$Q27,$S27,$U27,$W27,$Y27,$AA27,$AC27,$AE27,$AG27,$AI27,$AK27,$AM27,$AO27,$AQ27,$AS27,$AU27,$AW27,$AY27,$BA27,$BC27),9) -> 0 | BM27: =LARGE(($I27,$K27,$M27,$O27,$Q27,$S27,$U27,$W27,$Y27,$AA27,$AC27,$AE27,$AG27,$AI27,$AK27,$AM27,$AO27,$AQ27,$AS27,$AU27,$AW27,$AY27,$BA27,$BC27),10) -> 0
A28: 24 | B28: 2000 | C28: Emma Skogsmark | D28: Avesta AK | E28: 61 | F28: 61 | G28: 61 | H28: 99 | I28: =LOOKUP(H28,Poängberäkning!$B$6:$B$97,Poängberäkning!$C$6:$C$97) -> 0 | J28: 22 | K28: =LOOKUP(J28,Poängberäkning!$B$6:$B$97,Poängberäkning!$C$6:$C$97) -> 29 | L28: 19 | M28: =LOOKUP(L28,Poängberäkning!$B$6:$B$97,Poängberäkning!$C$6:$C$97) -> 32 | N28: 99 | O28: =LOOKUP(N28,Poängberäkning!$B$6:$B$97,Poängberäkning!$C$6:$C$97) -> 0 | P28: 99 | Q28: =LOOKUP(P28,Poängberäkning!$B$6:$B$97,Poängberäkning!$C$6:$C$97) -> 0 | R28: 99 | S28: =LOOKUP(R28,Poängberäkning!$B$6:$B$97,Poängberäkning!$C$6:$C$97) -> 0 | U28: =LOOKUP(T28,Poängberäkning!$B$6:$B$97,Poängberäkning!$C$6:$C$97) -> 0 | W28: =LOOKUP(V28,Poängberäkning!$B$6:$B$97,Poängberäkning!$C$6:$C$97) -> 0 | Y28: =LOOKUP(X28,Poängberäkning!$B$6:$B$97,Poängberäkning!$C$6:$C$97) -> 0 | AA28: =LOOKUP(Z28,Poängberäkning!$B$6:$B$97,Poängberäkning!$C$6:$C$97) -> 0 | AC28: =LOOKUP(AB28,Poängberäkning!$B$6:$B$97,Poängberäkning!$C$6:$C$97) -> 0 | AE28: =LOOKUP(AD28,Poängberäkning!$B$6:$B$97,Poängberäkning!$C$6:$C$97) -> 0 | AG28: =LOOKUP(AF28,Poängberäkning!$B$6:$B$97,Poängberäkning!$C$6:$C$97) -> 0 | AI28: =LOOKUP(AH28,Poängberäkning!$B$6:$B$97,Poängberäkning!$C$6:$C$97) -> 0 | AK28: =LOOKUP(AJ28,Poängberäkning!$B$6:$B$97,Poängberäkning!$C$6:$C$97) -> 0 | AM28: =LOOKUP(AL28,Poängberäkning!$B$6:$B$97,Poängberäkning!$C$6:$C$97) -> 0 | AO28: =LOOKUP(AN28,Poängberäkning!$B$6:$B$97,Poängberäkning!$C$6:$C$97) -> 0 | AQ28: =LOOKUP(AP28,Poängberäkning!$B$6:$B$97,Poängberäkning!$C$6:$C$97) -> 0 | AS28: =LOOKUP(AR28,Poängberäkning!$B$6:$B$97,Poängberäkning!$C$6:$C$97) -> 0 | AU28: =LOOKUP(AT28,Poängberäkning!$B$6:$B$97,Poängberäkning!$C$6:$C$97) -> 0 | BD28: =LARGE(($I28,$K28,$M28,$O28,$Q28,$S28,$U28,$W28,$Y28,$AA28,$AC28,$AE28,$AG28,$AI28,$AK28,$AM28,$AO28,$AQ28,$AS28,$AU28,$AW28,$AY28,$BA28,$BC28),1) -> 32 | BE28: =LARGE(($I28,$K28,$M28,$O28,$Q28,$S28,$U28,$W28,$Y28,$AA28,$AC28,$AE28,$AG28,$AI28,$AK28,$AM28,$AO28,$AQ28,$AS28,$AU28,$AW28,$AY28,$BA28,$BC28),2) -> 29 | BF28: =LARGE(($I28,$K28,$M28,$O28,$Q28,$S28,$U28,$W28,$Y28,$AA28,$AC28,$AE28,$AG28,$AI28,$AK28,$AM28,$AO28,$AQ28,$AS28,$AU28,$AW28,$AY28,$BA28,$BC28),3) -> 0 | BG28: =LARGE(($I28,$K28,$M28,$O28,$Q28,$S28,$U28,$W28,$Y28,$AA28,$AC28,$AE28,$AG28,$AI28,$AK28,$AM28,$AO28,$AQ28,$AS28,$AU28,$AW28,$AY28,$BA28,$BC28),4) -> 0 | BH28: =LARGE(($I28,$K28,$M28,$O28,$Q28,$S28,$U28,$W28,$Y28,$AA28,$AC28,$AE28,$AG28,$AI28,$AK28,$AM28,$AO28,$AQ28,$AS28,$AU28,$AW28,$AY28,$BA28,$BC28),5) -> 0 | BI28: =LARGE(($I28,$K28,$M28,$O28,$Q28,$S28,$U28,$W28,$Y28,$AA28,$AC28,$AE28,$AG28,$AI28,$AK28,$AM28,$AO28,$AQ28,$AS28,$AU28,$AW28,$AY28,$BA28,$BC28),6) -> 0 | BJ28: =LARGE(($I28,$K28,$M28,$O28,$Q28,$S28,$U28,$W28,$Y28,$AA28,$AC28,$AE28,$AG28,$AI28,$AK28,$AM28,$AO28,$AQ28,$AS28,$AU28,$AW28,$AY28,$BA28,$BC28),7) -> 0 | BK28: =LARGE(($I28,$K28,$M28,$O28,$Q28,$S28,$U28,$W28,$Y28,$AA28,$AC28,$AE28,$AG28,$AI28,$AK28,$AM28,$AO28,$AQ28,$AS28,$AU28,$AW28,$AY28,$BA28,$BC28),8) -> 0 | BL28: =LARGE(($I28,$K28,$M28,$O28,$Q28,$S28,$U28,$W28,$Y28,$AA28,$AC28,$AE28,$AG28,$AI28,$AK28,$AM28,$AO28,$AQ28,$AS28,$AU28,$AW28,$AY28,$BA28,$BC28),9) -> 0 | BM28: =LARGE(($I28,$K28,$M28,$O28,$Q28,$S28,$U28,$W28,$Y28,$AA28,$AC28,$AE28,$AG28,$AI28,$AK28,$AM28,$AO28,$AQ28,$AS28,$AU28,$AW28,$AY28,$BA28,$BC28),10) -> 0
A29: 25 | B29: 2000 | C29: Emilia Pantzare | D29: Idre SK | E29: 0 | F29: 0 | G29: 0 | I29: =LOOKUP(H29,Poängberäkning!$B$6:$B$97,Poängberäkning!$C$6:$C$97) -> 0 | K29: =LOOKUP(J29,Poängberäkning!$B$6:$B$97,Poängberäkning!$C$6:$C$97) -> 0 | M29: =LOOKUP(L29,Poängberäkning!$B$6:$B$97,Poängberäkning!$C$6:$C$97) -> 0 | O29: =LOOKUP(N29,Poängberäkning!$B$6:$B$97,Poängberäkning!$C$6:$C$97) -> 0 | P29: 99 | Q29: =LOOKUP(P29,Poängberäkning!$B$6:$B$97,Poängberäkning!$C$6:$C$97) -> 0 | R29: 99 | S29: =LOOKUP(R29,Poängberäkning!$B$6:$B$97,Poängberäkning!$C$6:$C$97) -> 0 | T29: 99 | U29: =LOOKUP(T29,Poängberäkning!$B$6:$B$97,Poängberäkning!$C$6:$C$97) -> 0 | W29: =LOOKUP(V29,Poängberäkning!$B$6:$B$97,Poängberäkning!$C$6:$C$97) -> 0 | Y29: =LOOKUP(X29,Poängberäkning!$B$6:$B$97,Poängberäkning!$C$6:$C$97) -> 0 | AA29: =LOOKUP(Z29,Poängberäkning!$B$6:$B$97,Poängberäkning!$C$6:$C$97) -> 0 | AC29: =LOOKUP(AB29,Poängberäkning!$B$6:$B$97,Poängberäkning!$C$6:$C$97) -> 0 | AE29: =LOOKUP(AD29,Poängberäkning!$B$6:$B$97,Poängberäkning!$C$6:$C$97) -> 0 | AG29: =LOOKUP(AF29,Poängberäkning!$B$6:$B$97,Poängberäkning!$C$6:$C$97) -> 0 | AI29: =LOOKUP(AH29,Poängberäkning!$B$6:$B$97,Poängberäkning!$C$6:$C$97) -> 0 | AK29: =LOOKUP(AJ29,Poängberäkning!$B$6:$B$97,Poängberäkning!$C$6:$C$97) -> 0 | AM29: =LOOKUP(AL29,Poängberäkning!$B$6:$B$97,Poängberäkning!$C$6:$C$97) -> 0 | AO29: =LOOKUP(AN29,Poängberäkning!$B$6:$B$97,Poängberäkning!$C$6:$C$97) -> 0 | AQ29: =LOOKUP(AP29,Poängberäkning!$B$6:$B$97,Poängberäkning!$C$6:$C$97) -> 0 | AS29: =LOOKUP(AR29,Poängberäkning!$B$6:$B$97,Poängberäkning!$C$6:$C$97) -> 0 | AU29: =LOOKUP(AT29,Poängberäkning!$B$6:$B$97,Poängberäkning!$C$6:$C$97) -> 0 | BD29: =LARGE(($I29,$K29,$M29,$O29,$Q29,$S29,$U29,$W29,$Y29,$AA29,$AC29,$AE29,$AG29,$AI29,$AK29,$AM29,$AO29,$AQ29,$AS29,$AU29,$AW29,$AY29,$BA29,$BC29),1) -> 0 | BE29: =LARGE(($I29,$K29,$M29,$O29,$Q29,$S29,$U29,$W29,$Y29,$AA29,$AC29,$AE29,$AG29,$AI29,$AK29,$AM29,$AO29,$AQ29,$AS29,$AU29,$AW29,$AY29,$BA29,$BC29),2) -> 0 | BF29: =LARGE(($I29,$K29,$M29,$O29,$Q29,$S29,$U29,$W29,$Y29,$AA29,$AC29,$AE29,$AG29,$AI29,$AK29,$AM29,$AO29,$AQ29,$AS29,$AU29,$AW29,$AY29,$BA29,$BC29),3) -> 0 | BG29: =LARGE(($I29,$K29,$M29,$O29,$Q29,$S29,$U29,$W29,$Y29,$AA29,$AC29,$AE29,$AG29,$AI29,$AK29,$AM29,$AO29,$AQ29,$AS29,$AU29,$AW29,$AY29,$BA29,$BC29),4) -> 0 | BH29: =LARGE(($I29,$K29,$M29,$O29,$Q29,$S29,$U29,$W29,$Y29,$AA29,$AC29,$AE29,$AG29,$AI29,$AK29,$AM29,$AO29,$AQ29,$AS29,$AU29,$AW29,$AY29,$BA29,$BC29),5) -> 0 | BI29: =LARGE(($I29,$K29,$M29,$O29,$Q29,$S29,$U29,$W29,$Y29,$AA29,$AC29,$AE29,$AG29,$AI29,$AK29,$AM29,$AO29,$AQ29,$AS29,$AU29,$AW29,$AY29,$BA29,$BC29),6) -> 0 | BJ29: =LARGE(($I29,$K29,$M29,$O29,$Q29,$S29,$U29,$W29,$Y29,$AA29,$AC29,$AE29,$AG29,$AI29,$AK29,$AM29,$AO29,$AQ29,$AS29,$AU29,$AW29,$AY29,$BA29,$BC29),7) -> 0 | BK29: =LARGE(($I29,$K29,$M29,$O29,$Q29,$S29,$U29,$W29,$Y29,$AA29,$AC29,$AE29,$AG29,$AI29,$AK29,$AM29,$AO29,$AQ29,$AS29,$AU29,$AW29,$AY29,$BA29,$BC29),8) -> 0 | BL29: =LARGE(($I29,$K29,$M29,$O29,$Q29,$S29,$U29,$W29,$Y29,$AA29,$AC29,$AE29,$AG29,$AI29,$AK29,$AM29,$AO29,$AQ29,$AS29,$AU29,$AW29,$AY29,$BA29,$BC29),9) -> 0 | BM29: =LARGE(($I29,$K29,$M29,$O29,$Q29,$S29,$U29,$W29,$Y29,$AA29,$AC29,$AE29,$AG29,$AI29,$AK29,$AM29,$AO29,$AQ29,$AS29,$AU29,$AW29,$AY29,$BA29,$BC29),10) -> 0
A30: 26 | E30: 0 | F30: 0 | G30: 0 | I30: =LOOKUP(H30,Poängberäkning!$B$6:$B$97,Poängberäkning!$C$6:$C$97) -> 0 | K30: =LOOKUP(J30,Poängberäkning!$B$6:$B$97,Poängberäkning!$C$6:$C$97) -> 0 | M30: =LOOKUP(L30,Poängberäkning!$B$6:$B$97,Poängberäkning!$C$6:$C$97) -> 0 | O30: =LOOKUP(N30,Poängberäkning!$B$6:$B$97,Poängberäkning!$C$6:$C$97) -> 0 | Q30: =LOOKUP(P30,Poängberäkning!$B$6:$B$97,Poängberäkning!$C$6:$C$97) -> 0 | S30: =LOOKUP(R30,Poängberäkning!$B$6:$B$97,Poängberäkning!$C$6:$C$97) -> 0 | U30: =LOOKUP(T30,Poängberäkning!$B$6:$B$97,Poängberäkning!$C$6:$C$97) -> 0 | W30: =LOOKUP(V30,Poängberäkning!$B$6:$B$97,Poängberäkning!$C$6:$C$97) -> 0 | Y30: =LOOKUP(X30,Poängberäkning!$B$6:$B$97,Poängberäkning!$C$6:$C$97) -> 0 | AA30: =LOOKUP(Z30,Poängberäkning!$B$6:$B$97,Poängberäkning!$C$6:$C$97) -> 0 | AC30: =LOOKUP(AB30,Poängberäkning!$B$6:$B$97,Poängberäkning!$C$6:$C$97) -> 0 | AE30: =LOOKUP(AD30,Poängberäkning!$B$6:$B$97,Poängberäkning!$C$6:$C$97) -> 0 | AG30: =LOOKUP(AF30,Poängberäkning!$B$6:$B$97,Poängberäkning!$C$6:$C$97) -> 0 | AI30: =LOOKUP(AH30,Poängberäkning!$B$6:$B$97,Poängberäkning!$C$6:$C$97) -> 0 | AK30: =LOOKUP(AJ30,Poängberäkning!$B$6:$B$97,Poängberäkning!$C$6:$C$97) -> 0 | AM30: =LOOKUP(AL30,Poängberäkning!$B$6:$B$97,Poängberäkning!$C$6:$C$97) -> 0 | AO30: =LOOKUP(AN30,Poängberäkning!$B$6:$B$97,Poängberäkning!$C$6:$C$97) -> 0 | AQ30: =LOOKUP(AP30,Poängberäkning!$B$6:$B$97,Poängberäkning!$C$6:$C$97) -> 0 | AS30: =LOOKUP(AR30,Poängberäkning!$B$6:$B$97,Poängberäkning!$C$6:$C$97) -> 0 | AU30: =LOOKUP(AT30,Poängberäkning!$B$6:$B$97,Poängberäkning!$C$6:$C$97) -> 0 | BD30: =LARGE(($I30,$K30,$M30,$O30,$Q30,$S30,$U30,$W30,$Y30,$AA30,$AC30,$AE30,$AG30,$AI30,$AK30,$AM30,$AO30,$AQ30,$AS30,$AU30,$AW30,$AY30,$BA30,$BC30),1) -> 0 | BE30: =LARGE(($I30,$K30,$M30,$O30,$Q30,$S30,$U30,$W30,$Y30,$AA30,$AC30,$AE30,$AG30,$AI30,$AK30,$AM30,$AO30,$AQ30,$AS30,$AU30,$AW30,$AY30,$BA30,$BC30),2) -> 0 | BF30: =LARGE(($I30,$K30,$M30,$O30,$Q30,$S30,$U30,$W30,$Y30,$AA30,$AC30,$AE30,$AG30,$AI30,$AK30,$AM30,$AO30,$AQ30,$AS30,$AU30,$AW30,$AY30,$BA30,$BC30),3) -> 0 | BG30: =LARGE(($I30,$K30,$M30,$O30,$Q30,$S30,$U30,$W30,$Y30,$AA30,$AC30,$AE30,$AG30,$AI30,$AK30,$AM30,$AO30,$AQ30,$AS30,$AU30,$AW30,$AY30,$BA30,$BC30),4) -> 0 | BH30: =LARGE(($I30,$K30,$M30,$O30,$Q30,$S30,$U30,$W30,$Y30,$AA30,$AC30,$AE30,$AG30,$AI30,$AK30,$AM30,$AO30,$AQ30,$AS30,$AU30,$AW30,$AY30,$BA30,$BC30),5) -> 0 | BI30: =LARGE(($I30,$K30,$M30,$O30,$Q30,$S30,$U30,$W30,$Y30,$AA30,$AC30,$AE30,$AG30,$AI30,$AK30,$AM30,$AO30,$AQ30,$AS30,$AU30,$AW30,$AY30,$BA30,$BC30),6) -> 0 | BJ30: =LARGE(($I30,$K30,$M30,$O30,$Q30,$S30,$U30,$W30,$Y30,$AA30,$AC30,$AE30,$AG30,$AI30,$AK30,$AM30,$AO30,$AQ30,$AS30,$AU30,$AW30,$AY30,$BA30,$BC30),7) -> 0 | BK30: =LARGE(($I30,$K30,$M30,$O30,$Q30,$S30,$U30,$W30,$Y30,$AA30,$AC30,$AE30,$AG30,$AI30,$AK30,$AM30,$AO30,$AQ30,$AS30,$AU30,$AW30,$AY30,$BA30,$BC30),8) -> 0 | BL30: =LARGE(($I30,$K30,$M30,$O30,$Q30,$S30,$U30,$W30,$Y30,$AA30,$AC30,$AE30,$AG30,$AI30,$AK30,$AM30,$AO30,$AQ30,$AS30,$AU30,$AW30,$AY30,$BA30,$BC30),9) -> 0 | BM30: =LARGE(($I30,$K30,$M30,$O30,$Q30,$S30,$U30,$W30,$Y30,$AA30,$AC30,$AE30,$AG30,$AI30,$AK30,$AM30,$AO30,$AQ30,$AS30,$AU30,$AW30,$AY30,$BA30,$BC30),10) -> 0
A31: 27 | E31: 0 | F31: 0 | G31: 0 | I31: =LOOKUP(H31,Poängberäkning!$B$6:$B$97,Poängberäkning!$C$6:$C$97) -> 0 | K31: =LOOKUP(J31,Poängberäkning!$B$6:$B$97,Poängberäkning!$C$6:$C$97) -> 0 | M31: =LOOKUP(L31,Poängberäkning!$B$6:$B$97,Poängberäkning!$C$6:$C$97) -> 0 | O31: =LOOKUP(N31,Poängberäkning!$B$6:$B$97,Poängberäkning!$C$6:$C$97) -> 0 | Q31: =LOOKUP(P31,Poängberäkning!$B$6:$B$97,Poängberäkning!$C$6:$C$97) -> 0 | S31: =LOOKUP(R31,Poängberäkning!$B$6:$B$97,Poängberäkning!$C$6:$C$97) -> 0 | U31: =LOOKUP(T31,Poängberäkning!$B$6:$B$97,Poängberäkning!$C$6:$C$97) -> 0 | W31: =LOOKUP(V31,Poängberäkning!$B$6:$B$97,Poängberäkning!$C$6:$C$97) -> 0 | Y31: =LOOKUP(X31,Poängberäkning!$B$6:$B$97,Poängberäkning!$C$6:$C$97) -> 0 | AA31: =LOOKUP(Z31,Poängberäkning!$B$6:$B$97,Poängberäkning!$C$6:$C$97) -> 0 | AC31: =LOOKUP(AB31,Poängberäkning!$B$6:$B$97,Poängberäkning!$C$6:$C$97) -> 0 | AE31: =LOOKUP(AD31,Poängberäkning!$B$6:$B$97,Poängberäkning!$C$6:$C$97) -> 0 | AG31: =LOOKUP(AF31,Poängberäkning!$B$6:$B$97,Poängberäkning!$C$6:$C$97) -> 0 | AI31: =LOOKUP(AH31,Poängberäkning!$B$6:$B$97,Poängberäkning!$C$6:$C$97) -> 0 | AK31: =LOOKUP(AJ31,Poängberäkning!$B$6:$B$97,Poängberäkning!$C$6:$C$97) -> 0 | AM31: =LOOKUP(AL31,Poängberäkning!$B$6:$B$97,Poängberäkning!$C$6:$C$97) -> 0 | AO31: =LOOKUP(AN31,Poängberäkning!$B$6:$B$97,Poängberäkning!$C$6:$C$97) -> 0 | AQ31: =LOOKUP(AP31,Poängberäkning!$B$6:$B$97,Poängberäkning!$C$6:$C$97) -> 0 | AS31: =LOOKUP(AR31,Poängberäkning!$B$6:$B$97,Poängberäkning!$C$6:$C$97) -> 0 | AU31: =LOOKUP(AT31,Poängberäkning!$B$6:$B$97,Poängberäkning!$C$6:$C$97) -> 0 | BD31: =LARGE(($I31,$K31,$M31,$O31,$Q31,$S31,$U31,$W31,$Y31,$AA31,$AC31,$AE31,$AG31,$AI31,$AK31,$AM31,$AO31,$AQ31,$AS31,$AU31,$AW31,$AY31,$BA31,$BC31),1) -> 0 | BE31: =LARGE(($I31,$K31,$M31,$O31,$Q31,$S31,$U31,$W31,$Y31,$AA31,$AC31,$AE31,$AG31,$AI31,$AK31,$AM31,$AO31,$AQ31,$AS31,$AU31,$AW31,$AY31,$BA31,$BC31),2) -> 0 | BF31: =LARGE(($I31,$K31,$M31,$O31,$Q31,$S31,$U31,$W31,$Y31,$AA31,$AC31,$AE31,$AG31,$AI31,$AK31,$AM31,$AO31,$AQ31,$AS31,$AU31,$AW31,$AY31,$BA31,$BC31),3) -> 0 | BG31: =LARGE(($I31,$K31,$M31,$O31,$Q31,$S31,$U31,$W31,$Y31,$AA31,$AC31,$AE31,$AG31,$AI31,$AK31,$AM31,$AO31,$AQ31,$AS31,$AU31,$AW31,$AY31,$BA31,$BC31),4) -> 0 | BH31: =LARGE(($I31,$K31,$M31,$O31,$Q31,$S31,$U31,$W31,$Y31,$AA31,$AC31,$AE31,$AG31,$AI31,$AK31,$AM31,$AO31,$AQ31,$AS31,$AU31,$AW31,$AY31,$BA31,$BC31),5) -> 0 | BI31: =LARGE(($I31,$K31,$M31,$O31,$Q31,$S31,$U31,$W31,$Y31,$AA31,$AC31,$AE31,$AG31,$AI31,$AK31,$AM31,$AO31,$AQ31,$AS31,$AU31,$AW31,$AY31,$BA31,$BC31),6) -> 0 | BJ31: =LARGE(($I31,$K31,$M31,$O31,$Q31,$S31,$U31,$W31,$Y31,$AA31,$AC31,$AE31,$AG31,$AI31,$AK31,$AM31,$AO31,$AQ31,$AS31,$AU31,$AW31,$AY31,$BA31,$BC31),7) -> 0 | BK31: =LARGE(($I31,$K31,$M31,$O31,$Q31,$S31,$U31,$W31,$Y31,$AA31,$AC31,$AE31,$AG31,$AI31,$AK31,$AM31,$AO31,$AQ31,$AS31,$AU31,$AW31,$AY31,$BA31,$BC31),8) -> 0 | BL31: =LARGE(($I31,$K31,$M31,$O31,$Q31,$S31,$U31,$W31,$Y31,$AA31,$AC31,$AE31,$AG31,$AI31,$AK31,$AM31,$AO31,$AQ31,$AS31,$AU31,$AW31,$AY31,$BA31,$BC31),9) -> 0 | BM31: =LARGE(($I31,$K31,$M31,$O31,$Q31,$S31,$U31,$W31,$Y31,$AA31,$AC31,$AE31,$AG31,$AI31,$AK31,$AM31,$AO31,$AQ31,$AS31,$AU31,$AW31,$AY31,$BA31,$BC31),10) -> 0
A32: 28 | E32: 0 | F32: 0 | G32: 0 | I32: =LOOKUP(H32,Poängberäkning!$B$6:$B$97,Poängberäkning!$C$6:$C$97) -> 0 | K32: =LOOKUP(J32,Poängberäkning!$B$6:$B$97,Poängberäkning!$C$6:$C$97) -> 0 | M32: =LOOKUP(L32,Poängberäkning!$B$6:$B$97,Poängberäkning!$C$6:$C$97) -> 0 | O32: =LOOKUP(N32,Poängberäkning!$B$6:$B$97,Poängberäkning!$C$6:$C$97) -> 0 | Q32: =LOOKUP(P32,Poängberäkning!$B$6:$B$97,Poängberäkning!$C$6:$C$97) -> 0 | S32: =LOOKUP(R32,Poängberäkning!$B$6:$B$97,Poängberäkning!$C$6:$C$97) -> 0 | U32: =LOOKUP(T32,Poängberäkning!$B$6:$B$97,Poängberäkning!$C$6:$C$97) -> 0 | W32: =LOOKUP(V32,Poängberäkning!$B$6:$B$97,Poängberäkning!$C$6:$C$97) -> 0 | Y32: =LOOKUP(X32,Poängberäkning!$B$6:$B$97,Poängberäkning!$C$6:$C$97) -> 0 | AA32: =LOOKUP(Z32,Poängberäkning!$B$6:$B$97,Poängberäkning!$C$6:$C$97) -> 0 | AC32: =LOOKUP(AB32,Poängberäkning!$B$6:$B$97,Poängberäkning!$C$6:$C$97) -> 0 | AE32: =LOOKUP(AD32,Poängberäkning!$B$6:$B$97,Poängberäkning!$C$6:$C$97) -> 0 | AG32: =LOOKUP(AF32,Poängberäkning!$B$6:$B$97,Poängberäkning!$C$6:$C$97) -> 0 | AI32: =LOOKUP(AH32,Poängberäkning!$B$6:$B$97,Poängberäkning!$C$6:$C$97) -> 0 | AK32: =LOOKUP(AJ32,Poängberäkning!$B$6:$B$97,Poängberäkning!$C$6:$C$97) -> 0 | AM32: =LOOKUP(AL32,Poängberäkning!$B$6:$B$97,Poängberäkning!$C$6:$C$97) -> 0 | AO32: =LOOKUP(AN32,Poängberäkning!$B$6:$B$97,Poängberäkning!$C$6:$C$97) -> 0 | AQ32: =LOOKUP(AP32,Poängberäkning!$B$6:$B$97,Poängberäkning!$C$6:$C$97) -> 0 | AS32: =LOOKUP(AR32,Poängberäkning!$B$6:$B$97,Poängberäkning!$C$6:$C$97) -> 0 | AU32: =LOOKUP(AT32,Poängberäkning!$B$6:$B$97,Poängberäkning!$C$6:$C$97) -> 0 | BD32: =LARGE(($I32,$K32,$M32,$O32,$Q32,$S32,$U32,$W32,$Y32,$AA32,$AC32,$AE32,$AG32,$AI32,$AK32,$AM32,$AO32,$AQ32,$AS32,$AU32,$AW32,$AY32,$BA32,$BC32),1) -> 0 | BE32: =LARGE(($I32,$K32,$M32,$O32,$Q32,$S32,$U32,$W32,$Y32,$AA32,$AC32,$AE32,$AG32,$AI32,$AK32,$AM32,$AO32,$AQ32,$AS32,$AU32,$AW32,$AY32,$BA32,$BC32),2) -> 0 | BF32: =LARGE(($I32,$K32,$M32,$O32,$Q32,$S32,$U32,$W32,$Y32,$AA32,$AC32,$AE32,$AG32,$AI32,$AK32,$AM32,$AO32,$AQ32,$AS32,$AU32,$AW32,$AY32,$BA32,$BC32),3) -> 0 | BG32: =LARGE(($I32,$K32,$M32,$O32,$Q32,$S32,$U32,$W32,$Y32,$AA32,$AC32,$AE32,$AG32,$AI32,$AK32,$AM32,$AO32,$AQ32,$AS32,$AU32,$AW32,$AY32,$BA32,$BC32),4) -> 0 | BH32: =LARGE(($I32,$K32,$M32,$O32,$Q32,$S32,$U32,$W32,$Y32,$AA32,$AC32,$AE32,$AG32,$AI32,$AK32,$AM32,$AO32,$AQ32,$AS32,$AU32,$AW32,$AY32,$BA32,$BC32),5) -> 0 | BI32: =LARGE(($I32,$K32,$M32,$O32,$Q32,$S32,$U32,$W32,$Y32,$AA32,$AC32,$AE32,$AG32,$AI32,$AK32,$AM32,$AO32,$AQ32,$AS32,$AU32,$AW32,$AY32,$BA32,$BC32),6) -> 0 | BJ32: =LARGE(($I32,$K32,$M32,$O32,$Q32,$S32,$U32,$W32,$Y32,$AA32,$AC32,$AE32,$AG32,$AI32,$AK32,$AM32,$AO32,$AQ32,$AS32,$AU32,$AW32,$AY32,$BA32,$BC32),7) -> 0 | BK32: =LARGE(($I32,$K32,$M32,$O32,$Q32,$S32,$U32,$W32,$Y32,$AA32,$AC32,$AE32,$AG32,$AI32,$AK32,$AM32,$AO32,$AQ32,$AS32,$AU32,$AW32,$AY32,$BA32,$BC32),8) -> 0 | BL32: =LARGE(($I32,$K32,$M32,$O32,$Q32,$S32,$U32,$W32,$Y32,$AA32,$AC32,$AE32,$AG32,$AI32,$AK32,$AM32,$AO32,$AQ32,$AS32,$AU32,$AW32,$AY32,$BA32,$BC32),9) -> 0 | BM32: =LARGE(($I32,$K32,$M32,$O32,$Q32,$S32,$U32,$W32,$Y32,$AA32,$AC32,$AE32,$AG32,$AI32,$AK32,$AM32,$AO32,$AQ32,$AS32,$AU32,$AW32,$AY32,$BA32,$BC32),10) -> 0
A33: 29 | E33: 0 | F33: 0 | G33: 0 | I33: =LOOKUP(H33,Poängberäkning!$B$6:$B$97,Poängberäkning!$C$6:$C$97) -> 0 | K33: =LOOKUP(J33,Poängberäkning!$B$6:$B$97,Poängberäkning!$C$6:$C$97) -> 0 | M33: =LOOKUP(L33,Poängberäkning!$B$6:$B$97,Poängberäkning!$C$6:$C$97) -> 0 | O33: =LOOKUP(N33,Poängberäkning!$B$6:$B$97,Poängberäkning!$C$6:$C$97) -> 0 | Q33: =LOOKUP(P33,Poängberäkning!$B$6:$B$97,Poängberäkning!$C$6:$C$97) -> 0 | S33: =LOOKUP(R33,Poängberäkning!$B$6:$B$97,Poängberäkning!$C$6:$C$97) -> 0 | U33: =LOOKUP(T33,Poängberäkning!$B$6:$B$97,Poängberäkning!$C$6:$C$97) -> 0 | W33: =LOOKUP(V33,Poängberäkning!$B$6:$B$97,Poängberäkning!$C$6:$C$97) -> 0 | Y33: =LOOKUP(X33,Poängberäkning!$B$6:$B$97,Poängberäkning!$C$6:$C$97) -> 0 | AA33: =LOOKUP(Z33,Poängberäkning!$B$6:$B$97,Poängberäkning!$C$6:$C$97) -> 0 | AC33: =LOOKUP(AB33,Poängberäkning!$B$6:$B$97,Poängberäkning!$C$6:$C$97) -> 0 | AE33: =LOOKUP(AD33,Poängberäkning!$B$6:$B$97,Poängberäkning!$C$6:$C$97) -> 0 | AG33: =LOOKUP(AF33,Poängberäkning!$B$6:$B$97,Poängberäkning!$C$6:$C$97) -> 0 | AI33: =LOOKUP(AH33,Poängberäkning!$B$6:$B$97,Poängberäkning!$C$6:$C$97) -> 0 | AK33: =LOOKUP(AJ33,Poängberäkning!$B$6:$B$97,Poängberäkning!$C$6:$C$97) -> 0 | AM33: =LOOKUP(AL33,Poängberäkning!$B$6:$B$97,Poängberäkning!$C$6:$C$97) -> 0 | AO33: =LOOKUP(AN33,Poängberäkning!$B$6:$B$97,Poängberäkning!$C$6:$C$97) -> 0 | AQ33: =LOOKUP(AP33,Poängberäkning!$B$6:$B$97,Poängberäkning!$C$6:$C$97) -> 0 | AS33: =LOOKUP(AR33,Poängberäkning!$B$6:$B$97,Poängberäkning!$C$6:$C$97) -> 0 | AU33: =LOOKUP(AT33,Poängberäkning!$B$6:$B$97,Poängberäkning!$C$6:$C$97) -> 0 | BD33: =LARGE(($I33,$K33,$M33,$O33,$Q33,$S33,$U33,$W33,$Y33,$AA33,$AC33,$AE33,$AG33,$AI33,$AK33,$AM33,$AO33,$AQ33,$AS33,$AU33,$AW33,$AY33,$BA33,$BC33),1) -> 0 | BE33: =LARGE(($I33,$K33,$M33,$O33,$Q33,$S33,$U33,$W33,$Y33,$AA33,$AC33,$AE33,$AG33,$AI33,$AK33,$AM33,$AO33,$AQ33,$AS33,$AU33,$AW33,$AY33,$BA33,$BC33),2) -> 0 | BF33: =LARGE(($I33,$K33,$M33,$O33,$Q33,$S33,$U33,$W33,$Y33,$AA33,$AC33,$AE33,$AG33,$AI33,$AK33,$AM33,$AO33,$AQ33,$AS33,$AU33,$AW33,$AY33,$BA33,$BC33),3) -> 0 | BG33: =LARGE(($I33,$K33,$M33,$O33,$Q33,$S33,$U33,$W33,$Y33,$AA33,$AC33,$AE33,$AG33,$AI33,$AK33,$AM33,$AO33,$AQ33,$AS33,$AU33,$AW33,$AY33,$BA33,$BC33),4) -> 0 | BH33: =LARGE(($I33,$K33,$M33,$O33,$Q33,$S33,$U33,$W33,$Y33,$AA33,$AC33,$AE33,$AG33,$AI33,$AK33,$AM33,$AO33,$AQ33,$AS33,$AU33,$AW33,$AY33,$BA33,$BC33),5) -> 0 | BI33: =LARGE(($I33,$K33,$M33,$O33,$Q33,$S33,$U33,$W33,$Y33,$AA33,$AC33,$AE33,$AG33,$AI33,$AK33,$AM33,$AO33,$AQ33,$AS33,$AU33,$AW33,$AY33,$BA33,$BC33),6) -> 0 | BJ33: =LARGE(($I33,$K33,$M33,$O33,$Q33,$S33,$U33,$W33,$Y33,$AA33,$AC33,$AE33,$AG33,$AI33,$AK33,$AM33,$AO33,$AQ33,$AS33,$AU33,$AW33,$AY33,$BA33,$BC33),7) -> 0 | BK33: =LARGE(($I33,$K33,$M33,$O33,$Q33,$S33,$U33,$W33,$Y33,$AA33,$AC33,$AE33,$AG33,$AI33,$AK33,$AM33,$AO33,$AQ33,$AS33,$AU33,$AW33,$AY33,$BA33,$BC33),8) -> 0 | BL33: =LARGE(($I33,$K33,$M33,$O33,$Q33,$S33,$U33,$W33,$Y33,$AA33,$AC33,$AE33,$AG33,$AI33,$AK33,$AM33,$AO33,$AQ33,$AS33,$AU33,$AW33,$AY33,$BA33,$BC33),9) -> 0 | BM33: =LARGE(($I33,$K33,$M33,$O33,$Q33,$S33,$U33,$W33,$Y33,$AA33,$AC33,$AE33,$AG33,$AI33,$AK33,$AM33,$AO33,$AQ33,$AS33,$AU33,$AW33,$AY33,$BA33,$BC33),10) -> 0
A34: 30 | E34: 0 | F34: 0 | G34: 0 | I34: =LOOKUP(H34,Poängberäkning!$B$6:$B$97,Poängberäkning!$C$6:$C$97) -> 0 | K34: =LOOKUP(J34,Poängberäkning!$B$6:$B$97,Poängberäkning!$C$6:$C$97) -> 0 | M34: =LOOKUP(L34,Poängberäkning!$B$6:$B$97,Poängberäkning!$C$6:$C$97) -> 0 | O34: =LOOKUP(N34,Poängberäkning!$B$6:$B$97,Poängberäkning!$C$6:$C$97) -> 0 | Q34: =LOOKUP(P34,Poängberäkning!$B$6:$B$97,Poängberäkning!$C$6:$C$97) -> 0 | S34: =LOOKUP(R34,Poängberäkning!$B$6:$B$97,Poängberäkning!$C$6:$C$97) -> 0 | U34: =LOOKUP(T34,Poängberäkning!$B$6:$B$97,Poängberäkning!$C$6:$C$97) -> 0 | W34: =LOOKUP(V34,Poängberäkning!$B$6:$B$97,Poängberäkning!$C$6:$C$97) -> 0 | Y34: =LOOKUP(X34,Poängberäkning!$B$6:$B$97,Poängberäkning!$C$6:$C$97) -> 0 | AA34: =LOOKUP(Z34,Poängberäkning!$B$6:$B$97,Poängberäkning!$C$6:$C$97) -> 0 | AC34: =LOOKUP(AB34,Poängberäkning!$B$6:$B$97,Poängberäkning!$C$6:$C$97) -> 0 | AE34: =LOOKUP(AD34,Poängberäkning!$B$6:$B$97,Poängberäkning!$C$6:$C$97) -> 0 | AG34: =LOOKUP(AF34,Poängberäkning!$B$6:$B$97,Poängberäkning!$C$6:$C$97) -> 0 | AI34: =LOOKUP(AH34,Poängberäkning!$B$6:$B$97,Poängberäkning!$C$6:$C$97) -> 0 | AK34: =LOOKUP(AJ34,Poängberäkning!$B$6:$B$97,Poängberäkning!$C$6:$C$97) -> 0 | AM34: =LOOKUP(AL34,Poängberäkning!$B$6:$B$97,Poängberäkning!$C$6:$C$97) -> 0 | AO34: =LOOKUP(AN34,Poängberäkning!$B$6:$B$97,Poängberäkning!$C$6:$C$97) -> 0 | AQ34: =LOOKUP(AP34,Poängberäkning!$B$6:$B$97,Poängberäkning!$C$6:$C$97) -> 0 | AS34: =LOOKUP(AR34,Poängberäkning!$B$6:$B$97,Poängberäkning!$C$6:$C$97) -> 0 | AU34: =LOOKUP(AT34,Poängberäkning!$B$6:$B$97,Poängberäkning!$C$6:$C$97) -> 0 | BD34: =LARGE(($I34,$K34,$M34,$O34,$Q34,$S34,$U34,$W34,$Y34,$AA34,$AC34,$AE34,$AG34,$AI34,$AK34,$AM34,$AO34,$AQ34,$AS34,$AU34,$AW34,$AY34,$BA34,$BC34),1) -> 0 | BE34: =LARGE(($I34,$K34,$M34,$O34,$Q34,$S34,$U34,$W34,$Y34,$AA34,$AC34,$AE34,$AG34,$AI34,$AK34,$AM34,$AO34,$AQ34,$AS34,$AU34,$AW34,$AY34,$BA34,$BC34),2) -> 0 | BF34: =LARGE(($I34,$K34,$M34,$O34,$Q34,$S34,$U34,$W34,$Y34,$AA34,$AC34,$AE34,$AG34,$AI34,$AK34,$AM34,$AO34,$AQ34,$AS34,$AU34,$AW34,$AY34,$BA34,$BC34),3) -> 0 | BG34: =LARGE(($I34,$K34,$M34,$O34,$Q34,$S34,$U34,$W34,$Y34,$AA34,$AC34,$AE34,$AG34,$AI34,$AK34,$AM34,$AO34,$AQ34,$AS34,$AU34,$AW34,$AY34,$BA34,$BC34),4) -> 0 | BH34: =LARGE(($I34,$K34,$M34,$O34,$Q34,$S34,$U34,$W34,$Y34,$AA34,$AC34,$AE34,$AG34,$AI34,$AK34,$AM34,$AO34,$AQ34,$AS34,$AU34,$AW34,$AY34,$BA34,$BC34),5) -> 0 | BI34: =LARGE(($I34,$K34,$M34,$O34,$Q34,$S34,$U34,$W34,$Y34,$AA34,$AC34,$AE34,$AG34,$AI34,$AK34,$AM34,$AO34,$AQ34,$AS34,$AU34,$AW34,$AY34,$BA34,$BC34),6) -> 0 | BJ34: =LARGE(($I34,$K34,$M34,$O34,$Q34,$S34,$U34,$W34,$Y34,$AA34,$AC34,$AE34,$AG34,$AI34,$AK34,$AM34,$AO34,$AQ34,$AS34,$AU34,$AW34,$AY34,$BA34,$BC34),7) -> 0 | BK34: =LARGE(($I34,$K34,$M34,$O34,$Q34,$S34,$U34,$W34,$Y34,$AA34,$AC34,$AE34,$AG34,$AI34,$AK34,$AM34,$AO34,$AQ34,$AS34,$AU34,$AW34,$AY34,$BA34,$BC34),8) -> 0 | BL34: =LARGE(($I34,$K34,$M34,$O34,$Q34,$S34,$U34,$W34,$Y34,$AA34,$AC34,$AE34,$AG34,$AI34,$AK34,$AM34,$AO34,$AQ34,$AS34,$AU34,$AW34,$AY34,$BA34,$BC34),9) -> 0 | BM34: =LARGE(($I34,$K34,$M34,$O34,$Q34,$S34,$U34,$W34,$Y34,$AA34,$AC34,$AE34,$AG34,$AI34,$AK34,$AM34,$AO34,$AQ34,$AS34,$AU34,$AW34,$AY34,$BA34,$BC34),10) -> 0
A35: 31 | E35: 0 | F35: 0 | G35: 0 | I35: =LOOKUP(H35,Poängberäkning!$B$6:$B$97,Poängberäkning!$C$6:$C$97) -> 0 | K35: =LOOKUP(J35,Poängberäkning!$B$6:$B$97,Poängberäkning!$C$6:$C$97) -> 0 | M35: =LOOKUP(L35,Poängberäkning!$B$6:$B$97,Poängberäkning!$C$6:$C$97) -> 0 | O35: =LOOKUP(N35,Poängberäkning!$B$6:$B$97,Poängberäkning!$C$6:$C$97) -> 0 | Q35: =LOOKUP(P35,Poängberäkning!$B$6:$B$97,Poängberäkning!$C$6:$C$97) -> 0 | S35: =LOOKUP(R35,Poängberäkning!$B$6:$B$97,Poängberäkning!$C$6:$C$97) -> 0 | U35: =LOOKUP(T35,Poängberäkning!$B$6:$B$97,Poängberäkning!$C$6:$C$97) -> 0 | W35: =LOOKUP(V35,Poängberäkning!$B$6:$B$97,Poängberäkning!$C$6:$C$97) -> 0 | Y35: =LOOKUP(X35,Poängberäkning!$B$6:$B$97,Poängberäkning!$C$6:$C$97) -> 0 | AA35: =LOOKUP(Z35,Poängberäkning!$B$6:$B$97,Poängberäkning!$C$6:$C$97) -> 0 | AC35: =LOOKUP(AB35,Poängberäkning!$B$6:$B$97,Poängberäkning!$C$6:$C$97) -> 0 | AE35: =LOOKUP(AD35,Poängberäkning!$B$6:$B$97,Poängberäkning!$C$6:$C$97) -> 0 | AG35: =LOOKUP(AF35,Poängberäkning!$B$6:$B$97,Poängberäkning!$C$6:$C$97) -> 0 | AI35: =LOOKUP(AH35,Poängberäkning!$B$6:$B$97,Poängberäkning!$C$6:$C$97) -> 0 | AK35: =LOOKUP(AJ35,Poängberäkning!$B$6:$B$97,Poängberäkning!$C$6:$C$97) -> 0 | AM35: =LOOKUP(AL35,Poängberäkning!$B$6:$B$97,Poängberäkning!$C$6:$C$97) -> 0 | AO35: =LOOKUP(AN35,Poängberäkning!$B$6:$B$97,Poängberäkning!$C$6:$C$97) -> 0 | AQ35: =LOOKUP(AP35,Poängberäkning!$B$6:$B$97,Poängberäkning!$C$6:$C$97) -> 0 | AS35: =LOOKUP(AR35,Poängberäkning!$B$6:$B$97,Poängberäkning!$C$6:$C$97) -> 0 | AU35: =LOOKUP(AT35,Poängberäkning!$B$6:$B$97,Poängberäkning!$C$6:$C$97) -> 0 | BD35: =LARGE(($I35,$K35,$M35,$O35,$Q35,$S35,$U35,$W35,$Y35,$AA35,$AC35,$AE35,$AG35,$AI35,$AK35,$AM35,$AO35,$AQ35,$AS35,$AU35,$AW35,$AY35,$BA35,$BC35),1) -> 0 | BE35: =LARGE(($I35,$K35,$M35,$O35,$Q35,$S35,$U35,$W35,$Y35,$AA35,$AC35,$AE35,$AG35,$AI35,$AK35,$AM35,$AO35,$AQ35,$AS35,$AU35,$AW35,$AY35,$BA35,$BC35),2) -> 0 | BF35: =LARGE(($I35,$K35,$M35,$O35,$Q35,$S35,$U35,$W35,$Y35,$AA35,$AC35,$AE35,$AG35,$AI35,$AK35,$AM35,$AO35,$AQ35,$AS35,$AU35,$AW35,$AY35,$BA35,$BC35),3) -> 0 | BG35: =LARGE(($I35,$K35,$M35,$O35,$Q35,$S35,$U35,$W35,$Y35,$AA35,$AC35,$AE35,$AG35,$AI35,$AK35,$AM35,$AO35,$AQ35,$AS35,$AU35,$AW35,$AY35,$BA35,$BC35),4) -> 0 | BH35: =LARGE(($I35,$K35,$M35,$O35,$Q35,$S35,$U35,$W35,$Y35,$AA35,$AC35,$AE35,$AG35,$AI35,$AK35,$AM35,$AO35,$AQ35,$AS35,$AU35,$AW35,$AY35,$BA35,$BC35),5) -> 0 | BI35: =LARGE(($I35,$K35,$M35,$O35,$Q35,$S35,$U35,$W35,$Y35,$AA35,$AC35,$AE35,$AG35,$AI35,$AK35,$AM35,$AO35,$AQ35,$AS35,$AU35,$AW35,$AY35,$BA35,$BC35),6) -> 0 | BJ35: =LARGE(($I35,$K35,$M35,$O35,$Q35,$S35,$U35,$W35,$Y35,$AA35,$AC35,$AE35,$AG35,$AI35,$AK35,$AM35,$AO35,$AQ35,$AS35,$AU35,$AW35,$AY35,$BA35,$BC35),7) -> 0 | BK35: =LARGE(($I35,$K35,$M35,$O35,$Q35,$S35,$U35,$W35,$Y35,$AA35,$AC35,$AE35,$AG35,$AI35,$AK35,$AM35,$AO35,$AQ35,$AS35,$AU35,$AW35,$AY35,$BA35,$BC35),8) -> 0 | BL35: =LARGE(($I35,$K35,$M35,$O35,$Q35,$S35,$U35,$W35,$Y35,$AA35,$AC35,$AE35,$AG35,$AI35,$AK35,$AM35,$AO35,$AQ35,$AS35,$AU35,$AW35,$AY35,$BA35,$BC35),9) -> 0 | BM35: =LARGE(($I35,$K35,$M35,$O35,$Q35,$S35,$U35,$W35,$Y35,$AA35,$AC35,$AE35,$AG35,$AI35,$AK35,$AM35,$AO35,$AQ35,$AS35,$AU35,$AW35,$AY35,$BA35,$BC35),10) -> 0
A36: 32 | E36: 0 | F36: 0 | G36: 0 | I36: =LOOKUP(H36,Poängberäkning!$B$6:$B$97,Poängberäkning!$C$6:$C$97) -> 0 | K36: =LOOKUP(J36,Poängberäkning!$B$6:$B$97,Poängberäkning!$C$6:$C$97) -> 0 | M36: =LOOKUP(L36,Poängberäkning!$B$6:$B$97,Poängberäkning!$C$6:$C$97) -> 0 | O36: =LOOKUP(N36,Poängberäkning!$B$6:$B$97,Poängberäkning!$C$6:$C$97) -> 0 | Q36: =LOOKUP(P36,Poängberäkning!$B$6:$B$97,Poängberäkning!$C$6:$C$97) -> 0 | S36: =LOOKUP(R36,Poängberäkning!$B$6:$B$97,Poängberäkning!$C$6:$C$97) -> 0 | U36: =LOOKUP(T36,Poängberäkning!$B$6:$B$97,Poängberäkning!$C$6:$C$97) -> 0 | W36: =LOOKUP(V36,Poängberäkning!$B$6:$B$97,Poängberäkning!$C$6:$C$97) -> 0 | Y36: =LOOKUP(X36,Poängberäkning!$B$6:$B$97,Poängberäkning!$C$6:$C$97) -> 0 | AA36: =LOOKUP(Z36,Poängberäkning!$B$6:$B$97,Poängberäkning!$C$6:$C$97) -> 0 | AC36: =LOOKUP(AB36,Poängberäkning!$B$6:$B$97,Poängberäkning!$C$6:$C$97) -> 0 | AE36: =LOOKUP(AD36,Poängberäkning!$B$6:$B$97,Poängberäkning!$C$6:$C$97) -> 0 | AG36: =LOOKUP(AF36,Poängberäkning!$B$6:$B$97,Poängberäkning!$C$6:$C$97) -> 0 | AI36: =LOOKUP(AH36,Poängberäkning!$B$6:$B$97,Poängberäkning!$C$6:$C$97) -> 0 | AK36: =LOOKUP(AJ36,Poängberäkning!$B$6:$B$97,Poängberäkning!$C$6:$C$97) -> 0 | AM36: =LOOKUP(AL36,Poängberäkning!$B$6:$B$97,Poängberäkning!$C$6:$C$97) -> 0 | AO36: =LOOKUP(AN36,Poängberäkning!$B$6:$B$97,Poängberäkning!$C$6:$C$97) -> 0 | AQ36: =LOOKUP(AP36,Poängberäkning!$B$6:$B$97,Poängberäkning!$C$6:$C$97) -> 0 | AS36: =LOOKUP(AR36,Poängberäkning!$B$6:$B$97,Poängberäkning!$C$6:$C$97) -> 0 | AU36: =LOOKUP(AT36,Poängberäkning!$B$6:$B$97,Poängberäkning!$C$6:$C$97) -> 0 | BD36: =LARGE(($I36,$K36,$M36,$O36,$Q36,$S36,$U36,$W36,$Y36,$AA36,$AC36,$AE36,$AG36,$AI36,$AK36,$AM36,$AO36,$AQ36,$AS36,$AU36,$AW36,$AY36,$BA36,$BC36),1) -> 0 | BE36: =LARGE(($I36,$K36,$M36,$O36,$Q36,$S36,$U36,$W36,$Y36,$AA36,$AC36,$AE36,$AG36,$AI36,$AK36,$AM36,$AO36,$AQ36,$AS36,$AU36,$AW36,$AY36,$BA36,$BC36),2) -> 0 | BF36: =LARGE(($I36,$K36,$M36,$O36,$Q36,$S36,$U36,$W36,$Y36,$AA36,$AC36,$AE36,$AG36,$AI36,$AK36,$AM36,$AO36,$AQ36,$AS36,$AU36,$AW36,$AY36,$BA36,$BC36),3) -> 0 | BG36: =LARGE(($I36,$K36,$M36,$O36,$Q36,$S36,$U36,$W36,$Y36,$AA36,$AC36,$AE36,$AG36,$AI36,$AK36,$AM36,$AO36,$AQ36,$AS36,$AU36,$AW36,$AY36,$BA36,$BC36),4) -> 0 | BH36: =LARGE(($I36,$K36,$M36,$O36,$Q36,$S36,$U36,$W36,$Y36,$AA36,$AC36,$AE36,$AG36,$AI36,$AK36,$AM36,$AO36,$AQ36,$AS36,$AU36,$AW36,$AY36,$BA36,$BC36),5) -> 0 | BI36: =LARGE(($I36,$K36,$M36,$O36,$Q36,$S36,$U36,$W36,$Y36,$AA36,$AC36,$AE36,$AG36,$AI36,$AK36,$AM36,$AO36,$AQ36,$AS36,$AU36,$AW36,$AY36,$BA36,$BC36),6) -> 0 | BJ36: =LARGE(($I36,$K36,$M36,$O36,$Q36,$S36,$U36,$W36,$Y36,$AA36,$AC36,$AE36,$AG36,$AI36,$AK36,$AM36,$AO36,$AQ36,$AS36,$AU36,$AW36,$AY36,$BA36,$BC36),7) -> 0 | BK36: =LARGE(($I36,$K36,$M36,$O36,$Q36,$S36,$U36,$W36,$Y36,$AA36,$AC36,$AE36,$AG36,$AI36,$AK36,$AM36,$AO36,$AQ36,$AS36,$AU36,$AW36,$AY36,$BA36,$BC36),8) -> 0 | BL36: =LARGE(($I36,$K36,$M36,$O36,$Q36,$S36,$U36,$W36,$Y36,$AA36,$AC36,$AE36,$AG36,$AI36,$AK36,$AM36,$AO36,$AQ36,$AS36,$AU36,$AW36,$AY36,$BA36,$BC36),9) -> 0 | BM36: =LARGE(($I36,$K36,$M36,$O36,$Q36,$S36,$U36,$W36,$Y36,$AA36,$AC36,$AE36,$AG36,$AI36,$AK36,$AM36,$AO36,$AQ36,$AS36,$AU36,$AW36,$AY36,$BA36,$BC36),10) -> 0
A37: 33 | E37: =SUM(BD37:BM37) -> 0 | F37: =SUM(BD37:BK37) -> 0 | G37: =I37+K37+M37+O37+Q37+S37+U37+W37+Y37+AA37+AC37+AE37+AG37+AI37+AK37+AM37+AO37+AQ37+AS37+AU37+AW37+AY37+BA37+BC37 -> 0 | I37: =LOOKUP(H37,Poängberäkning!$B$6:$B$97,Poängberäkning!$C$6:$C$97) -> 0 | K37: =LOOKUP(J37,Poängberäkning!$B$6:$B$97,Poängberäkning!$C$6:$C$97) -> 0 | M37: =LOOKUP(L37,Poängberäkning!$B$6:$B$97,Poängberäkning!$C$6:$C$97) -> 0 | O37: =LOOKUP(N37,Poängberäkning!$B$6:$B$97,Poängberäkning!$C$6:$C$97) -> 0 | Q37: =LOOKUP(P37,Poängberäkning!$B$6:$B$97,Poängberäkning!$C$6:$C$97) -> 0 | S37: =LOOKUP(R37,Poängberäkning!$B$6:$B$97,Poängberäkning!$C$6:$C$97) -> 0 | U37: =LOOKUP(T37,Poängberäkning!$B$6:$B$97,Poängberäkning!$C$6:$C$97) -> 0 | W37: =LOOKUP(V37,Poängberäkning!$B$6:$B$97,Poängberäkning!$C$6:$C$97) -> 0 | Y37: =LOOKUP(X37,Poängberäkning!$B$6:$B$97,Poängberäkning!$C$6:$C$97) -> 0 | AA37: =LOOKUP(Z37,Poängberäkning!$B$6:$B$97,Poängberäkning!$C$6:$C$97) -> 0 | AC37: =LOOKUP(AB37,Poängberäkning!$B$6:$B$97,Poängberäkning!$C$6:$C$97) -> 0 | AE37: =LOOKUP(AD37,Poängberäkning!$B$6:$B$97,Poängberäkning!$C$6:$C$97) -> 0 | AG37: =LOOKUP(AF37,Poängberäkning!$B$6:$B$97,Poängberäkning!$C$6:$C$97) -> 0 | AI37: =LOOKUP(AH37,Poängberäkning!$B$6:$B$97,Poängberäkning!$C$6:$C$97) -> 0 | AK37: =LOOKUP(AJ37,Poängberäkning!$B$6:$B$97,Poängberäkning!$C$6:$C$97) -> 0 | AM37: =LOOKUP(AL37,Poängberäkning!$B$6:$B$97,Poängberäkning!$C$6:$C$97) -> 0 | AO37: =LOOKUP(AN37,Poängberäkning!$B$6:$B$97,Poängberäkning!$C$6:$C$97) -> 0 | AQ37: =LOOKUP(AP37,Poängberäkning!$B$6:$B$97,Poängberäkning!$C$6:$C$97) -> 0 | AS37: =LOOKUP(AR37,Poängberäkning!$B$6:$B$97,Poängberäkning!$C$6:$C$97) -> 0 | AU37: =LOOKUP(AT37,Poängberäkning!$B$6:$B$97,Poängberäkning!$C$6:$C$97) -> 0 | BD37: =LARGE(($I37,$K37,$M37,$O37,$Q37,$S37,$U37,$W37,$Y37,$AA37,$AC37,$AE37,$AG37,$AI37,$AK37,$AM37,$AO37,$AQ37,$AS37,$AU37,$AW37,$AY37,$BA37,$BC37),1) -> 0 | BE37: =LARGE(($I37,$K37,$M37,$O37,$Q37,$S37,$U37,$W37,$Y37,$AA37,$AC37,$AE37,$AG37,$AI37,$AK37,$AM37,$AO37,$AQ37,$AS37,$AU37,$AW37,$AY37,$BA37,$BC37),2) -> 0 | BF37: =LARGE(($I37,$K37,$M37,$O37,$Q37,$S37,$U37,$W37,$Y37,$AA37,$AC37,$AE37,$AG37,$AI37,$AK37,$AM37,$AO37,$AQ37,$AS37,$AU37,$AW37,$AY37,$BA37,$BC37),3) -> 0 | BG37: =LARGE(($I37,$K37,$M37,$O37,$Q37,$S37,$U37,$W37,$Y37,$AA37,$AC37,$AE37,$AG37,$AI37,$AK37,$AM37,$AO37,$AQ37,$AS37,$AU37,$AW37,$AY37,$BA37,$BC37),4) -> 0 | BH37: =LARGE(($I37,$K37,$M37,$O37,$Q37,$S37,$U37,$W37,$Y37,$AA37,$AC37,$AE37,$AG37,$AI37,$AK37,$AM37,$AO37,$AQ37,$AS37,$AU37,$AW37,$AY37,$BA37,$BC37),5) -> 0 | BI37: =LARGE(($I37,$K37,$M37,$O37,$Q37,$S37,$U37,$W37,$Y37,$AA37,$AC37,$AE37,$AG37,$AI37,$AK37,$AM37,$AO37,$AQ37,$AS37,$AU37,$AW37,$AY37,$BA37,$BC37),6) -> 0 | BJ37: =LARGE(($I37,$K37,$M37,$O37,$Q37,$S37,$U37,$W37,$Y37,$AA37,$AC37,$AE37,$AG37,$AI37,$AK37,$AM37,$AO37,$AQ37,$AS37,$AU37,$AW37,$AY37,$BA37,$BC37),7) -> 0 | BK37: =LARGE(($I37,$K37,$M37,$O37,$Q37,$S37,$U37,$W37,$Y37,$AA37,$AC37,$AE37,$AG37,$AI37,$AK37,$AM37,$AO37,$AQ37,$AS37,$AU37,$AW37,$AY37,$BA37,$BC37),8) -> 0 | BL37: =LARGE(($I37,$K37,$M37,$O37,$Q37,$S37,$U37,$W37,$Y37,$AA37,$AC37,$AE37,$AG37,$AI37,$AK37,$AM37,$AO37,$AQ37,$AS37,$AU37,$AW37,$AY37,$BA37,$BC37),9) -> 0 | BM37: =LARGE(($I37,$K37,$M37,$O37,$Q37,$S37,$U37,$W37,$Y37,$AA37,$AC37,$AE37,$AG37,$AI37,$AK37,$AM37,$AO37,$AQ37,$AS37,$AU37,$AW37,$AY37,$BA37,$BC37),10) -> 0
A38: 34 | E38: 0 | F38: 0 | G38: 0 | I38: =LOOKUP(H38,Poängberäkning!$B$6:$B$97,Poängberäkning!$C$6:$C$97) -> 0 | K38: =LOOKUP(J38,Poängberäkning!$B$6:$B$97,Poängberäkning!$C$6:$C$97) -> 0 | M38: =LOOKUP(L38,Poängberäkning!$B$6:$B$97,Poängberäkning!$C$6:$C$97) -> 0 | O38: =LOOKUP(N38,Poängberäkning!$B$6:$B$97,Poängberäkning!$C$6:$C$97) -> 0 | Q38: =LOOKUP(P38,Poängberäkning!$B$6:$B$97,Poängberäkning!$C$6:$C$97) -> 0 | S38: =LOOKUP(R38,Poängberäkning!$B$6:$B$97,Poängberäkning!$C$6:$C$97) -> 0 | U38: =LOOKUP(T38,Poängberäkning!$B$6:$B$97,Poängberäkning!$C$6:$C$97) -> 0 | W38: =LOOKUP(V38,Poängberäkning!$B$6:$B$97,Poängberäkning!$C$6:$C$97) -> 0 | Y38: =LOOKUP(X38,Poängberäkning!$B$6:$B$97,Poängberäkning!$C$6:$C$97) -> 0 | AA38: =LOOKUP(Z38,Poängberäkning!$B$6:$B$97,Poängberäkning!$C$6:$C$97) -> 0 | AC38: =LOOKUP(AB38,Poängberäkning!$B$6:$B$97,Poängberäkning!$C$6:$C$97) -> 0 | AE38: =LOOKUP(AD38,Poängberäkning!$B$6:$B$97,Poängberäkning!$C$6:$C$97) -> 0 | AG38: =LOOKUP(AF38,Poängberäkning!$B$6:$B$97,Poängberäkning!$C$6:$C$97) -> 0 | AI38: =LOOKUP(AH38,Poängberäkning!$B$6:$B$97,Poängberäkning!$C$6:$C$97) -> 0 | AK38: =LOOKUP(AJ38,Poängberäkning!$B$6:$B$97,Poängberäkning!$C$6:$C$97) -> 0 | AM38: =LOOKUP(AL38,Poängberäkning!$B$6:$B$97,Poängberäkning!$C$6:$C$97) -> 0 | AO38: =LOOKUP(AN38,Poängberäkning!$B$6:$B$97,Poängberäkning!$C$6:$C$97) -> 0 | AQ38: =LOOKUP(AP38,Poängberäkning!$B$6:$B$97,Poängberäkning!$C$6:$C$97) -> 0 | AS38: =LOOKUP(AR38,Poängberäkning!$B$6:$B$97,Poängberäkning!$C$6:$C$97) -> 0 | AU38: =LOOKUP(AT38,Poängberäkning!$B$6:$B$97,Poängberäkning!$C$6:$C$97) -> 0 | BD38: =LARGE(($I38,$K38,$M38,$O38,$Q38,$S38,$U38,$W38,$Y38,$AA38,$AC38,$AE38,$AG38,$AI38,$AK38,$AM38,$AO38,$AQ38,$AS38,$AU38,$AW38,$AY38,$BA38,$BC38),1) -> 0 | BE38: =LARGE(($I38,$K38,$M38,$O38,$Q38,$S38,$U38,$W38,$Y38,$AA38,$AC38,$AE38,$AG38,$AI38,$AK38,$AM38,$AO38,$AQ38,$AS38,$AU38,$AW38,$AY38,$BA38,$BC38),2) -> 0 | BF38: =LARGE(($I38,$K38,$M38,$O38,$Q38,$S38,$U38,$W38,$Y38,$AA38,$AC38,$AE38,$AG38,$AI38,$AK38,$AM38,$AO38,$AQ38,$AS38,$AU38,$AW38,$AY38,$BA38,$BC38),3) -> 0 | BG38: =LARGE(($I38,$K38,$M38,$O38,$Q38,$S38,$U38,$W38,$Y38,$AA38,$AC38,$AE38,$AG38,$AI38,$AK38,$AM38,$AO38,$AQ38,$AS38,$AU38,$AW38,$AY38,$BA38,$BC38),4) -> 0 | BH38: =LARGE(($I38,$K38,$M38,$O38,$Q38,$S38,$U38,$W38,$Y38,$AA38,$AC38,$AE38,$AG38,$AI38,$AK38,$AM38,$AO38,$AQ38,$AS38,$AU38,$AW38,$AY38,$BA38,$BC38),5) -> 0 | BI38: =LARGE(($I38,$K38,$M38,$O38,$Q38,$S38,$U38,$W38,$Y38,$AA38,$AC38,$AE38,$AG38,$AI38,$AK38,$AM38,$AO38,$AQ38,$AS38,$AU38,$AW38,$AY38,$BA38,$BC38),6) -> 0 | BJ38: =LARGE(($I38,$K38,$M38,$O38,$Q38,$S38,$U38,$W38,$Y38,$AA38,$AC38,$AE38,$AG38,$AI38,$AK38,$AM38,$AO38,$AQ38,$AS38,$AU38,$AW38,$AY38,$BA38,$BC38),7) -> 0 | BK38: =LARGE(($I38,$K38,$M38,$O38,$Q38,$S38,$U38,$W38,$Y38,$AA38,$AC38,$AE38,$AG38,$AI38,$AK38,$AM38,$AO38,$AQ38,$AS38,$AU38,$AW38,$AY38,$BA38,$BC38),8) -> 0 | BL38: =LARGE(($I38,$K38,$M38,$O38,$Q38,$S38,$U38,$W38,$Y38,$AA38,$AC38,$AE38,$AG38,$AI38,$AK38,$AM38,$AO38,$AQ38,$AS38,$AU38,$AW38,$AY38,$BA38,$BC38),9) -> 0 | BM38: =LARGE(($I38,$K38,$M38,$O38,$Q38,$S38,$U38,$W38,$Y38,$AA38,$AC38,$AE38,$AG38,$AI38,$AK38,$AM38,$AO38,$AQ38,$AS38,$AU38,$AW38,$AY38,$BA38,$BC38),10) -> 0
A39: 35 | E39: 0 | F39: 0 | G39: 0 | I39: =LOOKUP(H39,Poängberäkning!$B$6:$B$97,Poängberäkning!$C$6:$C$97) -> 0 | K39: =LOOKUP(J39,Poängberäkning!$B$6:$B$97,Poängberäkning!$C$6:$C$97) -> 0 | M39: =LOOKUP(L39,Poängberäkning!$B$6:$B$97,Poängberäkning!$C$6:$C$97) -> 0 | O39: =LOOKUP(N39,Poängberäkning!$B$6:$B$97,Poängberäkning!$C$6:$C$97) -> 0 | Q39: =LOOKUP(P39,Poängberäkning!$B$6:$B$97,Poängberäkning!$C$6:$C$97) -> 0 | S39: =LOOKUP(R39,Poängberäkning!$B$6:$B$97,Poängberäkning!$C$6:$C$97) -> 0 | U39: =LOOKUP(T39,Poängberäkning!$B$6:$B$97,Poängberäkning!$C$6:$C$97) -> 0 | W39: =LOOKUP(V39,Poängberäkning!$B$6:$B$97,Poängberäkning!$C$6:$C$97) -> 0 | Y39: =LOOKUP(X39,Poängberäkning!$B$6:$B$97,Poängberäkning!$C$6:$C$97) -> 0 | AA39: =LOOKUP(Z39,Poängberäkning!$B$6:$B$97,Poängberäkning!$C$6:$C$97) -> 0 | AC39: =LOOKUP(AB39,Poängberäkning!$B$6:$B$97,Poängberäkning!$C$6:$C$97) -> 0 | AE39: =LOOKUP(AD39,Poängberäkning!$B$6:$B$97,Poängberäkning!$C$6:$C$97) -> 0 | AG39: =LOOKUP(AF39,Poängberäkning!$B$6:$B$97,Poängberäkning!$C$6:$C$97) -> 0 | AI39: =LOOKUP(AH39,Poängberäkning!$B$6:$B$97,Poängberäkning!$C$6:$C$97) -> 0 | AK39: =LOOKUP(AJ39,Poängberäkning!$B$6:$B$97,Poängberäkning!$C$6:$C$97) -> 0 | AM39: =LOOKUP(AL39,Poängberäkning!$B$6:$B$97,Poängberäkning!$C$6:$C$97) -> 0 | AO39: =LOOKUP(AN39,Poängberäkning!$B$6:$B$97,Poängberäkning!$C$6:$C$97) -> 0 | AQ39: =LOOKUP(AP39,Poängberäkning!$B$6:$B$97,Poängberäkning!$C$6:$C$97) -> 0 | AS39: =LOOKUP(AR39,Poängberäkning!$B$6:$B$97,Poängberäkning!$C$6:$C$97) -> 0 | AU39: =LOOKUP(AT39,Poängberäkning!$B$6:$B$97,Poängberäkning!$C$6:$C$97) -> 0 | BD39: =LARGE(($I39,$K39,$M39,$O39,$Q39,$S39,$U39,$W39,$Y39,$AA39,$AC39,$AE39,$AG39,$AI39,$AK39,$AM39,$AO39,$AQ39,$AS39,$AU39,$AW39,$AY39,$BA39,$BC39),1) -> 0 | BE39: =LARGE(($I39,$K39,$M39,$O39,$Q39,$S39,$U39,$W39,$Y39,$AA39,$AC39,$AE39,$AG39,$AI39,$AK39,$AM39,$AO39,$AQ39,$AS39,$AU39,$AW39,$AY39,$BA39,$BC39),2) -> 0 | BF39: =LARGE(($I39,$K39,$M39,$O39,$Q39,$S39,$U39,$W39,$Y39,$AA39,$AC39,$AE39,$AG39,$AI39,$AK39,$AM39,$AO39,$AQ39,$AS39,$AU39,$AW39,$AY39,$BA39,$BC39),3) -> 0 | BG39: =LARGE(($I39,$K39,$M39,$O39,$Q39,$S39,$U39,$W39,$Y39,$AA39,$AC39,$AE39,$AG39,$AI39,$AK39,$AM39,$AO39,$AQ39,$AS39,$AU39,$AW39,$AY39,$BA39,$BC39),4) -> 0 | BH39: =LARGE(($I39,$K39,$M39,$O39,$Q39,$S39,$U39,$W39,$Y39,$AA39,$AC39,$AE39,$AG39,$AI39,$AK39,$AM39,$AO39,$AQ39,$AS39,$AU39,$AW39,$AY39,$BA39,$BC39),5) -> 0 | BI39: =LARGE(($I39,$K39,$M39,$O39,$Q39,$S39,$U39,$W39,$Y39,$AA39,$AC39,$AE39,$AG39,$AI39,$AK39,$AM39,$AO39,$AQ39,$AS39,$AU39,$AW39,$AY39,$BA39,$BC39),6) -> 0 | BJ39: =LARGE(($I39,$K39,$M39,$O39,$Q39,$S39,$U39,$W39,$Y39,$AA39,$AC39,$AE39,$AG39,$AI39,$AK39,$AM39,$AO39,$AQ39,$AS39,$AU39,$AW39,$AY39,$BA39,$BC39),7) -> 0 | BK39: =LARGE(($I39,$K39,$M39,$O39,$Q39,$S39,$U39,$W39,$Y39,$AA39,$AC39,$AE39,$AG39,$AI39,$AK39,$AM39,$AO39,$AQ39,$AS39,$AU39,$AW39,$AY39,$BA39,$BC39),8) -> 0 | BL39: =LARGE(($I39,$K39,$M39,$O39,$Q39,$S39,$U39,$W39,$Y39,$AA39,$AC39,$AE39,$AG39,$AI39,$AK39,$AM39,$AO39,$AQ39,$AS39,$AU39,$AW39,$AY39,$BA39,$BC39),9) -> 0 | BM39: =LARGE(($I39,$K39,$M39,$O39,$Q39,$S39,$U39,$W39,$Y39,$AA39,$AC39,$AE39,$AG39,$AI39,$AK39,$AM39,$AO39,$AQ39,$AS39,$AU39,$AW39,$AY39,$BA39,$BC39),10) -> 0
A40: 36 | E40: 0 | F40: 0 | G40: 0 | I40: =LOOKUP(H40,Poängberäkning!$B$6:$B$97,Poängberäkning!$C$6:$C$97) -> 0 | K40: =LOOKUP(J40,Poängberäkning!$B$6:$B$97,Poängberäkning!$C$6:$C$97) -> 0 | M40: =LOOKUP(L40,Poängberäkning!$B$6:$B$97,Poängberäkning!$C$6:$C$97) -> 0 | O40: =LOOKUP(N40,Poängberäkning!$B$6:$B$97,Poängberäkning!$C$6:$C$97) -> 0 | Q40: =LOOKUP(P40,Poängberäkning!$B$6:$B$97,Poängberäkning!$C$6:$C$97) -> 0 | S40: =LOOKUP(R40,Poängberäkning!$B$6:$B$97,Poängberäkning!$C$6:$C$97) -> 0 | U40: =LOOKUP(T40,Poängberäkning!$B$6:$B$97,Poängberäkning!$C$6:$C$97) -> 0 | W40: =LOOKUP(V40,Poängberäkning!$B$6:$B$97,Poängberäkning!$C$6:$C$97) -> 0 | Y40: =LOOKUP(X40,Poängberäkning!$B$6:$B$97,Poängberäkning!$C$6:$C$97) -> 0 | AA40: =LOOKUP(Z40,Poängberäkning!$B$6:$B$97,Poängberäkning!$C$6:$C$97) -> 0 | AC40: =LOOKUP(AB40,Poängberäkning!$B$6:$B$97,Poängberäkning!$C$6:$C$97) -> 0 | AE40: =LOOKUP(AD40,Poängberäkning!$B$6:$B$97,Poängberäkning!$C$6:$C$97) -> 0 | AG40: =LOOKUP(AF40,Poängberäkning!$B$6:$B$97,Poängberäkning!$C$6:$C$97) -> 0 | AI40: =LOOKUP(AH40,Poängberäkning!$B$6:$B$97,Poängberäkning!$C$6:$C$97) -> 0 | AK40: =LOOKUP(AJ40,Poängberäkning!$B$6:$B$97,Poängberäkning!$C$6:$C$97) -> 0 | AM40: =LOOKUP(AL40,Poängberäkning!$B$6:$B$97,Poängberäkning!$C$6:$C$97) -> 0 | AO40: =LOOKUP(AN40,Poängberäkning!$B$6:$B$97,Poängberäkning!$C$6:$C$97) -> 0 | AQ40: =LOOKUP(AP40,Poängberäkning!$B$6:$B$97,Poängberäkning!$C$6:$C$97) -> 0 | AS40: =LOOKUP(AR40,Poängberäkning!$B$6:$B$97,Poängberäkning!$C$6:$C$97) -> 0 | AU40: =LOOKUP(AT40,Poängberäkning!$B$6:$B$97,Poängberäkning!$C$6:$C$97) -> 0 | BD40: =LARGE(($I40,$K40,$M40,$O40,$Q40,$S40,$U40,$W40,$Y40,$AA40,$AC40,$AE40,$AG40,$AI40,$AK40,$AM40,$AO40,$AQ40,$AS40,$AU40,$AW40,$AY40,$BA40,$BC40),1) -> 0 | BE40: =LARGE(($I40,$K40,$M40,$O40,$Q40,$S40,$U40,$W40,$Y40,$AA40,$AC40,$AE40,$AG40,$AI40,$AK40,$AM40,$AO40,$AQ40,$AS40,$AU40,$AW40,$AY40,$BA40,$BC40),2) -> 0 | BF40: =LARGE(($I40,$K40,$M40,$O40,$Q40,$S40,$U40,$W40,$Y40,$AA40,$AC40,$AE40,$AG40,$AI40,$AK40,$AM40,$AO40,$AQ40,$AS40,$AU40,$AW40,$AY40,$BA40,$BC40),3) -> 0 | BG40: =LARGE(($I40,$K40,$M40,$O40,$Q40,$S40,$U40,$W40,$Y40,$AA40,$AC40,$AE40,$AG40,$AI40,$AK40,$AM40,$AO40,$AQ40,$AS40,$AU40,$AW40,$AY40,$BA40,$BC40),4) -> 0 | BH40: =LARGE(($I40,$K40,$M40,$O40,$Q40,$S40,$U40,$W40,$Y40,$AA40,$AC40,$AE40,$AG40,$AI40,$AK40,$AM40,$AO40,$AQ40,$AS40,$AU40,$AW40,$AY40,$BA40,$BC40),5) -> 0 | BI40: =LARGE(($I40,$K40,$M40,$O40,$Q40,$S40,$U40,$W40,$Y40,$AA40,$AC40,$AE40,$AG40,$AI40,$AK40,$AM40,$AO40,$AQ40,$AS40,$AU40,$AW40,$AY40,$BA40,$BC40),6) -> 0 | BJ40: =LARGE(($I40,$K40,$M40,$O40,$Q40,$S40,$U40,$W40,$Y40,$AA40,$AC40,$AE40,$AG40,$AI40,$AK40,$AM40,$AO40,$AQ40,$AS40,$AU40,$AW40,$AY40,$BA40,$BC40),7) -> 0 | BK40: =LARGE(($I40,$K40,$M40,$O40,$Q40,$S40,$U40,$W40,$Y40,$AA40,$AC40,$AE40,$AG40,$AI40,$AK40,$AM40,$AO40,$AQ40,$AS40,$AU40,$AW40,$AY40,$BA40,$BC40),8) -> 0 | BL40: =LARGE(($I40,$K40,$M40,$O40,$Q40,$S40,$U40,$W40,$Y40,$AA40,$AC40,$AE40,$AG40,$AI40,$AK40,$AM40,$AO40,$AQ40,$AS40,$AU40,$AW40,$AY40,$BA40,$BC40),9) -> 0 | BM40: =LARGE(($I40,$K40,$M40,$O40,$Q40,$S40,$U40,$W40,$Y40,$AA40,$AC40,$AE40,$AG40,$AI40,$AK40,$AM40,$AO40,$AQ40,$AS40,$AU40,$AW40,$AY40,$BA40,$BC40),10) -> 0
A41: 37 | E41: 0 | F41: 0 | G41: 0 | I41: =LOOKUP(H41,Poängberäkning!$B$6:$B$97,Poängberäkning!$C$6:$C$97) -> 0 | K41: =LOOKUP(J41,Poängberäkning!$B$6:$B$97,Poängberäkning!$C$6:$C$97) -> 0 | M41: =LOOKUP(L41,Poängberäkning!$B$6:$B$97,Poängberäkning!$C$6:$C$97) -> 0 | O41: =LOOKUP(N41,Poängberäkning!$B$6:$B$97,Poängberäkning!$C$6:$C$97) -> 0 | Q41: =LOOKUP(P41,Poängberäkning!$B$6:$B$97,Poängberäkning!$C$6:$C$97) -> 0 | S41: =LOOKUP(R41,Poängberäkning!$B$6:$B$97,Poängberäkning!$C$6:$C$97) -> 0 | U41: =LOOKUP(T41,Poängberäkning!$B$6:$B$97,Poängberäkning!$C$6:$C$97) -> 0 | W41: =LOOKUP(V41,Poängberäkning!$B$6:$B$97,Poängberäkning!$C$6:$C$97) -> 0 | Y41: =LOOKUP(X41,Poängberäkning!$B$6:$B$97,Poängberäkning!$C$6:$C$97) -> 0 | AA41: =LOOKUP(Z41,Poängberäkning!$B$6:$B$97,Poängberäkning!$C$6:$C$97) -> 0 | AC41: =LOOKUP(AB41,Poängberäkning!$B$6:$B$97,Poängberäkning!$C$6:$C$97) -> 0 | AE41: =LOOKUP(AD41,Poängberäkning!$B$6:$B$97,Poängberäkning!$C$6:$C$97) -> 0 | AG41: =LOOKUP(AF41,Poängberäkning!$B$6:$B$97,Poängberäkning!$C$6:$C$97) -> 0 | AI41: =LOOKUP(AH41,Poängberäkning!$B$6:$B$97,Poängberäkning!$C$6:$C$97) -> 0 | AK41: =LOOKUP(AJ41,Poängberäkning!$B$6:$B$97,Poängberäkning!$C$6:$C$97) -> 0 | AM41: =LOOKUP(AL41,Poängberäkning!$B$6:$B$97,Poängberäkning!$C$6:$C$97) -> 0 | AO41: =LOOKUP(AN41,Poängberäkning!$B$6:$B$97,Poängberäkning!$C$6:$C$97) -> 0 | AQ41: =LOOKUP(AP41,Poängberäkning!$B$6:$B$97,Poängberäkning!$C$6:$C$97) -> 0 | AS41: =LOOKUP(AR41,Poängberäkning!$B$6:$B$97,Poängberäkning!$C$6:$C$97) -> 0 | AU41: =LOOKUP(AT41,Poängberäkning!$B$6:$B$97,Poängberäkning!$C$6:$C$97) -> 0 | BD41: =LARGE(($I41,$K41,$M41,$O41,$Q41,$S41,$U41,$W41,$Y41,$AA41,$AC41,$AE41,$AG41,$AI41,$AK41,$AM41,$AO41,$AQ41,$AS41,$AU41,$AW41,$AY41,$BA41,$BC41),1) -> 0 | BE41: =LARGE(($I41,$K41,$M41,$O41,$Q41,$S41,$U41,$W41,$Y41,$AA41,$AC41,$AE41,$AG41,$AI41,$AK41,$AM41,$AO41,$AQ41,$AS41,$AU41,$AW41,$AY41,$BA41,$BC41),2) -> 0 | BF41: =LARGE(($I41,$K41,$M41,$O41,$Q41,$S41,$U41,$W41,$Y41,$AA41,$AC41,$AE41,$AG41,$AI41,$AK41,$AM41,$AO41,$AQ41,$AS41,$AU41,$AW41,$AY41,$BA41,$BC41),3) -> 0 | BG41: =LARGE(($I41,$K41,$M41,$O41,$Q41,$S41,$U41,$W41,$Y41,$AA41,$AC41,$AE41,$AG41,$AI41,$AK41,$AM41,$AO41,$AQ41,$AS41,$AU41,$AW41,$AY41,$BA41,$BC41),4) -> 0 | BH41: =LARGE(($I41,$K41,$M41,$O41,$Q41,$S41,$U41,$W41,$Y41,$AA41,$AC41,$AE41,$AG41,$AI41,$AK41,$AM41,$AO41,$AQ41,$AS41,$AU41,$AW41,$AY41,$BA41,$BC41),5) -> 0 | BI41: =LARGE(($I41,$K41,$M41,$O41,$Q41,$S41,$U41,$W41,$Y41,$AA41,$AC41,$AE41,$AG41,$AI41,$AK41,$AM41,$AO41,$AQ41,$AS41,$AU41,$AW41,$AY41,$BA41,$BC41),6) -> 0 | BJ41: =LARGE(($I41,$K41,$M41,$O41,$Q41,$S41,$U41,$W41,$Y41,$AA41,$AC41,$AE41,$AG41,$AI41,$AK41,$AM41,$AO41,$AQ41,$AS41,$AU41,$AW41,$AY41,$BA41,$BC41),7) -> 0 | BK41: =LARGE(($I41,$K41,$M41,$O41,$Q41,$S41,$U41,$W41,$Y41,$AA41,$AC41,$AE41,$AG41,$AI41,$AK41,$AM41,$AO41,$AQ41,$AS41,$AU41,$AW41,$AY41,$BA41,$BC41),8) -> 0 | BL41: =LARGE(($I41,$K41,$M41,$O41,$Q41,$S41,$U41,$W41,$Y41,$AA41,$AC41,$AE41,$AG41,$AI41,$AK41,$AM41,$AO41,$AQ41,$AS41,$AU41,$AW41,$AY41,$BA41,$BC41),9) -> 0 | BM41: =LARGE(($I41,$K41,$M41,$O41,$Q41,$S41,$U41,$W41,$Y41,$AA41,$AC41,$AE41,$AG41,$AI41,$AK41,$AM41,$AO41,$AQ41,$AS41,$AU41,$AW41,$AY41,$BA41,$BC41),10) -> 0
A42: 38 | E42: 0 | F42: 0 | G42: 0 | I42: =LOOKUP(H42,Poängberäkning!$B$6:$B$97,Poängberäkning!$C$6:$C$97) -> 0 | K42: =LOOKUP(J42,Poängberäkning!$B$6:$B$97,Poängberäkning!$C$6:$C$97) -> 0 | M42: =LOOKUP(L42,Poängberäkning!$B$6:$B$97,Poängberäkning!$C$6:$C$97) -> 0 | O42: =LOOKUP(N42,Poängberäkning!$B$6:$B$97,Poängberäkning!$C$6:$C$97) -> 0 | Q42: =LOOKUP(P42,Poängberäkning!$B$6:$B$97,Poängberäkning!$C$6:$C$97) -> 0 | S42: =LOOKUP(R42,Poängberäkning!$B$6:$B$97,Poängberäkning!$C$6:$C$97) -> 0 | U42: =LOOKUP(T42,Poängberäkning!$B$6:$B$97,Poängberäkning!$C$6:$C$97) -> 0 | W42: =LOOKUP(V42,Poängberäkning!$B$6:$B$97,Poängberäkning!$C$6:$C$97) -> 0 | Y42: =LOOKUP(X42,Poängberäkning!$B$6:$B$97,Poängberäkning!$C$6:$C$97) -> 0 | AA42: =LOOKUP(Z42,Poängberäkning!$B$6:$B$97,Poängberäkning!$C$6:$C$97) -> 0 | AC42: =LOOKUP(AB42,Poängberäkning!$B$6:$B$97,Poängberäkning!$C$6:$C$97) -> 0 | AE42: =LOOKUP(AD42,Poängberäkning!$B$6:$B$97,Poängberäkning!$C$6:$C$97) -> 0 | AG42: =LOOKUP(AF42,Poängberäkning!$B$6:$B$97,Poängberäkning!$C$6:$C$97) -> 0 | AI42: =LOOKUP(AH42,Poängberäkning!$B$6:$B$97,Poängberäkning!$C$6:$C$97) -> 0 | AK42: =LOOKUP(AJ42,Poängberäkning!$B$6:$B$97,Poängberäkning!$C$6:$C$97) -> 0 | AM42: =LOOKUP(AL42,Poängberäkning!$B$6:$B$97,Poängberäkning!$C$6:$C$97) -> 0 | AO42: =LOOKUP(AN42,Poängberäkning!$B$6:$B$97,Poängberäkning!$C$6:$C$97) -> 0 | AQ42: =LOOKUP(AP42,Poängberäkning!$B$6:$B$97,Poängberäkning!$C$6:$C$97) -> 0 | AS42: =LOOKUP(AR42,Poängberäkning!$B$6:$B$97,Poängberäkning!$C$6:$C$97) -> 0 | AU42: =LOOKUP(AT42,Poängberäkning!$B$6:$B$97,Poängberäkning!$C$6:$C$97) -> 0 | BD42: =LARGE(($I42,$K42,$M42,$O42,$Q42,$S42,$U42,$W42,$Y42,$AA42,$AC42,$AE42,$AG42,$AI42,$AK42,$AM42,$AO42,$AQ42,$AS42,$AU42,$AW42,$AY42,$BA42,$BC42),1) -> 0 | BE42: =LARGE(($I42,$K42,$M42,$O42,$Q42,$S42,$U42,$W42,$Y42,$AA42,$AC42,$AE42,$AG42,$AI42,$AK42,$AM42,$AO42,$AQ42,$AS42,$AU42,$AW42,$AY42,$BA42,$BC42),2) -> 0 | BF42: =LARGE(($I42,$K42,$M42,$O42,$Q42,$S42,$U42,$W42,$Y42,$AA42,$AC42,$AE42,$AG42,$AI42,$AK42,$AM42,$AO42,$AQ42,$AS42,$AU42,$AW42,$AY42,$BA42,$BC42),3) -> 0 | BG42: =LARGE(($I42,$K42,$M42,$O42,$Q42,$S42,$U42,$W42,$Y42,$AA42,$AC42,$AE42,$AG42,$AI42,$AK42,$AM42,$AO42,$AQ42,$AS42,$AU42,$AW42,$AY42,$BA42,$BC42),4) -> 0 | BH42: =LARGE(($I42,$K42,$M42,$O42,$Q42,$S42,$U42,$W42,$Y42,$AA42,$AC42,$AE42,$AG42,$AI42,$AK42,$AM42,$AO42,$AQ42,$AS42,$AU42,$AW42,$AY42,$BA42,$BC42),5) -> 0 | BI42: =LARGE(($I42,$K42,$M42,$O42,$Q42,$S42,$U42,$W42,$Y42,$AA42,$AC42,$AE42,$AG42,$AI42,$AK42,$AM42,$AO42,$AQ42,$AS42,$AU42,$AW42,$AY42,$BA42,$BC42),6) -> 0 | BJ42: =LARGE(($I42,$K42,$M42,$O42,$Q42,$S42,$U42,$W42,$Y42,$AA42,$AC42,$AE42,$AG42,$AI42,$AK42,$AM42,$AO42,$AQ42,$AS42,$AU42,$AW42,$AY42,$BA42,$BC42),7) -> 0 | BK42: =LARGE(($I42,$K42,$M42,$O42,$Q42,$S42,$U42,$W42,$Y42,$AA42,$AC42,$AE42,$AG42,$AI42,$AK42,$AM42,$AO42,$AQ42,$AS42,$AU42,$AW42,$AY42,$BA42,$BC42),8) -> 0 | BL42: =LARGE(($I42,$K42,$M42,$O42,$Q42,$S42,$U42,$W42,$Y42,$AA42,$AC42,$AE42,$AG42,$AI42,$AK42,$AM42,$AO42,$AQ42,$AS42,$AU42,$AW42,$AY42,$BA42,$BC42),9) -> 0 | BM42: =LARGE(($I42,$K42,$M42,$O42,$Q42,$S42,$U42,$W42,$Y42,$AA42,$AC42,$AE42,$AG42,$AI42,$AK42,$AM42,$AO42,$AQ42,$AS42,$AU42,$AW42,$AY42,$BA42,$BC42),10) -> 0
A43: 39 | E43: 0 | F43: 0 | G43: 0 | I43: =LOOKUP(H43,Poängberäkning!$B$6:$B$97,Poängberäkning!$C$6:$C$97) -> 0 | K43: =LOOKUP(J43,Poängberäkning!$B$6:$B$97,Poängberäkning!$C$6:$C$97) -> 0 | M43: =LOOKUP(L43,Poängberäkning!$B$6:$B$97,Poängberäkning!$C$6:$C$97) -> 0 | O43: =LOOKUP(N43,Poängberäkning!$B$6:$B$97,Poängberäkning!$C$6:$C$97) -> 0 | Q43: =LOOKUP(P43,Poängberäkning!$B$6:$B$97,Poängberäkning!$C$6:$C$97) -> 0 | S43: =LOOKUP(R43,Poängberäkning!$B$6:$B$97,Poängberäkning!$C$6:$C$97) -> 0 | U43: =LOOKUP(T43,Poängberäkning!$B$6:$B$97,Poängberäkning!$C$6:$C$97) -> 0 | W43: =LOOKUP(V43,Poängberäkning!$B$6:$B$97,Poängberäkning!$C$6:$C$97) -> 0 | Y43: =LOOKUP(X43,Poängberäkning!$B$6:$B$97,Poängberäkning!$C$6:$C$97) -> 0 | AA43: =LOOKUP(Z43,Poängberäkning!$B$6:$B$97,Poängberäkning!$C$6:$C$97) -> 0 | AC43: =LOOKUP(AB43,Poängberäkning!$B$6:$B$97,Poängberäkning!$C$6:$C$97) -> 0 | AE43: =LOOKUP(AD43,Poängberäkning!$B$6:$B$97,Poängberäkning!$C$6:$C$97) -> 0 | AG43: =LOOKUP(AF43,Poängberäkning!$B$6:$B$97,Poängberäkning!$C$6:$C$97) -> 0 | AI43: =LOOKUP(AH43,Poängberäkning!$B$6:$B$97,Poängberäkning!$C$6:$C$97) -> 0 | AK43: =LOOKUP(AJ43,Poängberäkning!$B$6:$B$97,Poängberäkning!$C$6:$C$97) -> 0 | AM43: =LOOKUP(AL43,Poängberäkning!$B$6:$B$97,Poängberäkning!$C$6:$C$97) -> 0 | AO43: =LOOKUP(AN43,Poängberäkning!$B$6:$B$97,Poängberäkning!$C$6:$C$97) -> 0 | AQ43: =LOOKUP(AP43,Poängberäkning!$B$6:$B$97,Poängberäkning!$C$6:$C$97) -> 0 | AS43: =LOOKUP(AR43,Poängberäkning!$B$6:$B$97,Poängberäkning!$C$6:$C$97) -> 0 | AU43: =LOOKUP(AT43,Poängberäkning!$B$6:$B$97,Poängberäkning!$C$6:$C$97) -> 0 | BD43: =LARGE(($I43,$K43,$M43,$O43,$Q43,$S43,$U43,$W43,$Y43,$AA43,$AC43,$AE43,$AG43,$AI43,$AK43,$AM43,$AO43,$AQ43,$AS43,$AU43,$AW43,$AY43,$BA43,$BC43),1) -> 0 | BE43: =LARGE(($I43,$K43,$M43,$O43,$Q43,$S43,$U43,$W43,$Y43,$AA43,$AC43,$AE43,$AG43,$AI43,$AK43,$AM43,$AO43,$AQ43,$AS43,$AU43,$AW43,$AY43,$BA43,$BC43),2) -> 0 | BF43: =LARGE(($I43,$K43,$M43,$O43,$Q43,$S43,$U43,$W43,$Y43,$AA43,$AC43,$AE43,$AG43,$AI43,$AK43,$AM43,$AO43,$AQ43,$AS43,$AU43,$AW43,$AY43,$BA43,$BC43),3) -> 0 | BG43: =LARGE(($I43,$K43,$M43,$O43,$Q43,$S43,$U43,$W43,$Y43,$AA43,$AC43,$AE43,$AG43,$AI43,$AK43,$AM43,$AO43,$AQ43,$AS43,$AU43,$AW43,$AY43,$BA43,$BC43),4) -> 0 | BH43: =LARGE(($I43,$K43,$M43,$O43,$Q43,$S43,$U43,$W43,$Y43,$AA43,$AC43,$AE43,$AG43,$AI43,$AK43,$AM43,$AO43,$AQ43,$AS43,$AU43,$AW43,$AY43,$BA43,$BC43),5) -> 0 | BI43: =LARGE(($I43,$K43,$M43,$O43,$Q43,$S43,$U43,$W43,$Y43,$AA43,$AC43,$AE43,$AG43,$AI43,$AK43,$AM43,$AO43,$AQ43,$AS43,$AU43,$AW43,$AY43,$BA43,$BC43),6) -> 0 | BJ43: =LARGE(($I43,$K43,$M43,$O43,$Q43,$S43,$U43,$W43,$Y43,$AA43,$AC43,$AE43,$AG43,$AI43,$AK43,$AM43,$AO43,$AQ43,$AS43,$AU43,$AW43,$AY43,$BA43,$BC43),7) -> 0 | BK43: =LARGE(($I43,$K43,$M43,$O43,$Q43,$S43,$U43,$W43,$Y43,$AA43,$AC43,$AE43,$AG43,$AI43,$AK43,$AM43,$AO43,$AQ43,$AS43,$AU43,$AW43,$AY43,$BA43,$BC43),8) -> 0 | BL43: =LARGE(($I43,$K43,$M43,$O43,$Q43,$S43,$U43,$W43,$Y43,$AA43,$AC43,$AE43,$AG43,$AI43,$AK43,$AM43,$AO43,$AQ43,$AS43,$AU43,$AW43,$AY43,$BA43,$BC43),9) -> 0 | BM43: =LARGE(($I43,$K43,$M43,$O43,$Q43,$S43,$U43,$W43,$Y43,$AA43,$AC43,$AE43,$AG43,$AI43,$AK43,$AM43,$AO43,$AQ43,$AS43,$AU43,$AW43,$AY43,$BA43,$BC43),10) -> 0
A44: 40 | E44: 0 | F44: 0 | G44: 0 | I44: =LOOKUP(H44,Poängberäkning!$B$6:$B$97,Poängberäkning!$C$6:$C$97) -> 0 | K44: =LOOKUP(J44,Poängberäkning!$B$6:$B$97,Poängberäkning!$C$6:$C$97) -> 0 | M44: =LOOKUP(L44,Poängberäkning!$B$6:$B$97,Poängberäkning!$C$6:$C$97) -> 0 | O44: =LOOKUP(N44,Poängberäkning!$B$6:$B$97,Poängberäkning!$C$6:$C$97) -> 0 | Q44: =LOOKUP(P44,Poängberäkning!$B$6:$B$97,Poängberäkning!$C$6:$C$97) -> 0 | S44: =LOOKUP(R44,Poängberäkning!$B$6:$B$97,Poängberäkning!$C$6:$C$97) -> 0 | U44: =LOOKUP(T44,Poängberäkning!$B$6:$B$97,Poängberäkning!$C$6:$C$97) -> 0 | W44: =LOOKUP(V44,Poängberäkning!$B$6:$B$97,Poängberäkning!$C$6:$C$97) -> 0 | Y44: =LOOKUP(X44,Poängberäkning!$B$6:$B$97,Poängberäkning!$C$6:$C$97) -> 0 | AA44: =LOOKUP(Z44,Poängberäkning!$B$6:$B$97,Poängberäkning!$C$6:$C$97) -> 0 | AC44: =LOOKUP(AB44,Poängberäkning!$B$6:$B$97,Poängberäkning!$C$6:$C$97) -> 0 | AE44: =LOOKUP(AD44,Poängberäkning!$B$6:$B$97,Poängberäkning!$C$6:$C$97) -> 0 | AG44: =LOOKUP(AF44,Poängberäkning!$B$6:$B$97,Poängberäkning!$C$6:$C$97) -> 0 | AI44: =LOOKUP(AH44,Poängberäkning!$B$6:$B$97,Poängberäkning!$C$6:$C$97) -> 0 | AK44: =LOOKUP(AJ44,Poängberäkning!$B$6:$B$97,Poängberäkning!$C$6:$C$97) -> 0 | AM44: =LOOKUP(AL44,Poängberäkning!$B$6:$B$97,Poängberäkning!$C$6:$C$97) -> 0 | AO44: =LOOKUP(AN44,Poängberäkning!$B$6:$B$97,Poängberäkning!$C$6:$C$97) -> 0 | AQ44: =LOOKUP(AP44,Poängberäkning!$B$6:$B$97,Poängberäkning!$C$6:$C$97) -> 0 | AS44: =LOOKUP(AR44,Poängberäkning!$B$6:$B$97,Poängberäkning!$C$6:$C$97) -> 0 | AU44: =LOOKUP(AT44,Poängberäkning!$B$6:$B$97,Poängberäkning!$C$6:$C$97) -> 0 | BD44: =LARGE(($I44,$K44,$M44,$O44,$Q44,$S44,$U44,$W44,$Y44,$AA44,$AC44,$AE44,$AG44,$AI44,$AK44,$AM44,$AO44,$AQ44,$AS44,$AU44,$AW44,$AY44,$BA44,$BC44),1) -> 0 | BE44: =LARGE(($I44,$K44,$M44,$O44,$Q44,$S44,$U44,$W44,$Y44,$AA44,$AC44,$AE44,$AG44,$AI44,$AK44,$AM44,$AO44,$AQ44,$AS44,$AU44,$AW44,$AY44,$BA44,$BC44),2) -> 0 | BF44: =LARGE(($I44,$K44,$M44,$O44,$Q44,$S44,$U44,$W44,$Y44,$AA44,$AC44,$AE44,$AG44,$AI44,$AK44,$AM44,$AO44,$AQ44,$AS44,$AU44,$AW44,$AY44,$BA44,$BC44),3) -> 0 | BG44: =LARGE(($I44,$K44,$M44,$O44,$Q44,$S44,$U44,$W44,$Y44,$AA44,$AC44,$AE44,$AG44,$AI44,$AK44,$AM44,$AO44,$AQ44,$AS44,$AU44,$AW44,$AY44,$BA44,$BC44),4) -> 0 | BH44: =LARGE(($I44,$K44,$M44,$O44,$Q44,$S44,$U44,$W44,$Y44,$AA44,$AC44,$AE44,$AG44,$AI44,$AK44,$AM44,$AO44,$AQ44,$AS44,$AU44,$AW44,$AY44,$BA44,$BC44),5) -> 0 | BI44: =LARGE(($I44,$K44,$M44,$O44,$Q44,$S44,$U44,$W44,$Y44,$AA44,$AC44,$AE44,$AG44,$AI44,$AK44,$AM44,$AO44,$AQ44,$AS44,$AU44,$AW44,$AY44,$BA44,$BC44),6) -> 0 | BJ44: =LARGE(($I44,$K44,$M44,$O44,$Q44,$S44,$U44,$W44,$Y44,$AA44,$AC44,$AE44,$AG44,$AI44,$AK44,$AM44,$AO44,$AQ44,$AS44,$AU44,$AW44,$AY44,$BA44,$BC44),7) -> 0 | BK44: =LARGE(($I44,$K44,$M44,$O44,$Q44,$S44,$U44,$W44,$Y44,$AA44,$AC44,$AE44,$AG44,$AI44,$AK44,$AM44,$AO44,$AQ44,$AS44,$AU44,$AW44,$AY44,$BA44,$BC44),8) -> 0 | BL44: =LARGE(($I44,$K44,$M44,$O44,$Q44,$S44,$U44,$W44,$Y44,$AA44,$AC44,$AE44,$AG44,$AI44,$AK44,$AM44,$AO44,$AQ44,$AS44,$AU44,$AW44,$AY44,$BA44,$BC44),9) -> 0 | BM44: =LARGE(($I44,$K44,$M44,$O44,$Q44,$S44,$U44,$W44,$Y44,$AA44,$AC44,$AE44,$AG44,$AI44,$AK44,$AM44,$AO44,$AQ44,$AS44,$AU44,$AW44,$AY44,$BA44,$BC44),10) -> 0
A45: 41 | E45: 0 | F45: 0 | G45: 0 | I45: =LOOKUP(H45,Poängberäkning!$B$6:$B$97,Poängberäkning!$C$6:$C$97) -> 0 | K45: =LOOKUP(J45,Poängberäkning!$B$6:$B$97,Poängberäkning!$C$6:$C$97) -> 0 | M45: =LOOKUP(L45,Poängberäkning!$B$6:$B$97,Poängberäkning!$C$6:$C$97) -> 0 | O45: =LOOKUP(N45,Poängberäkning!$B$6:$B$97,Poängberäkning!$C$6:$C$97) -> 0 | Q45: =LOOKUP(P45,Poängberäkning!$B$6:$B$97,Poängberäkning!$C$6:$C$97) -> 0 | S45: =LOOKUP(R45,Poängberäkning!$B$6:$B$97,Poängberäkning!$C$6:$C$97) -> 0 | U45: =LOOKUP(T45,Poängberäkning!$B$6:$B$97,Poängberäkning!$C$6:$C$97) -> 0 | W45: =LOOKUP(V45,Poängberäkning!$B$6:$B$97,Poängberäkning!$C$6:$C$97) -> 0 | Y45: =LOOKUP(X45,Poängberäkning!$B$6:$B$97,Poängberäkning!$C$6:$C$97) -> 0 | AA45: =LOOKUP(Z45,Poängberäkning!$B$6:$B$97,Poängberäkning!$C$6:$C$97) -> 0 | AC45: =LOOKUP(AB45,Poängberäkning!$B$6:$B$97,Poängberäkning!$C$6:$C$97) -> 0 | AE45: =LOOKUP(AD45,Poängberäkning!$B$6:$B$97,Poängberäkning!$C$6:$C$97) -> 0 | AG45: =LOOKUP(AF45,Poängberäkning!$B$6:$B$97,Poängberäkning!$C$6:$C$97) -> 0 | AI45: =LOOKUP(AH45,Poängberäkning!$B$6:$B$97,Poängberäkning!$C$6:$C$97) -> 0 | AK45: =LOOKUP(AJ45,Poängberäkning!$B$6:$B$97,Poängberäkning!$C$6:$C$97) -> 0 | AM45: =LOOKUP(AL45,Poängberäkning!$B$6:$B$97,Poängberäkning!$C$6:$C$97) -> 0 | AO45: =LOOKUP(AN45,Poängberäkning!$B$6:$B$97,Poängberäkning!$C$6:$C$97) -> 0 | AQ45: =LOOKUP(AP45,Poängberäkning!$B$6:$B$97,Poängberäkning!$C$6:$C$97) -> 0 | AS45: =LOOKUP(AR45,Poängberäkning!$B$6:$B$97,Poängberäkning!$C$6:$C$97) -> 0 | AU45: =LOOKUP(AT45,Poängberäkning!$B$6:$B$97,Poängberäkning!$C$6:$C$97) -> 0 | BD45: =LARGE(($I45,$K45,$M45,$O45,$Q45,$S45,$U45,$W45,$Y45,$AA45,$AC45,$AE45,$AG45,$AI45,$AK45,$AM45,$AO45,$AQ45,$AS45,$AU45,$AW45,$AY45,$BA45,$BC45),1) -> 0 | BE45: =LARGE(($I45,$K45,$M45,$O45,$Q45,$S45,$U45,$W45,$Y45,$AA45,$AC45,$AE45,$AG45,$AI45,$AK45,$AM45,$AO45,$AQ45,$AS45,$AU45,$AW45,$AY45,$BA45,$BC45),2) -> 0 | BF45: =LARGE(($I45,$K45,$M45,$O45,$Q45,$S45,$U45,$W45,$Y45,$AA45,$AC45,$AE45,$AG45,$AI45,$AK45,$AM45,$AO45,$AQ45,$AS45,$AU45,$AW45,$AY45,$BA45,$BC45),3) -> 0 | BG45: =LARGE(($I45,$K45,$M45,$O45,$Q45,$S45,$U45,$W45,$Y45,$AA45,$AC45,$AE45,$AG45,$AI45,$AK45,$AM45,$AO45,$AQ45,$AS45,$AU45,$AW45,$AY45,$BA45,$BC45),4) -> 0 | BH45: =LARGE(($I45,$K45,$M45,$O45,$Q45,$S45,$U45,$W45,$Y45,$AA45,$AC45,$AE45,$AG45,$AI45,$AK45,$AM45,$AO45,$AQ45,$AS45,$AU45,$AW45,$AY45,$BA45,$BC45),5) -> 0 | BI45: =LARGE(($I45,$K45,$M45,$O45,$Q45,$S45,$U45,$W45,$Y45,$AA45,$AC45,$AE45,$AG45,$AI45,$AK45,$AM45,$AO45,$AQ45,$AS45,$AU45,$AW45,$AY45,$BA45,$BC45),6) -> 0 | BJ45: =LARGE(($I45,$K45,$M45,$O45,$Q45,$S45,$U45,$W45,$Y45,$AA45,$AC45,$AE45,$AG45,$AI45,$AK45,$AM45,$AO45,$AQ45,$AS45,$AU45,$AW45,$AY45,$BA45,$BC45),7) -> 0 | BK45: =LARGE(($I45,$K45,$M45,$O45,$Q45,$S45,$U45,$W45,$Y45,$AA45,$AC45,$AE45,$AG45,$AI45,$AK45,$AM45,$AO45,$AQ45,$AS45,$AU45,$AW45,$AY45,$BA45,$BC45),8) -> 0 | BL45: =LARGE(($I45,$K45,$M45,$O45,$Q45,$S45,$U45,$W45,$Y45,$AA45,$AC45,$AE45,$AG45,$AI45,$AK45,$AM45,$AO45,$AQ45,$AS45,$AU45,$AW45,$AY45,$BA45,$BC45),9) -> 0 | BM45: =LARGE(($I45,$K45,$M45,$O45,$Q45,$S45,$U45,$W45,$Y45,$AA45,$AC45,$AE45,$AG45,$AI45,$AK45,$AM45,$AO45,$AQ45,$AS45,$AU45,$AW45,$AY45,$BA45,$BC45),10) -> 0
A46: 42 | E46: 0 | F46: 0 | G46: 0 | I46: =LOOKUP(H46,Poängberäkning!$B$6:$B$97,Poängberäkning!$C$6:$C$97) -> 0 | K46: =LOOKUP(J46,Poängberäkning!$B$6:$B$97,Poängberäkning!$C$6:$C$97) -> 0 | M46: =LOOKUP(L46,Poängberäkning!$B$6:$B$97,Poängberäkning!$C$6:$C$97) -> 0 | O46: =LOOKUP(N46,Poängberäkning!$B$6:$B$97,Poängberäkning!$C$6:$C$97) -> 0 | Q46: =LOOKUP(P46,Poängberäkning!$B$6:$B$97,Poängberäkning!$C$6:$C$97) -> 0 | S46: =LOOKUP(R46,Poängberäkning!$B$6:$B$97,Poängberäkning!$C$6:$C$97) -> 0 | U46: =LOOKUP(T46,Poängberäkning!$B$6:$B$97,Poängberäkning!$C$6:$C$97) -> 0 | W46: =LOOKUP(V46,Poängberäkning!$B$6:$B$97,Poängberäkning!$C$6:$C$97) -> 0 | Y46: =LOOKUP(X46,Poängberäkning!$B$6:$B$97,Poängberäkning!$C$6:$C$97) -> 0 | AA46: =LOOKUP(Z46,Poängberäkning!$B$6:$B$97,Poängberäkning!$C$6:$C$97) -> 0 | AC46: =LOOKUP(AB46,Poängberäkning!$B$6:$B$97,Poängberäkning!$C$6:$C$97) -> 0 | AE46: =LOOKUP(AD46,Poängberäkning!$B$6:$B$97,Poängberäkning!$C$6:$C$97) -> 0 | AG46: =LOOKUP(AF46,Poängberäkning!$B$6:$B$97,Poängberäkning!$C$6:$C$97) -> 0 | AI46: =LOOKUP(AH46,Poängberäkning!$B$6:$B$97,Poängberäkning!$C$6:$C$97) -> 0 | AK46: =LOOKUP(AJ46,Poängberäkning!$B$6:$B$97,Poängberäkning!$C$6:$C$97) -> 0 | AM46: =LOOKUP(AL46,Poängberäkning!$B$6:$B$97,Poängberäkning!$C$6:$C$97) -> 0 | AO46: =LOOKUP(AN46,Poängberäkning!$B$6:$B$97,Poängberäkning!$C$6:$C$97) -> 0 | AQ46: =LOOKUP(AP46,Poängberäkning!$B$6:$B$97,Poängberäkning!$C$6:$C$97) -> 0 | AS46: =LOOKUP(AR46,Poängberäkning!$B$6:$B$97,Poängberäkning!$C$6:$C$97) -> 0 | AU46: =LOOKUP(AT46,Poängberäkning!$B$6:$B$97,Poängberäkning!$C$6:$C$97) -> 0 | BD46: =LARGE(($I46,$K46,$M46,$O46,$Q46,$S46,$U46,$W46,$Y46,$AA46,$AC46,$AE46,$AG46,$AI46,$AK46,$AM46,$AO46,$AQ46,$AS46,$AU46,$AW46,$AY46,$BA46,$BC46),1) -> 0 | BE46: =LARGE(($I46,$K46,$M46,$O46,$Q46,$S46,$U46,$W46,$Y46,$AA46,$AC46,$AE46,$AG46,$AI46,$AK46,$AM46,$AO46,$AQ46,$AS46,$AU46,$AW46,$AY46,$BA46,$BC46),2) -> 0 | BF46: =LARGE(($I46,$K46,$M46,$O46,$Q46,$S46,$U46,$W46,$Y46,$AA46,$AC46,$AE46,$AG46,$AI46,$AK46,$AM46,$AO46,$AQ46,$AS46,$AU46,$AW46,$AY46,$BA46,$BC46),3) -> 0 | BG46: =LARGE(($I46,$K46,$M46,$O46,$Q46,$S46,$U46,$W46,$Y46,$AA46,$AC46,$AE46,$AG46,$AI46,$AK46,$AM46,$AO46,$AQ46,$AS46,$AU46,$AW46,$AY46,$BA46,$BC46),4) -> 0 | BH46: =LARGE(($I46,$K46,$M46,$O46,$Q46,$S46,$U46,$W46,$Y46,$AA46,$AC46,$AE46,$AG46,$AI46,$AK46,$AM46,$AO46,$AQ46,$AS46,$AU46,$AW46,$AY46,$BA46,$BC46),5) -> 0 | BI46: =LARGE(($I46,$K46,$M46,$O46,$Q46,$S46,$U46,$W46,$Y46,$AA46,$AC46,$AE46,$AG46,$AI46,$AK46,$AM46,$AO46,$AQ46,$AS46,$AU46,$AW46,$AY46,$BA46,$BC46),6) -> 0 | BJ46: =LARGE(($I46,$K46,$M46,$O46,$Q46,$S46,$U46,$W46,$Y46,$AA46,$AC46,$AE46,$AG46,$AI46,$AK46,$AM46,$AO46,$AQ46,$AS46,$AU46,$AW46,$AY46,$BA46,$BC46),7) -> 0 | BK46: =LARGE(($I46,$K46,$M46,$O46,$Q46,$S46,$U46,$W46,$Y46,$AA46,$AC46,$AE46,$AG46,$AI46,$AK46,$AM46,$AO46,$AQ46,$AS46,$AU46,$AW46,$AY46,$BA46,$BC46),8) -> 0 | BL46: =LARGE(($I46,$K46,$M46,$O46,$Q46,$S46,$U46,$W46,$Y46,$AA46,$AC46,$AE46,$AG46,$AI46,$AK46,$AM46,$AO46,$AQ46,$AS46,$AU46,$AW46,$AY46,$BA46,$BC46),9) -> 0 | BM46: =LARGE(($I46,$K46,$M46,$O46,$Q46,$S46,$U46,$W46,$Y46,$AA46,$AC46,$AE46,$AG46,$AI46,$AK46,$AM46,$AO46,$AQ46,$AS46,$AU46,$AW46,$AY46,$BA46,$BC46),10) -> 0
A47: 43 | E47: 0 | F47: 0 | G47: 0 | I47: =LOOKUP(H47,Poängberäkning!$B$6:$B$97,Poängberäkning!$C$6:$C$97) -> 0 | K47: =LOOKUP(J47,Poängberäkning!$B$6:$B$97,Poängberäkning!$C$6:$C$97) -> 0 | M47: =LOOKUP(L47,Poängberäkning!$B$6:$B$97,Poängberäkning!$C$6:$C$97) -> 0 | O47: =LOOKUP(N47,Poängberäkning!$B$6:$B$97,Poängberäkning!$C$6:$C$97) -> 0 | Q47: =LOOKUP(P47,Poängberäkning!$B$6:$B$97,Poängberäkning!$C$6:$C$97) -> 0 | S47: =LOOKUP(R47,Poängberäkning!$B$6:$B$97,Poängberäkning!$C$6:$C$97) -> 0 | U47: =LOOKUP(T47,Poängberäkning!$B$6:$B$97,Poängberäkning!$C$6:$C$97) -> 0 | W47: =LOOKUP(V47,Poängberäkning!$B$6:$B$97,Poängberäkning!$C$6:$C$97) -> 0 | Y47: =LOOKUP(X47,Poängberäkning!$B$6:$B$97,Poängberäkning!$C$6:$C$97) -> 0 | AA47: =LOOKUP(Z47,Poängberäkning!$B$6:$B$97,Poängberäkning!$C$6:$C$97) -> 0 | AC47: =LOOKUP(AB47,Poängberäkning!$B$6:$B$97,Poängberäkning!$C$6:$C$97) -> 0 | AE47: =LOOKUP(AD47,Poängberäkning!$B$6:$B$97,Poängberäkning!$C$6:$C$97) -> 0 | AG47: =LOOKUP(AF47,Poängberäkning!$B$6:$B$97,Poängberäkning!$C$6:$C$97) -> 0 | AI47: =LOOKUP(AH47,Poängberäkning!$B$6:$B$97,Poängberäkning!$C$6:$C$97) -> 0 | AK47: =LOOKUP(AJ47,Poängberäkning!$B$6:$B$97,Poängberäkning!$C$6:$C$97) -> 0 | AM47: =LOOKUP(AL47,Poängberäkning!$B$6:$B$97,Poängberäkning!$C$6:$C$97) -> 0 | AO47: =LOOKUP(AN47,Poängberäkning!$B$6:$B$97,Poängberäkning!$C$6:$C$97) -> 0 | AQ47: =LOOKUP(AP47,Poängberäkning!$B$6:$B$97,Poängberäkning!$C$6:$C$97) -> 0 | AS47: =LOOKUP(AR47,Poängberäkning!$B$6:$B$97,Poängberäkning!$C$6:$C$97) -> 0 | AU47: =LOOKUP(AT47,Poängberäkning!$B$6:$B$97,Poängberäkning!$C$6:$C$97) -> 0 | BD47: =LARGE(($I47,$K47,$M47,$O47,$Q47,$S47,$U47,$W47,$Y47,$AA47,$AC47,$AE47,$AG47,$AI47,$AK47,$AM47,$AO47,$AQ47,$AS47,$AU47,$AW47,$AY47,$BA47,$BC47),1) -> 0 | BE47: =LARGE(($I47,$K47,$M47,$O47,$Q47,$S47,$U47,$W47,$Y47,$AA47,$AC47,$AE47,$AG47,$AI47,$AK47,$AM47,$AO47,$AQ47,$AS47,$AU47,$AW47,$AY47,$BA47,$BC47),2) -> 0 | BF47: =LARGE(($I47,$K47,$M47,$O47,$Q47,$S47,$U47,$W47,$Y47,$AA47,$AC47,$AE47,$AG47,$AI47,$AK47,$AM47,$AO47,$AQ47,$AS47,$AU47,$AW47,$AY47,$BA47,$BC47),3) -> 0 | BG47: =LARGE(($I47,$K47,$M47,$O47,$Q47,$S47,$U47,$W47,$Y47,$AA47,$AC47,$AE47,$AG47,$AI47,$AK47,$AM47,$AO47,$AQ47,$AS47,$AU47,$AW47,$AY47,$BA47,$BC47),4) -> 0 | BH47: =LARGE(($I47,$K47,$M47,$O47,$Q47,$S47,$U47,$W47,$Y47,$AA47,$AC47,$AE47,$AG47,$AI47,$AK47,$AM47,$AO47,$AQ47,$AS47,$AU47,$AW47,$AY47,$BA47,$BC47),5) -> 0 | BI47: =LARGE(($I47,$K47,$M47,$O47,$Q47,$S47,$U47,$W47,$Y47,$AA47,$AC47,$AE47,$AG47,$AI47,$AK47,$AM47,$AO47,$AQ47,$AS47,$AU47,$AW47,$AY47,$BA47,$BC47),6) -> 0 | BJ47: =LARGE(($I47,$K47,$M47,$O47,$Q47,$S47,$U47,$W47,$Y47,$AA47,$AC47,$AE47,$AG47,$AI47,$AK47,$AM47,$AO47,$AQ47,$AS47,$AU47,$AW47,$AY47,$BA47,$BC47),7) -> 0 | BK47: =LARGE(($I47,$K47,$M47,$O47,$Q47,$S47,$U47,$W47,$Y47,$AA47,$AC47,$AE47,$AG47,$AI47,$AK47,$AM47,$AO47,$AQ47,$AS47,$AU47,$AW47,$AY47,$BA47,$BC47),8) -> 0 | BL47: =LARGE(($I47,$K47,$M47,$O47,$Q47,$S47,$U47,$W47,$Y47,$AA47,$AC47,$AE47,$AG47,$AI47,$AK47,$AM47,$AO47,$AQ47,$AS47,$AU47,$AW47,$AY47,$BA47,$BC47),9) -> 0 | BM47: =LARGE(($I47,$K47,$M47,$O47,$Q47,$S47,$U47,$W47,$Y47,$AA47,$AC47,$AE47,$AG47,$AI47,$AK47,$AM47,$AO47,$AQ47,$AS47,$AU47,$AW47,$AY47,$BA47,$BC47),10) -> 0
A48: 44 | E48: 0 | F48: 0 | G48: 0 | I48: =LOOKUP(H48,Poängberäkning!$B$6:$B$97,Poängberäkning!$C$6:$C$97) -> 0 | K48: =LOOKUP(J48,Poängberäkning!$B$6:$B$97,Poängberäkning!$C$6:$C$97) -> 0 | M48: =LOOKUP(L48,Poängberäkning!$B$6:$B$97,Poängberäkning!$C$6:$C$97) -> 0 | O48: =LOOKUP(N48,Poängberäkning!$B$6:$B$97,Poängberäkning!$C$6:$C$97) -> 0 | Q48: =LOOKUP(P48,Poängberäkning!$B$6:$B$97,Poängberäkning!$C$6:$C$97) -> 0 | S48: =LOOKUP(R48,Poängberäkning!$B$6:$B$97,Poängberäkning!$C$6:$C$97) -> 0 | U48: =LOOKUP(T48,Poängberäkning!$B$6:$B$97,Poängberäkning!$C$6:$C$97) -> 0 | W48: =LOOKUP(V48,Poängberäkning!$B$6:$B$97,Poängberäkning!$C$6:$C$97) -> 0 | Y48: =LOOKUP(X48,Poängberäkning!$B$6:$B$97,Poängberäkning!$C$6:$C$97) -> 0 | AA48: =LOOKUP(Z48,Poängberäkning!$B$6:$B$97,Poängberäkning!$C$6:$C$97) -> 0 | AC48: =LOOKUP(AB48,Poängberäkning!$B$6:$B$97,Poängberäkning!$C$6:$C$97) -> 0 | AE48: =LOOKUP(AD48,Poängberäkning!$B$6:$B$97,Poängberäkning!$C$6:$C$97) -> 0 | AG48: =LOOKUP(AF48,Poängberäkning!$B$6:$B$97,Poängberäkning!$C$6:$C$97) -> 0 | AI48: =LOOKUP(AH48,Poängberäkning!$B$6:$B$97,Poängberäkning!$C$6:$C$97) -> 0 | AK48: =LOOKUP(AJ48,Poängberäkning!$B$6:$B$97,Poängberäkning!$C$6:$C$97) -> 0 | AM48: =LOOKUP(AL48,Poängberäkning!$B$6:$B$97,Poängberäkning!$C$6:$C$97) -> 0 | AO48: =LOOKUP(AN48,Poängberäkning!$B$6:$B$97,Poängberäkning!$C$6:$C$97) -> 0 | AQ48: =LOOKUP(AP48,Poängberäkning!$B$6:$B$97,Poängberäkning!$C$6:$C$97) -> 0 | AS48: =LOOKUP(AR48,Poängberäkning!$B$6:$B$97,Poängberäkning!$C$6:$C$97) -> 0 | AU48: =LOOKUP(AT48,Poängberäkning!$B$6:$B$97,Poängberäkning!$C$6:$C$97) -> 0 | BD48: =LARGE(($I48,$K48,$M48,$O48,$Q48,$S48,$U48,$W48,$Y48,$AA48,$AC48,$AE48,$AG48,$AI48,$AK48,$AM48,$AO48,$AQ48,$AS48,$AU48,$AW48,$AY48,$BA48,$BC48),1) -> 0 | BE48: =LARGE(($I48,$K48,$M48,$O48,$Q48,$S48,$U48,$W48,$Y48,$AA48,$AC48,$AE48,$AG48,$AI48,$AK48,$AM48,$AO48,$AQ48,$AS48,$AU48,$AW48,$AY48,$BA48,$BC48),2) -> 0 | BF48: =LARGE(($I48,$K48,$M48,$O48,$Q48,$S48,$U48,$W48,$Y48,$AA48,$AC48,$AE48,$AG48,$AI48,$AK48,$AM48,$AO48,$AQ48,$AS48,$AU48,$AW48,$AY48,$BA48,$BC48),3) -> 0 | BG48: =LARGE(($I48,$K48,$M48,$O48,$Q48,$S48,$U48,$W48,$Y48,$AA48,$AC48,$AE48,$AG48,$AI48,$AK48,$AM48,$AO48,$AQ48,$AS48,$AU48,$AW48,$AY48,$BA48,$BC48),4) -> 0 | BH48: =LARGE(($I48,$K48,$M48,$O48,$Q48,$S48,$U48,$W48,$Y48,$AA48,$AC48,$AE48,$AG48,$AI48,$AK48,$AM48,$AO48,$AQ48,$AS48,$AU48,$AW48,$AY48,$BA48,$BC48),5) -> 0 | BI48: =LARGE(($I48,$K48,$M48,$O48,$Q48,$S48,$U48,$W48,$Y48,$AA48,$AC48,$AE48,$AG48,$AI48,$AK48,$AM48,$AO48,$AQ48,$AS48,$AU48,$AW48,$AY48,$BA48,$BC48),6) -> 0 | BJ48: =LARGE(($I48,$K48,$M48,$O48,$Q48,$S48,$U48,$W48,$Y48,$AA48,$AC48,$AE48,$AG48,$AI48,$AK48,$AM48,$AO48,$AQ48,$AS48,$AU48,$AW48,$AY48,$BA48,$BC48),7) -> 0 | BK48: =LARGE(($I48,$K48,$M48,$O48,$Q48,$S48,$U48,$W48,$Y48,$AA48,$AC48,$AE48,$AG48,$AI48,$AK48,$AM48,$AO48,$AQ48,$AS48,$AU48,$AW48,$AY48,$BA48,$BC48),8) -> 0 | BL48: =LARGE(($I48,$K48,$M48,$O48,$Q48,$S48,$U48,$W48,$Y48,$AA48,$AC48,$AE48,$AG48,$AI48,$AK48,$AM48,$AO48,$AQ48,$AS48,$AU48,$AW48,$AY48,$BA48,$BC48),9) -> 0 | BM48: =LARGE(($I48,$K48,$M48,$O48,$Q48,$S48,$U48,$W48,$Y48,$AA48,$AC48,$AE48,$AG48,$AI48,$AK48,$AM48,$AO48,$AQ48,$AS48,$AU48,$AW48,$AY48,$BA48,$BC48),10) -> 0
A49: 45 | E49: 0 | F49: 0 | G49: 0 | I49: =LOOKUP(H49,Poängberäkning!$B$6:$B$97,Poängberäkning!$C$6:$C$97) -> 0 | K49: =LOOKUP(J49,Poängberäkning!$B$6:$B$97,Poängberäkning!$C$6:$C$97) -> 0 | M49: =LOOKUP(L49,Poängberäkning!$B$6:$B$97,Poängberäkning!$C$6:$C$97) -> 0 | O49: =LOOKUP(N49,Poängberäkning!$B$6:$B$97,Poängberäkning!$C$6:$C$97) -> 0 | Q49: =LOOKUP(P49,Poängberäkning!$B$6:$B$97,Poängberäkning!$C$6:$C$97) -> 0 | S49: =LOOKUP(R49,Poängberäkning!$B$6:$B$97,Poängberäkning!$C$6:$C$97) -> 0 | U49: =LOOKUP(T49,Poängberäkning!$B$6:$B$97,Poängberäkning!$C$6:$C$97) -> 0 | W49: =LOOKUP(V49,Poängberäkning!$B$6:$B$97,Poängberäkning!$C$6:$C$97) -> 0 | Y49: =LOOKUP(X49,Poängberäkning!$B$6:$B$97,Poängberäkning!$C$6:$C$97) -> 0 | AA49: =LOOKUP(Z49,Poängberäkning!$B$6:$B$97,Poängberäkning!$C$6:$C$97) -> 0 | AC49: =LOOKUP(AB49,Poängberäkning!$B$6:$B$97,Poängberäkning!$C$6:$C$97) -> 0 | AE49: =LOOKUP(AD49,Poängberäkning!$B$6:$B$97,Poängberäkning!$C$6:$C$97) -> 0 | AG49: =LOOKUP(AF49,Poängberäkning!$B$6:$B$97,Poängberäkning!$C$6:$C$97) -> 0 | AI49: =LOOKUP(AH49,Poängberäkning!$B$6:$B$97,Poängberäkning!$C$6:$C$97) -> 0 | AK49: =LOOKUP(AJ49,Poängberäkning!$B$6:$B$97,Poängberäkning!$C$6:$C$97) -> 0 | AM49: =LOOKUP(AL49,Poängberäkning!$B$6:$B$97,Poängberäkning!$C$6:$C$97) -> 0 | AO49: =LOOKUP(AN49,Poängberäkning!$B$6:$B$97,Poängberäkning!$C$6:$C$97) -> 0 | AQ49: =LOOKUP(AP49,Poängberäkning!$B$6:$B$97,Poängberäkning!$C$6:$C$97) -> 0 | AS49: =LOOKUP(AR49,Poängberäkning!$B$6:$B$97,Poängberäkning!$C$6:$C$97) -> 0 | AU49: =LOOKUP(AT49,Poängberäkning!$B$6:$B$97,Poängberäkning!$C$6:$C$97) -> 0 | BD49: =LARGE(($I49,$K49,$M49,$O49,$Q49,$S49,$U49,$W49,$Y49,$AA49,$AC49,$AE49,$AG49,$AI49,$AK49,$AM49,$AO49,$AQ49,$AS49,$AU49,$AW49,$AY49,$BA49,$BC49),1) -> 0 | BE49: =LARGE(($I49,$K49,$M49,$O49,$Q49,$S49,$U49,$W49,$Y49,$AA49,$AC49,$AE49,$AG49,$AI49,$AK49,$AM49,$AO49,$AQ49,$AS49,$AU49,$AW49,$AY49,$BA49,$BC49),2) -> 0 | BF49: =LARGE(($I49,$K49,$M49,$O49,$Q49,$S49,$U49,$W49,$Y49,$AA49,$AC49,$AE49,$AG49,$AI49,$AK49,$AM49,$AO49,$AQ49,$AS49,$AU49,$AW49,$AY49,$BA49,$BC49),3) -> 0 | BG49: =LARGE(($I49,$K49,$M49,$O49,$Q49,$S49,$U49,$W49,$Y49,$AA49,$AC49,$AE49,$AG49,$AI49,$AK49,$AM49,$AO49,$AQ49,$AS49,$AU49,$AW49,$AY49,$BA49,$BC49),4) -> 0 | BH49: =LARGE(($I49,$K49,$M49,$O49,$Q49,$S49,$U49,$W49,$Y49,$AA49,$AC49,$AE49,$AG49,$AI49,$AK49,$AM49,$AO49,$AQ49,$AS49,$AU49,$AW49,$AY49,$BA49,$BC49),5) -> 0 | BI49: =LARGE(($I49,$K49,$M49,$O49,$Q49,$S49,$U49,$W49,$Y49,$AA49,$AC49,$AE49,$AG49,$AI49,$AK49,$AM49,$AO49,$AQ49,$AS49,$AU49,$AW49,$AY49,$BA49,$BC49),6) -> 0 | BJ49: =LARGE(($I49,$K49,$M49,$O49,$Q49,$S49,$U49,$W49,$Y49,$AA49,$AC49,$AE49,$AG49,$AI49,$AK49,$AM49,$AO49,$AQ49,$AS49,$AU49,$AW49,$AY49,$BA49,$BC49),7) -> 0 | BK49: =LARGE(($I49,$K49,$M49,$O49,$Q49,$S49,$U49,$W49,$Y49,$AA49,$AC49,$AE49,$AG49,$AI49,$AK49,$AM49,$AO49,$AQ49,$AS49,$AU49,$AW49,$AY49,$BA49,$BC49),8) -> 0 | BL49: =LARGE(($I49,$K49,$M49,$O49,$Q49,$S49,$U49,$W49,$Y49,$AA49,$AC49,$AE49,$AG49,$AI49,$AK49,$AM49,$AO49,$AQ49,$AS49,$AU49,$AW49,$AY49,$BA49,$BC49),9) -> 0 | BM49: =LARGE(($I49,$K49,$M49,$O49,$Q49,$S49,$U49,$W49,$Y49,$AA49,$AC49,$AE49,$AG49,$AI49,$AK49,$AM49,$AO49,$AQ49,$AS49,$AU49,$AW49,$AY49,$BA49,$BC49),10) -> 0
A50: 46 | E50: 0 | F50: 0 | G50: 0 | I50: =LOOKUP(H50,Poängberäkning!$B$6:$B$97,Poängberäkning!$C$6:$C$97) -> 0 | K50: =LOOKUP(J50,Poängberäkning!$B$6:$B$97,Poängberäkning!$C$6:$C$97) -> 0 | M50: =LOOKUP(L50,Poängberäkning!$B$6:$B$97,Poängberäkning!$C$6:$C$97) -> 0 | O50: =LOOKUP(N50,Poängberäkning!$B$6:$B$97,Poängberäkning!$C$6:$C$97) -> 0 | Q50: =LOOKUP(P50,Poängberäkning!$B$6:$B$97,Poängberäkning!$C$6:$C$97) -> 0 | S50: =LOOKUP(R50,Poängberäkning!$B$6:$B$97,Poängberäkning!$C$6:$C$97) -> 0 | U50: =LOOKUP(T50,Poängberäkning!$B$6:$B$97,Poängberäkning!$C$6:$C$97) -> 0 | W50: =LOOKUP(V50,Poängberäkning!$B$6:$B$97,Poängberäkning!$C$6:$C$97) -> 0 | Y50: =LOOKUP(X50,Poängberäkning!$B$6:$B$97,Poängberäkning!$C$6:$C$97) -> 0 | AA50: =LOOKUP(Z50,Poängberäkning!$B$6:$B$97,Poängberäkning!$C$6:$C$97) -> 0 | AC50: =LOOKUP(AB50,Poängberäkning!$B$6:$B$97,Poängberäkning!$C$6:$C$97) -> 0 | AE50: =LOOKUP(AD50,Poängberäkning!$B$6:$B$97,Poängberäkning!$C$6:$C$97) -> 0 | AG50: =LOOKUP(AF50,Poängberäkning!$B$6:$B$97,Poängberäkning!$C$6:$C$97) -> 0 | AI50: =LOOKUP(AH50,Poängberäkning!$B$6:$B$97,Poängberäkning!$C$6:$C$97) -> 0 | AK50: =LOOKUP(AJ50,Poängberäkning!$B$6:$B$97,Poängberäkning!$C$6:$C$97) -> 0 | AM50: =LOOKUP(AL50,Poängberäkning!$B$6:$B$97,Poängberäkning!$C$6:$C$97) -> 0 | AO50: =LOOKUP(AN50,Poängberäkning!$B$6:$B$97,Poängberäkning!$C$6:$C$97) -> 0 | AQ50: =LOOKUP(AP50,Poängberäkning!$B$6:$B$97,Poängberäkning!$C$6:$C$97) -> 0 | AS50: =LOOKUP(AR50,Poängberäkning!$B$6:$B$97,Poängberäkning!$C$6:$C$97) -> 0 | AU50: =LOOKUP(AT50,Poängberäkning!$B$6:$B$97,Poängberäkning!$C$6:$C$97) -> 0 | BD50: =LARGE(($I50,$K50,$M50,$O50,$Q50,$S50,$U50,$W50,$Y50,$AA50,$AC50,$AE50,$AG50,$AI50,$AK50,$AM50,$AO50,$AQ50,$AS50,$AU50,$AW50,$AY50,$BA50,$BC50),1) -> 0 | BE50: =LARGE(($I50,$K50,$M50,$O50,$Q50,$S50,$U50,$W50,$Y50,$AA50,$AC50,$AE50,$AG50,$AI50,$AK50,$AM50,$AO50,$AQ50,$AS50,$AU50,$AW50,$AY50,$BA50,$BC50),2) -> 0 | BF50: =LARGE(($I50,$K50,$M50,$O50,$Q50,$S50,$U50,$W50,$Y50,$AA50,$AC50,$AE50,$AG50,$AI50,$AK50,$AM50,$AO50,$AQ50,$AS50,$AU50,$AW50,$AY50,$BA50,$BC50),3) -> 0 | BG50: =LARGE(($I50,$K50,$M50,$O50,$Q50,$S50,$U50,$W50,$Y50,$AA50,$AC50,$AE50,$AG50,$AI50,$AK50,$AM50,$AO50,$AQ50,$AS50,$AU50,$AW50,$AY50,$BA50,$BC50),4) -> 0 | BH50: =LARGE(($I50,$K50,$M50,$O50,$Q50,$S50,$U50,$W50,$Y50,$AA50,$AC50,$AE50,$AG50,$AI50,$AK50,$AM50,$AO50,$AQ50,$AS50,$AU50,$AW50,$AY50,$BA50,$BC50),5) -> 0 | BI50: =LARGE(($I50,$K50,$M50,$O50,$Q50,$S50,$U50,$W50,$Y50,$AA50,$AC50,$AE50,$AG50,$AI50,$AK50,$AM50,$AO50,$AQ50,$AS50,$AU50,$AW50,$AY50,$BA50,$BC50),6) -> 0 | BJ50: =LARGE(($I50,$K50,$M50,$O50,$Q50,$S50,$U50,$W50,$Y50,$AA50,$AC50,$AE50,$AG50,$AI50,$AK50,$AM50,$AO50,$AQ50,$AS50,$AU50,$AW50,$AY50,$BA50,$BC50),7) -> 0 | BK50: =LARGE(($I50,$K50,$M50,$O50,$Q50,$S50,$U50,$W50,$Y50,$AA50,$AC50,$AE50,$AG50,$AI50,$AK50,$AM50,$AO50,$AQ50,$AS50,$AU50,$AW50,$AY50,$BA50,$BC50),8) -> 0 | BL50: =LARGE(($I50,$K50,$M50,$O50,$Q50,$S50,$U50,$W50,$Y50,$AA50,$AC50,$AE50,$AG50,$AI50,$AK50,$AM50,$AO50,$AQ50,$AS50,$AU50,$AW50,$AY50,$BA50,$BC50),9) -> 0 | BM50: =LARGE(($I50,$K50,$M50,$O50,$Q50,$S50,$U50,$W50,$Y50,$AA50,$AC50,$AE50,$AG50,$AI50,$AK50,$AM50,$AO50,$AQ50,$AS50,$AU50,$AW50,$AY50,$BA50,$BC50),10) -> 0
A51: 47 | E51: 0 | F51: 0 | G51: 0 | I51: =LOOKUP(H51,Poängberäkning!$B$6:$B$97,Poängberäkning!$C$6:$C$97) -> 0 | K51: =LOOKUP(J51,Poängberäkning!$B$6:$B$97,Poängberäkning!$C$6:$C$97) -> 0 | M51: =LOOKUP(L51,Poängberäkning!$B$6:$B$97,Poängberäkning!$C$6:$C$97) -> 0 | O51: =LOOKUP(N51,Poängberäkning!$B$6:$B$97,Poängberäkning!$C$6:$C$97) -> 0 | Q51: =LOOKUP(P51,Poängberäkning!$B$6:$B$97,Poängberäkning!$C$6:$C$97) -> 0 | S51: =LOOKUP(R51,Poängberäkning!$B$6:$B$97,Poängberäkning!$C$6:$C$97) -> 0 | U51: =LOOKUP(T51,Poängberäkning!$B$6:$B$97,Poängberäkning!$C$6:$C$97) -> 0 | W51: =LOOKUP(V51,Poängberäkning!$B$6:$B$97,Poängberäkning!$C$6:$C$97) -> 0 | Y51: =LOOKUP(X51,Poängberäkning!$B$6:$B$97,Poängberäkning!$C$6:$C$97) -> 0 | AA51: =LOOKUP(Z51,Poängberäkning!$B$6:$B$97,Poängberäkning!$C$6:$C$97) -> 0 | AC51: =LOOKUP(AB51,Poängberäkning!$B$6:$B$97,Poängberäkning!$C$6:$C$97) -> 0 | AE51: =LOOKUP(AD51,Poängberäkning!$B$6:$B$97,Poängberäkning!$C$6:$C$97) -> 0 | AG51: =LOOKUP(AF51,Poängberäkning!$B$6:$B$97,Poängberäkning!$C$6:$C$97) -> 0 | AI51: =LOOKUP(AH51,Poängberäkning!$B$6:$B$97,Poängberäkning!$C$6:$C$97) -> 0 | AK51: =LOOKUP(AJ51,Poängberäkning!$B$6:$B$97,Poängberäkning!$C$6:$C$97) -> 0 | AM51: =LOOKUP(AL51,Poängberäkning!$B$6:$B$97,Poängberäkning!$C$6:$C$97) -> 0 | AO51: =LOOKUP(AN51,Poängberäkning!$B$6:$B$97,Poängberäkning!$C$6:$C$97) -> 0 | AQ51: =LOOKUP(AP51,Poängberäkning!$B$6:$B$97,Poängberäkning!$C$6:$C$97) -> 0 | AS51: =LOOKUP(AR51,Poängberäkning!$B$6:$B$97,Poängberäkning!$C$6:$C$97) -> 0 | AU51: =LOOKUP(AT51,Poängberäkning!$B$6:$B$97,Poängberäkning!$C$6:$C$97) -> 0 | BD51: =LARGE(($I51,$K51,$M51,$O51,$Q51,$S51,$U51,$W51,$Y51,$AA51,$AC51,$AE51,$AG51,$AI51,$AK51,$AM51,$AO51,$AQ51,$AS51,$AU51,$AW51,$AY51,$BA51,$BC51),1) -> 0 | BE51: =LARGE(($I51,$K51,$M51,$O51,$Q51,$S51,$U51,$W51,$Y51,$AA51,$AC51,$AE51,$AG51,$AI51,$AK51,$AM51,$AO51,$AQ51,$AS51,$AU51,$AW51,$AY51,$BA51,$BC51),2) -> 0 | BF51: =LARGE(($I51,$K51,$M51,$O51,$Q51,$S51,$U51,$W51,$Y51,$AA51,$AC51,$AE51,$AG51,$AI51,$AK51,$AM51,$AO51,$AQ51,$AS51,$AU51,$AW51,$AY51,$BA51,$BC51),3) -> 0 | BG51: =LARGE(($I51,$K51,$M51,$O51,$Q51,$S51,$U51,$W51,$Y51,$AA51,$AC51,$AE51,$AG51,$AI51,$AK51,$AM51,$AO51,$AQ51,$AS51,$AU51,$AW51,$AY51,$BA51,$BC51),4) -> 0 | BH51: =LARGE(($I51,$K51,$M51,$O51,$Q51,$S51,$U51,$W51,$Y51,$AA51,$AC51,$AE51,$AG51,$AI51,$AK51,$AM51,$AO51,$AQ51,$AS51,$AU51,$AW51,$AY51,$BA51,$BC51),5) -> 0 | BI51: =LARGE(($I51,$K51,$M51,$O51,$Q51,$S51,$U51,$W51,$Y51,$AA51,$AC51,$AE51,$AG51,$AI51,$AK51,$AM51,$AO51,$AQ51,$AS51,$AU51,$AW51,$AY51,$BA51,$BC51),6) -> 0 | BJ51: =LARGE(($I51,$K51,$M51,$O51,$Q51,$S51,$U51,$W51,$Y51,$AA51,$AC51,$AE51,$AG51,$AI51,$AK51,$AM51,$AO51,$AQ51,$AS51,$AU51,$AW51,$AY51,$BA51,$BC51),7) -> 0 | BK51: =LARGE(($I51,$K51,$M51,$O51,$Q51,$S51,$U51,$W51,$Y51,$AA51,$AC51,$AE51,$AG51,$AI51,$AK51,$AM51,$AO51,$AQ51,$AS51,$AU51,$AW51,$AY51,$BA51,$BC51),8) -> 0 | BL51: =LARGE(($I51,$K51,$M51,$O51,$Q51,$S51,$U51,$W51,$Y51,$AA51,$AC51,$AE51,$AG51,$AI51,$AK51,$AM51,$AO51,$AQ51,$AS51,$AU51,$AW51,$AY51,$BA51,$BC51),9) -> 0 | BM51: =LARGE(($I51,$K51,$M51,$O51,$Q51,$S51,$U51,$W51,$Y51,$AA51,$AC51,$AE51,$AG51,$AI51,$AK51,$AM51,$AO51,$AQ51,$AS51,$AU51,$AW51,$AY51,$BA51,$BC51),10) -> 0
A52: 48 | E52: 0 | F52: 0 | G52: 0 | I52: =LOOKUP(H52,Poängberäkning!$B$6:$B$97,Poängberäkning!$C$6:$C$97) -> 0 | K52: =LOOKUP(J52,Poängberäkning!$B$6:$B$97,Poängberäkning!$C$6:$C$97) -> 0 | M52: =LOOKUP(L52,Poängberäkning!$B$6:$B$97,Poängberäkning!$C$6:$C$97) -> 0 | O52: =LOOKUP(N52,Poängberäkning!$B$6:$B$97,Poängberäkning!$C$6:$C$97) -> 0 | Q52: =LOOKUP(P52,Poängberäkning!$B$6:$B$97,Poängberäkning!$C$6:$C$97) -> 0 | S52: =LOOKUP(R52,Poängberäkning!$B$6:$B$97,Poängberäkning!$C$6:$C$97) -> 0 | U52: =LOOKUP(T52,Poängberäkning!$B$6:$B$97,Poängberäkning!$C$6:$C$97) -> 0 | W52: =LOOKUP(V52,Poängberäkning!$B$6:$B$97,Poängberäkning!$C$6:$C$97) -> 0 | Y52: =LOOKUP(X52,Poängberäkning!$B$6:$B$97,Poängberäkning!$C$6:$C$97) -> 0 | AA52: =LOOKUP(Z52,Poängberäkning!$B$6:$B$97,Poängberäkning!$C$6:$C$97) -> 0 | AC52: =LOOKUP(AB52,Poängberäkning!$B$6:$B$97,Poängberäkning!$C$6:$C$97) -> 0 | AE52: =LOOKUP(AD52,Poängberäkning!$B$6:$B$97,Poängberäkning!$C$6:$C$97) -> 0 | AG52: =LOOKUP(AF52,Poängberäkning!$B$6:$B$97,Poängberäkning!$C$6:$C$97) -> 0 | AI52: =LOOKUP(AH52,Poängberäkning!$B$6:$B$97,Poängberäkning!$C$6:$C$97) -> 0 | AK52: =LOOKUP(AJ52,Poängberäkning!$B$6:$B$97,Poängberäkning!$C$6:$C$97) -> 0 | AM52: =LOOKUP(AL52,Poängberäkning!$B$6:$B$97,Poängberäkning!$C$6:$C$97) -> 0 | AO52: =LOOKUP(AN52,Poängberäkning!$B$6:$B$97,Poängberäkning!$C$6:$C$97) -> 0 | AQ52: =LOOKUP(AP52,Poängberäkning!$B$6:$B$97,Poängberäkning!$C$6:$C$97) -> 0 | AS52: =LOOKUP(AR52,Poängberäkning!$B$6:$B$97,Poängberäkning!$C$6:$C$97) -> 0 | AU52: =LOOKUP(AT52,Poängberäkning!$B$6:$B$97,Poängberäkning!$C$6:$C$97) -> 0 | BD52: =LARGE(($I52,$K52,$M52,$O52,$Q52,$S52,$U52,$W52,$Y52,$AA52,$AC52,$AE52,$AG52,$AI52,$AK52,$AM52,$AO52,$AQ52,$AS52,$AU52,$AW52,$AY52,$BA52,$BC52),1) -> 0 | BE52: =LARGE(($I52,$K52,$M52,$O52,$Q52,$S52,$U52,$W52,$Y52,$AA52,$AC52,$AE52,$AG52,$AI52,$AK52,$AM52,$AO52,$AQ52,$AS52,$AU52,$AW52,$AY52,$BA52,$BC52),2) -> 0 | BF52: =LARGE(($I52,$K52,$M52,$O52,$Q52,$S52,$U52,$W52,$Y52,$AA52,$AC52,$AE52,$AG52,$AI52,$AK52,$AM52,$AO52,$AQ52,$AS52,$AU52,$AW52,$AY52,$BA52,$BC52),3) -> 0 | BG52: =LARGE(($I52,$K52,$M52,$O52,$Q52,$S52,$U52,$W52,$Y52,$AA52,$AC52,$AE52,$AG52,$AI52,$AK52,$AM52,$AO52,$AQ52,$AS52,$AU52,$AW52,$AY52,$BA52,$BC52),4) -> 0 | BH52: =LARGE(($I52,$K52,$M52,$O52,$Q52,$S52,$U52,$W52,$Y52,$AA52,$AC52,$AE52,$AG52,$AI52,$AK52,$AM52,$AO52,$AQ52,$AS52,$AU52,$AW52,$AY52,$BA52,$BC52),5) -> 0 | BI52: =LARGE(($I52,$K52,$M52,$O52,$Q52,$S52,$U52,$W52,$Y52,$AA52,$AC52,$AE52,$AG52,$AI52,$AK52,$AM52,$AO52,$AQ52,$AS52,$AU52,$AW52,$AY52,$BA52,$BC52),6) -> 0 | BJ52: =LARGE(($I52,$K52,$M52,$O52,$Q52,$S52,$U52,$W52,$Y52,$AA52,$AC52,$AE52,$AG52,$AI52,$AK52,$AM52,$AO52,$AQ52,$AS52,$AU52,$AW52,$AY52,$BA52,$BC52),7) -> 0 | BK52: =LARGE(($I52,$K52,$M52,$O52,$Q52,$S52,$U52,$W52,$Y52,$AA52,$AC52,$AE52,$AG52,$AI52,$AK52,$AM52,$AO52,$AQ52,$AS52,$AU52,$AW52,$AY52,$BA52,$BC52),8) -> 0 | BL52: =LARGE(($I52,$K52,$M52,$O52,$Q52,$S52,$U52,$W52,$Y52,$AA52,$AC52,$AE52,$AG52,$AI52,$AK52,$AM52,$AO52,$AQ52,$AS52,$AU52,$AW52,$AY52,$BA52,$BC52),9) -> 0 | BM52: =LARGE(($I52,$K52,$M52,$O52,$Q52,$S52,$U52,$W52,$Y52,$AA52,$AC52,$AE52,$AG52,$AI52,$AK52,$AM52,$AO52,$AQ52,$AS52,$AU52,$AW52,$AY52,$BA52,$BC52),10) -> 0
A53: 49 | E53: 0 | F53: 0 | G53: 0 | I53: =LOOKUP(H53,Poängberäkning!$B$6:$B$97,Poängberäkning!$C$6:$C$97) -> 0 | K53: =LOOKUP(J53,Poängberäkning!$B$6:$B$97,Poängberäkning!$C$6:$C$97) -> 0 | M53: =LOOKUP(L53,Poängberäkning!$B$6:$B$97,Poängberäkning!$C$6:$C$97) -> 0 | O53: =LOOKUP(N53,Poängberäkning!$B$6:$B$97,Poängberäkning!$C$6:$C$97) -> 0 | Q53: =LOOKUP(P53,Poängberäkning!$B$6:$B$97,Poängberäkning!$C$6:$C$97) -> 0 | S53: =LOOKUP(R53,Poängberäkning!$B$6:$B$97,Poängberäkning!$C$6:$C$97) -> 0 | U53: =LOOKUP(T53,Poängberäkning!$B$6:$B$97,Poängberäkning!$C$6:$C$97) -> 0 | W53: =LOOKUP(V53,Poängberäkning!$B$6:$B$97,Poängberäkning!$C$6:$C$97) -> 0 | Y53: =LOOKUP(X53,Poängberäkning!$B$6:$B$97,Poängberäkning!$C$6:$C$97) -> 0 | AA53: =LOOKUP(Z53,Poängberäkning!$B$6:$B$97,Poängberäkning!$C$6:$C$97) -> 0 | AC53: =LOOKUP(AB53,Poängberäkning!$B$6:$B$97,Poängberäkning!$C$6:$C$97) -> 0 | AE53: =LOOKUP(AD53,Poängberäkning!$B$6:$B$97,Poängberäkning!$C$6:$C$97) -> 0 | AG53: =LOOKUP(AF53,Poängberäkning!$B$6:$B$97,Poängberäkning!$C$6:$C$97) -> 0 | AI53: =LOOKUP(AH53,Poängberäkning!$B$6:$B$97,Poängberäkning!$C$6:$C$97) -> 0 | AK53: =LOOKUP(AJ53,Poängberäkning!$B$6:$B$97,Poängberäkning!$C$6:$C$97) -> 0 | AM53: =LOOKUP(AL53,Poängberäkning!$B$6:$B$97,Poängberäkning!$C$6:$C$97) -> 0 | AO53: =LOOKUP(AN53,Poängberäkning!$B$6:$B$97,Poängberäkning!$C$6:$C$97) -> 0 | AQ53: =LOOKUP(AP53,Poängberäkning!$B$6:$B$97,Poängberäkning!$C$6:$C$97) -> 0 | AS53: =LOOKUP(AR53,Poängberäkning!$B$6:$B$97,Poängberäkning!$C$6:$C$97) -> 0 | AU53: =LOOKUP(AT53,Poängberäkning!$B$6:$B$97,Poängberäkning!$C$6:$C$97) -> 0 | BD53: =LARGE(($I53,$K53,$M53,$O53,$Q53,$S53,$U53,$W53,$Y53,$AA53,$AC53,$AE53,$AG53,$AI53,$AK53,$AM53,$AO53,$AQ53,$AS53,$AU53,$AW53,$AY53,$BA53,$BC53),1) -> 0 | BE53: =LARGE(($I53,$K53,$M53,$O53,$Q53,$S53,$U53,$W53,$Y53,$AA53,$AC53,$AE53,$AG53,$AI53,$AK53,$AM53,$AO53,$AQ53,$AS53,$AU53,$AW53,$AY53,$BA53,$BC53),2) -> 0 | BF53: =LARGE(($I53,$K53,$M53,$O53,$Q53,$S53,$U53,$W53,$Y53,$AA53,$AC53,$AE53,$AG53,$AI53,$AK53,$AM53,$AO53,$AQ53,$AS53,$AU53,$AW53,$AY53,$BA53,$BC53),3) -> 0 | BG53: =LARGE(($I53,$K53,$M53,$O53,$Q53,$S53,$U53,$W53,$Y53,$AA53,$AC53,$AE53,$AG53,$AI53,$AK53,$AM53,$AO53,$AQ53,$AS53,$AU53,$AW53,$AY53,$BA53,$BC53),4) -> 0 | BH53: =LARGE(($I53,$K53,$M53,$O53,$Q53,$S53,$U53,$W53,$Y53,$AA53,$AC53,$AE53,$AG53,$AI53,$AK53,$AM53,$AO53,$AQ53,$AS53,$AU53,$AW53,$AY53,$BA53,$BC53),5) -> 0 | BI53: =LARGE(($I53,$K53,$M53,$O53,$Q53,$S53,$U53,$W53,$Y53,$AA53,$AC53,$AE53,$AG53,$AI53,$AK53,$AM53,$AO53,$AQ53,$AS53,$AU53,$AW53,$AY53,$BA53,$BC53),6) -> 0 | BJ53: =LARGE(($I53,$K53,$M53,$O53,$Q53,$S53,$U53,$W53,$Y53,$AA53,$AC53,$AE53,$AG53,$AI53,$AK53,$AM53,$AO53,$AQ53,$AS53,$AU53,$AW53,$AY53,$BA53,$BC53),7) -> 0 | BK53: =LARGE(($I53,$K53,$M53,$O53,$Q53,$S53,$U53,$W53,$Y53,$AA53,$AC53,$AE53,$AG53,$AI53,$AK53,$AM53,$AO53,$AQ53,$AS53,$AU53,$AW53,$AY53,$BA53,$BC53),8) -> 0 | BL53: =LARGE(($I53,$K53,$M53,$O53,$Q53,$S53,$U53,$W53,$Y53,$AA53,$AC53,$AE53,$AG53,$AI53,$AK53,$AM53,$AO53,$AQ53,$AS53,$AU53,$AW53,$AY53,$BA53,$BC53),9) -> 0 | BM53: =LARGE(($I53,$K53,$M53,$O53,$Q53,$S53,$U53,$W53,$Y53,$AA53,$AC53,$AE53,$AG53,$AI53,$AK53,$AM53,$AO53,$AQ53,$AS53,$AU53,$AW53,$AY53,$BA53,$BC53),10) -> 0
A54: 50 | E54: 0 | F54: 0 | G54: 0 | I54: =LOOKUP(H54,Poängberäkning!$B$6:$B$97,Poängberäkning!$C$6:$C$97) -> 0 | K54: =LOOKUP(J54,Poängberäkning!$B$6:$B$97,Poängberäkning!$C$6:$C$97) -> 0 | M54: =LOOKUP(L54,Poängberäkning!$B$6:$B$97,Poängberäkning!$C$6:$C$97) -> 0 | O54: =LOOKUP(N54,Poängberäkning!$B$6:$B$97,Poängberäkning!$C$6:$C$97) -> 0 | Q54: =LOOKUP(P54,Poängberäkning!$B$6:$B$97,Poängberäkning!$C$6:$C$97) -> 0 | S54: =LOOKUP(R54,Poängberäkning!$B$6:$B$97,Poängberäkning!$C$6:$C$97) -> 0 | U54: =LOOKUP(T54,Poängberäkning!$B$6:$B$97,Poängberäkning!$C$6:$C$97) -> 0 | W54: =LOOKUP(V54,Poängberäkning!$B$6:$B$97,Poängberäkning!$C$6:$C$97) -> 0 | Y54: =LOOKUP(X54,Poängberäkning!$B$6:$B$97,Poängberäkning!$C$6:$C$97) -> 0 | AA54: =LOOKUP(Z54,Poängberäkning!$B$6:$B$97,Poängberäkning!$C$6:$C$97) -> 0 | AC54: =LOOKUP(AB54,Poängberäkning!$B$6:$B$97,Poängberäkning!$C$6:$C$97) -> 0 | AE54: =LOOKUP(AD54,Poängberäkning!$B$6:$B$97,Poängberäkning!$C$6:$C$97) -> 0 | AG54: =LOOKUP(AF54,Poängberäkning!$B$6:$B$97,Poängberäkning!$C$6:$C$97) -> 0 | AI54: =LOOKUP(AH54,Poängberäkning!$B$6:$B$97,Poängberäkning!$C$6:$C$97) -> 0 | AK54: =LOOKUP(AJ54,Poängberäkning!$B$6:$B$97,Poängberäkning!$C$6:$C$97) -> 0 | AM54: =LOOKUP(AL54,Poängberäkning!$B$6:$B$97,Poängberäkning!$C$6:$C$97) -> 0 | AO54: =LOOKUP(AN54,Poängberäkning!$B$6:$B$97,Poängberäkning!$C$6:$C$97) -> 0 | AQ54: =LOOKUP(AP54,Poängberäkning!$B$6:$B$97,Poängberäkning!$C$6:$C$97) -> 0 | AS54: =LOOKUP(AR54,Poängberäkning!$B$6:$B$97,Poängberäkning!$C$6:$C$97) -> 0 | AU54: =LOOKUP(AT54,Poängberäkning!$B$6:$B$97,Poängberäkning!$C$6:$C$97) -> 0 | BD54: =LARGE(($I54,$K54,$M54,$O54,$Q54,$S54,$U54,$W54,$Y54,$AA54,$AC54,$AE54,$AG54,$AI54,$AK54,$AM54,$AO54,$AQ54,$AS54,$AU54,$AW54,$AY54,$BA54,$BC54),1) -> 0 | BE54: =LARGE(($I54,$K54,$M54,$O54,$Q54,$S54,$U54,$W54,$Y54,$AA54,$AC54,$AE54,$AG54,$AI54,$AK54,$AM54,$AO54,$AQ54,$AS54,$AU54,$AW54,$AY54,$BA54,$BC54),2) -> 0 | BF54: =LARGE(($I54,$K54,$M54,$O54,$Q54,$S54,$U54,$W54,$Y54,$AA54,$AC54,$AE54,$AG54,$AI54,$AK54,$AM54,$AO54,$AQ54,$AS54,$AU54,$AW54,$AY54,$BA54,$BC54),3) -> 0 | BG54: =LARGE(($I54,$K54,$M54,$O54,$Q54,$S54,$U54,$W54,$Y54,$AA54,$AC54,$AE54,$AG54,$AI54,$AK54,$AM54,$AO54,$AQ54,$AS54,$AU54,$AW54,$AY54,$BA54,$BC54),4) -> 0 | BH54: =LARGE(($I54,$K54,$M54,$O54,$Q54,$S54,$U54,$W54,$Y54,$AA54,$AC54,$AE54,$AG54,$AI54,$AK54,$AM54,$AO54,$AQ54,$AS54,$AU54,$AW54,$AY54,$BA54,$BC54),5) -> 0 | BI54: =LARGE(($I54,$K54,$M54,$O54,$Q54,$S54,$U54,$W54,$Y54,$AA54,$AC54,$AE54,$AG54,$AI54,$AK54,$AM54,$AO54,$AQ54,$AS54,$AU54,$AW54,$AY54,$BA54,$BC54),6) -> 0 | BJ54: =LARGE(($I54,$K54,$M54,$O54,$Q54,$S54,$U54,$W54,$Y54,$AA54,$AC54,$AE54,$AG54,$AI54,$AK54,$AM54,$AO54,$AQ54,$AS54,$AU54,$AW54,$AY54,$BA54,$BC54),7) -> 0 | BK54: =LARGE(($I54,$K54,$M54,$O54,$Q54,$S54,$U54,$W54,$Y54,$AA54,$AC54,$AE54,$AG54,$AI54,$AK54,$AM54,$AO54,$AQ54,$AS54,$AU54,$AW54,$AY54,$BA54,$BC54),8) -> 0 | BL54: =LARGE(($I54,$K54,$M54,$O54,$Q54,$S54,$U54,$W54,$Y54,$AA54,$AC54,$AE54,$AG54,$AI54,$AK54,$AM54,$AO54,$AQ54,$AS54,$AU54,$AW54,$AY54,$BA54,$BC54),9) -> 0 | BM54: =LARGE(($I54,$K54,$M54,$O54,$Q54,$S54,$U54,$W54,$Y54,$AA54,$AC54,$AE54,$AG54,$AI54,$AK54,$AM54,$AO54,$AQ54,$AS54,$AU54,$AW54,$AY54,$BA54,$BC54),10) -> 0
A55: 51 | E55: 0 | F55: 0 | G55: 0 | I55: =LOOKUP(H55,Poängberäkning!$B$6:$B$97,Poängberäkning!$C$6:$C$97) -> 0 | K55: =LOOKUP(J55,Poängberäkning!$B$6:$B$97,Poängberäkning!$C$6:$C$97) -> 0 | M55: =LOOKUP(L55,Poängberäkning!$B$6:$B$97,Poängberäkning!$C$6:$C$97) -> 0 | O55: =LOOKUP(N55,Poängberäkning!$B$6:$B$97,Poängberäkning!$C$6:$C$97) -> 0 | Q55: =LOOKUP(P55,Poängberäkning!$B$6:$B$97,Poängberäkning!$C$6:$C$97) -> 0 | S55: =LOOKUP(R55,Poängberäkning!$B$6:$B$97,Poängberäkning!$C$6:$C$97) -> 0 | U55: =LOOKUP(T55,Poängberäkning!$B$6:$B$97,Poängberäkning!$C$6:$C$97) -> 0 | W55: =LOOKUP(V55,Poängberäkning!$B$6:$B$97,Poängberäkning!$C$6:$C$97) -> 0 | Y55: =LOOKUP(X55,Poängberäkning!$B$6:$B$97,Poängberäkning!$C$6:$C$97) -> 0 | AA55: =LOOKUP(Z55,Poängberäkning!$B$6:$B$97,Poängberäkning!$C$6:$C$97) -> 0 | AC55: =LOOKUP(AB55,Poängberäkning!$B$6:$B$97,Poängberäkning!$C$6:$C$97) -> 0 | AE55: =LOOKUP(AD55,Poängberäkning!$B$6:$B$97,Poängberäkning!$C$6:$C$97) -> 0 | AG55: =LOOKUP(AF55,Poängberäkning!$B$6:$B$97,Poängberäkning!$C$6:$C$97) -> 0 | AI55: =LOOKUP(AH55,Poängberäkning!$B$6:$B$97,Poängberäkning!$C$6:$C$97) -> 0 | AK55: =LOOKUP(AJ55,Poängberäkning!$B$6:$B$97,Poängberäkning!$C$6:$C$97) -> 0 | AM55: =LOOKUP(AL55,Poängberäkning!$B$6:$B$97,Poängberäkning!$C$6:$C$97) -> 0 | AO55: =LOOKUP(AN55,Poängberäkning!$B$6:$B$97,Poängberäkning!$C$6:$C$97) -> 0 | AQ55: =LOOKUP(AP55,Poängberäkning!$B$6:$B$97,Poängberäkning!$C$6:$C$97) -> 0 | AS55: =LOOKUP(AR55,Poängberäkning!$B$6:$B$97,Poängberäkning!$C$6:$C$97) -> 0 | AU55: =LOOKUP(AT55,Poängberäkning!$B$6:$B$97,Poängberäkning!$C$6:$C$97) -> 0 | BD55: =LARGE(($I55,$K55,$M55,$O55,$Q55,$S55,$U55,$W55,$Y55,$AA55,$AC55,$AE55,$AG55,$AI55,$AK55,$AM55,$AO55,$AQ55,$AS55,$AU55,$AW55,$AY55,$BA55,$BC55),1) -> 0 | BE55: =LARGE(($I55,$K55,$M55,$O55,$Q55,$S55,$U55,$W55,$Y55,$AA55,$AC55,$AE55,$AG55,$AI55,$AK55,$AM55,$AO55,$AQ55,$AS55,$AU55,$AW55,$AY55,$BA55,$BC55),2) -> 0 | BF55: =LARGE(($I55,$K55,$M55,$O55,$Q55,$S55,$U55,$W55,$Y55,$AA55,$AC55,$AE55,$AG55,$AI55,$AK55,$AM55,$AO55,$AQ55,$AS55,$AU55,$AW55,$AY55,$BA55,$BC55),3) -> 0 | BG55: =LARGE(($I55,$K55,$M55,$O55,$Q55,$S55,$U55,$W55,$Y55,$AA55,$AC55,$AE55,$AG55,$AI55,$AK55,$AM55,$AO55,$AQ55,$AS55,$AU55,$AW55,$AY55,$BA55,$BC55),4) -> 0 | BH55: =LARGE(($I55,$K55,$M55,$O55,$Q55,$S55,$U55,$W55,$Y55,$AA55,$AC55,$AE55,$AG55,$AI55,$AK55,$AM55,$AO55,$AQ55,$AS55,$AU55,$AW55,$AY55,$BA55,$BC55),5) -> 0 | BI55: =LARGE(($I55,$K55,$M55,$O55,$Q55,$S55,$U55,$W55,$Y55,$AA55,$AC55,$AE55,$AG55,$AI55,$AK55,$AM55,$AO55,$AQ55,$AS55,$AU55,$AW55,$AY55,$BA55,$BC55),6) -> 0 | BJ55: =LARGE(($I55,$K55,$M55,$O55,$Q55,$S55,$U55,$W55,$Y55,$AA55,$AC55,$AE55,$AG55,$AI55,$AK55,$AM55,$AO55,$AQ55,$AS55,$AU55,$AW55,$AY55,$BA55,$BC55),7) -> 0 | BK55: =LARGE(($I55,$K55,$M55,$O55,$Q55,$S55,$U55,$W55,$Y55,$AA55,$AC55,$AE55,$AG55,$AI55,$AK55,$AM55,$AO55,$AQ55,$AS55,$AU55,$AW55,$AY55,$BA55,$BC55),8) -> 0 | BL55: =LARGE(($I55,$K55,$M55,$O55,$Q55,$S55,$U55,$W55,$Y55,$AA55,$AC55,$AE55,$AG55,$AI55,$AK55,$AM55,$AO55,$AQ55,$AS55,$AU55,$AW55,$AY55,$BA55,$BC55),9) -> 0 | BM55: =LARGE(($I55,$K55,$M55,$O55,$Q55,$S55,$U55,$W55,$Y55,$AA55,$AC55,$AE55,$AG55,$AI55,$AK55,$AM55,$AO55,$AQ55,$AS55,$AU55,$AW55,$AY55,$BA55,$BC55),10) -> 0
A56: 52 | E56: 0 | F56: 0 | G56: 0 | I56: =LOOKUP(H56,Poängberäkning!$B$6:$B$97,Poängberäkning!$C$6:$C$97) -> 0 | K56: =LOOKUP(J56,Poängberäkning!$B$6:$B$97,Poängberäkning!$C$6:$C$97) -> 0 | M56: =LOOKUP(L56,Poängberäkning!$B$6:$B$97,Poängberäkning!$C$6:$C$97) -> 0 | O56: =LOOKUP(N56,Poängberäkning!$B$6:$B$97,Poängberäkning!$C$6:$C$97) -> 0 | Q56: =LOOKUP(P56,Poängberäkning!$B$6:$B$97,Poängberäkning!$C$6:$C$97) -> 0 | S56: =LOOKUP(R56,Poängberäkning!$B$6:$B$97,Poängberäkning!$C$6:$C$97) -> 0 | U56: =LOOKUP(T56,Poängberäkning!$B$6:$B$97,Poängberäkning!$C$6:$C$97) -> 0 | W56: =LOOKUP(V56,Poängberäkning!$B$6:$B$97,Poängberäkning!$C$6:$C$97) -> 0 | Y56: =LOOKUP(X56,Poängberäkning!$B$6:$B$97,Poängberäkning!$C$6:$C$97) -> 0 | AA56: =LOOKUP(Z56,Poängberäkning!$B$6:$B$97,Poängberäkning!$C$6:$C$97) -> 0 | AC56: =LOOKUP(AB56,Poängberäkning!$B$6:$B$97,Poängberäkning!$C$6:$C$97) -> 0 | AE56: =LOOKUP(AD56,Poängberäkning!$B$6:$B$97,Poängberäkning!$C$6:$C$97) -> 0 | AG56: =LOOKUP(AF56,Poängberäkning!$B$6:$B$97,Poängberäkning!$C$6:$C$97) -> 0 | AI56: =LOOKUP(AH56,Poängberäkning!$B$6:$B$97,Poängberäkning!$C$6:$C$97) -> 0 | AK56: =LOOKUP(AJ56,Poängberäkning!$B$6:$B$97,Poängberäkning!$C$6:$C$97) -> 0 | AM56: =LOOKUP(AL56,Poängberäkning!$B$6:$B$97,Poängberäkning!$C$6:$C$97) -> 0 | AO56: =LOOKUP(AN56,Poängberäkning!$B$6:$B$97,Poängberäkning!$C$6:$C$97) -> 0 | AQ56: =LOOKUP(AP56,Poängberäkning!$B$6:$B$97,Poängberäkning!$C$6:$C$97) -> 0 | AS56: =LOOKUP(AR56,Poängberäkning!$B$6:$B$97,Poängberäkning!$C$6:$C$97) -> 0 | AU56: =LOOKUP(AT56,Poängberäkning!$B$6:$B$97,Poängberäkning!$C$6:$C$97) -> 0 | BD56: =LARGE(($I56,$K56,$M56,$O56,$Q56,$S56,$U56,$W56,$Y56,$AA56,$AC56,$AE56,$AG56,$AI56,$AK56,$AM56,$AO56,$AQ56,$AS56,$AU56,$AW56,$AY56,$BA56,$BC56),1) -> 0 | BE56: =LARGE(($I56,$K56,$M56,$O56,$Q56,$S56,$U56,$W56,$Y56,$AA56,$AC56,$AE56,$AG56,$AI56,$AK56,$AM56,$AO56,$AQ56,$AS56,$AU56,$AW56,$AY56,$BA56,$BC56),2) -> 0 | BF56: =LARGE(($I56,$K56,$M56,$O56,$Q56,$S56,$U56,$W56,$Y56,$AA56,$AC56,$AE56,$AG56,$AI56,$AK56,$AM56,$AO56,$AQ56,$AS56,$AU56,$AW56,$AY56,$BA56,$BC56),3) -> 0 | BG56: =LARGE(($I56,$K56,$M56,$O56,$Q56,$S56,$U56,$W56,$Y56,$AA56,$AC56,$AE56,$AG56,$AI56,$AK56,$AM56,$AO56,$AQ56,$AS56,$AU56,$AW56,$AY56,$BA56,$BC56),4) -> 0 | BH56: =LARGE(($I56,$K56,$M56,$O56,$Q56,$S56,$U56,$W56,$Y56,$AA56,$AC56,$AE56,$AG56,$AI56,$AK56,$AM56,$AO56,$AQ56,$AS56,$AU56,$AW56,$AY56,$BA56,$BC56),5) -> 0 | BI56: =LARGE(($I56,$K56,$M56,$O56,$Q56,$S56,$U56,$W56,$Y56,$AA56,$AC56,$AE56,$AG56,$AI56,$AK56,$AM56,$AO56,$AQ56,$AS56,$AU56,$AW56,$AY56,$BA56,$BC56),6) -> 0 | BJ56: =LARGE(($I56,$K56,$M56,$O56,$Q56,$S56,$U56,$W56,$Y56,$AA56,$AC56,$AE56,$AG56,$AI56,$AK56,$AM56,$AO56,$AQ56,$AS56,$AU56,$AW56,$AY56,$BA56,$BC56),7) -> 0 | BK56: =LARGE(($I56,$K56,$M56,$O56,$Q56,$S56,$U56,$W56,$Y56,$AA56,$AC56,$AE56,$AG56,$AI56,$AK56,$AM56,$AO56,$AQ56,$AS56,$AU56,$AW56,$AY56,$BA56,$BC56),8) -> 0 | BL56: =LARGE(($I56,$K56,$M56,$O56,$Q56,$S56,$U56,$W56,$Y56,$AA56,$AC56,$AE56,$AG56,$AI56,$AK56,$AM56,$AO56,$AQ56,$AS56,$AU56,$AW56,$AY56,$BA56,$BC56),9) -> 0 | BM56: =LARGE(($I56,$K56,$M56,$O56,$Q56,$S56,$U56,$W56,$Y56,$AA56,$AC56,$AE56,$AG56,$AI56,$AK56,$AM56,$AO56,$AQ56,$AS56,$AU56,$AW56,$AY56,$BA56,$BC56),10) -> 0
A57: 53 | E57: 0 | F57: 0 | G57: 0 | I57: =LOOKUP(H57,Poängberäkning!$B$6:$B$97,Poängberäkning!$C$6:$C$97) -> 0 | K57: =LOOKUP(J57,Poängberäkning!$B$6:$B$97,Poängberäkning!$C$6:$C$97) -> 0 | M57: =LOOKUP(L57,Poängberäkning!$B$6:$B$97,Poängberäkning!$C$6:$C$97) -> 0 | O57: =LOOKUP(N57,Poängberäkning!$B$6:$B$97,Poängberäkning!$C$6:$C$97) -> 0 | Q57: =LOOKUP(P57,Poängberäkning!$B$6:$B$97,Poängberäkning!$C$6:$C$97) -> 0 | S57: =LOOKUP(R57,Poängberäkning!$B$6:$B$97,Poängberäkning!$C$6:$C$97) -> 0 | U57: =LOOKUP(T57,Poängberäkning!$B$6:$B$97,Poängberäkning!$C$6:$C$97) -> 0 | W57: =LOOKUP(V57,Poängberäkning!$B$6:$B$97,Poängberäkning!$C$6:$C$97) -> 0 | Y57: =LOOKUP(X57,Poängberäkning!$B$6:$B$97,Poängberäkning!$C$6:$C$97) -> 0 | AA57: =LOOKUP(Z57,Poängberäkning!$B$6:$B$97,Poängberäkning!$C$6:$C$97) -> 0 | AC57: =LOOKUP(AB57,Poängberäkning!$B$6:$B$97,Poängberäkning!$C$6:$C$97) -> 0 | AE57: =LOOKUP(AD57,Poängberäkning!$B$6:$B$97,Poängberäkning!$C$6:$C$97) -> 0 | AG57: =LOOKUP(AF57,Poängberäkning!$B$6:$B$97,Poängberäkning!$C$6:$C$97) -> 0 | AI57: =LOOKUP(AH57,Poängberäkning!$B$6:$B$97,Poängberäkning!$C$6:$C$97) -> 0 | AK57: =LOOKUP(AJ57,Poängberäkning!$B$6:$B$97,Poängberäkning!$C$6:$C$97) -> 0 | AM57: =LOOKUP(AL57,Poängberäkning!$B$6:$B$97,Poängberäkning!$C$6:$C$97) -> 0 | AO57: =LOOKUP(AN57,Poängberäkning!$B$6:$B$97,Poängberäkning!$C$6:$C$97) -> 0 | AQ57: =LOOKUP(AP57,Poängberäkning!$B$6:$B$97,Poängberäkning!$C$6:$C$97) -> 0 | AS57: =LOOKUP(AR57,Poängberäkning!$B$6:$B$97,Poängberäkning!$C$6:$C$97) -> 0 | AU57: =LOOKUP(AT57,Poängberäkning!$B$6:$B$97,Poängberäkning!$C$6:$C$97) -> 0 | BD57: =LARGE(($I57,$K57,$M57,$O57,$Q57,$S57,$U57,$W57,$Y57,$AA57,$AC57,$AE57,$AG57,$AI57,$AK57,$AM57,$AO57,$AQ57,$AS57,$AU57,$AW57,$AY57,$BA57,$BC57),1) -> 0 | BE57: =LARGE(($I57,$K57,$M57,$O57,$Q57,$S57,$U57,$W57,$Y57,$AA57,$AC57,$AE57,$AG57,$AI57,$AK57,$AM57,$AO57,$AQ57,$AS57,$AU57,$AW57,$AY57,$BA57,$BC57),2) -> 0 | BF57: =LARGE(($I57,$K57,$M57,$O57,$Q57,$S57,$U57,$W57,$Y57,$AA57,$AC57,$AE57,$AG57,$AI57,$AK57,$AM57,$AO57,$AQ57,$AS57,$AU57,$AW57,$AY57,$BA57,$BC57),3) -> 0 | BG57: =LARGE(($I57,$K57,$M57,$O57,$Q57,$S57,$U57,$W57,$Y57,$AA57,$AC57,$AE57,$AG57,$AI57,$AK57,$AM57,$AO57,$AQ57,$AS57,$AU57,$AW57,$AY57,$BA57,$BC57),4) -> 0 | BH57: =LARGE(($I57,$K57,$M57,$O57,$Q57,$S57,$U57,$W57,$Y57,$AA57,$AC57,$AE57,$AG57,$AI57,$AK57,$AM57,$AO57,$AQ57,$AS57,$AU57,$AW57,$AY57,$BA57,$BC57),5) -> 0 | BI57: =LARGE(($I57,$K57,$M57,$O57,$Q57,$S57,$U57,$W57,$Y57,$AA57,$AC57,$AE57,$AG57,$AI57,$AK57,$AM57,$AO57,$AQ57,$AS57,$AU57,$AW57,$AY57,$BA57,$BC57),6) -> 0 | BJ57: =LARGE(($I57,$K57,$M57,$O57,$Q57,$S57,$U57,$W57,$Y57,$AA57,$AC57,$AE57,$AG57,$AI57,$AK57,$AM57,$AO57,$AQ57,$AS57,$AU57,$AW57,$AY57,$BA57,$BC57),7) -> 0 | BK57: =LARGE(($I57,$K57,$M57,$O57,$Q57,$S57,$U57,$W57,$Y57,$AA57,$AC57,$AE57,$AG57,$AI57,$AK57,$AM57,$AO57,$AQ57,$AS57,$AU57,$AW57,$AY57,$BA57,$BC57),8) -> 0 | BL57: =LARGE(($I57,$K57,$M57,$O57,$Q57,$S57,$U57,$W57,$Y57,$AA57,$AC57,$AE57,$AG57,$AI57,$AK57,$AM57,$AO57,$AQ57,$AS57,$AU57,$AW57,$AY57,$BA57,$BC57),9) -> 0 | BM57: =LARGE(($I57,$K57,$M57,$O57,$Q57,$S57,$U57,$W57,$Y57,$AA57,$AC57,$AE57,$AG57,$AI57,$AK57,$AM57,$AO57,$AQ57,$AS57,$AU57,$AW57,$AY57,$BA57,$BC57),10) -> 0
A58: 54 | E58: 0 | F58: 0 | G58: 0 | I58: =LOOKUP(H58,Poängberäkning!$B$6:$B$97,Poängberäkning!$C$6:$C$97) -> 0 | K58: =LOOKUP(J58,Poängberäkning!$B$6:$B$97,Poängberäkning!$C$6:$C$97) -> 0 | M58: =LOOKUP(L58,Poängberäkning!$B$6:$B$97,Poängberäkning!$C$6:$C$97) -> 0 | O58: =LOOKUP(N58,Poängberäkning!$B$6:$B$97,Poängberäkning!$C$6:$C$97) -> 0 | Q58: =LOOKUP(P58,Poängberäkning!$B$6:$B$97,Poängberäkning!$C$6:$C$97) -> 0 | S58: =LOOKUP(R58,Poängberäkning!$B$6:$B$97,Poängberäkning!$C$6:$C$97) -> 0 | U58: =LOOKUP(T58,Poängberäkning!$B$6:$B$97,Poängberäkning!$C$6:$C$97) -> 0 | W58: =LOOKUP(V58,Poängberäkning!$B$6:$B$97,Poängberäkning!$C$6:$C$97) -> 0 | Y58: =LOOKUP(X58,Poängberäkning!$B$6:$B$97,Poängberäkning!$C$6:$C$97) -> 0 | AA58: =LOOKUP(Z58,Poängberäkning!$B$6:$B$97,Poängberäkning!$C$6:$C$97) -> 0 | AC58: =LOOKUP(AB58,Poängberäkning!$B$6:$B$97,Poängberäkning!$C$6:$C$97) -> 0 | AE58: =LOOKUP(AD58,Poängberäkning!$B$6:$B$97,Poängberäkning!$C$6:$C$97) -> 0 | AG58: =LOOKUP(AF58,Poängberäkning!$B$6:$B$97,Poängberäkning!$C$6:$C$97) -> 0 | AI58: =LOOKUP(AH58,Poängberäkning!$B$6:$B$97,Poängberäkning!$C$6:$C$97) -> 0 | AK58: =LOOKUP(AJ58,Poängberäkning!$B$6:$B$97,Poängberäkning!$C$6:$C$97) -> 0 | AM58: =LOOKUP(AL58,Poängberäkning!$B$6:$B$97,Poängberäkning!$C$6:$C$97) -> 0 | AO58: =LOOKUP(AN58,Poängberäkning!$B$6:$B$97,Poängberäkning!$C$6:$C$97) -> 0 | AQ58: =LOOKUP(AP58,Poängberäkning!$B$6:$B$97,Poängberäkning!$C$6:$C$97) -> 0 | AS58: =LOOKUP(AR58,Poängberäkning!$B$6:$B$97,Poängberäkning!$C$6:$C$97) -> 0 | AU58: =LOOKUP(AT58,Poängberäkning!$B$6:$B$97,Poängberäkning!$C$6:$C$97) -> 0 | BD58: =LARGE(($I58,$K58,$M58,$O58,$Q58,$S58,$U58,$W58,$Y58,$AA58,$AC58,$AE58,$AG58,$AI58,$AK58,$AM58,$AO58,$AQ58,$AS58,$AU58,$AW58,$AY58,$BA58,$BC58),1) -> 0 | BE58: =LARGE(($I58,$K58,$M58,$O58,$Q58,$S58,$U58,$W58,$Y58,$AA58,$AC58,$AE58,$AG58,$AI58,$AK58,$AM58,$AO58,$AQ58,$AS58,$AU58,$AW58,$AY58,$BA58,$BC58),2) -> 0 | BF58: =LARGE(($I58,$K58,$M58,$O58,$Q58,$S58,$U58,$W58,$Y58,$AA58,$AC58,$AE58,$AG58,$AI58,$AK58,$AM58,$AO58,$AQ58,$AS58,$AU58,$AW58,$AY58,$BA58,$BC58),3) -> 0 | BG58: =LARGE(($I58,$K58,$M58,$O58,$Q58,$S58,$U58,$W58,$Y58,$AA58,$AC58,$AE58,$AG58,$AI58,$AK58,$AM58,$AO58,$AQ58,$AS58,$AU58,$AW58,$AY58,$BA58,$BC58),4) -> 0 | BH58: =LARGE(($I58,$K58,$M58,$O58,$Q58,$S58,$U58,$W58,$Y58,$AA58,$AC58,$AE58,$AG58,$AI58,$AK58,$AM58,$AO58,$AQ58,$AS58,$AU58,$AW58,$AY58,$BA58,$BC58),5) -> 0 | BI58: =LARGE(($I58,$K58,$M58,$O58,$Q58,$S58,$U58,$W58,$Y58,$AA58,$AC58,$AE58,$AG58,$AI58,$AK58,$AM58,$AO58,$AQ58,$AS58,$AU58,$AW58,$AY58,$BA58,$BC58),6) -> 0 | BJ58: =LARGE(($I58,$K58,$M58,$O58,$Q58,$S58,$U58,$W58,$Y58,$AA58,$AC58,$AE58,$AG58,$AI58,$AK58,$AM58,$AO58,$AQ58,$AS58,$AU58,$AW58,$AY58,$BA58,$BC58),7) -> 0 | BK58: =LARGE(($I58,$K58,$M58,$O58,$Q58,$S58,$U58,$W58,$Y58,$AA58,$AC58,$AE58,$AG58,$AI58,$AK58,$AM58,$AO58,$AQ58,$AS58,$AU58,$AW58,$AY58,$BA58,$BC58),8) -> 0 | BL58: =LARGE(($I58,$K58,$M58,$O58,$Q58,$S58,$U58,$W58,$Y58,$AA58,$AC58,$AE58,$AG58,$AI58,$AK58,$AM58,$AO58,$AQ58,$AS58,$AU58,$AW58,$AY58,$BA58,$BC58),9) -> 0 | BM58: =LARGE(($I58,$K58,$M58,$O58,$Q58,$S58,$U58,$W58,$Y58,$AA58,$AC58,$AE58,$AG58,$AI58,$AK58,$AM58,$AO58,$AQ58,$AS58,$AU58,$AW58,$AY58,$BA58,$BC58),10) -> 0
A59: 55 | E59: 0 | F59: 0 | G59: 0 | I59: =LOOKUP(H59,Poängberäkning!$B$6:$B$97,Poängberäkning!$C$6:$C$97) -> 0 | K59: =LOOKUP(J59,Poängberäkning!$B$6:$B$97,Poängberäkning!$C$6:$C$97) -> 0 | M59: =LOOKUP(L59,Poängberäkning!$B$6:$B$97,Poängberäkning!$C$6:$C$97) -> 0 | O59: =LOOKUP(N59,Poängberäkning!$B$6:$B$97,Poängberäkning!$C$6:$C$97) -> 0 | Q59: =LOOKUP(P59,Poängberäkning!$B$6:$B$97,Poängberäkning!$C$6:$C$97) -> 0 | S59: =LOOKUP(R59,Poängberäkning!$B$6:$B$97,Poängberäkning!$C$6:$C$97) -> 0 | U59: =LOOKUP(T59,Poängberäkning!$B$6:$B$97,Poängberäkning!$C$6:$C$97) -> 0 | W59: =LOOKUP(V59,Poängberäkning!$B$6:$B$97,Poängberäkning!$C$6:$C$97) -> 0 | Y59: =LOOKUP(X59,Poängberäkning!$B$6:$B$97,Poängberäkning!$C$6:$C$97) -> 0 | AA59: =LOOKUP(Z59,Poängberäkning!$B$6:$B$97,Poängberäkning!$C$6:$C$97) -> 0 | AC59: =LOOKUP(AB59,Poängberäkning!$B$6:$B$97,Poängberäkning!$C$6:$C$97) -> 0 | AE59: =LOOKUP(AD59,Poängberäkning!$B$6:$B$97,Poängberäkning!$C$6:$C$97) -> 0 | AG59: =LOOKUP(AF59,Poängberäkning!$B$6:$B$97,Poängberäkning!$C$6:$C$97) -> 0 | AI59: =LOOKUP(AH59,Poängberäkning!$B$6:$B$97,Poängberäkning!$C$6:$C$97) -> 0 | AK59: =LOOKUP(AJ59,Poängberäkning!$B$6:$B$97,Poängberäkning!$C$6:$C$97) -> 0 | AM59: =LOOKUP(AL59,Poängberäkning!$B$6:$B$97,Poängberäkning!$C$6:$C$97) -> 0 | AO59: =LOOKUP(AN59,Poängberäkning!$B$6:$B$97,Poängberäkning!$C$6:$C$97) -> 0 | AQ59: =LOOKUP(AP59,Poängberäkning!$B$6:$B$97,Poängberäkning!$C$6:$C$97) -> 0 | AS59: =LOOKUP(AR59,Poängberäkning!$B$6:$B$97,Poängberäkning!$C$6:$C$97) -> 0 | AU59: =LOOKUP(AT59,Poängberäkning!$B$6:$B$97,Poängberäkning!$C$6:$C$97) -> 0 | BD59: =LARGE(($I59,$K59,$M59,$O59,$Q59,$S59,$U59,$W59,$Y59,$AA59,$AC59,$AE59,$AG59,$AI59,$AK59,$AM59,$AO59,$AQ59,$AS59,$AU59,$AW59,$AY59,$BA59,$BC59),1) -> 0 | BE59: =LARGE(($I59,$K59,$M59,$O59,$Q59,$S59,$U59,$W59,$Y59,$AA59,$AC59,$AE59,$AG59,$AI59,$AK59,$AM59,$AO59,$AQ59,$AS59,$AU59,$AW59,$AY59,$BA59,$BC59),2) -> 0 | BF59: =LARGE(($I59,$K59,$M59,$O59,$Q59,$S59,$U59,$W59,$Y59,$AA59,$AC59,$AE59,$AG59,$AI59,$AK59,$AM59,$AO59,$AQ59,$AS59,$AU59,$AW59,$AY59,$BA59,$BC59),3) -> 0 | BG59: =LARGE(($I59,$K59,$M59,$O59,$Q59,$S59,$U59,$W59,$Y59,$AA59,$AC59,$AE59,$AG59,$AI59,$AK59,$AM59,$AO59,$AQ59,$AS59,$AU59,$AW59,$AY59,$BA59,$BC59),4) -> 0 | BH59: =LARGE(($I59,$K59,$M59,$O59,$Q59,$S59,$U59,$W59,$Y59,$AA59,$AC59,$AE59,$AG59,$AI59,$AK59,$AM59,$AO59,$AQ59,$AS59,$AU59,$AW59,$AY59,$BA59,$BC59),5) -> 0 | BI59: =LARGE(($I59,$K59,$M59,$O59,$Q59,$S59,$U59,$W59,$Y59,$AA59,$AC59,$AE59,$AG59,$AI59,$AK59,$AM59,$AO59,$AQ59,$AS59,$AU59,$AW59,$AY59,$BA59,$BC59),6) -> 0 | BJ59: =LARGE(($I59,$K59,$M59,$O59,$Q59,$S59,$U59,$W59,$Y59,$AA59,$AC59,$AE59,$AG59,$AI59,$AK59,$AM59,$AO59,$AQ59,$AS59,$AU59,$AW59,$AY59,$BA59,$BC59),7) -> 0 | BK59: =LARGE(($I59,$K59,$M59,$O59,$Q59,$S59,$U59,$W59,$Y59,$AA59,$AC59,$AE59,$AG59,$AI59,$AK59,$AM59,$AO59,$AQ59,$AS59,$AU59,$AW59,$AY59,$BA59,$BC59),8) -> 0 | BL59: =LARGE(($I59,$K59,$M59,$O59,$Q59,$S59,$U59,$W59,$Y59,$AA59,$AC59,$AE59,$AG59,$AI59,$AK59,$AM59,$AO59,$AQ59,$AS59,$AU59,$AW59,$AY59,$BA59,$BC59),9) -> 0 | BM59: =LARGE(($I59,$K59,$M59,$O59,$Q59,$S59,$U59,$W59,$Y59,$AA59,$AC59,$AE59,$AG59,$AI59,$AK59,$AM59,$AO59,$AQ59,$AS59,$AU59,$AW59,$AY59,$BA59,$BC59),10) -> 0
A60: 56 | E60: 0 | F60: 0 | G60: 0 | I60: =LOOKUP(H60,Poängberäkning!$B$6:$B$97,Poängberäkning!$C$6:$C$97) -> 0 | K60: =LOOKUP(J60,Poängberäkning!$B$6:$B$97,Poängberäkning!$C$6:$C$97) -> 0 | M60: =LOOKUP(L60,Poängberäkning!$B$6:$B$97,Poängberäkning!$C$6:$C$97) -> 0 | O60: =LOOKUP(N60,Poängberäkning!$B$6:$B$97,Poängberäkning!$C$6:$C$97) -> 0 | Q60: =LOOKUP(P60,Poängberäkning!$B$6:$B$97,Poängberäkning!$C$6:$C$97) -> 0 | S60: =LOOKUP(R60,Poängberäkning!$B$6:$B$97,Poängberäkning!$C$6:$C$97) -> 0 | U60: =LOOKUP(T60,Poängberäkning!$B$6:$B$97,Poängberäkning!$C$6:$C$97) -> 0 | W60: =LOOKUP(V60,Poängberäkning!$B$6:$B$97,Poängberäkning!$C$6:$C$97) -> 0 | Y60: =LOOKUP(X60,Poängberäkning!$B$6:$B$97,Poängberäkning!$C$6:$C$97) -> 0 | AA60: =LOOKUP(Z60,Poängberäkning!$B$6:$B$97,Poängberäkning!$C$6:$C$97) -> 0 | AC60: =LOOKUP(AB60,Poängberäkning!$B$6:$B$97,Poängberäkning!$C$6:$C$97) -> 0 | AE60: =LOOKUP(AD60,Poängberäkning!$B$6:$B$97,Poängberäkning!$C$6:$C$97) -> 0 | AG60: =LOOKUP(AF60,Poängberäkning!$B$6:$B$97,Poängberäkning!$C$6:$C$97) -> 0 | AI60: =LOOKUP(AH60,Poängberäkning!$B$6:$B$97,Poängberäkning!$C$6:$C$97) -> 0 | AK60: =LOOKUP(AJ60,Poängberäkning!$B$6:$B$97,Poängberäkning!$C$6:$C$97) -> 0 | AM60: =LOOKUP(AL60,Poängberäkning!$B$6:$B$97,Poängberäkning!$C$6:$C$97) -> 0 | AO60: =LOOKUP(AN60,Poängberäkning!$B$6:$B$97,Poängberäkning!$C$6:$C$97) -> 0 | AQ60: =LOOKUP(AP60,Poängberäkning!$B$6:$B$97,Poängberäkning!$C$6:$C$97) -> 0 | AS60: =LOOKUP(AR60,Poängberäkning!$B$6:$B$97,Poängberäkning!$C$6:$C$97) -> 0 | AU60: =LOOKUP(AT60,Poängberäkning!$B$6:$B$97,Poängberäkning!$C$6:$C$97) -> 0 | BD60: =LARGE(($I60,$K60,$M60,$O60,$Q60,$S60,$U60,$W60,$Y60,$AA60,$AC60,$AE60,$AG60,$AI60,$AK60,$AM60,$AO60,$AQ60,$AS60,$AU60,$AW60,$AY60,$BA60,$BC60),1) -> 0 | BE60: =LARGE(($I60,$K60,$M60,$O60,$Q60,$S60,$U60,$W60,$Y60,$AA60,$AC60,$AE60,$AG60,$AI60,$AK60,$AM60,$AO60,$AQ60,$AS60,$AU60,$AW60,$AY60,$BA60,$BC60),2) -> 0 | BF60: =LARGE(($I60,$K60,$M60,$O60,$Q60,$S60,$U60,$W60,$Y60,$AA60,$AC60,$AE60,$AG60,$AI60,$AK60,$AM60,$AO60,$AQ60,$AS60,$AU60,$AW60,$AY60,$BA60,$BC60),3) -> 0 | BG60: =LARGE(($I60,$K60,$M60,$O60,$Q60,$S60,$U60,$W60,$Y60,$AA60,$AC60,$AE60,$AG60,$AI60,$AK60,$AM60,$AO60,$AQ60,$AS60,$AU60,$AW60,$AY60,$BA60,$BC60),4) -> 0 | BH60: =LARGE(($I60,$K60,$M60,$O60,$Q60,$S60,$U60,$W60,$Y60,$AA60,$AC60,$AE60,$AG60,$AI60,$AK60,$AM60,$AO60,$AQ60,$AS60,$AU60,$AW60,$AY60,$BA60,$BC60),5) -> 0 | BI60: =LARGE(($I60,$K60,$M60,$O60,$Q60,$S60,$U60,$W60,$Y60,$AA60,$AC60,$AE60,$AG60,$AI60,$AK60,$AM60,$AO60,$AQ60,$AS60,$AU60,$AW60,$AY60,$BA60,$BC60),6) -> 0 | BJ60: =LARGE(($I60,$K60,$M60,$O60,$Q60,$S60,$U60,$W60,$Y60,$AA60,$AC60,$AE60,$AG60,$AI60,$AK60,$AM60,$AO60,$AQ60,$AS60,$AU60,$AW60,$AY60,$BA60,$BC60),7) -> 0 | BK60: =LARGE(($I60,$K60,$M60,$O60,$Q60,$S60,$U60,$W60,$Y60,$AA60,$AC60,$AE60,$AG60,$AI60,$AK60,$AM60,$AO60,$AQ60,$AS60,$AU60,$AW60,$AY60,$BA60,$BC60),8) -> 0 | BL60: =LARGE(($I60,$K60,$M60,$O60,$Q60,$S60,$U60,$W60,$Y60,$AA60,$AC60,$AE60,$AG60,$AI60,$AK60,$AM60,$AO60,$AQ60,$AS60,$AU60,$AW60,$AY60,$BA60,$BC60),9) -> 0 | BM60: =LARGE(($I60,$K60,$M60,$O60,$Q60,$S60,$U60,$W60,$Y60,$AA60,$AC60,$AE60,$AG60,$AI60,$AK60,$AM60,$AO60,$AQ60,$AS60,$AU60,$AW60,$AY60,$BA60,$BC60),10) -> 0
A61: 57 | E61: 0 | F61: 0 | G61: 0 | I61: =LOOKUP(H61,Poängberäkning!$B$6:$B$97,Poängberäkning!$C$6:$C$97) -> 0 | K61: =LOOKUP(J61,Poängberäkning!$B$6:$B$97,Poängberäkning!$C$6:$C$97) -> 0 | M61: =LOOKUP(L61,Poängberäkning!$B$6:$B$97,Poängberäkning!$C$6:$C$97) -> 0 | O61: =LOOKUP(N61,Poängberäkning!$B$6:$B$97,Poängberäkning!$C$6:$C$97) -> 0 | Q61: =LOOKUP(P61,Poängberäkning!$B$6:$B$97,Poängberäkning!$C$6:$C$97) -> 0 | S61: =LOOKUP(R61,Poängberäkning!$B$6:$B$97,Poängberäkning!$C$6:$C$97) -> 0 | U61: =LOOKUP(T61,Poängberäkning!$B$6:$B$97,Poängberäkning!$C$6:$C$97) -> 0 | W61: =LOOKUP(V61,Poängberäkning!$B$6:$B$97,Poängberäkning!$C$6:$C$97) -> 0 | Y61: =LOOKUP(X61,Poängberäkning!$B$6:$B$97,Poängberäkning!$C$6:$C$97) -> 0 | AA61: =LOOKUP(Z61,Poängberäkning!$B$6:$B$97,Poängberäkning!$C$6:$C$97) -> 0 | AC61: =LOOKUP(AB61,Poängberäkning!$B$6:$B$97,Poängberäkning!$C$6:$C$97) -> 0 | AE61: =LOOKUP(AD61,Poängberäkning!$B$6:$B$97,Poängberäkning!$C$6:$C$97) -> 0 | AG61: =LOOKUP(AF61,Poängberäkning!$B$6:$B$97,Poängberäkning!$C$6:$C$97) -> 0 | AI61: =LOOKUP(AH61,Poängberäkning!$B$6:$B$97,Poängberäkning!$C$6:$C$97) -> 0 | AK61: =LOOKUP(AJ61,Poängberäkning!$B$6:$B$97,Poängberäkning!$C$6:$C$97) -> 0 | AM61: =LOOKUP(AL61,Poängberäkning!$B$6:$B$97,Poängberäkning!$C$6:$C$97) -> 0 | AO61: =LOOKUP(AN61,Poängberäkning!$B$6:$B$97,Poängberäkning!$C$6:$C$97) -> 0 | AQ61: =LOOKUP(AP61,Poängberäkning!$B$6:$B$97,Poängberäkning!$C$6:$C$97) -> 0 | AS61: =LOOKUP(AR61,Poängberäkning!$B$6:$B$97,Poängberäkning!$C$6:$C$97) -> 0 | AU61: =LOOKUP(AT61,Poängberäkning!$B$6:$B$97,Poängberäkning!$C$6:$C$97) -> 0 | BD61: =LARGE(($I61,$K61,$M61,$O61,$Q61,$S61,$U61,$W61,$Y61,$AA61,$AC61,$AE61,$AG61,$AI61,$AK61,$AM61,$AO61,$AQ61,$AS61,$AU61,$AW61,$AY61,$BA61,$BC61),1) -> 0 | BE61: =LARGE(($I61,$K61,$M61,$O61,$Q61,$S61,$U61,$W61,$Y61,$AA61,$AC61,$AE61,$AG61,$AI61,$AK61,$AM61,$AO61,$AQ61,$AS61,$AU61,$AW61,$AY61,$BA61,$BC61),2) -> 0 | BF61: =LARGE(($I61,$K61,$M61,$O61,$Q61,$S61,$U61,$W61,$Y61,$AA61,$AC61,$AE61,$AG61,$AI61,$AK61,$AM61,$AO61,$AQ61,$AS61,$AU61,$AW61,$AY61,$BA61,$BC61),3) -> 0 | BG61: =LARGE(($I61,$K61,$M61,$O61,$Q61,$S61,$U61,$W61,$Y61,$AA61,$AC61,$AE61,$AG61,$AI61,$AK61,$AM61,$AO61,$AQ61,$AS61,$AU61,$AW61,$AY61,$BA61,$BC61),4) -> 0 | BH61: =LARGE(($I61,$K61,$M61,$O61,$Q61,$S61,$U61,$W61,$Y61,$AA61,$AC61,$AE61,$AG61,$AI61,$AK61,$AM61,$AO61,$AQ61,$AS61,$AU61,$AW61,$AY61,$BA61,$BC61),5) -> 0 | BI61: =LARGE(($I61,$K61,$M61,$O61,$Q61,$S61,$U61,$W61,$Y61,$AA61,$AC61,$AE61,$AG61,$AI61,$AK61,$AM61,$AO61,$AQ61,$AS61,$AU61,$AW61,$AY61,$BA61,$BC61),6) -> 0 | BJ61: =LARGE(($I61,$K61,$M61,$O61,$Q61,$S61,$U61,$W61,$Y61,$AA61,$AC61,$AE61,$AG61,$AI61,$AK61,$AM61,$AO61,$AQ61,$AS61,$AU61,$AW61,$AY61,$BA61,$BC61),7) -> 0 | BK61: =LARGE(($I61,$K61,$M61,$O61,$Q61,$S61,$U61,$W61,$Y61,$AA61,$AC61,$AE61,$AG61,$AI61,$AK61,$AM61,$AO61,$AQ61,$AS61,$AU61,$AW61,$AY61,$BA61,$BC61),8) -> 0 | BL61: =LARGE(($I61,$K61,$M61,$O61,$Q61,$S61,$U61,$W61,$Y61,$AA61,$AC61,$AE61,$AG61,$AI61,$AK61,$AM61,$AO61,$AQ61,$AS61,$AU61,$AW61,$AY61,$BA61,$BC61),9) -> 0 | BM61: =LARGE(($I61,$K61,$M61,$O61,$Q61,$S61,$U61,$W61,$Y61,$AA61,$AC61,$AE61,$AG61,$AI61,$AK61,$AM61,$AO61,$AQ61,$AS61,$AU61,$AW61,$AY61,$BA61,$BC61),10) -> 0
A62: 58 | E62: 0 | F62: 0 | G62: 0 | I62: =LOOKUP(H62,Poängberäkning!$B$6:$B$97,Poängberäkning!$C$6:$C$97) -> 0 | K62: =LOOKUP(J62,Poängberäkning!$B$6:$B$97,Poängberäkning!$C$6:$C$97) -> 0 | M62: =LOOKUP(L62,Poängberäkning!$B$6:$B$97,Poängberäkning!$C$6:$C$97) -> 0 | O62: =LOOKUP(N62,Poängberäkning!$B$6:$B$97,Poängberäkning!$C$6:$C$97) -> 0 | Q62: =LOOKUP(P62,Poängberäkning!$B$6:$B$97,Poängberäkning!$C$6:$C$97) -> 0 | S62: =LOOKUP(R62,Poängberäkning!$B$6:$B$97,Poängberäkning!$C$6:$C$97) -> 0 | U62: =LOOKUP(T62,Poängberäkning!$B$6:$B$97,Poängberäkning!$C$6:$C$97) -> 0 | W62: =LOOKUP(V62,Poängberäkning!$B$6:$B$97,Poängberäkning!$C$6:$C$97) -> 0 | Y62: =LOOKUP(X62,Poängberäkning!$B$6:$B$97,Poängberäkning!$C$6:$C$97) -> 0 | AA62: =LOOKUP(Z62,Poängberäkning!$B$6:$B$97,Poängberäkning!$C$6:$C$97) -> 0 | AC62: =LOOKUP(AB62,Poängberäkning!$B$6:$B$97,Poängberäkning!$C$6:$C$97) -> 0 | AE62: =LOOKUP(AD62,Poängberäkning!$B$6:$B$97,Poängberäkning!$C$6:$C$97) -> 0 | AG62: =LOOKUP(AF62,Poängberäkning!$B$6:$B$97,Poängberäkning!$C$6:$C$97) -> 0 | AI62: =LOOKUP(AH62,Poängberäkning!$B$6:$B$97,Poängberäkning!$C$6:$C$97) -> 0 | AK62: =LOOKUP(AJ62,Poängberäkning!$B$6:$B$97,Poängberäkning!$C$6:$C$97) -> 0 | AM62: =LOOKUP(AL62,Poängberäkning!$B$6:$B$97,Poängberäkning!$C$6:$C$97) -> 0 | AO62: =LOOKUP(AN62,Poängberäkning!$B$6:$B$97,Poängberäkning!$C$6:$C$97) -> 0 | AQ62: =LOOKUP(AP62,Poängberäkning!$B$6:$B$97,Poängberäkning!$C$6:$C$97) -> 0 | AS62: =LOOKUP(AR62,Poängberäkning!$B$6:$B$97,Poängberäkning!$C$6:$C$97) -> 0 | AU62: =LOOKUP(AT62,Poängberäkning!$B$6:$B$97,Poängberäkning!$C$6:$C$97) -> 0 | BD62: =LARGE(($I62,$K62,$M62,$O62,$Q62,$S62,$U62,$W62,$Y62,$AA62,$AC62,$AE62,$AG62,$AI62,$AK62,$AM62,$AO62,$AQ62,$AS62,$AU62,$AW62,$AY62,$BA62,$BC62),1) -> 0 | BE62: =LARGE(($I62,$K62,$M62,$O62,$Q62,$S62,$U62,$W62,$Y62,$AA62,$AC62,$AE62,$AG62,$AI62,$AK62,$AM62,$AO62,$AQ62,$AS62,$AU62,$AW62,$AY62,$BA62,$BC62),2) -> 0 | BF62: =LARGE(($I62,$K62,$M62,$O62,$Q62,$S62,$U62,$W62,$Y62,$AA62,$AC62,$AE62,$AG62,$AI62,$AK62,$AM62,$AO62,$AQ62,$AS62,$AU62,$AW62,$AY62,$BA62,$BC62),3) -> 0 | BG62: =LARGE(($I62,$K62,$M62,$O62,$Q62,$S62,$U62,$W62,$Y62,$AA62,$AC62,$AE62,$AG62,$AI62,$AK62,$AM62,$AO62,$AQ62,$AS62,$AU62,$AW62,$AY62,$BA62,$BC62),4) -> 0 | BH62: =LARGE(($I62,$K62,$M62,$O62,$Q62,$S62,$U62,$W62,$Y62,$AA62,$AC62,$AE62,$AG62,$AI62,$AK62,$AM62,$AO62,$AQ62,$AS62,$AU62,$AW62,$AY62,$BA62,$BC62),5) -> 0 | BI62: =LARGE(($I62,$K62,$M62,$O62,$Q62,$S62,$U62,$W62,$Y62,$AA62,$AC62,$AE62,$AG62,$AI62,$AK62,$AM62,$AO62,$AQ62,$AS62,$AU62,$AW62,$AY62,$BA62,$BC62),6) -> 0 | BJ62: =LARGE(($I62,$K62,$M62,$O62,$Q62,$S62,$U62,$W62,$Y62,$AA62,$AC62,$AE62,$AG62,$AI62,$AK62,$AM62,$AO62,$AQ62,$AS62,$AU62,$AW62,$AY62,$BA62,$BC62),7) -> 0 | BK62: =LARGE(($I62,$K62,$M62,$O62,$Q62,$S62,$U62,$W62,$Y62,$AA62,$AC62,$AE62,$AG62,$AI62,$AK62,$AM62,$AO62,$AQ62,$AS62,$AU62,$AW62,$AY62,$BA62,$BC62),8) -> 0 | BL62: =LARGE(($I62,$K62,$M62,$O62,$Q62,$S62,$U62,$W62,$Y62,$AA62,$AC62,$AE62,$AG62,$AI62,$AK62,$AM62,$AO62,$AQ62,$AS62,$AU62,$AW62,$AY62,$BA62,$BC62),9) -> 0 | BM62: =LARGE(($I62,$K62,$M62,$O62,$Q62,$S62,$U62,$W62,$Y62,$AA62,$AC62,$AE62,$AG62,$AI62,$AK62,$AM62,$AO62,$AQ62,$AS62,$AU62,$AW62,$AY62,$BA62,$BC62),10) -> 0
A63: 59 | E63: 0 | F63: 0 | G63: 0 | I63: =LOOKUP(H63,Poängberäkning!$B$6:$B$97,Poängberäkning!$C$6:$C$97) -> 0 | K63: =LOOKUP(J63,Poängberäkning!$B$6:$B$97,Poängberäkning!$C$6:$C$97) -> 0 | M63: =LOOKUP(L63,Poängberäkning!$B$6:$B$97,Poängberäkning!$C$6:$C$97) -> 0 | O63: =LOOKUP(N63,Poängberäkning!$B$6:$B$97,Poängberäkning!$C$6:$C$97) -> 0 | Q63: =LOOKUP(P63,Poängberäkning!$B$6:$B$97,Poängberäkning!$C$6:$C$97) -> 0 | S63: =LOOKUP(R63,Poängberäkning!$B$6:$B$97,Poängberäkning!$C$6:$C$97) -> 0 | U63: =LOOKUP(T63,Poängberäkning!$B$6:$B$97,Poängberäkning!$C$6:$C$97) -> 0 | W63: =LOOKUP(V63,Poängberäkning!$B$6:$B$97,Poängberäkning!$C$6:$C$97) -> 0 | Y63: =LOOKUP(X63,Poängberäkning!$B$6:$B$97,Poängberäkning!$C$6:$C$97) -> 0 | AA63: =LOOKUP(Z63,Poängberäkning!$B$6:$B$97,Poängberäkning!$C$6:$C$97) -> 0 | AC63: =LOOKUP(AB63,Poängberäkning!$B$6:$B$97,Poängberäkning!$C$6:$C$97) -> 0 | AE63: =LOOKUP(AD63,Poängberäkning!$B$6:$B$97,Poängberäkning!$C$6:$C$97) -> 0 | AG63: =LOOKUP(AF63,Poängberäkning!$B$6:$B$97,Poängberäkning!$C$6:$C$97) -> 0 | AI63: =LOOKUP(AH63,Poängberäkning!$B$6:$B$97,Poängberäkning!$C$6:$C$97) -> 0 | AK63: =LOOKUP(AJ63,Poängberäkning!$B$6:$B$97,Poängberäkning!$C$6:$C$97) -> 0 | AM63: =LOOKUP(AL63,Poängberäkning!$B$6:$B$97,Poängberäkning!$C$6:$C$97) -> 0 | AO63: =LOOKUP(AN63,Poängberäkning!$B$6:$B$97,Poängberäkning!$C$6:$C$97) -> 0 | AQ63: =LOOKUP(AP63,Poängberäkning!$B$6:$B$97,Poängberäkning!$C$6:$C$97) -> 0 | AS63: =LOOKUP(AR63,Poängberäkning!$B$6:$B$97,Poängberäkning!$C$6:$C$97) -> 0 | AU63: =LOOKUP(AT63,Poängberäkning!$B$6:$B$97,Poängberäkning!$C$6:$C$97) -> 0 | BD63: =LARGE(($I63,$K63,$M63,$O63,$Q63,$S63,$U63,$W63,$Y63,$AA63,$AC63,$AE63,$AG63,$AI63,$AK63,$AM63,$AO63,$AQ63,$AS63,$AU63,$AW63,$AY63,$BA63,$BC63),1) -> 0 | BE63: =LARGE(($I63,$K63,$M63,$O63,$Q63,$S63,$U63,$W63,$Y63,$AA63,$AC63,$AE63,$AG63,$AI63,$AK63,$AM63,$AO63,$AQ63,$AS63,$AU63,$AW63,$AY63,$BA63,$BC63),2) -> 0 | BF63: =LARGE(($I63,$K63,$M63,$O63,$Q63,$S63,$U63,$W63,$Y63,$AA63,$AC63,$AE63,$AG63,$AI63,$AK63,$AM63,$AO63,$AQ63,$AS63,$AU63,$AW63,$AY63,$BA63,$BC63),3) -> 0 | BG63: =LARGE(($I63,$K63,$M63,$O63,$Q63,$S63,$U63,$W63,$Y63,$AA63,$AC63,$AE63,$AG63,$AI63,$AK63,$AM63,$AO63,$AQ63,$AS63,$AU63,$AW63,$AY63,$BA63,$BC63),4) -> 0 | BH63: =LARGE(($I63,$K63,$M63,$O63,$Q63,$S63,$U63,$W63,$Y63,$AA63,$AC63,$AE63,$AG63,$AI63,$AK63,$AM63,$AO63,$AQ63,$AS63,$AU63,$AW63,$AY63,$BA63,$BC63),5) -> 0 | BI63: =LARGE(($I63,$K63,$M63,$O63,$Q63,$S63,$U63,$W63,$Y63,$AA63,$AC63,$AE63,$AG63,$AI63,$AK63,$AM63,$AO63,$AQ63,$AS63,$AU63,$AW63,$AY63,$BA63,$BC63),6) -> 0 | BJ63: =LARGE(($I63,$K63,$M63,$O63,$Q63,$S63,$U63,$W63,$Y63,$AA63,$AC63,$AE63,$AG63,$AI63,$AK63,$AM63,$AO63,$AQ63,$AS63,$AU63,$AW63,$AY63,$BA63,$BC63),7) -> 0 | BK63: =LARGE(($I63,$K63,$M63,$O63,$Q63,$S63,$U63,$W63,$Y63,$AA63,$AC63,$AE63,$AG63,$AI63,$AK63,$AM63,$AO63,$AQ63,$AS63,$AU63,$AW63,$AY63,$BA63,$BC63),8) -> 0 | BL63: =LARGE(($I63,$K63,$M63,$O63,$Q63,$S63,$U63,$W63,$Y63,$AA63,$AC63,$AE63,$AG63,$AI63,$AK63,$AM63,$AO63,$AQ63,$AS63,$AU63,$AW63,$AY63,$BA63,$BC63),9) -> 0 | BM63: =LARGE(($I63,$K63,$M63,$O63,$Q63,$S63,$U63,$W63,$Y63,$AA63,$AC63,$AE63,$AG63,$AI63,$AK63,$AM63,$AO63,$AQ63,$AS63,$AU63,$AW63,$AY63,$BA63,$BC63),10) -> 0
A64: 60 | E64: 0 | F64: 0 | G64: 0 | I64: =LOOKUP(H64,Poängberäkning!$B$6:$B$97,Poängberäkning!$C$6:$C$97) -> 0 | K64: =LOOKUP(J64,Poängberäkning!$B$6:$B$97,Poängberäkning!$C$6:$C$97) -> 0 | M64: =LOOKUP(L64,Poängberäkning!$B$6:$B$97,Poängberäkning!$C$6:$C$97) -> 0 | O64: =LOOKUP(N64,Poängberäkning!$B$6:$B$97,Poängberäkning!$C$6:$C$97) -> 0 | Q64: =LOOKUP(P64,Poängberäkning!$B$6:$B$97,Poängberäkning!$C$6:$C$97) -> 0 | S64: =LOOKUP(R64,Poängberäkning!$B$6:$B$97,Poängberäkning!$C$6:$C$97) -> 0 | U64: =LOOKUP(T64,Poängberäkning!$B$6:$B$97,Poängberäkning!$C$6:$C$97) -> 0 | W64: =LOOKUP(V64,Poängberäkning!$B$6:$B$97,Poängberäkning!$C$6:$C$97) -> 0 | Y64: =LOOKUP(X64,Poängberäkning!$B$6:$B$97,Poängberäkning!$C$6:$C$97) -> 0 | AA64: =LOOKUP(Z64,Poängberäkning!$B$6:$B$97,Poängberäkning!$C$6:$C$97) -> 0 | AC64: =LOOKUP(AB64,Poängberäkning!$B$6:$B$97,Poängberäkning!$C$6:$C$97) -> 0 | AE64: =LOOKUP(AD64,Poängberäkning!$B$6:$B$97,Poängberäkning!$C$6:$C$97) -> 0 | AG64: =LOOKUP(AF64,Poängberäkning!$B$6:$B$97,Poängberäkning!$C$6:$C$97) -> 0 | AI64: =LOOKUP(AH64,Poängberäkning!$B$6:$B$97,Poängberäkning!$C$6:$C$97) -> 0 | AK64: =LOOKUP(AJ64,Poängberäkning!$B$6:$B$97,Poängberäkning!$C$6:$C$97) -> 0 | AM64: =LOOKUP(AL64,Poängberäkning!$B$6:$B$97,Poängberäkning!$C$6:$C$97) -> 0 | AO64: =LOOKUP(AN64,Poängberäkning!$B$6:$B$97,Poängberäkning!$C$6:$C$97) -> 0 | AQ64: =LOOKUP(AP64,Poängberäkning!$B$6:$B$97,Poängberäkning!$C$6:$C$97) -> 0 | AS64: =LOOKUP(AR64,Poängberäkning!$B$6:$B$97,Poängberäkning!$C$6:$C$97) -> 0 | AU64: =LOOKUP(AT64,Poängberäkning!$B$6:$B$97,Poängberäkning!$C$6:$C$97) -> 0 | BD64: =LARGE(($I64,$K64,$M64,$O64,$Q64,$S64,$U64,$W64,$Y64,$AA64,$AC64,$AE64,$AG64,$AI64,$AK64,$AM64,$AO64,$AQ64,$AS64,$AU64,$AW64,$AY64,$BA64,$BC64),1) -> 0 | BE64: =LARGE(($I64,$K64,$M64,$O64,$Q64,$S64,$U64,$W64,$Y64,$AA64,$AC64,$AE64,$AG64,$AI64,$AK64,$AM64,$AO64,$AQ64,$AS64,$AU64,$AW64,$AY64,$BA64,$BC64),2) -> 0 | BF64: =LARGE(($I64,$K64,$M64,$O64,$Q64,$S64,$U64,$W64,$Y64,$AA64,$AC64,$AE64,$AG64,$AI64,$AK64,$AM64,$AO64,$AQ64,$AS64,$AU64,$AW64,$AY64,$BA64,$BC64),3) -> 0 | BG64: =LARGE(($I64,$K64,$M64,$O64,$Q64,$S64,$U64,$W64,$Y64,$AA64,$AC64,$AE64,$AG64,$AI64,$AK64,$AM64,$AO64,$AQ64,$AS64,$AU64,$AW64,$AY64,$BA64,$BC64),4) -> 0 | BH64: =LARGE(($I64,$K64,$M64,$O64,$Q64,$S64,$U64,$W64,$Y64,$AA64,$AC64,$AE64,$AG64,$AI64,$AK64,$AM64,$AO64,$AQ64,$AS64,$AU64,$AW64,$AY64,$BA64,$BC64),5) -> 0 | BI64: =LARGE(($I64,$K64,$M64,$O64,$Q64,$S64,$U64,$W64,$Y64,$AA64,$AC64,$AE64,$AG64,$AI64,$AK64,$AM64,$AO64,$AQ64,$AS64,$AU64,$AW64,$AY64,$BA64,$BC64),6) -> 0 | BJ64: =LARGE(($I64,$K64,$M64,$O64,$Q64,$S64,$U64,$W64,$Y64,$AA64,$AC64,$AE64,$AG64,$AI64,$AK64,$AM64,$AO64,$AQ64,$AS64,$AU64,$AW64,$AY64,$BA64,$BC64),7) -> 0 | BK64: =LARGE(($I64,$K64,$M64,$O64,$Q64,$S64,$U64,$W64,$Y64,$AA64,$AC64,$AE64,$AG64,$AI64,$AK64,$AM64,$AO64,$AQ64,$AS64,$AU64,$AW64,$AY64,$BA64,$BC64),8) -> 0 | BL64: =LARGE(($I64,$K64,$M64,$O64,$Q64,$S64,$U64,$W64,$Y64,$AA64,$AC64,$AE64,$AG64,$AI64,$AK64,$AM64,$AO64,$AQ64,$AS64,$AU64,$AW64,$AY64,$BA64,$BC64),9) -> 0 | BM64: =LARGE(($I64,$K64,$M64,$O64,$Q64,$S64,$U64,$W64,$Y64,$AA64,$AC64,$AE64,$AG64,$AI64,$AK64,$AM64,$AO64,$AQ64,$AS64,$AU64,$AW64,$AY64,$BA64,$BC64),10) -> 0
... 1 more rows

Sheet H U-15
A1: USM-kval region 3 2015
A2: Herrar U-15 | BD2: 1:a | BE2: 2:a | BF2: 3:e | BG2: 4:e | BH2: 5:e | BI2: 6:e | BJ2: 7:e | BK2: 8:e | BL2: 9:e | BM2: 10:e
E3: Topp 10 | F3: Topp 10 | G3: Totalt | H3: Falun SL 1 | L3: Falun SL 2 | P3: Idre SL 3 | T3: Idre SL 4 | X3: Borlänge GS 1 | AB3: Borlänge GS 2 | AF3: Valfjället GS | AJ3: Valfjället GS | AN3: Duved DH | AR3: Duved SG | BD3: De 10 bästa åken.
A4: Rang | B4: Född | C4: Namn | D4: Klubb | E4: Bästa åk | F4: Bästa åk | G4: Poäng | H4: 10/1 Åk1 | J4: 10/1 Åk2 | L4: 11/1 Åk 1 | N4: 11/1 Åk 2 | P4: 17/1 Åk 1 | R4: 17/1 Åk 2 | T4: 18/1 Åk 1 | V4: 18/1 Åk2 | X4: 31/1 Åk 1 | Z4: 31/1 Åk 2 | AB4: 31/1 Åk 3 | AD4: 31/1 Åk 4 | AF4: 15/2 Åk 1 | AH4: 15/2 Åk 2 | AJ4: 16/2 Åk 1 | AL4: 16/2 Åk 2 | AN4: 1/2 Åk 1 | AP4: 1/2 Åk 2 | AR4: 2/2 Åk 1 | AT4: 2/2 Åk 2
A5: 1 | B5: 2000 | C5: Mikael Semdahl | D5: IFK Borlänge | E5: =SUM(BD5:BM5) -> 660 | F5: =SUM(BD5:BK5) -> 660 | G5: =I5+K5+M5+O5+Q5+S5+U5+W5+Y5+AA5+AC5+AE5+AG5+AI5+AK5+AM5+AO5+AQ5+AS5+AU5+AW5+AY5+BA5+BC5 -> 660 | H5: 2 | I5: =LOOKUP(H5,Poängberäkning!$B$6:$B$97,Poängberäkning!$C$6:$C$97) -> 80 | J5: 1 | K5: =LOOKUP(J5,Poängberäkning!$B$6:$B$97,Poängberäkning!$C$6:$C$97) -> 100 | L5: 1 | M5: =LOOKUP(L5,Poängberäkning!$B$6:$B$97,Poängberäkning!$C$6:$C$97) -> 100 | N5: 1 | O5: =LOOKUP(N5,Poängberäkning!$B$6:$B$97,Poängberäkning!$C$6:$C$97) -> 100 | P5: 1 | Q5: =LOOKUP(P5,Poängberäkning!$B$6:$B$97,Poängberäkning!$C$6:$C$97) -> 100 | R5: 1 | S5: =LOOKUP(R5,Poängberäkning!$B$6:$B$97,Poängberäkning!$C$6:$C$97) -> 100 | T5: 99 | U5: =LOOKUP(T5,Poängberäkning!$B$6:$B$97,Poängberäkning!$C$6:$C$97) -> 0 | V5: 2 | W5: =LOOKUP(V5,Poängberäkning!$B$6:$B$97,Poängberäkning!$C$6:$C$97) -> 80 | Y5: =LOOKUP(X5,Poängberäkning!$B$6:$B$97,Poängberäkning!$C$6:$C$97) -> 0 | AA5: =LOOKUP(Z5,Poängberäkning!$B$6:$B$97,Poängberäkning!$C$6:$C$97) -> 0 | AC5: =LOOKUP(AB5,Poängberäkning!$B$6:$B$97,Poängberäkning!$C$6:$C$97) -> 0 | AE5: =LOOKUP(AD5,Poängberäkning!$B$6:$B$97,Poängberäkning!$C$6:$C$97) -> 0 | AG5: =LOOKUP(AF5,Poängberäkning!$B$6:$B$97,Poängberäkning!$C$6:$C$97) -> 0 | AI5: =LOOKUP(AH5,Poängberäkning!$B$6:$B$97,Poängberäkning!$C$6:$C$97) -> 0 | AK5: =LOOKUP(AJ5,Poängberäkning!$B$6:$B$97,Poängberäkning!$C$6:$C$97) -> 0 | AM5: =LOOKUP(AL5,Poängberäkning!$B$6:$B$97,Poängberäkning!$C$6:$C$97) -> 0 | AO5: =LOOKUP(AN5,Poängberäkning!$B$6:$B$97,Poängberäkning!$C$6:$C$97) -> 0 | AQ5: =LOOKUP(AP5,Poängberäkning!$B$6:$B$97,Poängberäkning!$C$6:$C$97) -> 0 | AS5: =LOOKUP(AR5,Poängberäkning!$B$6:$B$97,Poängberäkning!$C$6:$C$97) -> 0 | AU5: =LOOKUP(AT5,Poängberäkning!$B$6:$B$97,Poängberäkning!$C$6:$C$97) -> 0 | BD5: =LARGE(($I5,$K5,$M5,$O5,$Q5,$S5,$U5,$W5,$Y5,$AA5,$AC5,$AE5,$AG5,$AI5,$AK5,$AM5,$AO5,$AQ5,$AS5,$AU5,$AW5,$AY5,$BA5,$BC5),1) -> 100 | BE5: =LARGE(($I5,$K5,$M5,$O5,$Q5,$S5,$U5,$W5,$Y5,$AA5,$AC5,$AE5,$AG5,$AI5,$AK5,$AM5,$AO5,$AQ5,$AS5,$AU5,$AW5,$AY5,$BA5,$BC5),2) -> 100 | BF5: =LARGE(($I5,$K5,$M5,$O5,$Q5,$S5,$U5,$W5,$Y5,$AA5,$AC5,$AE5,$AG5,$AI5,$AK5,$AM5,$AO5,$AQ5,$AS5,$AU5,$AW5,$AY5,$BA5,$BC5),3) -> 100 | BG5: =LARGE(($I5,$K5,$M5,$O5,$Q5,$S5,$U5,$W5,$Y5,$AA5,$AC5,$AE5,$AG5,$AI5,$AK5,$AM5,$AO5,$AQ5,$AS5,$AU5,$AW5,$AY5,$BA5,$BC5),4) -> 100 | BH5: =LARGE(($I5,$K5,$M5,$O5,$Q5,$S5,$U5,$W5,$Y5,$AA5,$AC5,$AE5,$AG5,$AI5,$AK5,$AM5,$AO5,$AQ5,$AS5,$AU5,$AW5,$AY5,$BA5,$BC5),5) -> 100 | BI5: =LARGE(($I5,$K5,$M5,$O5,$Q5,$S5,$U5,$W5,$Y5,$AA5,$AC5,$AE5,$AG5,$AI5,$AK5,$AM5,$AO5,$AQ5,$AS5,$AU5,$AW5,$AY5,$BA5,$BC5),6) -> 80 | BJ5: =LARGE(($I5,$K5,$M5,$O5,$Q5,$S5,$U5,$W5,$Y5,$AA5,$AC5,$AE5,$AG5,$AI5,$AK5,$AM5,$AO5,$AQ5,$AS5,$AU5,$AW5,$AY5,$BA5,$BC5),7) -> 80 | BK5: =LARGE(($I5,$K5,$M5,$O5,$Q5,$S5,$U5,$W5,$Y5,$AA5,$AC5,$AE5,$AG5,$AI5,$AK5,$AM5,$AO5,$AQ5,$AS5,$AU5,$AW5,$AY5,$BA5,$BC5),8) -> 0 | BL5: =LARGE(($I5,$K5,$M5,$O5,$Q5,$S5,$U5,$W5,$Y5,$AA5,$AC5,$AE5,$AG5,$AI5,$AK5,$AM5,$AO5,$AQ5,$AS5,$AU5,$AW5,$AY5,$BA5,$BC5),9) -> 0 | BM5: =LARGE(($I5,$K5,$M5,$O5,$Q5,$S5,$U5,$W5,$Y5,$AA5,$AC5,$AE5,$AG5,$AI5,$AK5,$AM5,$AO5,$AQ5,$AS5,$AU5,$AW5,$AY5,$BA5,$BC5),10) -> 0
A6: =A5+1 -> 2 | B6: 2000 | C6: Rickard Forsman | D6: Malungs SLK | E6: =SUM(BD6:BM6) -> 628 | F6: =SUM(BD6:BK6) -> 628 | G6: =I6+K6+M6+O6+Q6+S6+U6+W6+Y6+AA6+AC6+AE6+AG6+AI6+AK6+AM6+AO6+AQ6+AS6+AU6+AW6+AY6+BA6+BC6 -> 628 | H6: 1 | I6: =LOOKUP(H6,Poängberäkning!$B$6:$B$97,Poängberäkning!$C$6:$C$97) -> 100 | J6: 2 | K6: =LOOKUP(J6,Poängberäkning!$B$6:$B$97,Poängberäkning!$C$6:$C$97) -> 80 | L6: 2 | M6: =LOOKUP(L6,Poängberäkning!$B$6:$B$97,Poängberäkning!$C$6:$C$97) -> 80 | N6: 3 | O6: =LOOKUP(N6,Poängberäkning!$B$6:$B$97,Poängberäkning!$C$6:$C$97) -> 70 | P6: 7 | Q6: =LOOKUP(P6,Poängberäkning!$B$6:$B$97,Poängberäkning!$C$6:$C$97) -> 48 | R6: 2 | S6: =LOOKUP(R6,Poängberäkning!$B$6:$B$97,Poängberäkning!$C$6:$C$97) -> 80 | T6: 1 | U6: =LOOKUP(T6,Poängberäkning!$B$6:$B$97,Poängberäkning!$C$6:$C$97) -> 100 | V6: 3 | W6: =LOOKUP(V6,Poängberäkning!$B$6:$B$97,Poängberäkning!$C$6:$C$97) -> 70 | Y6: =LOOKUP(X6,Poängberäkning!$B$6:$B$97,Poängberäkning!$C$6:$C$97) -> 0 | AA6: =LOOKUP(Z6,Poängberäkning!$B$6:$B$97,Poängberäkning!$C$6:$C$97) -> 0 | AC6: =LOOKUP(AB6,Poängberäkning!$B$6:$B$97,Poängberäkning!$C$6:$C$97) -> 0 | AE6: =LOOKUP(AD6,Poängberäkning!$B$6:$B$97,Poängberäkning!$C$6:$C$97) -> 0 | AG6: =LOOKUP(AF6,Poängberäkning!$B$6:$B$97,Poängberäkning!$C$6:$C$97) -> 0 | AI6: =LOOKUP(AH6,Poängberäkning!$B$6:$B$97,Poängberäkning!$C$6:$C$97) -> 0 | AK6: =LOOKUP(AJ6,Poängberäkning!$B$6:$B$97,Poängberäkning!$C$6:$C$97) -> 0 | AM6: =LOOKUP(AL6,Poängberäkning!$B$6:$B$97,Poängberäkning!$C$6:$C$97) -> 0 | AO6: =LOOKUP(AN6,Poängberäkning!$B$6:$B$97,Poängberäkning!$C$6:$C$97) -> 0 | AQ6: =LOOKUP(AP6,Poängberäkning!$B$6:$B$97,Poängberäkning!$C$6:$C$97) -> 0 | AS6: =LOOKUP(AR6,Poängberäkning!$B$6:$B$97,Poängberäkning!$C$6:$C$97) -> 0 | AU6: =LOOKUP(AT6,Poängberäkning!$B$6:$B$97,Poängberäkning!$C$6:$C$97) -> 0 | BD6: =LARGE(($I6,$K6,$M6,$O6,$Q6,$S6,$U6,$W6,$Y6,$AA6,$AC6,$AE6,$AG6,$AI6,$AK6,$AM6,$AO6,$AQ6,$AS6,$AU6,$AW6,$AY6,$BA6,$BC6),1) -> 100 | BE6: =LARGE(($I6,$K6,$M6,$O6,$Q6,$S6,$U6,$W6,$Y6,$AA6,$AC6,$AE6,$AG6,$AI6,$AK6,$AM6,$AO6,$AQ6,$AS6,$AU6,$AW6,$AY6,$BA6,$BC6),2) -> 100 | BF6: =LARGE(($I6,$K6,$M6,$O6,$Q6,$S6,$U6,$W6,$Y6,$AA6,$AC6,$AE6,$AG6,$AI6,$AK6,$AM6,$AO6,$AQ6,$AS6,$AU6,$AW6,$AY6,$BA6,$BC6),3) -> 80 | BG6: =LARGE(($I6,$K6,$M6,$O6,$Q6,$S6,$U6,$W6,$Y6,$AA6,$AC6,$AE6,$AG6,$AI6,$AK6,$AM6,$AO6,$AQ6,$AS6,$AU6,$AW6,$AY6,$BA6,$BC6),4) -> 80 | BH6: =LARGE(($I6,$K6,$M6,$O6,$Q6,$S6,$U6,$W6,$Y6,$AA6,$AC6,$AE6,$AG6,$AI6,$AK6,$AM6,$AO6,$AQ6,$AS6,$AU6,$AW6,$AY6,$BA6,$BC6),5) -> 80 | BI6: =LARGE(($I6,$K6,$M6,$O6,$Q6,$S6,$U6,$W6,$Y6,$AA6,$AC6,$AE6,$AG6,$AI6,$AK6,$AM6,$AO6,$AQ6,$AS6,$AU6,$AW6,$AY6,$BA6,$BC6),6) -> 70 | BJ6: =LARGE(($I6,$K6,$M6,$O6,$Q6,$S6,$U6,$W6,$Y6,$AA6,$AC6,$AE6,$AG6,$AI6,$AK6,$AM6,$AO6,$AQ6,$AS6,$AU6,$AW6,$AY6,$BA6,$BC6),7) -> 70 | BK6: =LARGE(($I6,$K6,$M6,$O6,$Q6,$S6,$U6,$W6,$Y6,$AA6,$AC6,$AE6,$AG6,$AI6,$AK6,$AM6,$AO6,$AQ6,$AS6,$AU6,$AW6,$AY6,$BA6,$BC6),8) -> 48 | BL6: =LARGE(($I6,$K6,$M6,$O6,$Q6,$S6,$U6,$W6,$Y6,$AA6,$AC6,$AE6,$AG6,$AI6,$AK6,$AM6,$AO6,$AQ6,$AS6,$AU6,$AW6,$AY6,$BA6,$BC6),9) -> 0 | BM6: =LARGE(($I6,$K6,$M6,$O6,$Q6,$S6,$U6,$W6,$Y6,$AA6,$AC6,$AE6,$AG6,$AI6,$AK6,$AM6,$AO6,$AQ6,$AS6,$AU6,$AW6,$AY6,$BA6,$BC6),10) -> 0
A7: =A6+1 -> 3 | B7: 2000 | C7: Edvin Sundberg | D7: Örebro SLF | E7: =SUM(BD7:BM7) -> 580 | F7: =SUM(BD7:BK7) -> 580 | G7: =I7+K7+M7+O7+Q7+S7+U7+W7+Y7+AA7+AC7+AE7+AG7+AI7+AK7+AM7+AO7+AQ7+AS7+AU7+AW7+AY7+BA7+BC7 -> 580 | H7: 3 | I7: =LOOKUP(H7,Poängberäkning!$B$6:$B$97,Poängberäkning!$C$6:$C$97) -> 70 | J7: 3 | K7: =LOOKUP(J7,Poängberäkning!$B$6:$B$97,Poängberäkning!$C$6:$C$97) -> 70 | L7: 6 | M7: =LOOKUP(L7,Poängberäkning!$B$6:$B$97,Poängberäkning!$C$6:$C$97) -> 50 | N7: 4 | O7: =LOOKUP(N7,Poängberäkning!$B$6:$B$97,Poängberäkning!$C$6:$C$97) -> 60 | P7: 2 | Q7: =LOOKUP(P7,Poängberäkning!$B$6:$B$97,Poängberäkning!$C$6:$C$97) -> 80 | R7: 3 | S7: =LOOKUP(R7,Poängberäkning!$B$6:$B$97,Poängberäkning!$C$6:$C$97) -> 70 | T7: 2 | U7: =LOOKUP(T7,Poängberäkning!$B$6:$B$97,Poängberäkning!$C$6:$C$97) -> 80 | V7: 1 | W7: =LOOKUP(V7,Poängberäkning!$B$6:$B$97,Poängberäkning!$C$6:$C$97) -> 100 | Y7: =LOOKUP(X7,Poängberäkning!$B$6:$B$97,Poängberäkning!$C$6:$C$97) -> 0 | AA7: =LOOKUP(Z7,Poängberäkning!$B$6:$B$97,Poängberäkning!$C$6:$C$97) -> 0 | AC7: =LOOKUP(AB7,Poängberäkning!$B$6:$B$97,Poängberäkning!$C$6:$C$97) -> 0 | AE7: =LOOKUP(AD7,Poängberäkning!$B$6:$B$97,Poängberäkning!$C$6:$C$97) -> 0 | AG7: =LOOKUP(AF7,Poängberäkning!$B$6:$B$97,Poängberäkning!$C$6:$C$97) -> 0 | AI7: =LOOKUP(AH7,Poängberäkning!$B$6:$B$97,Poängberäkning!$C$6:$C$97) -> 0 | AK7: =LOOKUP(AJ7,Poängberäkning!$B$6:$B$97,Poängberäkning!$C$6:$C$97) -> 0 | AM7: =LOOKUP(AL7,Poängberäkning!$B$6:$B$97,Poängberäkning!$C$6:$C$97) -> 0 | AO7: =LOOKUP(AN7,Poängberäkning!$B$6:$B$97,Poängberäkning!$C$6:$C$97) -> 0 | AQ7: =LOOKUP(AP7,Poängberäkning!$B$6:$B$97,Poängberäkning!$C$6:$C$97) -> 0 | AS7: =LOOKUP(AR7,Poängberäkning!$B$6:$B$97,Poängberäkning!$C$6:$C$97) -> 0 | AU7: =LOOKUP(AT7,Poängberäkning!$B$6:$B$97,Poängberäkning!$C$6:$C$97) -> 0 | BD7: =LARGE(($I7,$K7,$M7,$O7,$Q7,$S7,$U7,$W7,$Y7,$AA7,$AC7,$AE7,$AG7,$AI7,$AK7,$AM7,$AO7,$AQ7,$AS7,$AU7,$AW7,$AY7,$BA7,$BC7),1) -> 100 | BE7: =LARGE(($I7,$K7,$M7,$O7,$Q7,$S7,$U7,$W7,$Y7,$AA7,$AC7,$AE7,$AG7,$AI7,$AK7,$AM7,$AO7,$AQ7,$AS7,$AU7,$AW7,$AY7,$BA7,$BC7),2) -> 80 | BF7: =LARGE(($I7,$K7,$M7,$O7,$Q7,$S7,$U7,$W7,$Y7,$AA7,$AC7,$AE7,$AG7,$AI7,$AK7,$AM7,$AO7,$AQ7,$AS7,$AU7,$AW7,$AY7,$BA7,$BC7),3) -> 80 | BG7: =LARGE(($I7,$K7,$M7,$O7,$Q7,$S7,$U7,$W7,$Y7,$AA7,$AC7,$AE7,$AG7,$AI7,$AK7,$AM7,$AO7,$AQ7,$AS7,$AU7,$AW7,$AY7,$BA7,$BC7),4) -> 70 | BH7: =LARGE(($I7,$K7,$M7,$O7,$Q7,$S7,$U7,$W7,$Y7,$AA7,$AC7,$AE7,$AG7,$AI7,$AK7,$AM7,$AO7,$AQ7,$AS7,$AU7,$AW7,$AY7,$BA7,$BC7),5) -> 70 | BI7: =LARGE(($I7,$K7,$M7,$O7,$Q7,$S7,$U7,$W7,$Y7,$AA7,$AC7,$AE7,$AG7,$AI7,$AK7,$AM7,$AO7,$AQ7,$AS7,$AU7,$AW7,$AY7,$BA7,$BC7),6) -> 70 | BJ7: =LARGE(($I7,$K7,$M7,$O7,$Q7,$S7,$U7,$W7,$Y7,$AA7,$AC7,$AE7,$AG7,$AI7,$AK7,$AM7,$AO7,$AQ7,$AS7,$AU7,$AW7,$AY7,$BA7,$BC7),7) -> 60 | BK7: =LARGE(($I7,$K7,$M7,$O7,$Q7,$S7,$U7,$W7,$Y7,$AA7,$AC7,$AE7,$AG7,$AI7,$AK7,$AM7,$AO7,$AQ7,$AS7,$AU7,$AW7,$AY7,$BA7,$BC7),8) -> 50 | BL7: =LARGE(($I7,$K7,$M7,$O7,$Q7,$S7,$U7,$W7,$Y7,$AA7,$AC7,$AE7,$AG7,$AI7,$AK7,$AM7,$AO7,$AQ7,$AS7,$AU7,$AW7,$AY7,$BA7,$BC7),9) -> 0 | BM7: =LARGE(($I7,$K7,$M7,$O7,$Q7,$S7,$U7,$W7,$Y7,$AA7,$AC7,$AE7,$AG7,$AI7,$AK7,$AM7,$AO7,$AQ7,$AS7,$AU7,$AW7,$AY7,$BA7,$BC7),10) -> 0
A8: =A7+1 -> 4 | B8: 2000 | C8: Erik Hultman | D8: Karlskoga SLK | E8: =SUM(BD8:BM8) -> 425 | F8: =SUM(BD8:BK8) -> 425 | G8: =I8+K8+M8+O8+Q8+S8+U8+W8+Y8+AA8+AC8+AE8+AG8+AI8+AK8+AM8+AO8+AQ8+AS8+AU8+AW8+AY8+BA8+BC8 -> 425 | H8: 5 | I8: =LOOKUP(H8,Poängberäkning!$B$6:$B$97,Poängberäkning!$C$6:$C$97) -> 55 | J8: 5 | K8: =LOOKUP(J8,Poängberäkning!$B$6:$B$97,Poängberäkning!$C$6:$C$97) -> 55 | L8: 3 | M8: =LOOKUP(L8,Poängberäkning!$B$6:$B$97,Poängberäkning!$C$6:$C$97) -> 70 | N8: 2 | O8: =LOOKUP(N8,Poängberäkning!$B$6:$B$97,Poängberäkning!$C$6:$C$97) -> 80 | P8: 5 | Q8: =LOOKUP(P8,Poängberäkning!$B$6:$B$97,Poängberäkning!$C$6:$C$97) -> 55 | R8: 6 | S8: =LOOKUP(R8,Poängberäkning!$B$6:$B$97,Poängberäkning!$C$6:$C$97) -> 50 | T8: 99 | U8: =LOOKUP(T8,Poängberäkning!$B$6:$B$97,Poängberäkning!$C$6:$C$97) -> 0 | V8: 4 | W8: =LOOKUP(V8,Poängberäkning!$B$6:$B$97,Poängberäkning!$C$6:$C$97) -> 60 | Y8: =LOOKUP(X8,Poängberäkning!$B$6:$B$97,Poängberäkning!$C$6:$C$97) -> 0 | AA8: =LOOKUP(Z8,Poängberäkning!$B$6:$B$97,Poängberäkning!$C$6:$C$97) -> 0 | AC8: =LOOKUP(AB8,Poängberäkning!$B$6:$B$97,Poängberäkning!$C$6:$C$97) -> 0 | AE8: =LOOKUP(AD8,Poängberäkning!$B$6:$B$97,Poängberäkning!$C$6:$C$97) -> 0 | AG8: =LOOKUP(AF8,Poängberäkning!$B$6:$B$97,Poängberäkning!$C$6:$C$97) -> 0 | AI8: =LOOKUP(AH8,Poängberäkning!$B$6:$B$97,Poängberäkning!$C$6:$C$97) -> 0 | AK8: =LOOKUP(AJ8,Poängberäkning!$B$6:$B$97,Poängberäkning!$C$6:$C$97) -> 0 | AM8: =LOOKUP(AL8,Poängberäkning!$B$6:$B$97,Poängberäkning!$C$6:$C$97) -> 0 | AO8: =LOOKUP(AN8,Poängberäkning!$B$6:$B$97,Poängberäkning!$C$6:$C$97) -> 0 | AQ8: =LOOKUP(AP8,Poängberäkning!$B$6:$B$97,Poängberäkning!$C$6:$C$97) -> 0 | AS8: =LOOKUP(AR8,Poängberäkning!$B$6:$B$97,Poängberäkning!$C$6:$C$97) -> 0 | AU8: =LOOKUP(AT8,Poängberäkning!$B$6:$B$97,Poängberäkning!$C$6:$C$97) -> 0 | BD8: =LARGE(($I8,$K8,$M8,$O8,$Q8,$S8,$U8,$W8,$Y8,$AA8,$AC8,$AE8,$AG8,$AI8,$AK8,$AM8,$AO8,$AQ8,$AS8,$AU8,$AW8,$AY8,$BA8,$BC8),1) -> 80 | BE8: =LARGE(($I8,$K8,$M8,$O8,$Q8,$S8,$U8,$W8,$Y8,$AA8,$AC8,$AE8,$AG8,$AI8,$AK8,$AM8,$AO8,$AQ8,$AS8,$AU8,$AW8,$AY8,$BA8,$BC8),2) -> 70 | BF8: =LARGE(($I8,$K8,$M8,$O8,$Q8,$S8,$U8,$W8,$Y8,$AA8,$AC8,$AE8,$AG8,$AI8,$AK8,$AM8,$AO8,$AQ8,$AS8,$AU8,$AW8,$AY8,$BA8,$BC8),3) -> 60 | BG8: =LARGE(($I8,$K8,$M8,$O8,$Q8,$S8,$U8,$W8,$Y8,$AA8,$AC8,$AE8,$AG8,$AI8,$AK8,$AM8,$AO8,$AQ8,$AS8,$AU8,$AW8,$AY8,$BA8,$BC8),4) -> 55 | BH8: =LARGE(($I8,$K8,$M8,$O8,$Q8,$S8,$U8,$W8,$Y8,$AA8,$AC8,$AE8,$AG8,$AI8,$AK8,$AM8,$AO8,$AQ8,$AS8,$AU8,$AW8,$AY8,$BA8,$BC8),5) -> 55 | BI8: =LARGE(($I8,$K8,$M8,$O8,$Q8,$S8,$U8,$W8,$Y8,$AA8,$AC8,$AE8,$AG8,$AI8,$AK8,$AM8,$AO8,$AQ8,$AS8,$AU8,$AW8,$AY8,$BA8,$BC8),6) -> 55 | BJ8: =LARGE(($I8,$K8,$M8,$O8,$Q8,$S8,$U8,$W8,$Y8,$AA8,$AC8,$AE8,$AG8,$AI8,$AK8,$AM8,$AO8,$AQ8,$AS8,$AU8,$AW8,$AY8,$BA8,$BC8),7) -> 50 | BK8: =LARGE(($I8,$K8,$M8,$O8,$Q8,$S8,$U8,$W8,$Y8,$AA8,$AC8,$AE8,$AG8,$AI8,$AK8,$AM8,$AO8,$AQ8,$AS8,$AU8,$AW8,$AY8,$BA8,$BC8),8) -> 0 | BL8: =LARGE(($I8,$K8,$M8,$O8,$Q8,$S8,$U8,$W8,$Y8,$AA8,$AC8,$AE8,$AG8,$AI8,$AK8,$AM8,$AO8,$AQ8,$AS8,$AU8,$AW8,$AY8,$BA8,$BC8),9) -> 0 | BM8: =LARGE(($I8,$K8,$M8,$O8,$Q8,$S8,$U8,$W8,$Y8,$AA8,$AC8,$AE8,$AG8,$AI8,$AK8,$AM8,$AO8,$AQ8,$AS8,$AU8,$AW8,$AY8,$BA8,$BC8),10) -> 0
A9: 5 | B9: 2000 | C9: Carl Setterström | D9: Karlstads SLK | E9: =SUM(BD9:BM9) -> 405 | F9: =SUM(BD9:BK9) -> 405 | G9: =I9+K9+M9+O9+Q9+S9+U9+W9+Y9+AA9+AC9+AE9+AG9+AI9+AK9+AM9+AO9+AQ9+AS9+AU9+AW9+AY9+BA9+BC9 -> 405 | H9: 4 | I9: =LOOKUP(H9,Poängberäkning!$B$6:$B$97,Poängberäkning!$C$6:$C$97) -> 60 | J9: 4 | K9: =LOOKUP(J9,Poängberäkning!$B$6:$B$97,Poängberäkning!$C$6:$C$97) -> 60 | L9: 5 | M9: =LOOKUP(L9,Poängberäkning!$B$6:$B$97,Poängberäkning!$C$6:$C$97) -> 55 | N9: 5 | O9: =LOOKUP(N9,Poängberäkning!$B$6:$B$97,Poängberäkning!$C$6:$C$97) -> 55 | P9: 4 | Q9: =LOOKUP(P9,Poängberäkning!$B$6:$B$97,Poängberäkning!$C$6:$C$97) -> 60 | R9: 4 | S9: =LOOKUP(R9,Poängberäkning!$B$6:$B$97,Poängberäkning!$C$6:$C$97) -> 60 | T9: 99 | U9: =LOOKUP(T9,Poängberäkning!$B$6:$B$97,Poängberäkning!$C$6:$C$97) -> 0 | V9: 5 | W9: =LOOKUP(V9,Poängberäkning!$B$6:$B$97,Poängberäkning!$C$6:$C$97) -> 55 | Y9: =LOOKUP(X9,Poängberäkning!$B$6:$B$97,Poängberäkning!$C$6:$C$97) -> 0 | AA9: =LOOKUP(Z9,Poängberäkning!$B$6:$B$97,Poängberäkning!$C$6:$C$97) -> 0 | AC9: =LOOKUP(AB9,Poängberäkning!$B$6:$B$97,Poängberäkning!$C$6:$C$97) -> 0 | AE9: =LOOKUP(AD9,Poängberäkning!$B$6:$B$97,Poängberäkning!$C$6:$C$97) -> 0 | AG9: =LOOKUP(AF9,Poängberäkning!$B$6:$B$97,Poängberäkning!$C$6:$C$97) -> 0 | AI9: =LOOKUP(AH9,Poängberäkning!$B$6:$B$97,Poängberäkning!$C$6:$C$97) -> 0 | AK9: =LOOKUP(AJ9,Poängberäkning!$B$6:$B$97,Poängberäkning!$C$6:$C$97) -> 0 | AM9: =LOOKUP(AL9,Poängberäkning!$B$6:$B$97,Poängberäkning!$C$6:$C$97) -> 0 | AO9: =LOOKUP(AN9,Poängberäkning!$B$6:$B$97,Poängberäkning!$C$6:$C$97) -> 0 | AQ9: =LOOKUP(AP9,Poängberäkning!$B$6:$B$97,Poängberäkning!$C$6:$C$97) -> 0 | AS9: =LOOKUP(AR9,Poängberäkning!$B$6:$B$97,Poängberäkning!$C$6:$C$97) -> 0 | AU9: =LOOKUP(AT9,Poängberäkning!$B$6:$B$97,Poängberäkning!$C$6:$C$97) -> 0 | BD9: =LARGE(($I9,$K9,$M9,$O9,$Q9,$S9,$U9,$W9,$Y9,$AA9,$AC9,$AE9,$AG9,$AI9,$AK9,$AM9,$AO9,$AQ9,$AS9,$AU9,$AW9,$AY9,$BA9,$BC9),1) -> 60 | BE9: =LARGE(($I9,$K9,$M9,$O9,$Q9,$S9,$U9,$W9,$Y9,$AA9,$AC9,$AE9,$AG9,$AI9,$AK9,$AM9,$AO9,$AQ9,$AS9,$AU9,$AW9,$AY9,$BA9,$BC9),2) -> 60 | BF9: =LARGE(($I9,$K9,$M9,$O9,$Q9,$S9,$U9,$W9,$Y9,$AA9,$AC9,$AE9,$AG9,$AI9,$AK9,$AM9,$AO9,$AQ9,$AS9,$AU9,$AW9,$AY9,$BA9,$BC9),3) -> 60 | BG9: =LARGE(($I9,$K9,$M9,$O9,$Q9,$S9,$U9,$W9,$Y9,$AA9,$AC9,$AE9,$AG9,$AI9,$AK9,$AM9,$AO9,$AQ9,$AS9,$AU9,$AW9,$AY9,$BA9,$BC9),4) -> 60 | BH9: =LARGE(($I9,$K9,$M9,$O9,$Q9,$S9,$U9,$W9,$Y9,$AA9,$AC9,$AE9,$AG9,$AI9,$AK9,$AM9,$AO9,$AQ9,$AS9,$AU9,$AW9,$AY9,$BA9,$BC9),5) -> 55 | BI9: =LARGE(($I9,$K9,$M9,$O9,$Q9,$S9,$U9,$W9,$Y9,$AA9,$AC9,$AE9,$AG9,$AI9,$AK9,$AM9,$AO9,$AQ9,$AS9,$AU9,$AW9,$AY9,$BA9,$BC9),6) -> 55 | BJ9: =LARGE(($I9,$K9,$M9,$O9,$Q9,$S9,$U9,$W9,$Y9,$AA9,$AC9,$AE9,$AG9,$AI9,$AK9,$AM9,$AO9,$AQ9,$AS9,$AU9,$AW9,$AY9,$BA9,$BC9),7) -> 55 | BK9: =LARGE(($I9,$K9,$M9,$O9,$Q9,$S9,$U9,$W9,$Y9,$AA9,$AC9,$AE9,$AG9,$AI9,$AK9,$AM9,$AO9,$AQ9,$AS9,$AU9,$AW9,$AY9,$BA9,$BC9),8) -> 0 | BL9: =LARGE(($I9,$K9,$M9,$O9,$Q9,$S9,$U9,$W9,$Y9,$AA9,$AC9,$AE9,$AG9,$AI9,$AK9,$AM9,$AO9,$AQ9,$AS9,$AU9,$AW9,$AY9,$BA9,$BC9),9) -> 0 | BM9: =LARGE(($I9,$K9,$M9,$O9,$Q9,$S9,$U9,$W9,$Y9,$AA9,$AC9,$AE9,$AG9,$AI9,$AK9,$AM9,$AO9,$AQ9,$AS9,$AU9,$AW9,$AY9,$BA9,$BC9),10) -> 0
A10: 6 | B10: 2000 | C10: Gusten Berglund | D10: Karlstads SLK | E10: =SUM(BD10:BM10) -> 393 | F10: =SUM(BD10:BK10) -> 393 | G10: =I10+K10+M10+O10+Q10+S10+U10+W10+Y10+AA10+AC10+AE10+AG10+AI10+AK10+AM10+AO10+AQ10+AS10+AU10+AW10+AY10+BA10+BC10 -> 393 | H10: 6 | I10: =LOOKUP(H10,Poängberäkning!$B$6:$B$97,Poängberäkning!$C$6:$C$97) -> 50 | J10: 7 | K10: =LOOKUP(J10,Poängberäkning!$B$6:$B$97,Poängberäkning!$C$6:$C$97) -> 48 | L10: 4 | M10: =LOOKUP(L10,Poängberäkning!$B$6:$B$97,Poängberäkning!$C$6:$C$97) -> 60 | N10: 6 | O10: =LOOKUP(N10,Poängberäkning!$B$6:$B$97,Poängberäkning!$C$6:$C$97) -> 50 | P10: 2 | Q10: =LOOKUP(P10,Poängberäkning!$B$6:$B$97,Poängberäkning!$C$6:$C$97) -> 80 | R10: 5 | S10: =LOOKUP(R10,Poängberäkning!$B$6:$B$97,Poängberäkning!$C$6:$C$97) -> 55 | T10: 99 | U10: =LOOKUP(T10,Poängberäkning!$B$6:$B$97,Poängberäkning!$C$6:$C$97) -> 0 | V10: 6 | W10: =LOOKUP(V10,Poängberäkning!$B$6:$B$97,Poängberäkning!$C$6:$C$97) -> 50 | Y10: =LOOKUP(X10,Poängberäkning!$B$6:$B$97,Poängberäkning!$C$6:$C$97) -> 0 | AA10: =LOOKUP(Z10,Poängberäkning!$B$6:$B$97,Poängberäkning!$C$6:$C$97) -> 0 | AC10: =LOOKUP(AB10,Poängberäkning!$B$6:$B$97,Poängberäkning!$C$6:$C$97) -> 0 | AE10: =LOOKUP(AD10,Poängberäkning!$B$6:$B$97,Poängberäkning!$C$6:$C$97) -> 0 | AG10: =LOOKUP(AF10,Poängberäkning!$B$6:$B$97,Poängberäkning!$C$6:$C$97) -> 0 | AI10: =LOOKUP(AH10,Poängberäkning!$B$6:$B$97,Poängberäkning!$C$6:$C$97) -> 0 | AK10: =LOOKUP(AJ10,Poängberäkning!$B$6:$B$97,Poängberäkning!$C$6:$C$97) -> 0 | AM10: =LOOKUP(AL10,Poängberäkning!$B$6:$B$97,Poängberäkning!$C$6:$C$97) -> 0 | AO10: =LOOKUP(AN10,Poängberäkning!$B$6:$B$97,Poängberäkning!$C$6:$C$97) -> 0 | AQ10: =LOOKUP(AP10,Poängberäkning!$B$6:$B$97,Poängberäkning!$C$6:$C$97) -> 0 | AS10: =LOOKUP(AR10,Poängberäkning!$B$6:$B$97,Poängberäkning!$C$6:$C$97) -> 0 | AU10: =LOOKUP(AT10,Poängberäkning!$B$6:$B$97,Poängberäkning!$C$6:$C$97) -> 0 | BD10: =LARGE(($I10,$K10,$M10,$O10,$Q10,$S10,$U10,$W10,$Y10,$AA10,$AC10,$AE10,$AG10,$AI10,$AK10,$AM10,$AO10,$AQ10,$AS10,$AU10,$AW10,$AY10,$BA10,$BC10),1) -> 80 | BE10: =LARGE(($I10,$K10,$M10,$O10,$Q10,$S10,$U10,$W10,$Y10,$AA10,$AC10,$AE10,$AG10,$AI10,$AK10,$AM10,$AO10,$AQ10,$AS10,$AU10,$AW10,$AY10,$BA10,$BC10),2) -> 60 | BF10: =LARGE(($I10,$K10,$M10,$O10,$Q10,$S10,$U10,$W10,$Y10,$AA10,$AC10,$AE10,$AG10,$AI10,$AK10,$AM10,$AO10,$AQ10,$AS10,$AU10,$AW10,$AY10,$BA10,$BC10),3) -> 55 | BG10: =LARGE(($I10,$K10,$M10,$O10,$Q10,$S10,$U10,$W10,$Y10,$AA10,$AC10,$AE10,$AG10,$AI10,$AK10,$AM10,$AO10,$AQ10,$AS10,$AU10,$AW10,$AY10,$BA10,$BC10),4) -> 50 | BH10: =LARGE(($I10,$K10,$M10,$O10,$Q10,$S10,$U10,$W10,$Y10,$AA10,$AC10,$AE10,$AG10,$AI10,$AK10,$AM10,$AO10,$AQ10,$AS10,$AU10,$AW10,$AY10,$BA10,$BC10),5) -> 50 | BI10: =LARGE(($I10,$K10,$M10,$O10,$Q10,$S10,$U10,$W10,$Y10,$AA10,$AC10,$AE10,$AG10,$AI10,$AK10,$AM10,$AO10,$AQ10,$AS10,$AU10,$AW10,$AY10,$BA10,$BC10),6) -> 50 | BJ10: =LARGE(($I10,$K10,$M10,$O10,$Q10,$S10,$U10,$W10,$Y10,$AA10,$AC10,$AE10,$AG10,$AI10,$AK10,$AM10,$AO10,$AQ10,$AS10,$AU10,$AW10,$AY10,$BA10,$BC10),7) -> 48 | BK10: =LARGE(($I10,$K10,$M10,$O10,$Q10,$S10,$U10,$W10,$Y10,$AA10,$AC10,$AE10,$AG10,$AI10,$AK10,$AM10,$AO10,$AQ10,$AS10,$AU10,$AW10,$AY10,$BA10,$BC10),8) -> 0 | BL10: =LARGE(($I10,$K10,$M10,$O10,$Q10,$S10,$U10,$W10,$Y10,$AA10,$AC10,$AE10,$AG10,$AI10,$AK10,$AM10,$AO10,$AQ10,$AS10,$AU10,$AW10,$AY10,$BA10,$BC10),9) -> 0 | BM10: =LARGE(($I10,$K10,$M10,$O10,$Q10,$S10,$U10,$W10,$Y10,$AA10,$AC10,$AE10,$AG10,$AI10,$AK10,$AM10,$AO10,$AQ10,$AS10,$AU10,$AW10,$AY10,$BA10,$BC10),10) -> 0
A11: 7 | B11: 2000 | C11: Filip Lindström | D11: Kumla SF | E11: =SUM(BD11:BM11) -> 360 | F11: =SUM(BD11:BK11) -> 360 | G11: =I11+K11+M11+O11+Q11+S11+U11+W11+Y11+AA11+AC11+AE11+AG11+AI11+AK11+AM11+AO11+AQ11+AS11+AU11+AW11+AY11+BA11+BC11 -> 360 | H11: 8 | I11: =LOOKUP(H11,Poängberäkning!$B$6:$B$97,Poängberäkning!$C$6:$C$97) -> 46 | J11: 6 | K11: =LOOKUP(J11,Poängberäkning!$B$6:$B$97,Poängberäkning!$C$6:$C$97) -> 50 | L11: 99 | M11: =LOOKUP(L11,Poängberäkning!$B$6:$B$97,Poängberäkning!$C$6:$C$97) -> 0 | N11: 7 | O11: =LOOKUP(N11,Poängberäkning!$B$6:$B$97,Poängberäkning!$C$6:$C$97) -> 48 | P11: 6 | Q11: =LOOKUP(P11,Poängberäkning!$B$6:$B$97,Poängberäkning!$C$6:$C$97) -> 50 | R11: 7 | S11: =LOOKUP(R11,Poängberäkning!$B$6:$B$97,Poängberäkning!$C$6:$C$97) -> 48 | T11: 3 | U11: =LOOKUP(T11,Poängberäkning!$B$6:$B$97,Poängberäkning!$C$6:$C$97) -> 70 | V11: 7 | W11: =LOOKUP(V11,Poängberäkning!$B$6:$B$97,Poängberäkning!$C$6:$C$97) -> 48 | Y11: =LOOKUP(X11,Poängberäkning!$B$6:$B$97,Poängberäkning!$C$6:$C$97) -> 0 | AA11: =LOOKUP(Z11,Poängberäkning!$B$6:$B$97,Poängberäkning!$C$6:$C$97) -> 0 | AC11: =LOOKUP(AB11,Poängberäkning!$B$6:$B$97,Poängberäkning!$C$6:$C$97) -> 0 | AE11: =LOOKUP(AD11,Poängberäkning!$B$6:$B$97,Poängberäkning!$C$6:$C$97) -> 0 | AG11: =LOOKUP(AF11,Poängberäkning!$B$6:$B$97,Poängberäkning!$C$6:$C$97) -> 0 | AI11: =LOOKUP(AH11,Poängberäkning!$B$6:$B$97,Poängberäkning!$C$6:$C$97) -> 0 | AK11: =LOOKUP(AJ11,Poängberäkning!$B$6:$B$97,Poängberäkning!$C$6:$C$97) -> 0 | AM11: =LOOKUP(AL11,Poängberäkning!$B$6:$B$97,Poängberäkning!$C$6:$C$97) -> 0 | AO11: =LOOKUP(AN11,Poängberäkning!$B$6:$B$97,Poängberäkning!$C$6:$C$97) -> 0 | AQ11: =LOOKUP(AP11,Poängberäkning!$B$6:$B$97,Poängberäkning!$C$6:$C$97) -> 0 | AS11: =LOOKUP(AR11,Poängberäkning!$B$6:$B$97,Poängberäkning!$C$6:$C$97) -> 0 | AU11: =LOOKUP(AT11,Poängberäkning!$B$6:$B$97,Poängberäkning!$C$6:$C$97) -> 0 | BD11: =LARGE(($I11,$K11,$M11,$O11,$Q11,$S11,$U11,$W11,$Y11,$AA11,$AC11,$AE11,$AG11,$AI11,$AK11,$AM11,$AO11,$AQ11,$AS11,$AU11,$AW11,$AY11,$BA11,$BC11),1) -> 70 | BE11: =LARGE(($I11,$K11,$M11,$O11,$Q11,$S11,$U11,$W11,$Y11,$AA11,$AC11,$AE11,$AG11,$AI11,$AK11,$AM11,$AO11,$AQ11,$AS11,$AU11,$AW11,$AY11,$BA11,$BC11),2) -> 50 | BF11: =LARGE(($I11,$K11,$M11,$O11,$Q11,$S11,$U11,$W11,$Y11,$AA11,$AC11,$AE11,$AG11,$AI11,$AK11,$AM11,$AO11,$AQ11,$AS11,$AU11,$AW11,$AY11,$BA11,$BC11),3) -> 50 | BG11: =LARGE(($I11,$K11,$M11,$O11,$Q11,$S11,$U11,$W11,$Y11,$AA11,$AC11,$AE11,$AG11,$AI11,$AK11,$AM11,$AO11,$AQ11,$AS11,$AU11,$AW11,$AY11,$BA11,$BC11),4) -> 48 | BH11: =LARGE(($I11,$K11,$M11,$O11,$Q11,$S11,$U11,$W11,$Y11,$AA11,$AC11,$AE11,$AG11,$AI11,$AK11,$AM11,$AO11,$AQ11,$AS11,$AU11,$AW11,$AY11,$BA11,$BC11),5) -> 48 | BI11: =LARGE(($I11,$K11,$M11,$O11,$Q11,$S11,$U11,$W11,$Y11,$AA11,$AC11,$AE11,$AG11,$AI11,$AK11,$AM11,$AO11,$AQ11,$AS11,$AU11,$AW11,$AY11,$BA11,$BC11),6) -> 48 | BJ11: =LARGE(($I11,$K11,$M11,$O11,$Q11,$S11,$U11,$W11,$Y11,$AA11,$AC11,$AE11,$AG11,$AI11,$AK11,$AM11,$AO11,$AQ11,$AS11,$AU11,$AW11,$AY11,$BA11,$BC11),7) -> 46 | BK11: =LARGE(($I11,$K11,$M11,$O11,$Q11,$S11,$U11,$W11,$Y11,$AA11,$AC11,$AE11,$AG11,$AI11,$AK11,$AM11,$AO11,$AQ11,$AS11,$AU11,$AW11,$AY11,$BA11,$BC11),8) -> 0 | BL11: =LARGE(($I11,$K11,$M11,$O11,$Q11,$S11,$U11,$W11,$Y11,$AA11,$AC11,$AE11,$AG11,$AI11,$AK11,$AM11,$AO11,$AQ11,$AS11,$AU11,$AW11,$AY11,$BA11,$BC11),9) -> 0 | BM11: =LARGE(($I11,$K11,$M11,$O11,$Q11,$S11,$U11,$W11,$Y11,$AA11,$AC11,$AE11,$AG11,$AI11,$AK11,$AM11,$AO11,$AQ11,$AS11,$AU11,$AW11,$AY11,$BA11,$BC11),10) -> 0
A12: 8 | B12: 2000 | C12: Adam Ståhlbom | D12: Kumla SF | E12: =SUM(BD12:BM12) -> 341 | F12: =SUM(BD12:BK12) -> 341 | G12: =I12+K12+M12+O12+Q12+S12+U12+W12+Y12+AA12+AC12+AE12+AG12+AI12+AK12+AM12+AO12+AQ12+AS12+AU12+AW12+AY12+BA12+BC12 -> 341 | H12: 12 | I12: =LOOKUP(H12,Poängberäkning!$B$6:$B$97,Poängberäkning!$C$6:$C$97) -> 39 | J12: 11 | K12: =LOOKUP(J12,Poängberäkning!$B$6:$B$97,Poängberäkning!$C$6:$C$97) -> 40 | L12: 9 | M12: =LOOKUP(L12,Poängberäkning!$B$6:$B$97,Poängberäkning!$C$6:$C$97) -> 44 | N12: 11 | O12: =LOOKUP(N12,Poängberäkning!$B$6:$B$97,Poängberäkning!$C$6:$C$97) -> 40 | P12: 9 | Q12: =LOOKUP(P12,Poängberäkning!$B$6:$B$97,Poängberäkning!$C$6:$C$97) -> 44 | R12: 10 | S12: =LOOKUP(R12,Poängberäkning!$B$6:$B$97,Poängberäkning!$C$6:$C$97) -> 42 | T12: 6 | U12: =LOOKUP(T12,Poängberäkning!$B$6:$B$97,Poängberäkning!$C$6:$C$97) -> 50 | V12: 10 | W12: =LOOKUP(V12,Poängberäkning!$B$6:$B$97,Poängberäkning!$C$6:$C$97) -> 42 | Y12: =LOOKUP(X12,Poängberäkning!$B$6:$B$97,Poängberäkning!$C$6:$C$97) -> 0 | AA12: =LOOKUP(Z12,Poängberäkning!$B$6:$B$97,Poängberäkning!$C$6:$C$97) -> 0 | AC12: =LOOKUP(AB12,Poängberäkning!$B$6:$B$97,Poängberäkning!$C$6:$C$97) -> 0 | AE12: =LOOKUP(AD12,Poängberäkning!$B$6:$B$97,Poängberäkning!$C$6:$C$97) -> 0 | AG12: =LOOKUP(AF12,Poängberäkning!$B$6:$B$97,Poängberäkning!$C$6:$C$97) -> 0 | AI12: =LOOKUP(AH12,Poängberäkning!$B$6:$B$97,Poängberäkning!$C$6:$C$97) -> 0 | AK12: =LOOKUP(AJ12,Poängberäkning!$B$6:$B$97,Poängberäkning!$C$6:$C$97) -> 0 | AM12: =LOOKUP(AL12,Poängberäkning!$B$6:$B$97,Poängberäkning!$C$6:$C$97) -> 0 | AO12: =LOOKUP(AN12,Poängberäkning!$B$6:$B$97,Poängberäkning!$C$6:$C$97) -> 0 | AQ12: =LOOKUP(AP12,Poängberäkning!$B$6:$B$97,Poängberäkning!$C$6:$C$97) -> 0 | AS12: =LOOKUP(AR12,Poängberäkning!$B$6:$B$97,Poängberäkning!$C$6:$C$97) -> 0 | AU12: =LOOKUP(AT12,Poängberäkning!$B$6:$B$97,Poängberäkning!$C$6:$C$97) -> 0 | BD12: =LARGE(($I12,$K12,$M12,$O12,$Q12,$S12,$U12,$W12,$Y12,$AA12,$AC12,$AE12,$AG12,$AI12,$AK12,$AM12,$AO12,$AQ12,$AS12,$AU12,$AW12,$AY12,$BA12,$BC12),1) -> 50 | BE12: =LARGE(($I12,$K12,$M12,$O12,$Q12,$S12,$U12,$W12,$Y12,$AA12,$AC12,$AE12,$AG12,$AI12,$AK12,$AM12,$AO12,$AQ12,$AS12,$AU12,$AW12,$AY12,$BA12,$BC12),2) -> 44 | BF12: =LARGE(($I12,$K12,$M12,$O12,$Q12,$S12,$U12,$W12,$Y12,$AA12,$AC12,$AE12,$AG12,$AI12,$AK12,$AM12,$AO12,$AQ12,$AS12,$AU12,$AW12,$AY12,$BA12,$BC12),3) -> 44 | BG12: =LARGE(($I12,$K12,$M12,$O12,$Q12,$S12,$U12,$W12,$Y12,$AA12,$AC12,$AE12,$AG12,$AI12,$AK12,$AM12,$AO12,$AQ12,$AS12,$AU12,$AW12,$AY12,$BA12,$BC12),4) -> 42 | BH12: =LARGE(($I12,$K12,$M12,$O12,$Q12,$S12,$U12,$W12,$Y12,$AA12,$AC12,$AE12,$AG12,$AI12,$AK12,$AM12,$AO12,$AQ12,$AS12,$AU12,$AW12,$AY12,$BA12,$BC12),5) -> 42 | BI12: =LARGE(($I12,$K12,$M12,$O12,$Q12,$S12,$U12,$W12,$Y12,$AA12,$AC12,$AE12,$AG12,$AI12,$AK12,$AM12,$AO12,$AQ12,$AS12,$AU12,$AW12,$AY12,$BA12,$BC12),6) -> 40 | BJ12: =LARGE(($I12,$K12,$M12,$O12,$Q12,$S12,$U12,$W12,$Y12,$AA12,$AC12,$AE12,$AG12,$AI12,$AK12,$AM12,$AO12,$AQ12,$AS12,$AU12,$AW12,$AY12,$BA12,$BC12),7) -> 40 | BK12: =LARGE(($I12,$K12,$M12,$O12,$Q12,$S12,$U12,$W12,$Y12,$AA12,$AC12,$AE12,$AG12,$AI12,$AK12,$AM12,$AO12,$AQ12,$AS12,$AU12,$AW12,$AY12,$BA12,$BC12),8) -> 39 | BL12: =LARGE(($I12,$K12,$M12,$O12,$Q12,$S12,$U12,$W12,$Y12,$AA12,$AC12,$AE12,$AG12,$AI12,$AK12,$AM12,$AO12,$AQ12,$AS12,$AU12,$AW12,$AY12,$BA12,$BC12),9) -> 0 | BM12: =LARGE(($I12,$K12,$M12,$O12,$Q12,$S12,$U12,$W12,$Y12,$AA12,$AC12,$AE12,$AG12,$AI12,$AK12,$AM12,$AO12,$AQ12,$AS12,$AU12,$AW12,$AY12,$BA12,$BC12),10) -> 0
A13: 9 | B13: 2000 | C13: Carl Kieksi | D13: IFK Borlänge | E13: =SUM(BD13:BM13) -> 310 | F13: =SUM(BD13:BK13) -> 310 | G13: =I13+K13+M13+O13+Q13+S13+U13+W13+Y13+AA13+AC13+AE13+AG13+AI13+AK13+AM13+AO13+AQ13+AS13+AU13+AW13+AY13+BA13+BC13 -> 310 | H13: 11 | I13: =LOOKUP(H13,Poängberäkning!$B$6:$B$97,Poängberäkning!$C$6:$C$97) -> 40 | J13: 9 | K13: =LOOKUP(J13,Poängberäkning!$B$6:$B$97,Poängberäkning!$C$6:$C$97) -> 44 | L13: 8 | M13: =LOOKUP(L13,Poängberäkning!$B$6:$B$97,Poängberäkning!$C$6:$C$97) -> 46 | N13: 9 | O13: =LOOKUP(N13,Poängberäkning!$B$6:$B$97,Poängberäkning!$C$6:$C$97) -> 44 | P13: 8 | Q13: =LOOKUP(P13,Poängberäkning!$B$6:$B$97,Poängberäkning!$C$6:$C$97) -> 46 | R13: 8 | S13: =LOOKUP(R13,Poängberäkning!$B$6:$B$97,Poängberäkning!$C$6:$C$97) -> 46 | T13: 99 | U13: =LOOKUP(T13,Poängberäkning!$B$6:$B$97,Poängberäkning!$C$6:$C$97) -> 0 | V13: 9 | W13: =LOOKUP(V13,Poängberäkning!$B$6:$B$97,Poängberäkning!$C$6:$C$97) -> 44 | Y13: =LOOKUP(X13,Poängberäkning!$B$6:$B$97,Poängberäkning!$C$6:$C$97) -> 0 | AA13: =LOOKUP(Z13,Poängberäkning!$B$6:$B$97,Poängberäkning!$C$6:$C$97) -> 0 | AC13: =LOOKUP(AB13,Poängberäkning!$B$6:$B$97,Poängberäkning!$C$6:$C$97) -> 0 | AE13: =LOOKUP(AD13,Poängberäkning!$B$6:$B$97,Poängberäkning!$C$6:$C$97) -> 0 | AG13: =LOOKUP(AF13,Poängberäkning!$B$6:$B$97,Poängberäkning!$C$6:$C$97) -> 0 | AI13: =LOOKUP(AH13,Poängberäkning!$B$6:$B$97,Poängberäkning!$C$6:$C$97) -> 0 | AK13: =LOOKUP(AJ13,Poängberäkning!$B$6:$B$97,Poängberäkning!$C$6:$C$97) -> 0 | AM13: =LOOKUP(AL13,Poängberäkning!$B$6:$B$97,Poängberäkning!$C$6:$C$97) -> 0 | AO13: =LOOKUP(AN13,Poängberäkning!$B$6:$B$97,Poängberäkning!$C$6:$C$97) -> 0 | AQ13: =LOOKUP(AP13,Poängberäkning!$B$6:$B$97,Poängberäkning!$C$6:$C$97) -> 0 | AS13: =LOOKUP(AR13,Poängberäkning!$B$6:$B$97,Poängberäkning!$C$6:$C$97) -> 0 | AU13: =LOOKUP(AT13,Poängberäkning!$B$6:$B$97,Poängberäkning!$C$6:$C$97) -> 0 | BD13: =LARGE(($I13,$K13,$M13,$O13,$Q13,$S13,$U13,$W13,$Y13,$AA13,$AC13,$AE13,$AG13,$AI13,$AK13,$AM13,$AO13,$AQ13,$AS13,$AU13,$AW13,$AY13,$BA13,$BC13),1) -> 46 | BE13: =LARGE(($I13,$K13,$M13,$O13,$Q13,$S13,$U13,$W13,$Y13,$AA13,$AC13,$AE13,$AG13,$AI13,$AK13,$AM13,$AO13,$AQ13,$AS13,$AU13,$AW13,$AY13,$BA13,$BC13),2) -> 46 | BF13: =LARGE(($I13,$K13,$M13,$O13,$Q13,$S13,$U13,$W13,$Y13,$AA13,$AC13,$AE13,$AG13,$AI13,$AK13,$AM13,$AO13,$AQ13,$AS13,$AU13,$AW13,$AY13,$BA13,$BC13),3) -> 46 | BG13: =LARGE(($I13,$K13,$M13,$O13,$Q13,$S13,$U13,$W13,$Y13,$AA13,$AC13,$AE13,$AG13,$AI13,$AK13,$AM13,$AO13,$AQ13,$AS13,$AU13,$AW13,$AY13,$BA13,$BC13),4) -> 44 | BH13: =LARGE(($I13,$K13,$M13,$O13,$Q13,$S13,$U13,$W13,$Y13,$AA13,$AC13,$AE13,$AG13,$AI13,$AK13,$AM13,$AO13,$AQ13,$AS13,$AU13,$AW13,$AY13,$BA13,$BC13),5) -> 44 | BI13: =LARGE(($I13,$K13,$M13,$O13,$Q13,$S13,$U13,$W13,$Y13,$AA13,$AC13,$AE13,$AG13,$AI13,$AK13,$AM13,$AO13,$AQ13,$AS13,$AU13,$AW13,$AY13,$BA13,$BC13),6) -> 44 | BJ13: =LARGE(($I13,$K13,$M13,$O13,$Q13,$S13,$U13,$W13,$Y13,$AA13,$AC13,$AE13,$AG13,$AI13,$AK13,$AM13,$AO13,$AQ13,$AS13,$AU13,$AW13,$AY13,$BA13,$BC13),7) -> 40 | BK13: =LARGE(($I13,$K13,$M13,$O13,$Q13,$S13,$U13,$W13,$Y13,$AA13,$AC13,$AE13,$AG13,$AI13,$AK13,$AM13,$AO13,$AQ13,$AS13,$AU13,$AW13,$AY13,$BA13,$BC13),8) -> 0 | BL13: =LARGE(($I13,$K13,$M13,$O13,$Q13,$S13,$U13,$W13,$Y13,$AA13,$AC13,$AE13,$AG13,$AI13,$AK13,$AM13,$AO13,$AQ13,$AS13,$AU13,$AW13,$AY13,$BA13,$BC13),9) -> 0 | BM13: =LARGE(($I13,$K13,$M13,$O13,$Q13,$S13,$U13,$W13,$Y13,$AA13,$AC13,$AE13,$AG13,$AI13,$AK13,$AM13,$AO13,$AQ13,$AS13,$AU13,$AW13,$AY13,$BA13,$BC13),10) -> 0
A14: 10 | B14: 2000 | C14: Johan Hedin | D14: IFK Borlänge | E14: =SUM(BD14:BM14) -> 308 | F14: =SUM(BD14:BK14) -> 308 | G14: =I14+K14+M14+O14+Q14+S14+U14+W14+Y14+AA14+AC14+AE14+AG14+AI14+AK14+AM14+AO14+AQ14+AS14+AU14+AW14+AY14+BA14+BC14 -> 308 | H14: 9 | I14: =LOOKUP(H14,Poängberäkning!$B$6:$B$97,Poängberäkning!$C$6:$C$97) -> 44 | J14: 12 | K14: =LOOKUP(J14,Poängberäkning!$B$6:$B$97,Poängberäkning!$C$6:$C$97) -> 39 | L14: 7 | M14: =LOOKUP(L14,Poängberäkning!$B$6:$B$97,Poängberäkning!$C$6:$C$97) -> 48 | N14: 10 | O14: =LOOKUP(N14,Poängberäkning!$B$6:$B$97,Poängberäkning!$C$6:$C$97) -> 42 | P14: 99 | Q14: =LOOKUP(P14,Poängberäkning!$B$6:$B$97,Poängberäkning!$C$6:$C$97) -> 0 | R14: 11 | S14: =LOOKUP(R14,Poängberäkning!$B$6:$B$97,Poängberäkning!$C$6:$C$97) -> 40 | T14: 5 | U14: =LOOKUP(T14,Poängberäkning!$B$6:$B$97,Poängberäkning!$C$6:$C$97) -> 55 | V14: 11 | W14: =LOOKUP(V14,Poängberäkning!$B$6:$B$97,Poängberäkning!$C$6:$C$97) -> 40 | Y14: =LOOKUP(X14,Poängberäkning!$B$6:$B$97,Poängberäkning!$C$6:$C$97) -> 0 | AA14: =LOOKUP(Z14,Poängberäkning!$B$6:$B$97,Poängberäkning!$C$6:$C$97) -> 0 | AC14: =LOOKUP(AB14,Poängberäkning!$B$6:$B$97,Poängberäkning!$C$6:$C$97) -> 0 | AE14: =LOOKUP(AD14,Poängberäkning!$B$6:$B$97,Poängberäkning!$C$6:$C$97) -> 0 | AG14: =LOOKUP(AF14,Poängberäkning!$B$6:$B$97,Poängberäkning!$C$6:$C$97) -> 0 | AI14: =LOOKUP(AH14,Poängberäkning!$B$6:$B$97,Poängberäkning!$C$6:$C$97) -> 0 | AK14: =LOOKUP(AJ14,Poängberäkning!$B$6:$B$97,Poängberäkning!$C$6:$C$97) -> 0 | AM14: =LOOKUP(AL14,Poängberäkning!$B$6:$B$97,Poängberäkning!$C$6:$C$97) -> 0 | AO14: =LOOKUP(AN14,Poängberäkning!$B$6:$B$97,Poängberäkning!$C$6:$C$97) -> 0 | AQ14: =LOOKUP(AP14,Poängberäkning!$B$6:$B$97,Poängberäkning!$C$6:$C$97) -> 0 | AS14: =LOOKUP(AR14,Poängberäkning!$B$6:$B$97,Poängberäkning!$C$6:$C$97) -> 0 | AU14: =LOOKUP(AT14,Poängberäkning!$B$6:$B$97,Poängberäkning!$C$6:$C$97) -> 0 | BD14: =LARGE(($I14,$K14,$M14,$O14,$Q14,$S14,$U14,$W14,$Y14,$AA14,$AC14,$AE14,$AG14,$AI14,$AK14,$AM14,$AO14,$AQ14,$AS14,$AU14,$AW14,$AY14,$BA14,$BC14),1) -> 55 | BE14: =LARGE(($I14,$K14,$M14,$O14,$Q14,$S14,$U14,$W14,$Y14,$AA14,$AC14,$AE14,$AG14,$AI14,$AK14,$AM14,$AO14,$AQ14,$AS14,$AU14,$AW14,$AY14,$BA14,$BC14),2) -> 48 | BF14: =LARGE(($I14,$K14,$M14,$O14,$Q14,$S14,$U14,$W14,$Y14,$AA14,$AC14,$AE14,$AG14,$AI14,$AK14,$AM14,$AO14,$AQ14,$AS14,$AU14,$AW14,$AY14,$BA14,$BC14),3) -> 44 | BG14: =LARGE(($I14,$K14,$M14,$O14,$Q14,$S14,$U14,$W14,$Y14,$AA14,$AC14,$AE14,$AG14,$AI14,$AK14,$AM14,$AO14,$AQ14,$AS14,$AU14,$AW14,$AY14,$BA14,$BC14),4) -> 42 | BH14: =LARGE(($I14,$K14,$M14,$O14,$Q14,$S14,$U14,$W14,$Y14,$AA14,$AC14,$AE14,$AG14,$AI14,$AK14,$AM14,$AO14,$AQ14,$AS14,$AU14,$AW14,$AY14,$BA14,$BC14),5) -> 40 | BI14: =LARGE(($I14,$K14,$M14,$O14,$Q14,$S14,$U14,$W14,$Y14,$AA14,$AC14,$AE14,$AG14,$AI14,$AK14,$AM14,$AO14,$AQ14,$AS14,$AU14,$AW14,$AY14,$BA14,$BC14),6) -> 40 | BJ14: =LARGE(($I14,$K14,$M14,$O14,$Q14,$S14,$U14,$W14,$Y14,$AA14,$AC14,$AE14,$AG14,$AI14,$AK14,$AM14,$AO14,$AQ14,$AS14,$AU14,$AW14,$AY14,$BA14,$BC14),7) -> 39 | BK14: =LARGE(($I14,$K14,$M14,$O14,$Q14,$S14,$U14,$W14,$Y14,$AA14,$AC14,$AE14,$AG14,$AI14,$AK14,$AM14,$AO14,$AQ14,$AS14,$AU14,$AW14,$AY14,$BA14,$BC14),8) -> 0 | BL14: =LARGE(($I14,$K14,$M14,$O14,$Q14,$S14,$U14,$W14,$Y14,$AA14,$AC14,$AE14,$AG14,$AI14,$AK14,$AM14,$AO14,$AQ14,$AS14,$AU14,$AW14,$AY14,$BA14,$BC14),9) -> 0 | BM14: =LARGE(($I14,$K14,$M14,$O14,$Q14,$S14,$U14,$W14,$Y14,$AA14,$AC14,$AE14,$AG14,$AI14,$AK14,$AM14,$AO14,$AQ14,$AS14,$AU14,$AW14,$AY14,$BA14,$BC14),10) -> 0
A15: 11 | B15: 2000 | C15: Martin Jansson | D15: IFK Falun | E15: =SUM(BD15:BM15) -> 292 | F15: =SUM(BD15:BK15) -> 292 | G15: =I15+K15+M15+O15+Q15+S15+U15+W15+Y15+AA15+AC15+AE15+AG15+AI15+AK15+AM15+AO15+AQ15+AS15+AU15+AW15+AY15+BA15+BC15 -> 292 | H15: 7 | I15: =LOOKUP(H15,Poängberäkning!$B$6:$B$97,Poängberäkning!$C$6:$C$97) -> 48 | J15: 8 | K15: =LOOKUP(J15,Poängberäkning!$B$6:$B$97,Poängberäkning!$C$6:$C$97) -> 46 | L15: 99 | M15: =LOOKUP(L15,Poängberäkning!$B$6:$B$97,Poängberäkning!$C$6:$C$97) -> 0 | N15: 8 | O15: =LOOKUP(N15,Poängberäkning!$B$6:$B$97,Poängberäkning!$C$6:$C$97) -> 46 | P15: 99 | Q15: =LOOKUP(P15,Poängberäkning!$B$6:$B$97,Poängberäkning!$C$6:$C$97) -> 0 | R15: 8 | S15: =LOOKUP(R15,Poängberäkning!$B$6:$B$97,Poängberäkning!$C$6:$C$97) -> 46 | T15: 4 | U15: =LOOKUP(T15,Poängberäkning!$B$6:$B$97,Poängberäkning!$C$6:$C$97) -> 60 | V15: 8 | W15: =LOOKUP(V15,Poängberäkning!$B$6:$B$97,Poängberäkning!$C$6:$C$97) -> 46 | Y15: =LOOKUP(X15,Poängberäkning!$B$6:$B$97,Poängberäkning!$C$6:$C$97) -> 0 | AA15: =LOOKUP(Z15,Poängberäkning!$B$6:$B$97,Poängberäkning!$C$6:$C$97) -> 0 | AC15: =LOOKUP(AB15,Poängberäkning!$B$6:$B$97,Poängberäkning!$C$6:$C$97) -> 0 | AE15: =LOOKUP(AD15,Poängberäkning!$B$6:$B$97,Poängberäkning!$C$6:$C$97) -> 0 | AG15: =LOOKUP(AF15,Poängberäkning!$B$6:$B$97,Poängberäkning!$C$6:$C$97) -> 0 | AI15: =LOOKUP(AH15,Poängberäkning!$B$6:$B$97,Poängberäkning!$C$6:$C$97) -> 0 | AK15: =LOOKUP(AJ15,Poängberäkning!$B$6:$B$97,Poängberäkning!$C$6:$C$97) -> 0 | AM15: =LOOKUP(AL15,Poängberäkning!$B$6:$B$97,Poängberäkning!$C$6:$C$97) -> 0 | AO15: =LOOKUP(AN15,Poängberäkning!$B$6:$B$97,Poängberäkning!$C$6:$C$97) -> 0 | AQ15: =LOOKUP(AP15,Poängberäkning!$B$6:$B$97,Poängberäkning!$C$6:$C$97) -> 0 | AS15: =LOOKUP(AR15,Poängberäkning!$B$6:$B$97,Poängberäkning!$C$6:$C$97) -> 0 | AU15: =LOOKUP(AT15,Poängberäkning!$B$6:$B$97,Poängberäkning!$C$6:$C$97) -> 0 | BD15: =LARGE(($I15,$K15,$M15,$O15,$Q15,$S15,$U15,$W15,$Y15,$AA15,$AC15,$AE15,$AG15,$AI15,$AK15,$AM15,$AO15,$AQ15,$AS15,$AU15,$AW15,$AY15,$BA15,$BC15),1) -> 60 | BE15: =LARGE(($I15,$K15,$M15,$O15,$Q15,$S15,$U15,$W15,$Y15,$AA15,$AC15,$AE15,$AG15,$AI15,$AK15,$AM15,$AO15,$AQ15,$AS15,$AU15,$AW15,$AY15,$BA15,$BC15),2) -> 48 | BF15: =LARGE(($I15,$K15,$M15,$O15,$Q15,$S15,$U15,$W15,$Y15,$AA15,$AC15,$AE15,$AG15,$AI15,$AK15,$AM15,$AO15,$AQ15,$AS15,$AU15,$AW15,$AY15,$BA15,$BC15),3) -> 46 | BG15: =LARGE(($I15,$K15,$M15,$O15,$Q15,$S15,$U15,$W15,$Y15,$AA15,$AC15,$AE15,$AG15,$AI15,$AK15,$AM15,$AO15,$AQ15,$AS15,$AU15,$AW15,$AY15,$BA15,$BC15),4) -> 46 | BH15: =LARGE(($I15,$K15,$M15,$O15,$Q15,$S15,$U15,$W15,$Y15,$AA15,$AC15,$AE15,$AG15,$AI15,$AK15,$AM15,$AO15,$AQ15,$AS15,$AU15,$AW15,$AY15,$BA15,$BC15),5) -> 46 | BI15: =LARGE(($I15,$K15,$M15,$O15,$Q15,$S15,$U15,$W15,$Y15,$AA15,$AC15,$AE15,$AG15,$AI15,$AK15,$AM15,$AO15,$AQ15,$AS15,$AU15,$AW15,$AY15,$BA15,$BC15),6) -> 46 | BJ15: =LARGE(($I15,$K15,$M15,$O15,$Q15,$S15,$U15,$W15,$Y15,$AA15,$AC15,$AE15,$AG15,$AI15,$AK15,$AM15,$AO15,$AQ15,$AS15,$AU15,$AW15,$AY15,$BA15,$BC15),7) -> 0 | BK15: =LARGE(($I15,$K15,$M15,$O15,$Q15,$S15,$U15,$W15,$Y15,$AA15,$AC15,$AE15,$AG15,$AI15,$AK15,$AM15,$AO15,$AQ15,$AS15,$AU15,$AW15,$AY15,$BA15,$BC15),8) -> 0 | BL15: =LARGE(($I15,$K15,$M15,$O15,$Q15,$S15,$U15,$W15,$Y15,$AA15,$AC15,$AE15,$AG15,$AI15,$AK15,$AM15,$AO15,$AQ15,$AS15,$AU15,$AW15,$AY15,$BA15,$BC15),9) -> 0 | BM15: =LARGE(($I15,$K15,$M15,$O15,$Q15,$S15,$U15,$W15,$Y15,$AA15,$AC15,$AE15,$AG15,$AI15,$AK15,$AM15,$AO15,$AQ15,$AS15,$AU15,$AW15,$AY15,$BA15,$BC15),10) -> 0
A16: 12 | B16: 2000 | C16: Mathias Gatu | D16: Rättviks SLK | E16: =SUM(BD16:BM16) -> 122 | F16: =SUM(BD16:BK16) -> 122 | G16: =I16+K16+M16+O16+Q16+S16+U16+W16+Y16+AA16+AC16+AE16+AG16+AI16+AK16+AM16+AO16+AQ16+AS16+AU16+AW16+AY16+BA16+BC16 -> 122 | H16: 10 | I16: =LOOKUP(H16,Poängberäkning!$B$6:$B$97,Poängberäkning!$C$6:$C$97) -> 42 | J16: 10 | K16: =LOOKUP(J16,Poängberäkning!$B$6:$B$97,Poängberäkning!$C$6:$C$97) -> 42 | L16: 99 | M16: =LOOKUP(L16,Poängberäkning!$B$6:$B$97,Poängberäkning!$C$6:$C$97) -> 0 | N16: 13 | O16: =LOOKUP(N16,Poängberäkning!$B$6:$B$97,Poängberäkning!$C$6:$C$97) -> 38 | Q16: =LOOKUP(P16,Poängberäkning!$B$6:$B$97,Poängberäkning!$C$6:$C$97) -> 0 | S16: =LOOKUP(R16,Poängberäkning!$B$6:$B$97,Poängberäkning!$C$6:$C$97) -> 0 | U16: =LOOKUP(T16,Poängberäkning!$B$6:$B$97,Poängberäkning!$C$6:$C$97) -> 0 | W16: =LOOKUP(V16,Poängberäkning!$B$6:$B$97,Poängberäkning!$C$6:$C$97) -> 0 | Y16: =LOOKUP(X16,Poängberäkning!$B$6:$B$97,Poängberäkning!$C$6:$C$97) -> 0 | AA16: =LOOKUP(Z16,Poängberäkning!$B$6:$B$97,Poängberäkning!$C$6:$C$97) -> 0 | AC16: =LOOKUP(AB16,Poängberäkning!$B$6:$B$97,Poängberäkning!$C$6:$C$97) -> 0 | AE16: =LOOKUP(AD16,Poängberäkning!$B$6:$B$97,Poängberäkning!$C$6:$C$97) -> 0 | AG16: =LOOKUP(AF16,Poängberäkning!$B$6:$B$97,Poängberäkning!$C$6:$C$97) -> 0 | AI16: =LOOKUP(AH16,Poängberäkning!$B$6:$B$97,Poängberäkning!$C$6:$C$97) -> 0 | AK16: =LOOKUP(AJ16,Poängberäkning!$B$6:$B$97,Poängberäkning!$C$6:$C$97) -> 0 | AM16: =LOOKUP(AL16,Poängberäkning!$B$6:$B$97,Poängberäkning!$C$6:$C$97) -> 0 | AO16: =LOOKUP(AN16,Poängberäkning!$B$6:$B$97,Poängberäkning!$C$6:$C$97) -> 0 | AQ16: =LOOKUP(AP16,Poängberäkning!$B$6:$B$97,Poängberäkning!$C$6:$C$97) -> 0 | AS16: =LOOKUP(AR16,Poängberäkning!$B$6:$B$97,Poängberäkning!$C$6:$C$97) -> 0 | AU16: =LOOKUP(AT16,Poängberäkning!$B$6:$B$97,Poängberäkning!$C$6:$C$97) -> 0 | BD16: =LARGE(($I16,$K16,$M16,$O16,$Q16,$S16,$U16,$W16,$Y16,$AA16,$AC16,$AE16,$AG16,$AI16,$AK16,$AM16,$AO16,$AQ16,$AS16,$AU16,$AW16,$AY16,$BA16,$BC16),1) -> 42 | BE16: =LARGE(($I16,$K16,$M16,$O16,$Q16,$S16,$U16,$W16,$Y16,$AA16,$AC16,$AE16,$AG16,$AI16,$AK16,$AM16,$AO16,$AQ16,$AS16,$AU16,$AW16,$AY16,$BA16,$BC16),2) -> 42 | BF16: =LARGE(($I16,$K16,$M16,$O16,$Q16,$S16,$U16,$W16,$Y16,$AA16,$AC16,$AE16,$AG16,$AI16,$AK16,$AM16,$AO16,$AQ16,$AS16,$AU16,$AW16,$AY16,$BA16,$BC16),3) -> 38 | BG16: =LARGE(($I16,$K16,$M16,$O16,$Q16,$S16,$U16,$W16,$Y16,$AA16,$AC16,$AE16,$AG16,$AI16,$AK16,$AM16,$AO16,$AQ16,$AS16,$AU16,$AW16,$AY16,$BA16,$BC16),4) -> 0 | BH16: =LARGE(($I16,$K16,$M16,$O16,$Q16,$S16,$U16,$W16,$Y16,$AA16,$AC16,$AE16,$AG16,$AI16,$AK16,$AM16,$AO16,$AQ16,$AS16,$AU16,$AW16,$AY16,$BA16,$BC16),5) -> 0 | BI16: =LARGE(($I16,$K16,$M16,$O16,$Q16,$S16,$U16,$W16,$Y16,$AA16,$AC16,$AE16,$AG16,$AI16,$AK16,$AM16,$AO16,$AQ16,$AS16,$AU16,$AW16,$AY16,$BA16,$BC16),6) -> 0 | BJ16: =LARGE(($I16,$K16,$M16,$O16,$Q16,$S16,$U16,$W16,$Y16,$AA16,$AC16,$AE16,$AG16,$AI16,$AK16,$AM16,$AO16,$AQ16,$AS16,$AU16,$AW16,$AY16,$BA16,$BC16),7) -> 0 | BK16: =LARGE(($I16,$K16,$M16,$O16,$Q16,$S16,$U16,$W16,$Y16,$AA16,$AC16,$AE16,$AG16,$AI16,$AK16,$AM16,$AO16,$AQ16,$AS16,$AU16,$AW16,$AY16,$BA16,$BC16),8) -> 0 | BL16: =LARGE(($I16,$K16,$M16,$O16,$Q16,$S16,$U16,$W16,$Y16,$AA16,$AC16,$AE16,$AG16,$AI16,$AK16,$AM16,$AO16,$AQ16,$AS16,$AU16,$AW16,$AY16,$BA16,$BC16),9) -> 0 | BM16: =LARGE(($I16,$K16,$M16,$O16,$Q16,$S16,$U16,$W16,$Y16,$AA16,$AC16,$AE16,$AG16,$AI16,$AK16,$AM16,$AO16,$AQ16,$AS16,$AU16,$AW16,$AY16,$BA16,$BC16),10) -> 0
A17: 13 | B17: 2000 | C17: Oliver Suther | D17: Rättviks SLK | E17: =SUM(BD17:BM17) -> 81 | F17: =SUM(BD17:BK17) -> 81 | G17: =I17+K17+M17+O17+Q17+S17+U17+W17+Y17+AA17+AC17+AE17+AG17+AI17+AK17+AM17+AO17+AQ17+AS17+AU17+AW17+AY17+BA17+BC17 -> 81 | H17: 99 | I17: =LOOKUP(H17,Poängberäkning!$B$6:$B$97,Poängberäkning!$C$6:$C$97) -> 0 | J17: 99 | K17: =LOOKUP(J17,Poängberäkning!$B$6:$B$97,Poängberäkning!$C$6:$C$97) -> 0 | L17: 10 | M17: =LOOKUP(L17,Poängberäkning!$B$6:$B$97,Poängberäkning!$C$6:$C$97) -> 42 | N17: 12 | O17: =LOOKUP(N17,Poängberäkning!$B$6:$B$97,Poängberäkning!$C$6:$C$97) -> 39 | Q17: =LOOKUP(P17,Poängberäkning!$B$6:$B$97,Poängberäkning!$C$6:$C$97) -> 0 | S17: =LOOKUP(R17,Poängberäkning!$B$6:$B$97,Poängberäkning!$C$6:$C$97) -> 0 | U17: =LOOKUP(T17,Poängberäkning!$B$6:$B$97,Poängberäkning!$C$6:$C$97) -> 0 | W17: =LOOKUP(V17,Poängberäkning!$B$6:$B$97,Poängberäkning!$C$6:$C$97) -> 0 | Y17: =LOOKUP(X17,Poängberäkning!$B$6:$B$97,Poängberäkning!$C$6:$C$97) -> 0 | AA17: =LOOKUP(Z17,Poängberäkning!$B$6:$B$97,Poängberäkning!$C$6:$C$97) -> 0 | AC17: =LOOKUP(AB17,Poängberäkning!$B$6:$B$97,Poängberäkning!$C$6:$C$97) -> 0 | AE17: =LOOKUP(AD17,Poängberäkning!$B$6:$B$97,Poängberäkning!$C$6:$C$97) -> 0 | AG17: =LOOKUP(AF17,Poängberäkning!$B$6:$B$97,Poängberäkning!$C$6:$C$97) -> 0 | AI17: =LOOKUP(AH17,Poängberäkning!$B$6:$B$97,Poängberäkning!$C$6:$C$97) -> 0 | AK17: =LOOKUP(AJ17,Poängberäkning!$B$6:$B$97,Poängberäkning!$C$6:$C$97) -> 0 | AM17: =LOOKUP(AL17,Poängberäkning!$B$6:$B$97,Poängberäkning!$C$6:$C$97) -> 0 | AO17: =LOOKUP(AN17,Poängberäkning!$B$6:$B$97,Poängberäkning!$C$6:$C$97) -> 0 | AQ17: =LOOKUP(AP17,Poängberäkning!$B$6:$B$97,Poängberäkning!$C$6:$C$97) -> 0 | AS17: =LOOKUP(AR17,Poängberäkning!$B$6:$B$97,Poängberäkning!$C$6:$C$97) -> 0 | AU17: =LOOKUP(AT17,Poängberäkning!$B$6:$B$97,Poängberäkning!$C$6:$C$97) -> 0 | BD17: =LARGE(($I17,$K17,$M17,$O17,$Q17,$S17,$U17,$W17,$Y17,$AA17,$AC17,$AE17,$AG17,$AI17,$AK17,$AM17,$AO17,$AQ17,$AS17,$AU17,$AW17,$AY17,$BA17,$BC17),1) -> 42 | BE17: =LARGE(($I17,$K17,$M17,$O17,$Q17,$S17,$U17,$W17,$Y17,$AA17,$AC17,$AE17,$AG17,$AI17,$AK17,$AM17,$AO17,$AQ17,$AS17,$AU17,$AW17,$AY17,$BA17,$BC17),2) -> 39 | BF17: =LARGE(($I17,$K17,$M17,$O17,$Q17,$S17,$U17,$W17,$Y17,$AA17,$AC17,$AE17,$AG17,$AI17,$AK17,$AM17,$AO17,$AQ17,$AS17,$AU17,$AW17,$AY17,$BA17,$BC17),3) -> 0 | BG17: =LARGE(($I17,$K17,$M17,$O17,$Q17,$S17,$U17,$W17,$Y17,$AA17,$AC17,$AE17,$AG17,$AI17,$AK17,$AM17,$AO17,$AQ17,$AS17,$AU17,$AW17,$AY17,$BA17,$BC17),4) -> 0 | BH17: =LARGE(($I17,$K17,$M17,$O17,$Q17,$S17,$U17,$W17,$Y17,$AA17,$AC17,$AE17,$AG17,$AI17,$AK17,$AM17,$AO17,$AQ17,$AS17,$AU17,$AW17,$AY17,$BA17,$BC17),5) -> 0 | BI17: =LARGE(($I17,$K17,$M17,$O17,$Q17,$S17,$U17,$W17,$Y17,$AA17,$AC17,$AE17,$AG17,$AI17,$AK17,$AM17,$AO17,$AQ17,$AS17,$AU17,$AW17,$AY17,$BA17,$BC17),6) -> 0 | BJ17: =LARGE(($I17,$K17,$M17,$O17,$Q17,$S17,$U17,$W17,$Y17,$AA17,$AC17,$AE17,$AG17,$AI17,$AK17,$AM17,$AO17,$AQ17,$AS17,$AU17,$AW17,$AY17,$BA17,$BC17),7) -> 0 | BK17: =LARGE(($I17,$K17,$M17,$O17,$Q17,$S17,$U17,$W17,$Y17,$AA17,$AC17,$AE17,$AG17,$AI17,$AK17,$AM17,$AO17,$AQ17,$AS17,$AU17,$AW17,$AY17,$BA17,$BC17),8) -> 0 | BL17: =LARGE(($I17,$K17,$M17,$O17,$Q17,$S17,$U17,$W17,$Y17,$AA17,$AC17,$AE17,$AG17,$AI17,$AK17,$AM17,$AO17,$AQ17,$AS17,$AU17,$AW17,$AY17,$BA17,$BC17),9) -> 0 | BM17: =LARGE(($I17,$K17,$M17,$O17,$Q17,$S17,$U17,$W17,$Y17,$AA17,$AC17,$AE17,$AG17,$AI17,$AK17,$AM17,$AO17,$AQ17,$AS17,$AU17,$AW17,$AY17,$BA17,$BC17),10) -> 0
A18: 14 | B18: 2000 | C18: Alexander Mueller | D18: Kungsbergets AK | E18: =SUM(BD18:BM18) -> 42 | F18: =SUM(BD18:BK18) -> 42 | G18: =I18+K18+M18+O18+Q18+S18+U18+W18+Y18+AA18+AC18+AE18+AG18+AI18+AK18+AM18+AO18+AQ18+AS18+AU18+AW18+AY18+BA18+BC18 -> 42 | I18: =LOOKUP(H18,Poängberäkning!$B$6:$B$97,Poängberäkning!$C$6:$C$97) -> 0 | K18: =LOOKUP(J18,Poängberäkning!$B$6:$B$97,Poängberäkning!$C$6:$C$97) -> 0 | M18: =LOOKUP(L18,Poängberäkning!$B$6:$B$97,Poängberäkning!$C$6:$C$97) -> 0 | O18: =LOOKUP(N18,Poängberäkning!$B$6:$B$97,Poängberäkning!$C$6:$C$97) -> 0 | P18: 10 | Q18: =LOOKUP(P18,Poängberäkning!$B$6:$B$97,Poängberäkning!$C$6:$C$97) -> 42 | R18: 99 | S18: =LOOKUP(R18,Poängberäkning!$B$6:$B$97,Poängberäkning!$C$6:$C$97) -> 0 | T18: 99 | U18: =LOOKUP(T18,Poängberäkning!$B$6:$B$97,Poängberäkning!$C$6:$C$97) -> 0 | V18: 99 | W18: =LOOKUP(V18,Poängberäkning!$B$6:$B$97,Poängberäkning!$C$6:$C$97) -> 0 | Y18: =LOOKUP(X18,Poängberäkning!$B$6:$B$97,Poängberäkning!$C$6:$C$97) -> 0 | AA18: =LOOKUP(Z18,Poängberäkning!$B$6:$B$97,Poängberäkning!$C$6:$C$97) -> 0 | AC18: =LOOKUP(AB18,Poängberäkning!$B$6:$B$97,Poängberäkning!$C$6:$C$97) -> 0 | AE18: =LOOKUP(AD18,Poängberäkning!$B$6:$B$97,Poängberäkning!$C$6:$C$97) -> 0 | AG18: =LOOKUP(AF18,Poängberäkning!$B$6:$B$97,Poängberäkning!$C$6:$C$97) -> 0 | AI18: =LOOKUP(AH18,Poängberäkning!$B$6:$B$97,Poängberäkning!$C$6:$C$97) -> 0 | AK18: =LOOKUP(AJ18,Poängberäkning!$B$6:$B$97,Poängberäkning!$C$6:$C$97) -> 0 | AM18: =LOOKUP(AL18,Poängberäkning!$B$6:$B$97,Poängberäkning!$C$6:$C$97) -> 0 | AO18: =LOOKUP(AN18,Poängberäkning!$B$6:$B$97,Poängberäkning!$C$6:$C$97) -> 0 | AQ18: =LOOKUP(AP18,Poängberäkning!$B$6:$B$97,Poängberäkning!$C$6:$C$97) -> 0 | AS18: =LOOKUP(AR18,Poängberäkning!$B$6:$B$97,Poängberäkning!$C$6:$C$97) -> 0 | AU18: =LOOKUP(AT18,Poängberäkning!$B$6:$B$97,Poängberäkning!$C$6:$C$97) -> 0 | BD18: =LARGE(($I18,$K18,$M18,$O18,$Q18,$S18,$U18,$W18,$Y18,$AA18,$AC18,$AE18,$AG18,$AI18,$AK18,$AM18,$AO18,$AQ18,$AS18,$AU18,$AW18,$AY18,$BA18,$BC18),1) -> 42 | BE18: =LARGE(($I18,$K18,$M18,$O18,$Q18,$S18,$U18,$W18,$Y18,$AA18,$AC18,$AE18,$AG18,$AI18,$AK18,$AM18,$AO18,$AQ18,$AS18,$AU18,$AW18,$AY18,$BA18,$BC18),2) -> 0 | BF18: =LARGE(($I18,$K18,$M18,$O18,$Q18,$S18,$U18,$W18,$Y18,$AA18,$AC18,$AE18,$AG18,$AI18,$AK18,$AM18,$AO18,$AQ18,$AS18,$AU18,$AW18,$AY18,$BA18,$BC18),3) -> 0 | BG18: =LARGE(($I18,$K18,$M18,$O18,$Q18,$S18,$U18,$W18,$Y18,$AA18,$AC18,$AE18,$AG18,$AI18,$AK18,$AM18,$AO18,$AQ18,$AS18,$AU18,$AW18,$AY18,$BA18,$BC18),4) -> 0 | BH18: =LARGE(($I18,$K18,$M18,$O18,$Q18,$S18,$U18,$W18,$Y18,$AA18,$AC18,$AE18,$AG18,$AI18,$AK18,$AM18,$AO18,$AQ18,$AS18,$AU18,$AW18,$AY18,$BA18,$BC18),5) -> 0 | BI18: =LARGE(($I18,$K18,$M18,$O18,$Q18,$S18,$U18,$W18,$Y18,$AA18,$AC18,$AE18,$AG18,$AI18,$AK18,$AM18,$AO18,$AQ18,$AS18,$AU18,$AW18,$AY18,$BA18,$BC18),6) -> 0 | BJ18: =LARGE(($I18,$K18,$M18,$O18,$Q18,$S18,$U18,$W18,$Y18,$AA18,$AC18,$AE18,$AG18,$AI18,$AK18,$AM18,$AO18,$AQ18,$AS18,$AU18,$AW18,$AY18,$BA18,$BC18),7) -> 0 | BK18: =LARGE(($I18,$K18,$M18,$O18,$Q18,$S18,$U18,$W18,$Y18,$AA18,$AC18,$AE18,$AG18,$AI18,$AK18,$AM18,$AO18,$AQ18,$AS18,$AU18,$AW18,$AY18,$BA18,$BC18),8) -> 0 | BL18: =LARGE(($I18,$K18,$M18,$O18,$Q18,$S18,$U18,$W18,$Y18,$AA18,$AC18,$AE18,$AG18,$AI18,$AK18,$AM18,$AO18,$AQ18,$AS18,$AU18,$AW18,$AY18,$BA18,$BC18),9) -> 0 | BM18: =LARGE(($I18,$K18,$M18,$O18,$Q18,$S18,$U18,$W18,$Y18,$AA18,$AC18,$AE18,$AG18,$AI18,$AK18,$AM18,$AO18,$AQ18,$AS18,$AU18,$AW18,$AY18,$BA18,$BC18),10) -> 0
A19: 15 | E19: =SUM(BD19:BM19) -> 0 | F19: =SUM(BD19:BK19) -> 0 | G19: =I19+K19+M19+O19+Q19+S19+U19+W19+Y19+AA19+AC19+AE19+AG19+AI19+AK19+AM19+AO19+AQ19+AS19+AU19+AW19+AY19+BA19+BC19 -> 0 | I19: =LOOKUP(H19,Poängberäkning!$B$6:$B$97,Poängberäkning!$C$6:$C$97) -> 0 | K19: =LOOKUP(J19,Poängberäkning!$B$6:$B$97,Poängberäkning!$C$6:$C$97) -> 0 | M19: =LOOKUP(L19,Poängberäkning!$B$6:$B$97,Poängberäkning!$C$6:$C$97) -> 0 | O19: =LOOKUP(N19,Poängberäkning!$B$6:$B$97,Poängberäkning!$C$6:$C$97) -> 0 | Q19: =LOOKUP(P19,Poängberäkning!$B$6:$B$97,Poängberäkning!$C$6:$C$97) -> 0 | S19: =LOOKUP(R19,Poängberäkning!$B$6:$B$97,Poängberäkning!$C$6:$C$97) -> 0 | U19: =LOOKUP(T19,Poängberäkning!$B$6:$B$97,Poängberäkning!$C$6:$C$97) -> 0 | W19: =LOOKUP(V19,Poängberäkning!$B$6:$B$97,Poängberäkning!$C$6:$C$97) -> 0 | Y19: =LOOKUP(X19,Poängberäkning!$B$6:$B$97,Poängberäkning!$C$6:$C$97) -> 0 | AA19: =LOOKUP(Z19,Poängberäkning!$B$6:$B$97,Poängberäkning!$C$6:$C$97) -> 0 | AC19: =LOOKUP(AB19,Poängberäkning!$B$6:$B$97,Poängberäkning!$C$6:$C$97) -> 0 | AE19: =LOOKUP(AD19,Poängberäkning!$B$6:$B$97,Poängberäkning!$C$6:$C$97) -> 0 | AG19: =LOOKUP(AF19,Poängberäkning!$B$6:$B$97,Poängberäkning!$C$6:$C$97) -> 0 | AI19: =LOOKUP(AH19,Poängberäkning!$B$6:$B$97,Poängberäkning!$C$6:$C$97) -> 0 | AK19: =LOOKUP(AJ19,Poängberäkning!$B$6:$B$97,Poängberäkning!$C$6:$C$97) -> 0 | AM19: =LOOKUP(AL19,Poängberäkning!$B$6:$B$97,Poängberäkning!$C$6:$C$97) -> 0 | AO19: =LOOKUP(AN19,Poängberäkning!$B$6:$B$97,Poängberäkning!$C$6:$C$97) -> 0 | AQ19: =LOOKUP(AP19,Poängberäkning!$B$6:$B$97,Poängberäkning!$C$6:$C$97) -> 0 | AS19: =LOOKUP(AR19,Poängberäkning!$B$6:$B$97,Poängberäkning!$C$6:$C$97) -> 0 | AU19: =LOOKUP(AT19,Poängberäkning!$B$6:$B$97,Poängberäkning!$C$6:$C$97) -> 0 | BD19: =LARGE(($I19,$K19,$M19,$O19,$Q19,$S19,$U19,$W19,$Y19,$AA19,$AC19,$AE19,$AG19,$AI19,$AK19,$AM19,$AO19,$AQ19,$AS19,$AU19,$AW19,$AY19,$BA19,$BC19),1) -> 0 | BE19: =LARGE(($I19,$K19,$M19,$O19,$Q19,$S19,$U19,$W19,$Y19,$AA19,$AC19,$AE19,$AG19,$AI19,$AK19,$AM19,$AO19,$AQ19,$AS19,$AU19,$AW19,$AY19,$BA19,$BC19),2) -> 0 | BF19: =LARGE(($I19,$K19,$M19,$O19,$Q19,$S19,$U19,$W19,$Y19,$AA19,$AC19,$AE19,$AG19,$AI19,$AK19,$AM19,$AO19,$AQ19,$AS19,$AU19,$AW19,$AY19,$BA19,$BC19),3) -> 0 | BG19: =LARGE(($I19,$K19,$M19,$O19,$Q19,$S19,$U19,$W19,$Y19,$AA19,$AC19,$AE19,$AG19,$AI19,$AK19,$AM19,$AO19,$AQ19,$AS19,$AU19,$AW19,$AY19,$BA19,$BC19),4) -> 0 | BH19: =LARGE(($I19,$K19,$M19,$O19,$Q19,$S19,$U19,$W19,$Y19,$AA19,$AC19,$AE19,$AG19,$AI19,$AK19,$AM19,$AO19,$AQ19,$AS19,$AU19,$AW19,$AY19,$BA19,$BC19),5) -> 0 | BI19: =LARGE(($I19,$K19,$M19,$O19,$Q19,$S19,$U19,$W19,$Y19,$AA19,$AC19,$AE19,$AG19,$AI19,$AK19,$AM19,$AO19,$AQ19,$AS19,$AU19,$AW19,$AY19,$BA19,$BC19),6) -> 0 | BJ19: =LARGE(($I19,$K19,$M19,$O19,$Q19,$S19,$U19,$W19,$Y19,$AA19,$AC19,$AE19,$AG19,$AI19,$AK19,$AM19,$AO19,$AQ19,$AS19,$AU19,$AW19,$AY19,$BA19,$BC19),7) -> 0 | BK19: =LARGE(($I19,$K19,$M19,$O19,$Q19,$S19,$U19,$W19,$Y19,$AA19,$AC19,$AE19,$AG19,$AI19,$AK19,$AM19,$AO19,$AQ19,$AS19,$AU19,$AW19,$AY19,$BA19,$BC19),8) -> 0 | BL19: =LARGE(($I19,$K19,$M19,$O19,$Q19,$S19,$U19,$W19,$Y19,$AA19,$AC19,$AE19,$AG19,$AI19,$AK19,$AM19,$AO19,$AQ19,$AS19,$AU19,$AW19,$AY19,$BA19,$BC19),9) -> 0 | BM19: =LARGE(($I19,$K19,$M19,$O19,$Q19,$S19,$U19,$W19,$Y19,$AA19,$AC19,$AE19,$AG19,$AI19,$AK19,$AM19,$AO19,$AQ19,$AS19,$AU19,$AW19,$AY19,$BA19,$BC19),10) -> 0
A20: 16 | E20: =SUM(BD20:BM20) -> 0 | F20: =SUM(BD20:BK20) -> 0 | G20: =I20+K20+M20+O20+Q20+S20+U20+W20+Y20+AA20+AC20+AE20+AG20+AI20+AK20+AM20+AO20+AQ20+AS20+AU20+AW20+AY20+BA20+BC20 -> 0 | I20: =LOOKUP(H20,Poängberäkning!$B$6:$B$97,Poängberäkning!$C$6:$C$97) -> 0 | K20: =LOOKUP(J20,Poängberäkning!$B$6:$B$97,Poängberäkning!$C$6:$C$97) -> 0 | M20: =LOOKUP(L20,Poängberäkning!$B$6:$B$97,Poängberäkning!$C$6:$C$97) -> 0 | O20: =LOOKUP(N20,Poängberäkning!$B$6:$B$97,Poängberäkning!$C$6:$C$97) -> 0 | Q20: =LOOKUP(P20,Poängberäkning!$B$6:$B$97,Poängberäkning!$C$6:$C$97) -> 0 | S20: =LOOKUP(R20,Poängberäkning!$B$6:$B$97,Poängberäkning!$C$6:$C$97) -> 0 | U20: =LOOKUP(T20,Poängberäkning!$B$6:$B$97,Poängberäkning!$C$6:$C$97) -> 0 | W20: =LOOKUP(V20,Poängberäkning!$B$6:$B$97,Poängberäkning!$C$6:$C$97) -> 0 | Y20: =LOOKUP(X20,Poängberäkning!$B$6:$B$97,Poängberäkning!$C$6:$C$97) -> 0 | AA20: =LOOKUP(Z20,Poängberäkning!$B$6:$B$97,Poängberäkning!$C$6:$C$97) -> 0 | AC20: =LOOKUP(AB20,Poängberäkning!$B$6:$B$97,Poängberäkning!$C$6:$C$97) -> 0 | AE20: =LOOKUP(AD20,Poängberäkning!$B$6:$B$97,Poängberäkning!$C$6:$C$97) -> 0 | AG20: =LOOKUP(AF20,Poängberäkning!$B$6:$B$97,Poängberäkning!$C$6:$C$97) -> 0 | AI20: =LOOKUP(AH20,Poängberäkning!$B$6:$B$97,Poängberäkning!$C$6:$C$97) -> 0 | AK20: =LOOKUP(AJ20,Poängberäkning!$B$6:$B$97,Poängberäkning!$C$6:$C$97) -> 0 | AM20: =LOOKUP(AL20,Poängberäkning!$B$6:$B$97,Poängberäkning!$C$6:$C$97) -> 0 | AO20: =LOOKUP(AN20,Poängberäkning!$B$6:$B$97,Poängberäkning!$C$6:$C$97) -> 0 | AQ20: =LOOKUP(AP20,Poängberäkning!$B$6:$B$97,Poängberäkning!$C$6:$C$97) -> 0 | AS20: =LOOKUP(AR20,Poängberäkning!$B$6:$B$97,Poängberäkning!$C$6:$C$97) -> 0 | AU20: =LOOKUP(AT20,Poängberäkning!$B$6:$B$97,Poängberäkning!$C$6:$C$97) -> 0 | BD20: =LARGE(($I20,$K20,$M20,$O20,$Q20,$S20,$U20,$W20,$Y20,$AA20,$AC20,$AE20,$AG20,$AI20,$AK20,$AM20,$AO20,$AQ20,$AS20,$AU20,$AW20,$AY20,$BA20,$BC20),1) -> 0 | BE20: =LARGE(($I20,$K20,$M20,$O20,$Q20,$S20,$U20,$W20,$Y20,$AA20,$AC20,$AE20,$AG20,$AI20,$AK20,$AM20,$AO20,$AQ20,$AS20,$AU20,$AW20,$AY20,$BA20,$BC20),2) -> 0 | BF20: =LARGE(($I20,$K20,$M20,$O20,$Q20,$S20,$U20,$W20,$Y20,$AA20,$AC20,$AE20,$AG20,$AI20,$AK20,$AM20,$AO20,$AQ20,$AS20,$AU20,$AW20,$AY20,$BA20,$BC20),3) -> 0 | BG20: =LARGE(($I20,$K20,$M20,$O20,$Q20,$S20,$U20,$W20,$Y20,$AA20,$AC20,$AE20,$AG20,$AI20,$AK20,$AM20,$AO20,$AQ20,$AS20,$AU20,$AW20,$AY20,$BA20,$BC20),4) -> 0 | BH20: =LARGE(($I20,$K20,$M20,$O20,$Q20,$S20,$U20,$W20,$Y20,$AA20,$AC20,$AE20,$AG20,$AI20,$AK20,$AM20,$AO20,$AQ20,$AS20,$AU20,$AW20,$AY20,$BA20,$BC20),5) -> 0 | BI20: =LARGE(($I20,$K20,$M20,$O20,$Q20,$S20,$U20,$W20,$Y20,$AA20,$AC20,$AE20,$AG20,$AI20,$AK20,$AM20,$AO20,$AQ20,$AS20,$AU20,$AW20,$AY20,$BA20,$BC20),6) -> 0 | BJ20: =LARGE(($I20,$K20,$M20,$O20,$Q20,$S20,$U20,$W20,$Y20,$AA20,$AC20,$AE20,$AG20,$AI20,$AK20,$AM20,$AO20,$AQ20,$AS20,$AU20,$AW20,$AY20,$BA20,$BC20),7) -> 0 | BK20: =LARGE(($I20,$K20,$M20,$O20,$Q20,$S20,$U20,$W20,$Y20,$AA20,$AC20,$AE20,$AG20,$AI20,$AK20,$AM20,$AO20,$AQ20,$AS20,$AU20,$AW20,$AY20,$BA20,$BC20),8) -> 0 | BL20: =LARGE(($I20,$K20,$M20,$O20,$Q20,$S20,$U20,$W20,$Y20,$AA20,$AC20,$AE20,$AG20,$AI20,$AK20,$AM20,$AO20,$AQ20,$AS20,$AU20,$AW20,$AY20,$BA20,$BC20),9) -> 0 | BM20: =LARGE(($I20,$K20,$M20,$O20,$Q20,$S20,$U20,$W20,$Y20,$AA20,$AC20,$AE20,$AG20,$AI20,$AK20,$AM20,$AO20,$AQ20,$AS20,$AU20,$AW20,$AY20,$BA20,$BC20),10) -> 0
A21: 17 | E21: =SUM(BD21:BM21) -> 0 | F21: =SUM(BD21:BK21) -> 0 | G21: =I21+K21+M21+O21+Q21+S21+U21+W21+Y21+AA21+AC21+AE21+AG21+AI21+AK21+AM21+AO21+AQ21+AS21+AU21+AW21+AY21+BA21+BC21 -> 0 | I21: =LOOKUP(H21,Poängberäkning!$B$6:$B$97,Poängberäkning!$C$6:$C$97) -> 0 | K21: =LOOKUP(J21,Poängberäkning!$B$6:$B$97,Poängberäkning!$C$6:$C$97) -> 0 | M21: =LOOKUP(L21,Poängberäkning!$B$6:$B$97,Poängberäkning!$C$6:$C$97) -> 0 | O21: =LOOKUP(N21,Poängberäkning!$B$6:$B$97,Poängberäkning!$C$6:$C$97) -> 0 | Q21: =LOOKUP(P21,Poängberäkning!$B$6:$B$97,Poängberäkning!$C$6:$C$97) -> 0 | S21: =LOOKUP(R21,Poängberäkning!$B$6:$B$97,Poängberäkning!$C$6:$C$97) -> 0 | U21: =LOOKUP(T21,Poängberäkning!$B$6:$B$97,Poängberäkning!$C$6:$C$97) -> 0 | W21: =LOOKUP(V21,Poängberäkning!$B$6:$B$97,Poängberäkning!$C$6:$C$97) -> 0 | Y21: =LOOKUP(X21,Poängberäkning!$B$6:$B$97,Poängberäkning!$C$6:$C$97) -> 0 | AA21: =LOOKUP(Z21,Poängberäkning!$B$6:$B$97,Poängberäkning!$C$6:$C$97) -> 0 | AC21: =LOOKUP(AB21,Poängberäkning!$B$6:$B$97,Poängberäkning!$C$6:$C$97) -> 0 | AE21: =LOOKUP(AD21,Poängberäkning!$B$6:$B$97,Poängberäkning!$C$6:$C$97) -> 0 | AG21: =LOOKUP(AF21,Poängberäkning!$B$6:$B$97,Poängberäkning!$C$6:$C$97) -> 0 | AI21: =LOOKUP(AH21,Poängberäkning!$B$6:$B$97,Poängberäkning!$C$6:$C$97) -> 0 | AK21: =LOOKUP(AJ21,Poängberäkning!$B$6:$B$97,Poängberäkning!$C$6:$C$97) -> 0 | AM21: =LOOKUP(AL21,Poängberäkning!$B$6:$B$97,Poängberäkning!$C$6:$C$97) -> 0 | AO21: =LOOKUP(AN21,Poängberäkning!$B$6:$B$97,Poängberäkning!$C$6:$C$97) -> 0 | AQ21: =LOOKUP(AP21,Poängberäkning!$B$6:$B$97,Poängberäkning!$C$6:$C$97) -> 0 | AS21: =LOOKUP(AR21,Poängberäkning!$B$6:$B$97,Poängberäkning!$C$6:$C$97) -> 0 | AU21: =LOOKUP(AT21,Poängberäkning!$B$6:$B$97,Poängberäkning!$C$6:$C$97) -> 0 | BD21: =LARGE(($I21,$K21,$M21,$O21,$Q21,$S21,$U21,$W21,$Y21,$AA21,$AC21,$AE21,$AG21,$AI21,$AK21,$AM21,$AO21,$AQ21,$AS21,$AU21,$AW21,$AY21,$BA21,$BC21),1) -> 0 | BE21: =LARGE(($I21,$K21,$M21,$O21,$Q21,$S21,$U21,$W21,$Y21,$AA21,$AC21,$AE21,$AG21,$AI21,$AK21,$AM21,$AO21,$AQ21,$AS21,$AU21,$AW21,$AY21,$BA21,$BC21),2) -> 0 | BF21: =LARGE(($I21,$K21,$M21,$O21,$Q21,$S21,$U21,$W21,$Y21,$AA21,$AC21,$AE21,$AG21,$AI21,$AK21,$AM21,$AO21,$AQ21,$AS21,$AU21,$AW21,$AY21,$BA21,$BC21),3) -> 0 | BG21: =LARGE(($I21,$K21,$M21,$O21,$Q21,$S21,$U21,$W21,$Y21,$AA21,$AC21,$AE21,$AG21,$AI21,$AK21,$AM21,$AO21,$AQ21,$AS21,$AU21,$AW21,$AY21,$BA21,$BC21),4) -> 0 | BH21: =LARGE(($I21,$K21,$M21,$O21,$Q21,$S21,$U21,$W21,$Y21,$AA21,$AC21,$AE21,$AG21,$AI21,$AK21,$AM21,$AO21,$AQ21,$AS21,$AU21,$AW21,$AY21,$BA21,$BC21),5) -> 0 | BI21: =LARGE(($I21,$K21,$M21,$O21,$Q21,$S21,$U21,$W21,$Y21,$AA21,$AC21,$AE21,$AG21,$AI21,$AK21,$AM21,$AO21,$AQ21,$AS21,$AU21,$AW21,$AY21,$BA21,$BC21),6) -> 0 | BJ21: =LARGE(($I21,$K21,$M21,$O21,$Q21,$S21,$U21,$W21,$Y21,$AA21,$AC21,$AE21,$AG21,$AI21,$AK21,$AM21,$AO21,$AQ21,$AS21,$AU21,$AW21,$AY21,$BA21,$BC21),7) -> 0 | BK21: =LARGE(($I21,$K21,$M21,$O21,$Q21,$S21,$U21,$W21,$Y21,$AA21,$AC21,$AE21,$AG21,$AI21,$AK21,$AM21,$AO21,$AQ21,$AS21,$AU21,$AW21,$AY21,$BA21,$BC21),8) -> 0 | BL21: =LARGE(($I21,$K21,$M21,$O21,$Q21,$S21,$U21,$W21,$Y21,$AA21,$AC21,$AE21,$AG21,$AI21,$AK21,$AM21,$AO21,$AQ21,$AS21,$AU21,$AW21,$AY21,$BA21,$BC21),9) -> 0 | BM21: =LARGE(($I21,$K21,$M21,$O21,$Q21,$S21,$U21,$W21,$Y21,$AA21,$AC21,$AE21,$AG21,$AI21,$AK21,$AM21,$AO21,$AQ21,$AS21,$AU21,$AW21,$AY21,$BA21,$BC21),10) -> 0
A22: 18 | E22: =SUM(BD22:BM22) -> 0 | F22: =SUM(BD22:BK22) -> 0 | G22: =I22+K22+M22+O22+Q22+S22+U22+W22+Y22+AA22+AC22+AE22+AG22+AI22+AK22+AM22+AO22+AQ22+AS22+AU22+AW22+AY22+BA22+BC22 -> 0 | I22: =LOOKUP(H22,Poängberäkning!$B$6:$B$97,Poängberäkning!$C$6:$C$97) -> 0 | K22: =LOOKUP(J22,Poängberäkning!$B$6:$B$97,Poängberäkning!$C$6:$C$97) -> 0 | M22: =LOOKUP(L22,Poängberäkning!$B$6:$B$97,Poängberäkning!$C$6:$C$97) -> 0 | O22: =LOOKUP(N22,Poängberäkning!$B$6:$B$97,Poängberäkning!$C$6:$C$97) -> 0 | Q22: =LOOKUP(P22,Poängberäkning!$B$6:$B$97,Poängberäkning!$C$6:$C$97) -> 0 | S22: =LOOKUP(R22,Poängberäkning!$B$6:$B$97,Poängberäkning!$C$6:$C$97) -> 0 | U22: =LOOKUP(T22,Poängberäkning!$B$6:$B$97,Poängberäkning!$C$6:$C$97) -> 0 | W22: =LOOKUP(V22,Poängberäkning!$B$6:$B$97,Poängberäkning!$C$6:$C$97) -> 0 | Y22: =LOOKUP(X22,Poängberäkning!$B$6:$B$97,Poängberäkning!$C$6:$C$97) -> 0 | AA22: =LOOKUP(Z22,Poängberäkning!$B$6:$B$97,Poängberäkning!$C$6:$C$97) -> 0 | AC22: =LOOKUP(AB22,Poängberäkning!$B$6:$B$97,Poängberäkning!$C$6:$C$97) -> 0 | AE22: =LOOKUP(AD22,Poängberäkning!$B$6:$B$97,Poängberäkning!$C$6:$C$97) -> 0 | AG22: =LOOKUP(AF22,Poängberäkning!$B$6:$B$97,Poängberäkning!$C$6:$C$97) -> 0 | AI22: =LOOKUP(AH22,Poängberäkning!$B$6:$B$97,Poängberäkning!$C$6:$C$97) -> 0 | AK22: =LOOKUP(AJ22,Poängberäkning!$B$6:$B$97,Poängberäkning!$C$6:$C$97) -> 0 | AM22: =LOOKUP(AL22,Poängberäkning!$B$6:$B$97,Poängberäkning!$C$6:$C$97) -> 0 | AO22: =LOOKUP(AN22,Poängberäkning!$B$6:$B$97,Poängberäkning!$C$6:$C$97) -> 0 | AQ22: =LOOKUP(AP22,Poängberäkning!$B$6:$B$97,Poängberäkning!$C$6:$C$97) -> 0 | AS22: =LOOKUP(AR22,Poängberäkning!$B$6:$B$97,Poängberäkning!$C$6:$C$97) -> 0 | AU22: =LOOKUP(AT22,Poängberäkning!$B$6:$B$97,Poängberäkning!$C$6:$C$97) -> 0 | BD22: =LARGE(($I22,$K22,$M22,$O22,$Q22,$S22,$U22,$W22,$Y22,$AA22,$AC22,$AE22,$AG22,$AI22,$AK22,$AM22,$AO22,$AQ22,$AS22,$AU22,$AW22,$AY22,$BA22,$BC22),1) -> 0 | BE22: =LARGE(($I22,$K22,$M22,$O22,$Q22,$S22,$U22,$W22,$Y22,$AA22,$AC22,$AE22,$AG22,$AI22,$AK22,$AM22,$AO22,$AQ22,$AS22,$AU22,$AW22,$AY22,$BA22,$BC22),2) -> 0 | BF22: =LARGE(($I22,$K22,$M22,$O22,$Q22,$S22,$U22,$W22,$Y22,$AA22,$AC22,$AE22,$AG22,$AI22,$AK22,$AM22,$AO22,$AQ22,$AS22,$AU22,$AW22,$AY22,$BA22,$BC22),3) -> 0 | BG22: =LARGE(($I22,$K22,$M22,$O22,$Q22,$S22,$U22,$W22,$Y22,$AA22,$AC22,$AE22,$AG22,$AI22,$AK22,$AM22,$AO22,$AQ22,$AS22,$AU22,$AW22,$AY22,$BA22,$BC22),4) -> 0 | BH22: =LARGE(($I22,$K22,$M22,$O22,$Q22,$S22,$U22,$W22,$Y22,$AA22,$AC22,$AE22,$AG22,$AI22,$AK22,$AM22,$AO22,$AQ22,$AS22,$AU22,$AW22,$AY22,$BA22,$BC22),5) -> 0 | BI22: =LARGE(($I22,$K22,$M22,$O22,$Q22,$S22,$U22,$W22,$Y22,$AA22,$AC22,$AE22,$AG22,$AI22,$AK22,$AM22,$AO22,$AQ22,$AS22,$AU22,$AW22,$AY22,$BA22,$BC22),6) -> 0 | BJ22: =LARGE(($I22,$K22,$M22,$O22,$Q22,$S22,$U22,$W22,$Y22,$AA22,$AC22,$AE22,$AG22,$AI22,$AK22,$AM22,$AO22,$AQ22,$AS22,$AU22,$AW22,$AY22,$BA22,$BC22),7) -> 0 | BK22: =LARGE(($I22,$K22,$M22,$O22,$Q22,$S22,$U22,$W22,$Y22,$AA22,$AC22,$AE22,$AG22,$AI22,$AK22,$AM22,$AO22,$AQ22,$AS22,$AU22,$AW22,$AY22,$BA22,$BC22),8) -> 0 | BL22: =LARGE(($I22,$K22,$M22,$O22,$Q22,$S22,$U22,$W22,$Y22,$AA22,$AC22,$AE22,$AG22,$AI22,$AK22,$AM22,$AO22,$AQ22,$AS22,$AU22,$AW22,$AY22,$BA22,$BC22),9) -> 0 | BM22: =LARGE(($I22,$K22,$M22,$O22,$Q22,$S22,$U22,$W22,$Y22,$AA22,$AC22,$AE22,$AG22,$AI22,$AK22,$AM22,$AO22,$AQ22,$AS22,$AU22,$AW22,$AY22,$BA22,$BC22),10) -> 0
A23: 19 | E23: =SUM(BD23:BM23) -> 0 | F23: =SUM(BD23:BK23) -> 0 | G23: =I23+K23+M23+O23+Q23+S23+U23+W23+Y23+AA23+AC23+AE23+AG23+AI23+AK23+AM23+AO23+AQ23+AS23+AU23+AW23+AY23+BA23+BC23 -> 0 | I23: =LOOKUP(H23,Poängberäkning!$B$6:$B$97,Poängberäkning!$C$6:$C$97) -> 0 | K23: =LOOKUP(J23,Poängberäkning!$B$6:$B$97,Poängberäkning!$C$6:$C$97) -> 0 | M23: =LOOKUP(L23,Poängberäkning!$B$6:$B$97,Poängberäkning!$C$6:$C$97) -> 0 | O23: =LOOKUP(N23,Poängberäkning!$B$6:$B$97,Poängberäkning!$C$6:$C$97) -> 0 | Q23: =LOOKUP(P23,Poängberäkning!$B$6:$B$97,Poängberäkning!$C$6:$C$97) -> 0 | S23: =LOOKUP(R23,Poängberäkning!$B$6:$B$97,Poängberäkning!$C$6:$C$97) -> 0 | U23: =LOOKUP(T23,Poängberäkning!$B$6:$B$97,Poängberäkning!$C$6:$C$97) -> 0 | W23: =LOOKUP(V23,Poängberäkning!$B$6:$B$97,Poängberäkning!$C$6:$C$97) -> 0 | Y23: =LOOKUP(X23,Poängberäkning!$B$6:$B$97,Poängberäkning!$C$6:$C$97) -> 0 | AA23: =LOOKUP(Z23,Poängberäkning!$B$6:$B$97,Poängberäkning!$C$6:$C$97) -> 0 | AC23: =LOOKUP(AB23,Poängberäkning!$B$6:$B$97,Poängberäkning!$C$6:$C$97) -> 0 | AE23: =LOOKUP(AD23,Poängberäkning!$B$6:$B$97,Poängberäkning!$C$6:$C$97) -> 0 | AG23: =LOOKUP(AF23,Poängberäkning!$B$6:$B$97,Poängberäkning!$C$6:$C$97) -> 0 | AI23: =LOOKUP(AH23,Poängberäkning!$B$6:$B$97,Poängberäkning!$C$6:$C$97) -> 0 | AK23: =LOOKUP(AJ23,Poängberäkning!$B$6:$B$97,Poängberäkning!$C$6:$C$97) -> 0 | AM23: =LOOKUP(AL23,Poängberäkning!$B$6:$B$97,Poängberäkning!$C$6:$C$97) -> 0 | AO23: =LOOKUP(AN23,Poängberäkning!$B$6:$B$97,Poängberäkning!$C$6:$C$97) -> 0 | AQ23: =LOOKUP(AP23,Poängberäkning!$B$6:$B$97,Poängberäkning!$C$6:$C$97) -> 0 | AS23: =LOOKUP(AR23,Poängberäkning!$B$6:$B$97,Poängberäkning!$C$6:$C$97) -> 0 | AU23: =LOOKUP(AT23,Poängberäkning!$B$6:$B$97,Poängberäkning!$C$6:$C$97) -> 0 | BD23: =LARGE(($I23,$K23,$M23,$O23,$Q23,$S23,$U23,$W23,$Y23,$AA23,$AC23,$AE23,$AG23,$AI23,$AK23,$AM23,$AO23,$AQ23,$AS23,$AU23,$AW23,$AY23,$BA23,$BC23),1) -> 0 | BE23: =LARGE(($I23,$K23,$M23,$O23,$Q23,$S23,$U23,$W23,$Y23,$AA23,$AC23,$AE23,$AG23,$AI23,$AK23,$AM23,$AO23,$AQ23,$AS23,$AU23,$AW23,$AY23,$BA23,$BC23),2) -> 0 | BF23: =LARGE(($I23,$K23,$M23,$O23,$Q23,$S23,$U23,$W23,$Y23,$AA23,$AC23,$AE23,$AG23,$AI23,$AK23,$AM23,$AO23,$AQ23,$AS23,$AU23,$AW23,$AY23,$BA23,$BC23),3) -> 0 | BG23: =LARGE(($I23,$K23,$M23,$O23,$Q23,$S23,$U23,$W23,$Y23,$AA23,$AC23,$AE23,$AG23,$AI23,$AK23,$AM23,$AO23,$AQ23,$AS23,$AU23,$AW23,$AY23,$BA23,$BC23),4) -> 0 | BH23: =LARGE(($I23,$K23,$M23,$O23,$Q23,$S23,$U23,$W23,$Y23,$AA23,$AC23,$AE23,$AG23,$AI23,$AK23,$AM23,$AO23,$AQ23,$AS23,$AU23,$AW23,$AY23,$BA23,$BC23),5) -> 0 | BI23: =LARGE(($I23,$K23,$M23,$O23,$Q23,$S23,$U23,$W23,$Y23,$AA23,$AC23,$AE23,$AG23,$AI23,$AK23,$AM23,$AO23,$AQ23,$AS23,$AU23,$AW23,$AY23,$BA23,$BC23),6) -> 0 | BJ23: =LARGE(($I23,$K23,$M23,$O23,$Q23,$S23,$U23,$W23,$Y23,$AA23,$AC23,$AE23,$AG23,$AI23,$AK23,$AM23,$AO23,$AQ23,$AS23,$AU23,$AW23,$AY23,$BA23,$BC23),7) -> 0 | BK23: =LARGE(($I23,$K23,$M23,$O23,$Q23,$S23,$U23,$W23,$Y23,$AA23,$AC23,$AE23,$AG23,$AI23,$AK23,$AM23,$AO23,$AQ23,$AS23,$AU23,$AW23,$AY23,$BA23,$BC23),8) -> 0 | BL23: =LARGE(($I23,$K23,$M23,$O23,$Q23,$S23,$U23,$W23,$Y23,$AA23,$AC23,$AE23,$AG23,$AI23,$AK23,$AM23,$AO23,$AQ23,$AS23,$AU23,$AW23,$AY23,$BA23,$BC23),9) -> 0 | BM23: =LARGE(($I23,$K23,$M23,$O23,$Q23,$S23,$U23,$W23,$Y23,$AA23,$AC23,$AE23,$AG23,$AI23,$AK23,$AM23,$AO23,$AQ23,$AS23,$AU23,$AW23,$AY23,$BA23,$BC23),10) -> 0
A24: 20 | E24: =SUM(BD24:BM24) -> 0 | F24: =SUM(BD24:BK24) -> 0 | G24: =I24+K24+M24+O24+Q24+S24+U24+W24+Y24+AA24+AC24+AE24+AG24+AI24+AK24+AM24+AO24+AQ24+AS24+AU24+AW24+AY24+BA24+BC24 -> 0 | I24: =LOOKUP(H24,Poängberäkning!$B$6:$B$97,Poängberäkning!$C$6:$C$97) -> 0 | K24: =LOOKUP(J24,Poängberäkning!$B$6:$B$97,Poängberäkning!$C$6:$C$97) -> 0 | M24: =LOOKUP(L24,Poängberäkning!$B$6:$B$97,Poängberäkning!$C$6:$C$97) -> 0 | O24: =LOOKUP(N24,Poängberäkning!$B$6:$B$97,Poängberäkning!$C$6:$C$97) -> 0 | Q24: =LOOKUP(P24,Poängberäkning!$B$6:$B$97,Poängberäkning!$C$6:$C$97) -> 0 | S24: =LOOKUP(R24,Poängberäkning!$B$6:$B$97,Poängberäkning!$C$6:$C$97) -> 0 | U24: =LOOKUP(T24,Poängberäkning!$B$6:$B$97,Poängberäkning!$C$6:$C$97) -> 0 | W24: =LOOKUP(V24,Poängberäkning!$B$6:$B$97,Poängberäkning!$C$6:$C$97) -> 0 | Y24: =LOOKUP(X24,Poängberäkning!$B$6:$B$97,Poängberäkning!$C$6:$C$97) -> 0 | AA24: =LOOKUP(Z24,Poängberäkning!$B$6:$B$97,Poängberäkning!$C$6:$C$97) -> 0 | AC24: =LOOKUP(AB24,Poängberäkning!$B$6:$B$97,Poängberäkning!$C$6:$C$97) -> 0 | AE24: =LOOKUP(AD24,Poängberäkning!$B$6:$B$97,Poängberäkning!$C$6:$C$97) -> 0 | AG24: =LOOKUP(AF24,Poängberäkning!$B$6:$B$97,Poängberäkning!$C$6:$C$97) -> 0 | AI24: =LOOKUP(AH24,Poängberäkning!$B$6:$B$97,Poängberäkning!$C$6:$C$97) -> 0 | AK24: =LOOKUP(AJ24,Poängberäkning!$B$6:$B$97,Poängberäkning!$C$6:$C$97) -> 0 | AM24: =LOOKUP(AL24,Poängberäkning!$B$6:$B$97,Poängberäkning!$C$6:$C$97) -> 0 | AO24: =LOOKUP(AN24,Poängberäkning!$B$6:$B$97,Poängberäkning!$C$6:$C$97) -> 0 | AQ24: =LOOKUP(AP24,Poängberäkning!$B$6:$B$97,Poängberäkning!$C$6:$C$97) -> 0 | AS24: =LOOKUP(AR24,Poängberäkning!$B$6:$B$97,Poängberäkning!$C$6:$C$97) -> 0 | AU24: =LOOKUP(AT24,Poängberäkning!$B$6:$B$97,Poängberäkning!$C$6:$C$97) -> 0 | BD24: =LARGE(($I24,$K24,$M24,$O24,$Q24,$S24,$U24,$W24,$Y24,$AA24,$AC24,$AE24,$AG24,$AI24,$AK24,$AM24,$AO24,$AQ24,$AS24,$AU24,$AW24,$AY24,$BA24,$BC24),1) -> 0 | BE24: =LARGE(($I24,$K24,$M24,$O24,$Q24,$S24,$U24,$W24,$Y24,$AA24,$AC24,$AE24,$AG24,$AI24,$AK24,$AM24,$AO24,$AQ24,$AS24,$AU24,$AW24,$AY24,$BA24,$BC24),2) -> 0 | BF24: =LARGE(($I24,$K24,$M24,$O24,$Q24,$S24,$U24,$W24,$Y24,$AA24,$AC24,$AE24,$AG24,$AI24,$AK24,$AM24,$AO24,$AQ24,$AS24,$AU24,$AW24,$AY24,$BA24,$BC24),3) -> 0 | BG24: =LARGE(($I24,$K24,$M24,$O24,$Q24,$S24,$U24,$W24,$Y24,$AA24,$AC24,$AE24,$AG24,$AI24,$AK24,$AM24,$AO24,$AQ24,$AS24,$AU24,$AW24,$AY24,$BA24,$BC24),4) -> 0 | BH24: =LARGE(($I24,$K24,$M24,$O24,$Q24,$S24,$U24,$W24,$Y24,$AA24,$AC24,$AE24,$AG24,$AI24,$AK24,$AM24,$AO24,$AQ24,$AS24,$AU24,$AW24,$AY24,$BA24,$BC24),5) -> 0 | BI24: =LARGE(($I24,$K24,$M24,$O24,$Q24,$S24,$U24,$W24,$Y24,$AA24,$AC24,$AE24,$AG24,$AI24,$AK24,$AM24,$AO24,$AQ24,$AS24,$AU24,$AW24,$AY24,$BA24,$BC24),6) -> 0 | BJ24: =LARGE(($I24,$K24,$M24,$O24,$Q24,$S24,$U24,$W24,$Y24,$AA24,$AC24,$AE24,$AG24,$AI24,$AK24,$AM24,$AO24,$AQ24,$AS24,$AU24,$AW24,$AY24,$BA24,$BC24),7) -> 0 | BK24: =LARGE(($I24,$K24,$M24,$O24,$Q24,$S24,$U24,$W24,$Y24,$AA24,$AC24,$AE24,$AG24,$AI24,$AK24,$AM24,$AO24,$AQ24,$AS24,$AU24,$AW24,$AY24,$BA24,$BC24),8) -> 0 | BL24: =LARGE(($I24,$K24,$M24,$O24,$Q24,$S24,$U24,$W24,$Y24,$AA24,$AC24,$AE24,$AG24,$AI24,$AK24,$AM24,$AO24,$AQ24,$AS24,$AU24,$AW24,$AY24,$BA24,$BC24),9) -> 0 | BM24: =LARGE(($I24,$K24,$M24,$O24,$Q24,$S24,$U24,$W24,$Y24,$AA24,$AC24,$AE24,$AG24,$AI24,$AK24,$AM24,$AO24,$AQ24,$AS24,$AU24,$AW24,$AY24,$BA24,$BC24),10) -> 0
A25: 21 | E25: =SUM(BD25:BM25) -> 0 | F25: =SUM(BD25:BK25) -> 0 | G25: =I25+K25+M25+O25+Q25+S25+U25+W25+Y25+AA25+AC25+AE25+AG25+AI25+AK25+AM25+AO25+AQ25+AS25+AU25+AW25+AY25+BA25+BC25 -> 0 | I25: =LOOKUP(H25,Poängberäkning!$B$6:$B$97,Poängberäkning!$C$6:$C$97) -> 0 | K25: =LOOKUP(J25,Poängberäkning!$B$6:$B$97,Poängberäkning!$C$6:$C$97) -> 0 | M25: =LOOKUP(L25,Poängberäkning!$B$6:$B$97,Poängberäkning!$C$6:$C$97) -> 0 | O25: =LOOKUP(N25,Poängberäkning!$B$6:$B$97,Poängberäkning!$C$6:$C$97) -> 0 | Q25: =LOOKUP(P25,Poängberäkning!$B$6:$B$97,Poängberäkning!$C$6:$C$97) -> 0 | S25: =LOOKUP(R25,Poängberäkning!$B$6:$B$97,Poängberäkning!$C$6:$C$97) -> 0 | U25: =LOOKUP(T25,Poängberäkning!$B$6:$B$97,Poängberäkning!$C$6:$C$97) -> 0 | W25: =LOOKUP(V25,Poängberäkning!$B$6:$B$97,Poängberäkning!$C$6:$C$97) -> 0 | Y25: =LOOKUP(X25,Poängberäkning!$B$6:$B$97,Poängberäkning!$C$6:$C$97) -> 0 | AA25: =LOOKUP(Z25,Poängberäkning!$B$6:$B$97,Poängberäkning!$C$6:$C$97) -> 0 | AC25: =LOOKUP(AB25,Poängberäkning!$B$6:$B$97,Poängberäkning!$C$6:$C$97) -> 0 | AE25: =LOOKUP(AD25,Poängberäkning!$B$6:$B$97,Poängberäkning!$C$6:$C$97) -> 0 | AG25: =LOOKUP(AF25,Poängberäkning!$B$6:$B$97,Poängberäkning!$C$6:$C$97) -> 0 | AI25: =LOOKUP(AH25,Poängberäkning!$B$6:$B$97,Poängberäkning!$C$6:$C$97) -> 0 | AK25: =LOOKUP(AJ25,Poängberäkning!$B$6:$B$97,Poängberäkning!$C$6:$C$97) -> 0 | AM25: =LOOKUP(AL25,Poängberäkning!$B$6:$B$97,Poängberäkning!$C$6:$C$97) -> 0 | AO25: =LOOKUP(AN25,Poängberäkning!$B$6:$B$97,Poängberäkning!$C$6:$C$97) -> 0 | AQ25: =LOOKUP(AP25,Poängberäkning!$B$6:$B$97,Poängberäkning!$C$6:$C$97) -> 0 | AS25: =LOOKUP(AR25,Poängberäkning!$B$6:$B$97,Poängberäkning!$C$6:$C$97) -> 0 | AU25: =LOOKUP(AT25,Poängberäkning!$B$6:$B$97,Poängberäkning!$C$6:$C$97) -> 0 | BD25: =LARGE(($I25,$K25,$M25,$O25,$Q25,$S25,$U25,$W25,$Y25,$AA25,$AC25,$AE25,$AG25,$AI25,$AK25,$AM25,$AO25,$AQ25,$AS25,$AU25,$AW25,$AY25,$BA25,$BC25),1) -> 0 | BE25: =LARGE(($I25,$K25,$M25,$O25,$Q25,$S25,$U25,$W25,$Y25,$AA25,$AC25,$AE25,$AG25,$AI25,$AK25,$AM25,$AO25,$AQ25,$AS25,$AU25,$AW25,$AY25,$BA25,$BC25),2) -> 0 | BF25: =LARGE(($I25,$K25,$M25,$O25,$Q25,$S25,$U25,$W25,$Y25,$AA25,$AC25,$AE25,$AG25,$AI25,$AK25,$AM25,$AO25,$AQ25,$AS25,$AU25,$AW25,$AY25,$BA25,$BC25),3) -> 0 | BG25: =LARGE(($I25,$K25,$M25,$O25,$Q25,$S25,$U25,$W25,$Y25,$AA25,$AC25,$AE25,$AG25,$AI25,$AK25,$AM25,$AO25,$AQ25,$AS25,$AU25,$AW25,$AY25,$BA25,$BC25),4) -> 0 | BH25: =LARGE(($I25,$K25,$M25,$O25,$Q25,$S25,$U25,$W25,$Y25,$AA25,$AC25,$AE25,$AG25,$AI25,$AK25,$AM25,$AO25,$AQ25,$AS25,$AU25,$AW25,$AY25,$BA25,$BC25),5) -> 0 | BI25: =LARGE(($I25,$K25,$M25,$O25,$Q25,$S25,$U25,$W25,$Y25,$AA25,$AC25,$AE25,$AG25,$AI25,$AK25,$AM25,$AO25,$AQ25,$AS25,$AU25,$AW25,$AY25,$BA25,$BC25),6) -> 0 | BJ25: =LARGE(($I25,$K25,$M25,$O25,$Q25,$S25,$U25,$W25,$Y25,$AA25,$AC25,$AE25,$AG25,$AI25,$AK25,$AM25,$AO25,$AQ25,$AS25,$AU25,$AW25,$AY25,$BA25,$BC25),7) -> 0 | BK25: =LARGE(($I25,$K25,$M25,$O25,$Q25,$S25,$U25,$W25,$Y25,$AA25,$AC25,$AE25,$AG25,$AI25,$AK25,$AM25,$AO25,$AQ25,$AS25,$AU25,$AW25,$AY25,$BA25,$BC25),8) -> 0 | BL25: =LARGE(($I25,$K25,$M25,$O25,$Q25,$S25,$U25,$W25,$Y25,$AA25,$AC25,$AE25,$AG25,$AI25,$AK25,$AM25,$AO25,$AQ25,$AS25,$AU25,$AW25,$AY25,$BA25,$BC25),9) -> 0 | BM25: =LARGE(($I25,$K25,$M25,$O25,$Q25,$S25,$U25,$W25,$Y25,$AA25,$AC25,$AE25,$AG25,$AI25,$AK25,$AM25,$AO25,$AQ25,$AS25,$AU25,$AW25,$AY25,$BA25,$BC25),10) -> 0
A26: 22 | E26: =SUM(BD26:BM26) -> 0 | F26: =SUM(BD26:BK26) -> 0 | G26: =I26+K26+M26+O26+Q26+S26+U26+W26+Y26+AA26+AC26+AE26+AG26+AI26+AK26+AM26+AO26+AQ26+AS26+AU26+AW26+AY26+BA26+BC26 -> 0 | I26: =LOOKUP(H26,Poängberäkning!$B$6:$B$97,Poängberäkning!$C$6:$C$97) -> 0 | K26: =LOOKUP(J26,Poängberäkning!$B$6:$B$97,Poängberäkning!$C$6:$C$97) -> 0 | M26: =LOOKUP(L26,Poängberäkning!$B$6:$B$97,Poängberäkning!$C$6:$C$97) -> 0 | O26: =LOOKUP(N26,Poängberäkning!$B$6:$B$97,Poängberäkning!$C$6:$C$97) -> 0 | Q26: =LOOKUP(P26,Poängberäkning!$B$6:$B$97,Poängberäkning!$C$6:$C$97) -> 0 | S26: =LOOKUP(R26,Poängberäkning!$B$6:$B$97,Poängberäkning!$C$6:$C$97) -> 0 | U26: =LOOKUP(T26,Poängberäkning!$B$6:$B$97,Poängberäkning!$C$6:$C$97) -> 0 | W26: =LOOKUP(V26,Poängberäkning!$B$6:$B$97,Poängberäkning!$C$6:$C$97) -> 0 | Y26: =LOOKUP(X26,Poängberäkning!$B$6:$B$97,Poängberäkning!$C$6:$C$97) -> 0 | AA26: =LOOKUP(Z26,Poängberäkning!$B$6:$B$97,Poängberäkning!$C$6:$C$97) -> 0 | AC26: =LOOKUP(AB26,Poängberäkning!$B$6:$B$97,Poängberäkning!$C$6:$C$97) -> 0 | AE26: =LOOKUP(AD26,Poängberäkning!$B$6:$B$97,Poängberäkning!$C$6:$C$97) -> 0 | AG26: =LOOKUP(AF26,Poängberäkning!$B$6:$B$97,Poängberäkning!$C$6:$C$97) -> 0 | AI26: =LOOKUP(AH26,Poängberäkning!$B$6:$B$97,Poängberäkning!$C$6:$C$97) -> 0 | AK26: =LOOKUP(AJ26,Poängberäkning!$B$6:$B$97,Poängberäkning!$C$6:$C$97) -> 0 | AM26: =LOOKUP(AL26,Poängberäkning!$B$6:$B$97,Poängberäkning!$C$6:$C$97) -> 0 | AO26: =LOOKUP(AN26,Poängberäkning!$B$6:$B$97,Poängberäkning!$C$6:$C$97) -> 0 | AQ26: =LOOKUP(AP26,Poängberäkning!$B$6:$B$97,Poängberäkning!$C$6:$C$97) -> 0 | AS26: =LOOKUP(AR26,Poängberäkning!$B$6:$B$97,Poängberäkning!$C$6:$C$97) -> 0 | AU26: =LOOKUP(AT26,Poängberäkning!$B$6:$B$97,Poängberäkning!$C$6:$C$97) -> 0 | BD26: =LARGE(($I26,$K26,$M26,$O26,$Q26,$S26,$U26,$W26,$Y26,$AA26,$AC26,$AE26,$AG26,$AI26,$AK26,$AM26,$AO26,$AQ26,$AS26,$AU26,$AW26,$AY26,$BA26,$BC26),1) -> 0 | BE26: =LARGE(($I26,$K26,$M26,$O26,$Q26,$S26,$U26,$W26,$Y26,$AA26,$AC26,$AE26,$AG26,$AI26,$AK26,$AM26,$AO26,$AQ26,$AS26,$AU26,$AW26,$AY26,$BA26,$BC26),2) -> 0 | BF26: =LARGE(($I26,$K26,$M26,$O26,$Q26,$S26,$U26,$W26,$Y26,$AA26,$AC26,$AE26,$AG26,$AI26,$AK26,$AM26,$AO26,$AQ26,$AS26,$AU26,$AW26,$AY26,$BA26,$BC26),3) -> 0 | BG26: =LARGE(($I26,$K26,$M26,$O26,$Q26,$S26,$U26,$W26,$Y26,$AA26,$AC26,$AE26,$AG26,$AI26,$AK26,$AM26,$AO26,$AQ26,$AS26,$AU26,$AW26,$AY26,$BA26,$BC26),4) -> 0 | BH26: =LARGE(($I26,$K26,$M26,$O26,$Q26,$S26,$U26,$W26,$Y26,$AA26,$AC26,$AE26,$AG26,$AI26,$AK26,$AM26,$AO26,$AQ26,$AS26,$AU26,$AW26,$AY26,$BA26,$BC26),5) -> 0 | BI26: =LARGE(($I26,$K26,$M26,$O26,$Q26,$S26,$U26,$W26,$Y26,$AA26,$AC26,$AE26,$AG26,$AI26,$AK26,$AM26,$AO26,$AQ26,$AS26,$AU26,$AW26,$AY26,$BA26,$BC26),6) -> 0 | BJ26: =LARGE(($I26,$K26,$M26,$O26,$Q26,$S26,$U26,$W26,$Y26,$AA26,$AC26,$AE26,$AG26,$AI26,$AK26,$AM26,$AO26,$AQ26,$AS26,$AU26,$AW26,$AY26,$BA26,$BC26),7) -> 0 | BK26: =LARGE(($I26,$K26,$M26,$O26,$Q26,$S26,$U26,$W26,$Y26,$AA26,$AC26,$AE26,$AG26,$AI26,$AK26,$AM26,$AO26,$AQ26,$AS26,$AU26,$AW26,$AY26,$BA26,$BC26),8) -> 0 | BL26: =LARGE(($I26,$K26,$M26,$O26,$Q26,$S26,$U26,$W26,$Y26,$AA26,$AC26,$AE26,$AG26,$AI26,$AK26,$AM26,$AO26,$AQ26,$AS26,$AU26,$AW26,$AY26,$BA26,$BC26),9) -> 0 | BM26: =LARGE(($I26,$K26,$M26,$O26,$Q26,$S26,$U26,$W26,$Y26,$AA26,$AC26,$AE26,$AG26,$AI26,$AK26,$AM26,$AO26,$AQ26,$AS26,$AU26,$AW26,$AY26,$BA26,$BC26),10) -> 0
A27: 23 | E27: =SUM(BD27:BM27) -> 0 | F27: =SUM(BD27:BK27) -> 0 | G27: =I27+K27+M27+O27+Q27+S27+U27+W27+Y27+AA27+AC27+AE27+AG27+AI27+AK27+AM27+AO27+AQ27+AS27+AU27+AW27+AY27+BA27+BC27 -> 0 | I27: =LOOKUP(H27,Poängberäkning!$B$6:$B$97,Poängberäkning!$C$6:$C$97) -> 0 | K27: =LOOKUP(J27,Poängberäkning!$B$6:$B$97,Poängberäkning!$C$6:$C$97) -> 0 | M27: =LOOKUP(L27,Poängberäkning!$B$6:$B$97,Poängberäkning!$C$6:$C$97) -> 0 | O27: =LOOKUP(N27,Poängberäkning!$B$6:$B$97,Poängberäkning!$C$6:$C$97) -> 0 | Q27: =LOOKUP(P27,Poängberäkning!$B$6:$B$97,Poängberäkning!$C$6:$C$97) -> 0 | S27: =LOOKUP(R27,Poängberäkning!$B$6:$B$97,Poängberäkning!$C$6:$C$97) -> 0 | U27: =LOOKUP(T27,Poängberäkning!$B$6:$B$97,Poängberäkning!$C$6:$C$97) -> 0 | W27: =LOOKUP(V27,Poängberäkning!$B$6:$B$97,Poängberäkning!$C$6:$C$97) -> 0 | Y27: =LOOKUP(X27,Poängberäkning!$B$6:$B$97,Poängberäkning!$C$6:$C$97) -> 0 | AA27: =LOOKUP(Z27,Poängberäkning!$B$6:$B$97,Poängberäkning!$C$6:$C$97) -> 0 | AC27: =LOOKUP(AB27,Poängberäkning!$B$6:$B$97,Poängberäkning!$C$6:$C$97) -> 0 | AE27: =LOOKUP(AD27,Poängberäkning!$B$6:$B$97,Poängberäkning!$C$6:$C$97) -> 0 | AG27: =LOOKUP(AF27,Poängberäkning!$B$6:$B$97,Poängberäkning!$C$6:$C$97) -> 0 | AI27: =LOOKUP(AH27,Poängberäkning!$B$6:$B$97,Poängberäkning!$C$6:$C$97) -> 0 | AK27: =LOOKUP(AJ27,Poängberäkning!$B$6:$B$97,Poängberäkning!$C$6:$C$97) -> 0 | AM27: =LOOKUP(AL27,Poängberäkning!$B$6:$B$97,Poängberäkning!$C$6:$C$97) -> 0 | AO27: =LOOKUP(AN27,Poängberäkning!$B$6:$B$97,Poängberäkning!$C$6:$C$97) -> 0 | AQ27: =LOOKUP(AP27,Poängberäkning!$B$6:$B$97,Poängberäkning!$C$6:$C$97) -> 0 | AS27: =LOOKUP(AR27,Poängberäkning!$B$6:$B$97,Poängberäkning!$C$6:$C$97) -> 0 | AU27: =LOOKUP(AT27,Poängberäkning!$B$6:$B$97,Poängberäkning!$C$6:$C$97) -> 0 | BD27: =LARGE(($I27,$K27,$M27,$O27,$Q27,$S27,$U27,$W27,$Y27,$AA27,$AC27,$AE27,$AG27,$AI27,$AK27,$AM27,$AO27,$AQ27,$AS27,$AU27,$AW27,$AY27,$BA27,$BC27),1) -> 0 | BE27: =LARGE(($I27,$K27,$M27,$O27,$Q27,$S27,$U27,$W27,$Y27,$AA27,$AC27,$AE27,$AG27,$AI27,$AK27,$AM27,$AO27,$AQ27,$AS27,$AU27,$AW27,$AY27,$BA27,$BC27),2) -> 0 | BF27: =LARGE(($I27,$K27,$M27,$O27,$Q27,$S27,$U27,$W27,$Y27,$AA27,$AC27,$AE27,$AG27,$AI27,$AK27,$AM27,$AO27,$AQ27,$AS27,$AU27,$AW27,$AY27,$BA27,$BC27),3) -> 0 | BG27: =LARGE(($I27,$K27,$M27,$O27,$Q27,$S27,$U27,$W27,$Y27,$AA27,$AC27,$AE27,$AG27,$AI27,$AK27,$AM27,$AO27,$AQ27,$AS27,$AU27,$AW27,$AY27,$BA27,$BC27),4) -> 0 | BH27: =LARGE(($I27,$K27,$M27,$O27,$Q27,$S27,$U27,$W27,$Y27,$AA27,$AC27,$AE27,$AG27,$AI27,$AK27,$AM27,$AO27,$AQ27,$AS27,$AU27,$AW27,$AY27,$BA27,$BC27),5) -> 0 | BI27: =LARGE(($I27,$K27,$M27,$O27,$Q27,$S27,$U27,$W27,$Y27,$AA27,$AC27,$AE27,$AG27,$AI27,$AK27,$AM27,$AO27,$AQ27,$AS27,$AU27,$AW27,$AY27,$BA27,$BC27),6) -> 0 | BJ27: =LARGE(($I27,$K27,$M27,$O27,$Q27,$S27,$U27,$W27,$Y27,$AA27,$AC27,$AE27,$AG27,$AI27,$AK27,$AM27,$AO27,$AQ27,$AS27,$AU27,$AW27,$AY27,$BA27,$BC27),7) -> 0 | BK27: =LARGE(($I27,$K27,$M27,$O27,$Q27,$S27,$U27,$W27,$Y27,$AA27,$AC27,$AE27,$AG27,$AI27,$AK27,$AM27,$AO27,$AQ27,$AS27,$AU27,$AW27,$AY27,$BA27,$BC27),8) -> 0 | BL27: =LARGE(($I27,$K27,$M27,$O27,$Q27,$S27,$U27,$W27,$Y27,$AA27,$AC27,$AE27,$AG27,$AI27,$AK27,$AM27,$AO27,$AQ27,$AS27,$AU27,$AW27,$AY27,$BA27,$BC27),9) -> 0 | BM27: =LARGE(($I27,$K27,$M27,$O27,$Q27,$S27,$U27,$W27,$Y27,$AA27,$AC27,$AE27,$AG27,$AI27,$AK27,$AM27,$AO27,$AQ27,$AS27,$AU27,$AW27,$AY27,$BA27,$BC27),10) -> 0
A28: 24 | E28: =SUM(BD28:BM28) -> 0 | F28: =SUM(BD28:BK28) -> 0 | G28: =I28+K28+M28+O28+Q28+S28+U28+W28+Y28+AA28+AC28+AE28+AG28+AI28+AK28+AM28+AO28+AQ28+AS28+AU28+AW28+AY28+BA28+BC28 -> 0 | I28: =LOOKUP(H28,Poängberäkning!$B$6:$B$97,Poängberäkning!$C$6:$C$97) -> 0 | K28: =LOOKUP(J28,Poängberäkning!$B$6:$B$97,Poängberäkning!$C$6:$C$97) -> 0 | M28: =LOOKUP(L28,Poängberäkning!$B$6:$B$97,Poängberäkning!$C$6:$C$97) -> 0 | O28: =LOOKUP(N28,Poängberäkning!$B$6:$B$97,Poängberäkning!$C$6:$C$97) -> 0 | Q28: =LOOKUP(P28,Poängberäkning!$B$6:$B$97,Poängberäkning!$C$6:$C$97) -> 0 | S28: =LOOKUP(R28,Poängberäkning!$B$6:$B$97,Poängberäkning!$C$6:$C$97) -> 0 | U28: =LOOKUP(T28,Poängberäkning!$B$6:$B$97,Poängberäkning!$C$6:$C$97) -> 0 | W28: =LOOKUP(V28,Poängberäkning!$B$6:$B$97,Poängberäkning!$C$6:$C$97) -> 0 | Y28: =LOOKUP(X28,Poängberäkning!$B$6:$B$97,Poängberäkning!$C$6:$C$97) -> 0 | AA28: =LOOKUP(Z28,Poängberäkning!$B$6:$B$97,Poängberäkning!$C$6:$C$97) -> 0 | AC28: =LOOKUP(AB28,Poängberäkning!$B$6:$B$97,Poängberäkning!$C$6:$C$97) -> 0 | AE28: =LOOKUP(AD28,Poängberäkning!$B$6:$B$97,Poängberäkning!$C$6:$C$97) -> 0 | AG28: =LOOKUP(AF28,Poängberäkning!$B$6:$B$97,Poängberäkning!$C$6:$C$97) -> 0 | AI28: =LOOKUP(AH28,Poängberäkning!$B$6:$B$97,Poängberäkning!$C$6:$C$97) -> 0 | AK28: =LOOKUP(AJ28,Poängberäkning!$B$6:$B$97,Poängberäkning!$C$6:$C$97) -> 0 | AM28: =LOOKUP(AL28,Poängberäkning!$B$6:$B$97,Poängberäkning!$C$6:$C$97) -> 0 | AO28: =LOOKUP(AN28,Poängberäkning!$B$6:$B$97,Poängberäkning!$C$6:$C$97) -> 0 | AQ28: =LOOKUP(AP28,Poängberäkning!$B$6:$B$97,Poängberäkning!$C$6:$C$97) -> 0 | AS28: =LOOKUP(AR28,Poängberäkning!$B$6:$B$97,Poängberäkning!$C$6:$C$97) -> 0 | AU28: =LOOKUP(AT28,Poängberäkning!$B$6:$B$97,Poängberäkning!$C$6:$C$97) -> 0 | BD28: =LARGE(($I28,$K28,$M28,$O28,$Q28,$S28,$U28,$W28,$Y28,$AA28,$AC28,$AE28,$AG28,$AI28,$AK28,$AM28,$AO28,$AQ28,$AS28,$AU28,$AW28,$AY28,$BA28,$BC28),1) -> 0 | BE28: =LARGE(($I28,$K28,$M28,$O28,$Q28,$S28,$U28,$W28,$Y28,$AA28,$AC28,$AE28,$AG28,$AI28,$AK28,$AM28,$AO28,$AQ28,$AS28,$AU28,$AW28,$AY28,$BA28,$BC28),2) -> 0 | BF28: =LARGE(($I28,$K28,$M28,$O28,$Q28,$S28,$U28,$W28,$Y28,$AA28,$AC28,$AE28,$AG28,$AI28,$AK28,$AM28,$AO28,$AQ28,$AS28,$AU28,$AW28,$AY28,$BA28,$BC28),3) -> 0 | BG28: =LARGE(($I28,$K28,$M28,$O28,$Q28,$S28,$U28,$W28,$Y28,$AA28,$AC28,$AE28,$AG28,$AI28,$AK28,$AM28,$AO28,$AQ28,$AS28,$AU28,$AW28,$AY28,$BA28,$BC28),4) -> 0 | BH28: =LARGE(($I28,$K28,$M28,$O28,$Q28,$S28,$U28,$W28,$Y28,$AA28,$AC28,$AE28,$AG28,$AI28,$AK28,$AM28,$AO28,$AQ28,$AS28,$AU28,$AW28,$AY28,$BA28,$BC28),5) -> 0 | BI28: =LARGE(($I28,$K28,$M28,$O28,$Q28,$S28,$U28,$W28,$Y28,$AA28,$AC28,$AE28,$AG28,$AI28,$AK28,$AM28,$AO28,$AQ28,$AS28,$AU28,$AW28,$AY28,$BA28,$BC28),6) -> 0 | BJ28: =LARGE(($I28,$K28,$M28,$O28,$Q28,$S28,$U28,$W28,$Y28,$AA28,$AC28,$AE28,$AG28,$AI28,$AK28,$AM28,$AO28,$AQ28,$AS28,$AU28,$AW28,$AY28,$BA28,$BC28),7) -> 0 | BK28: =LARGE(($I28,$K28,$M28,$O28,$Q28,$S28,$U28,$W28,$Y28,$AA28,$AC28,$AE28,$AG28,$AI28,$AK28,$AM28,$AO28,$AQ28,$AS28,$AU28,$AW28,$AY28,$BA28,$BC28),8) -> 0 | BL28: =LARGE(($I28,$K28,$M28,$O28,$Q28,$S28,$U28,$W28,$Y28,$AA28,$AC28,$AE28,$AG28,$AI28,$AK28,$AM28,$AO28,$AQ28,$AS28,$AU28,$AW28,$AY28,$BA28,$BC28),9) -> 0 | BM28: =LARGE(($I28,$K28,$M28,$O28,$Q28,$S28,$U28,$W28,$Y28,$AA28,$AC28,$AE28,$AG28,$AI28,$AK28,$AM28,$AO28,$AQ28,$AS28,$AU28,$AW28,$AY28,$BA28,$BC28),10) -> 0
A29: 25 | E29: =SUM(BD29:BM29) -> 0 | F29: =SUM(BD29:BK29) -> 0 | G29: =I29+K29+M29+O29+Q29+S29+U29+W29+Y29+AA29+AC29+AE29+AG29+AI29+AK29+AM29+AO29+AQ29+AS29+AU29+AW29+AY29+BA29+BC29 -> 0 | I29: =LOOKUP(H29,Poängberäkning!$B$6:$B$97,Poängberäkning!$C$6:$C$97) -> 0 | K29: =LOOKUP(J29,Poängberäkning!$B$6:$B$97,Poängberäkning!$C$6:$C$97) -> 0 | M29: =LOOKUP(L29,Poängberäkning!$B$6:$B$97,Poängberäkning!$C$6:$C$97) -> 0 | O29: =LOOKUP(N29,Poängberäkning!$B$6:$B$97,Poängberäkning!$C$6:$C$97) -> 0 | Q29: =LOOKUP(P29,Poängberäkning!$B$6:$B$97,Poängberäkning!$C$6:$C$97) -> 0 | S29: =LOOKUP(R29,Poängberäkning!$B$6:$B$97,Poängberäkning!$C$6:$C$97) -> 0 | U29: =LOOKUP(T29,Poängberäkning!$B$6:$B$97,Poängberäkning!$C$6:$C$97) -> 0 | W29: =LOOKUP(V29,Poängberäkning!$B$6:$B$97,Poängberäkning!$C$6:$C$97) -> 0 | Y29: =LOOKUP(X29,Poängberäkning!$B$6:$B$97,Poängberäkning!$C$6:$C$97) -> 0 | AA29: =LOOKUP(Z29,Poängberäkning!$B$6:$B$97,Poängberäkning!$C$6:$C$97) -> 0 | AC29: =LOOKUP(AB29,Poängberäkning!$B$6:$B$97,Poängberäkning!$C$6:$C$97) -> 0 | AE29: =LOOKUP(AD29,Poängberäkning!$B$6:$B$97,Poängberäkning!$C$6:$C$97) -> 0 | AG29: =LOOKUP(AF29,Poängberäkning!$B$6:$B$97,Poängberäkning!$C$6:$C$97) -> 0 | AI29: =LOOKUP(AH29,Poängberäkning!$B$6:$B$97,Poängberäkning!$C$6:$C$97) -> 0 | AK29: =LOOKUP(AJ29,Poängberäkning!$B$6:$B$97,Poängberäkning!$C$6:$C$97) -> 0 | AM29: =LOOKUP(AL29,Poängberäkning!$B$6:$B$97,Poängberäkning!$C$6:$C$97) -> 0 | AO29: =LOOKUP(AN29,Poängberäkning!$B$6:$B$97,Poängberäkning!$C$6:$C$97) -> 0 | AQ29: =LOOKUP(AP29,Poängberäkning!$B$6:$B$97,Poängberäkning!$C$6:$C$97) -> 0 | AS29: =LOOKUP(AR29,Poängberäkning!$B$6:$B$97,Poängberäkning!$C$6:$C$97) -> 0 | AU29: =LOOKUP(AT29,Poängberäkning!$B$6:$B$97,Poängberäkning!$C$6:$C$97) -> 0 | BD29: =LARGE(($I29,$K29,$M29,$O29,$Q29,$S29,$U29,$W29,$Y29,$AA29,$AC29,$AE29,$AG29,$AI29,$AK29,$AM29,$AO29,$AQ29,$AS29,$AU29,$AW29,$AY29,$BA29,$BC29),1) -> 0 | BE29: =LARGE(($I29,$K29,$M29,$O29,$Q29,$S29,$U29,$W29,$Y29,$AA29,$AC29,$AE29,$AG29,$AI29,$AK29,$AM29,$AO29,$AQ29,$AS29,$AU29,$AW29,$AY29,$BA29,$BC29),2) -> 0 | BF29: =LARGE(($I29,$K29,$M29,$O29,$Q29,$S29,$U29,$W29,$Y29,$AA29,$AC29,$AE29,$AG29,$AI29,$AK29,$AM29,$AO29,$AQ29,$AS29,$AU29,$AW29,$AY29,$BA29,$BC29),3) -> 0 | BG29: =LARGE(($I29,$K29,$M29,$O29,$Q29,$S29,$U29,$W29,$Y29,$AA29,$AC29,$AE29,$AG29,$AI29,$AK29,$AM29,$AO29,$AQ29,$AS29,$AU29,$AW29,$AY29,$BA29,$BC29),4) -> 0 | BH29: =LARGE(($I29,$K29,$M29,$O29,$Q29,$S29,$U29,$W29,$Y29,$AA29,$AC29,$AE29,$AG29,$AI29,$AK29,$AM29,$AO29,$AQ29,$AS29,$AU29,$AW29,$AY29,$BA29,$BC29),5) -> 0 | BI29: =LARGE(($I29,$K29,$M29,$O29,$Q29,$S29,$U29,$W29,$Y29,$AA29,$AC29,$AE29,$AG29,$AI29,$AK29,$AM29,$AO29,$AQ29,$AS29,$AU29,$AW29,$AY29,$BA29,$BC29),6) -> 0 | BJ29: =LARGE(($I29,$K29,$M29,$O29,$Q29,$S29,$U29,$W29,$Y29,$AA29,$AC29,$AE29,$AG29,$AI29,$AK29,$AM29,$AO29,$AQ29,$AS29,$AU29,$AW29,$AY29,$BA29,$BC29),7) -> 0 | BK29: =LARGE(($I29,$K29,$M29,$O29,$Q29,$S29,$U29,$W29,$Y29,$AA29,$AC29,$AE29,$AG29,$AI29,$AK29,$AM29,$AO29,$AQ29,$AS29,$AU29,$AW29,$AY29,$BA29,$BC29),8) -> 0 | BL29: =LARGE(($I29,$K29,$M29,$O29,$Q29,$S29,$U29,$W29,$Y29,$AA29,$AC29,$AE29,$AG29,$AI29,$AK29,$AM29,$AO29,$AQ29,$AS29,$AU29,$AW29,$AY29,$BA29,$BC29),9) -> 0 | BM29: =LARGE(($I29,$K29,$M29,$O29,$Q29,$S29,$U29,$W29,$Y29,$AA29,$AC29,$AE29,$AG29,$AI29,$AK29,$AM29,$AO29,$AQ29,$AS29,$AU29,$AW29,$AY29,$BA29,$BC29),10) -> 0
A30: 26 | E30: =SUM(BD30:BM30) -> 0 | F30: =SUM(BD30:BK30) -> 0 | G30: =I30+K30+M30+O30+Q30+S30+U30+W30+Y30+AA30+AC30+AE30+AG30+AI30+AK30+AM30+AO30+AQ30+AS30+AU30+AW30+AY30+BA30+BC30 -> 0 | I30: =LOOKUP(H30,Poängberäkning!$B$6:$B$97,Poängberäkning!$C$6:$C$97) -> 0 | K30: =LOOKUP(J30,Poängberäkning!$B$6:$B$97,Poängberäkning!$C$6:$C$97) -> 0 | M30: =LOOKUP(L30,Poängberäkning!$B$6:$B$97,Poängberäkning!$C$6:$C$97) -> 0 | O30: =LOOKUP(N30,Poängberäkning!$B$6:$B$97,Poängberäkning!$C$6:$C$97) -> 0 | Q30: =LOOKUP(P30,Poängberäkning!$B$6:$B$97,Poängberäkning!$C$6:$C$97) -> 0 | S30: =LOOKUP(R30,Poängberäkning!$B$6:$B$97,Poängberäkning!$C$6:$C$97) -> 0 | U30: =LOOKUP(T30,Poängberäkning!$B$6:$B$97,Poängberäkning!$C$6:$C$97) -> 0 | W30: =LOOKUP(V30,Poängberäkning!$B$6:$B$97,Poängberäkning!$C$6:$C$97) -> 0 | Y30: =LOOKUP(X30,Poängberäkning!$B$6:$B$97,Poängberäkning!$C$6:$C$97) -> 0 | AA30: =LOOKUP(Z30,Poängberäkning!$B$6:$B$97,Poängberäkning!$C$6:$C$97) -> 0 | AC30: =LOOKUP(AB30,Poängberäkning!$B$6:$B$97,Poängberäkning!$C$6:$C$97) -> 0 | AE30: =LOOKUP(AD30,Poängberäkning!$B$6:$B$97,Poängberäkning!$C$6:$C$97) -> 0 | AG30: =LOOKUP(AF30,Poängberäkning!$B$6:$B$97,Poängberäkning!$C$6:$C$97) -> 0 | AI30: =LOOKUP(AH30,Poängberäkning!$B$6:$B$97,Poängberäkning!$C$6:$C$97) -> 0 | AK30: =LOOKUP(AJ30,Poängberäkning!$B$6:$B$97,Poängberäkning!$C$6:$C$97) -> 0 | AM30: =LOOKUP(AL30,Poängberäkning!$B$6:$B$97,Poängberäkning!$C$6:$C$97) -> 0 | AO30: =LOOKUP(AN30,Poängberäkning!$B$6:$B$97,Poängberäkning!$C$6:$C$97) -> 0 | AQ30: =LOOKUP(AP30,Poängberäkning!$B$6:$B$97,Poängberäkning!$C$6:$C$97) -> 0 | AS30: =LOOKUP(AR30,Poängberäkning!$B$6:$B$97,Poängberäkning!$C$6:$C$97) -> 0 | AU30: =LOOKUP(AT30,Poängberäkning!$B$6:$B$97,Poängberäkning!$C$6:$C$97) -> 0 | BD30: =LARGE(($I30,$K30,$M30,$O30,$Q30,$S30,$U30,$W30,$Y30,$AA30,$AC30,$AE30,$AG30,$AI30,$AK30,$AM30,$AO30,$AQ30,$AS30,$AU30,$AW30,$AY30,$BA30,$BC30),1) -> 0 | BE30: =LARGE(($I30,$K30,$M30,$O30,$Q30,$S30,$U30,$W30,$Y30,$AA30,$AC30,$AE30,$AG30,$AI30,$AK30,$AM30,$AO30,$AQ30,$AS30,$AU30,$AW30,$AY30,$BA30,$BC30),2) -> 0 | BF30: =LARGE(($I30,$K30,$M30,$O30,$Q30,$S30,$U30,$W30,$Y30,$AA30,$AC30,$AE30,$AG30,$AI30,$AK30,$AM30,$AO30,$AQ30,$AS30,$AU30,$AW30,$AY30,$BA30,$BC30),3) -> 0 | BG30: =LARGE(($I30,$K30,$M30,$O30,$Q30,$S30,$U30,$W30,$Y30,$AA30,$AC30,$AE30,$AG30,$AI30,$AK30,$AM30,$AO30,$AQ30,$AS30,$AU30,$AW30,$AY30,$BA30,$BC30),4) -> 0 | BH30: =LARGE(($I30,$K30,$M30,$O30,$Q30,$S30,$U30,$W30,$Y30,$AA30,$AC30,$AE30,$AG30,$AI30,$AK30,$AM30,$AO30,$AQ30,$AS30,$AU30,$AW30,$AY30,$BA30,$BC30),5) -> 0 | BI30: =LARGE(($I30,$K30,$M30,$O30,$Q30,$S30,$U30,$W30,$Y30,$AA30,$AC30,$AE30,$AG30,$AI30,$AK30,$AM30,$AO30,$AQ30,$AS30,$AU30,$AW30,$AY30,$BA30,$BC30),6) -> 0 | BJ30: =LARGE(($I30,$K30,$M30,$O30,$Q30,$S30,$U30,$W30,$Y30,$AA30,$AC30,$AE30,$AG30,$AI30,$AK30,$AM30,$AO30,$AQ30,$AS30,$AU30,$AW30,$AY30,$BA30,$BC30),7) -> 0 | BK30: =LARGE(($I30,$K30,$M30,$O30,$Q30,$S30,$U30,$W30,$Y30,$AA30,$AC30,$AE30,$AG30,$AI30,$AK30,$AM30,$AO30,$AQ30,$AS30,$AU30,$AW30,$AY30,$BA30,$BC30),8) -> 0 | BL30: =LARGE(($I30,$K30,$M30,$O30,$Q30,$S30,$U30,$W30,$Y30,$AA30,$AC30,$AE30,$AG30,$AI30,$AK30,$AM30,$AO30,$AQ30,$AS30,$AU30,$AW30,$AY30,$BA30,$BC30),9) -> 0 | BM30: =LARGE(($I30,$K30,$M30,$O30,$Q30,$S30,$U30,$W30,$Y30,$AA30,$AC30,$AE30,$AG30,$AI30,$AK30,$AM30,$AO30,$AQ30,$AS30,$AU30,$AW30,$AY30,$BA30,$BC30),10) -> 0
A31: 27 | E31: =SUM(BD31:BM31) -> 0 | F31: =SUM(BD31:BK31) -> 0 | G31: =I31+K31+M31+O31+Q31+S31+U31+W31+Y31+AA31+AC31+AE31+AG31+AI31+AK31+AM31+AO31+AQ31+AS31+AU31+AW31+AY31+BA31+BC31 -> 0 | I31: =LOOKUP(H31,Poängberäkning!$B$6:$B$97,Poängberäkning!$C$6:$C$97) -> 0 | K31: =LOOKUP(J31,Poängberäkning!$B$6:$B$97,Poängberäkning!$C$6:$C$97) -> 0 | M31: =LOOKUP(L31,Poängberäkning!$B$6:$B$97,Poängberäkning!$C$6:$C$97) -> 0 | O31: =LOOKUP(N31,Poängberäkning!$B$6:$B$97,Poängberäkning!$C$6:$C$97) -> 0 | Q31: =LOOKUP(P31,Poängberäkning!$B$6:$B$97,Poängberäkning!$C$6:$C$97) -> 0 | S31: =LOOKUP(R31,Poängberäkning!$B$6:$B$97,Poängberäkning!$C$6:$C$97) -> 0 | U31: =LOOKUP(T31,Poängberäkning!$B$6:$B$97,Poängberäkning!$C$6:$C$97) -> 0 | W31: =LOOKUP(V31,Poängberäkning!$B$6:$B$97,Poängberäkning!$C$6:$C$97) -> 0 | Y31: =LOOKUP(X31,Poängberäkning!$B$6:$B$97,Poängberäkning!$C$6:$C$97) -> 0 | AA31: =LOOKUP(Z31,Poängberäkning!$B$6:$B$97,Poängberäkning!$C$6:$C$97) -> 0 | AC31: =LOOKUP(AB31,Poängberäkning!$B$6:$B$97,Poängberäkning!$C$6:$C$97) -> 0 | AE31: =LOOKUP(AD31,Poängberäkning!$B$6:$B$97,Poängberäkning!$C$6:$C$97) -> 0 | AG31: =LOOKUP(AF31,Poängberäkning!$B$6:$B$97,Poängberäkning!$C$6:$C$97) -> 0 | AI31: =LOOKUP(AH31,Poängberäkning!$B$6:$B$97,Poängberäkning!$C$6:$C$97) -> 0 | AK31: =LOOKUP(AJ31,Poängberäkning!$B$6:$B$97,Poängberäkning!$C$6:$C$97) -> 0 | AM31: =LOOKUP(AL31,Poängberäkning!$B$6:$B$97,Poängberäkning!$C$6:$C$97) -> 0 | AO31: =LOOKUP(AN31,Poängberäkning!$B$6:$B$97,Poängberäkning!$C$6:$C$97) -> 0 | AQ31: =LOOKUP(AP31,Poängberäkning!$B$6:$B$97,Poängberäkning!$C$6:$C$97) -> 0 | AS31: =LOOKUP(AR31,Poängberäkning!$B$6:$B$97,Poängberäkning!$C$6:$C$97) -> 0 | AU31: =LOOKUP(AT31,Poängberäkning!$B$6:$B$97,Poängberäkning!$C$6:$C$97) -> 0 | BD31: =LARGE(($I31,$K31,$M31,$O31,$Q31,$S31,$U31,$W31,$Y31,$AA31,$AC31,$AE31,$AG31,$AI31,$AK31,$AM31,$AO31,$AQ31,$AS31,$AU31,$AW31,$AY31,$BA31,$BC31),1) -> 0 | BE31: =LARGE(($I31,$K31,$M31,$O31,$Q31,$S31,$U31,$W31,$Y31,$AA31,$AC31,$AE31,$AG31,$AI31,$AK31,$AM31,$AO31,$AQ31,$AS31,$AU31,$AW31,$AY31,$BA31,$BC31),2) -> 0 | BF31: =LARGE(($I31,$K31,$M31,$O31,$Q31,$S31,$U31,$W31,$Y31,$AA31,$AC31,$AE31,$AG31,$AI31,$AK31,$AM31,$AO31,$AQ31,$AS31,$AU31,$AW31,$AY31,$BA31,$BC31),3) -> 0 | BG31: =LARGE(($I31,$K31,$M31,$O31,$Q31,$S31,$U31,$W31,$Y31,$AA31,$AC31,$AE31,$AG31,$AI31,$AK31,$AM31,$AO31,$AQ31,$AS31,$AU31,$AW31,$AY31,$BA31,$BC31),4) -> 0 | BH31: =LARGE(($I31,$K31,$M31,$O31,$Q31,$S31,$U31,$W31,$Y31,$AA31,$AC31,$AE31,$AG31,$AI31,$AK31,$AM31,$AO31,$AQ31,$AS31,$AU31,$AW31,$AY31,$BA31,$BC31),5) -> 0 | BI31: =LARGE(($I31,$K31,$M31,$O31,$Q31,$S31,$U31,$W31,$Y31,$AA31,$AC31,$AE31,$AG31,$AI31,$AK31,$AM31,$AO31,$AQ31,$AS31,$AU31,$AW31,$AY31,$BA31,$BC31),6) -> 0 | BJ31: =LARGE(($I31,$K31,$M31,$O31,$Q31,$S31,$U31,$W31,$Y31,$AA31,$AC31,$AE31,$AG31,$AI31,$AK31,$AM31,$AO31,$AQ31,$AS31,$AU31,$AW31,$AY31,$BA31,$BC31),7) -> 0 | BK31: =LARGE(($I31,$K31,$M31,$O31,$Q31,$S31,$U31,$W31,$Y31,$AA31,$AC31,$AE31,$AG31,$AI31,$AK31,$AM31,$AO31,$AQ31,$AS31,$AU31,$AW31,$AY31,$BA31,$BC31),8) -> 0 | BL31: =LARGE(($I31,$K31,$M31,$O31,$Q31,$S31,$U31,$W31,$Y31,$AA31,$AC31,$AE31,$AG31,$AI31,$AK31,$AM31,$AO31,$AQ31,$AS31,$AU31,$AW31,$AY31,$BA31,$BC31),9) -> 0 | BM31: =LARGE(($I31,$K31,$M31,$O31,$Q31,$S31,$U31,$W31,$Y31,$AA31,$AC31,$AE31,$AG31,$AI31,$AK31,$AM31,$AO31,$AQ31,$AS31,$AU31,$AW31,$AY31,$BA31,$BC31),10) -> 0
